Workbook

Sheet Notes

Sheet Summary
A2: Interactive sub-national population projection toolkit | H2: Click here to view a population pyramid
A3: Source: Office for National Statistics 2022 Sub-national Population Projections
A4: Presented by: Kent Analytics, Kent County Council. Email: research@kent.gov.uk
A7: Select District | G7: Select district 2 | M7: Select district 3
B10: Start age | D10: End Age
O15: =Index!E7&" in "&Index!C11&", "&Index!C16&" - "&Index!C19 -> Change in population aged 0-90+ in Ashford, 2022 - 2047
N17: Start Year | P17: End Year
N21: Year | O21: Males | P21: Females | Q21: Total
N22: =Index!C16 -> 2022 | O22: =INDEX('All Districts Rounded Data'!AC12:AC29,Index!B11) -> 66100 | P22: =INDEX('All Districts Rounded Data'!AC33:AC50,Index!B11) -> 69700 | Q22: =INDEX('All Districts Rounded Data'!AC54:AC71,Index!B11) -> 135700
N23: =Index!C19 -> 2047 | O23: =INDEX('All Districts Rounded Data'!AD12:AD29,Index!B11) -> 79300 | P23: =INDEX('All Districts Rounded Data'!AD33:AD50,Index!B11) -> 83600 | Q23: =INDEX('All Districts Rounded Data'!AD54:AD71,Index!B11) -> 162900
N24: Change | O24: =IF(O22=0,0,INDEX('All Districts Rounded Data'!AE12:AE29,Index!B11)) -> 13200 | P24: =IF(P22=0,0,INDEX('All Districts Rounded Data'!AE33:AE50,Index!B11)) -> 13900 | Q24: =IF(Q22=0,0,INDEX('All Districts Rounded Data'!AE54:AE71,Index!B11)) -> 27100
N25: % change | O25: =INDEX('All Districts Rounded Data'!AF12:AF29,Index!B11) -> 0.2000919862 | P25: =INDEX('All Districts Rounded Data'!AF33:AF50,Index!B11) -> 0.1999159285 | Q25: =INDEX('All Districts Rounded Data'!AF54:AF71,Index!B11) -> 0.2000016428
N26: Source: Office for National Statistics. Kent Analytics, Kent County Council
N27: All figures have been individually rounded to the nearest one hundred and therefore may not sum
N28: Percentages have been calculated using unrounded numbers
A31: =Index!C11&" estimated population aged "&Index!C4&" - "&Index!C9 -> Ashford estimated population aged 0 - 90+
B32: 2022 | C32: 2023 | D32: 2024 | E32: 2025 | F32: 2026 | G32: 2027 | H32: 2028 | I32: 2029 | J32: 2030 | K32: 2031 | L32: 2032 | M32: 2033 | N32: 2034 | O32: 2035 | P32: 2036 | Q32: 2037 | R32: 2038 | S32: 2039 | T32: 2040 | U32: 2041 | V32: 2042 | W32: 2043 | X32: 2044 | Y32: 2045 | Z32: 2046 | AA32: 2047
A33: Males | B33: =INDEX('All Districts Rounded Data'!B$12:B$29,Index!$B$11) -> 66100 | C33: =INDEX('All Districts Rounded Data'!C$12:C$29,Index!$B$11) -> 67100 | D33: =INDEX('All Districts Rounded Data'!D$12:D$29,Index!$B$11) -> 67900 | E33: =INDEX('All Districts Rounded Data'!E$12:E$29,Index!$B$11) -> 68600 | F33: =INDEX('All Districts Rounded Data'!F$12:F$29,Index!$B$11) -> 69200 | G33: =INDEX('All Districts Rounded Data'!G$12:G$29,Index!$B$11) -> 69800 | H33: =INDEX('All Districts Rounded Data'!H$12:H$29,Index!$B$11) -> 70300 | I33: =INDEX('All Districts Rounded Data'!I$12:I$29,Index!$B$11) -> 70900 | J33: =INDEX('All Districts Rounded Data'!J$12:J$29,Index!$B$11) -> 71500 | K33: =INDEX('All Districts Rounded Data'!K$12:K$29,Index!$B$11) -> 72000 | L33: =INDEX('All Districts Rounded Data'!L$12:L$29,Index!$B$11) -> 72500 | M33: =INDEX('All Districts Rounded Data'!M$12:M$29,Index!$B$11) -> 73000 | N33: =INDEX('All Districts Rounded Data'!N$12:N$29,Index!$B$11) -> 73500 | O33: =INDEX('All Districts Rounded Data'!O$12:O$29,Index!$B$11) -> 74000 | P33: =INDEX('All Districts Rounded Data'!P$12:P$29,Index!$B$11) -> 74500 | Q33: =INDEX('All Districts Rounded Data'!Q$12:Q$29,Index!$B$11) -> 74900 | R33: =INDEX('All Districts Rounded Data'!R$12:R$29,Index!$B$11) -> 75400 | S33: =INDEX('All Districts Rounded Data'!S$12:S$29,Index!$B$11) -> 75800 | T33: =INDEX('All Districts Rounded Data'!T$12:T$29,Index!$B$11) -> 76300 | U33: =INDEX('All Districts Rounded Data'!U$12:U$29,Index!$B$11) -> 76700 | V33: =INDEX('All Districts Rounded Data'!V$12:V$29,Index!$B$11) -> 77200 | W33: =INDEX('All Districts Rounded Data'!W$12:W$29,Index!$B$11) -> 77600 | X33: =INDEX('All Districts Rounded Data'!X$12:X$29,Index!$B$11) -> 78100 | Y33: =INDEX('All Districts Rounded Data'!Y$12:Y$29,Index!$B$11) -> 78500 | Z33: =INDEX('All Districts Rounded Data'!Z$12:Z$29,Index!$B$11) -> 78900 | AA33: =INDEX('All Districts Rounded Data'!AA$12:AA$29,Index!$B$11) -> 79300
A34: Females | B34: =INDEX('All Districts Rounded Data'!B$33:B$50,Index!$B$11) -> 69700 | C34: =INDEX('All Districts Rounded Data'!C$33:C$50,Index!$B$11) -> 70700 | D34: =INDEX('All Districts Rounded Data'!D$33:D$50,Index!$B$11) -> 71600 | E34: =INDEX('All Districts Rounded Data'!E$33:E$50,Index!$B$11) -> 72400 | F34: =INDEX('All Districts Rounded Data'!F$33:F$50,Index!$B$11) -> 73000 | G34: =INDEX('All Districts Rounded Data'!G$33:G$50,Index!$B$11) -> 73600 | H34: =INDEX('All Districts Rounded Data'!H$33:H$50,Index!$B$11) -> 74200 | I34: =INDEX('All Districts Rounded Data'!I$33:I$50,Index!$B$11) -> 74800 | J34: =INDEX('All Districts Rounded Data'!J$33:J$50,Index!$B$11) -> 75400 | K34: =INDEX('All Districts Rounded Data'!K$33:K$50,Index!$B$11) -> 76000 | L34: =INDEX('All Districts Rounded Data'!L$33:L$50,Index!$B$11) -> 76600 | M34: =INDEX('All Districts Rounded Data'!M$33:M$50,Index!$B$11) -> 77100 | N34: =INDEX('All Districts Rounded Data'!N$33:N$50,Index!$B$11) -> 77700 | O34: =INDEX('All Districts Rounded Data'!O$33:O$50,Index!$B$11) -> 78200 | P34: =INDEX('All Districts Rounded Data'!P$33:P$50,Index!$B$11) -> 78700 | Q34: =INDEX('All Districts Rounded Data'!Q$33:Q$50,Index!$B$11) -> 79100 | R34: =INDEX('All Districts Rounded Data'!R$33:R$50,Index!$B$11) -> 79600 | S34: =INDEX('All Districts Rounded Data'!S$33:S$50,Index!$B$11) -> 80100 | T34: =INDEX('All Districts Rounded Data'!T$33:T$50,Index!$B$11) -> 80600 | U34: =INDEX('All Districts Rounded Data'!U$33:U$50,Index!$B$11) -> 81000 | V34: =INDEX('All Districts Rounded Data'!V$33:V$50,Index!$B$11) -> 81500 | W34: =INDEX('All Districts Rounded Data'!W$33:W$50,Index!$B$11) -> 81900 | X34: =INDEX('All Districts Rounded Data'!X$33:X$50,Index!$B$11) -> 82400 | Y34: =INDEX('All Districts Rounded Data'!Y$33:Y$50,Index!$B$11) -> 82800 | Z34: =INDEX('All Districts Rounded Data'!Z$33:Z$50,Index!$B$11) -> 83200 | AA34: =INDEX('All Districts Rounded Data'!AA$33:AA$50,Index!$B$11) -> 83600
A35: Total | B35: =INDEX('All Districts Rounded Data'!B$54:B$71,Index!$B$11) -> 135700 | C35: =INDEX('All Districts Rounded Data'!C$54:C$71,Index!$B$11) -> 137700 | D35: =INDEX('All Districts Rounded Data'!D$54:D$71,Index!$B$11) -> 139500 | E35: =INDEX('All Districts Rounded Data'!E$54:E$71,Index!$B$11) -> 141000 | F35: =INDEX('All Districts Rounded Data'!F$54:F$71,Index!$B$11) -> 142200 | G35: =INDEX('All Districts Rounded Data'!G$54:G$71,Index!$B$11) -> 143400 | H35: =INDEX('All Districts Rounded Data'!H$54:H$71,Index!$B$11) -> 144600 | I35: =INDEX('All Districts Rounded Data'!I$54:I$71,Index!$B$11) -> 145700 | J35: =INDEX('All Districts Rounded Data'!J$54:J$71,Index!$B$11) -> 146900 | K35: =INDEX('All Districts Rounded Data'!K$54:K$71,Index!$B$11) -> 148000 | L35: =INDEX('All Districts Rounded Data'!L$54:L$71,Index!$B$11) -> 149100 | M35: =INDEX('All Districts Rounded Data'!M$54:M$71,Index!$B$11) -> 150200 | N35: =INDEX('All Districts Rounded Data'!N$54:N$71,Index!$B$11) -> 151200 | O35: =INDEX('All Districts Rounded Data'!O$54:O$71,Index!$B$11) -> 152200 | P35: =INDEX('All Districts Rounded Data'!P$54:P$71,Index!$B$11) -> 153100 | Q35: =INDEX('All Districts Rounded Data'!Q$54:Q$71,Index!$B$11) -> 154100 | R35: =INDEX('All Districts Rounded Data'!R$54:R$71,Index!$B$11) -> 155000 | S35: =INDEX('All Districts Rounded Data'!S$54:S$71,Index!$B$11) -> 155900 | T35: =INDEX('All Districts Rounded Data'!T$54:T$71,Index!$B$11) -> 156800 | U35: =INDEX('All Districts Rounded Data'!U$54:U$71,Index!$B$11) -> 157700 | V35: =INDEX('All Districts Rounded Data'!V$54:V$71,Index!$B$11) -> 158600 | W35: =INDEX('All Districts Rounded Data'!W$54:W$71,Index!$B$11) -> 159500 | X35: =INDEX('All Districts Rounded Data'!X$54:X$71,Index!$B$11) -> 160400 | Y35: =INDEX('All Districts Rounded Data'!Y$54:Y$71,Index!$B$11) -> 161300 | Z35: =INDEX('All Districts Rounded Data'!Z$54:Z$71,Index!$B$11) -> 162100 | AA35: =INDEX('All Districts Rounded Data'!AA$54:AA$71,Index!$B$11) -> 162900
A36: Source: Office for National Statistics. Presented by: Kent Analytics, Kent County Council
A37: All figures have been individually rounded to the nearest one hundred and therefore may not sum
A38: =Index!C12&" estimated population aged "&Index!C4&" - "&Index!C9 -> - estimated population aged 0 - 90+
B39: 2022 | C39: 2023 | D39: 2024 | E39: 2025 | F39: 2026 | G39: 2027 | H39: 2028 | I39: 2029 | J39: 2030 | K39: 2031 | L39: 2032 | M39: 2033 | N39: 2034 | O39: 2035 | P39: 2036 | Q39: 2037 | R39: 2038 | S39: 2039 | T39: 2040 | U39: 2041 | V39: 2042 | W39: 2043 | X39: 2044 | Y39: 2045 | Z39: 2046 | AA39: 2047
A40: Males | B40: =INDEX('All Districts Rounded Data'!B$12:B$29,Index!$B$12) -> 0 | C40: =INDEX('All Districts Rounded Data'!C$12:C$29,Index!$B$12) -> 0 | D40: =INDEX('All Districts Rounded Data'!D$12:D$29,Index!$B$12) -> 0 | E40: =INDEX('All Districts Rounded Data'!E$12:E$29,Index!$B$12) -> 0 | F40: =INDEX('All Districts Rounded Data'!F$12:F$29,Index!$B$12) -> 0 | G40: =INDEX('All Districts Rounded Data'!G$12:G$29,Index!$B$12) -> 0 | H40: =INDEX('All Districts Rounded Data'!H$12:H$29,Index!$B$12) -> 0 | I40: =INDEX('All Districts Rounded Data'!I$12:I$29,Index!$B$12) -> 0 | J40: =INDEX('All Districts Rounded Data'!J$12:J$29,Index!$B$12) -> 0 | K40: =INDEX('All Districts Rounded Data'!K$12:K$29,Index!$B$12) -> 0 | L40: =INDEX('All Districts Rounded Data'!L$12:L$29,Index!$B$12) -> 0 | M40: =INDEX('All Districts Rounded Data'!M$12:M$29,Index!$B$12) -> 0 | N40: =INDEX('All Districts Rounded Data'!N$12:N$29,Index!$B$12) -> 0 | O40: =INDEX('All Districts Rounded Data'!O$12:O$29,Index!$B$12) -> 0 | P40: =INDEX('All Districts Rounded Data'!P$12:P$29,Index!$B$12) -> 0 | Q40: =INDEX('All Districts Rounded Data'!Q$12:Q$29,Index!$B$12) -> 0 | R40: =INDEX('All Districts Rounded Data'!R$12:R$29,Index!$B$12) -> 0 | S40: =INDEX('All Districts Rounded Data'!S$12:S$29,Index!$B$12) -> 0 | T40: =INDEX('All Districts Rounded Data'!T$12:T$29,Index!$B$12) -> 0 | U40: =INDEX('All Districts Rounded Data'!U$12:U$29,Index!$B$12) -> 0 | V40: =INDEX('All Districts Rounded Data'!V$12:V$29,Index!$B$12) -> 0 | W40: =INDEX('All Districts Rounded Data'!W$12:W$29,Index!$B$12) -> 0 | X40: =INDEX('All Districts Rounded Data'!X$12:X$29,Index!$B$12) -> 0 | Y40: =INDEX('All Districts Rounded Data'!Y$12:Y$29,Index!$B$12) -> 0 | Z40: =INDEX('All Districts Rounded Data'!Z$12:Z$29,Index!$B$12) -> 0 | AA40: =INDEX('All Districts Rounded Data'!AA$12:AA$29,Index!$B$12) -> 0
A41: Females | B41: =INDEX('All Districts Rounded Data'!B$33:B$50,Index!$B$12) -> 0 | C41: =INDEX('All Districts Rounded Data'!C$33:C$50,Index!$B$12) -> 0 | D41: =INDEX('All Districts Rounded Data'!D$33:D$50,Index!$B$12) -> 0 | E41: =INDEX('All Districts Rounded Data'!E$33:E$50,Index!$B$12) -> 0 | F41: =INDEX('All Districts Rounded Data'!F$33:F$50,Index!$B$12) -> 0 | G41: =INDEX('All Districts Rounded Data'!G$33:G$50,Index!$B$12) -> 0 | H41: =INDEX('All Districts Rounded Data'!H$33:H$50,Index!$B$12) -> 0 | I41: =INDEX('All Districts Rounded Data'!I$33:I$50,Index!$B$12) -> 0 | J41: =INDEX('All Districts Rounded Data'!J$33:J$50,Index!$B$12) -> 0 | K41: =INDEX('All Districts Rounded Data'!K$33:K$50,Index!$B$12) -> 0 | L41: =INDEX('All Districts Rounded Data'!L$33:L$50,Index!$B$12) -> 0 | M41: =INDEX('All Districts Rounded Data'!M$33:M$50,Index!$B$12) -> 0 | N41: =INDEX('All Districts Rounded Data'!N$33:N$50,Index!$B$12) -> 0 | O41: =INDEX('All Districts Rounded Data'!O$33:O$50,Index!$B$12) -> 0 | P41: =INDEX('All Districts Rounded Data'!P$33:P$50,Index!$B$12) -> 0 | Q41: =INDEX('All Districts Rounded Data'!Q$33:Q$50,Index!$B$12) -> 0 | R41: =INDEX('All Districts Rounded Data'!R$33:R$50,Index!$B$12) -> 0 | S41: =INDEX('All Districts Rounded Data'!S$33:S$50,Index!$B$12) -> 0 | T41: =INDEX('All Districts Rounded Data'!T$33:T$50,Index!$B$12) -> 0 | U41: =INDEX('All Districts Rounded Data'!U$33:U$50,Index!$B$12) -> 0 | V41: =INDEX('All Districts Rounded Data'!V$33:V$50,Index!$B$12) -> 0 | W41: =INDEX('All Districts Rounded Data'!W$33:W$50,Index!$B$12) -> 0 | X41: =INDEX('All Districts Rounded Data'!X$33:X$50,Index!$B$12) -> 0 | Y41: =INDEX('All Districts Rounded Data'!Y$33:Y$50,Index!$B$12) -> 0 | Z41: =INDEX('All Districts Rounded Data'!Z$33:Z$50,Index!$B$12) -> 0 | AA41: =INDEX('All Districts Rounded Data'!AA$33:AA$50,Index!$B$12) -> 0
A42: Total | B42: =INDEX('All Districts Rounded Data'!B$54:B$71,Index!$B$12) -> 0 | C42: =INDEX('All Districts Rounded Data'!C$54:C$71,Index!$B$12) -> 0 | D42: =INDEX('All Districts Rounded Data'!D$54:D$71,Index!$B$12) -> 0 | E42: =INDEX('All Districts Rounded Data'!E$54:E$71,Index!$B$12) -> 0 | F42: =INDEX('All Districts Rounded Data'!F$54:F$71,Index!$B$12) -> 0 | G42: =INDEX('All Districts Rounded Data'!G$54:G$71,Index!$B$12) -> 0 | H42: =INDEX('All Districts Rounded Data'!H$54:H$71,Index!$B$12) -> 0 | I42: =INDEX('All Districts Rounded Data'!I$54:I$71,Index!$B$12) -> 0 | J42: =INDEX('All Districts Rounded Data'!J$54:J$71,Index!$B$12) -> 0 | K42: =INDEX('All Districts Rounded Data'!K$54:K$71,Index!$B$12) -> 0 | L42: =INDEX('All Districts Rounded Data'!L$54:L$71,Index!$B$12) -> 0 | M42: =INDEX('All Districts Rounded Data'!M$54:M$71,Index!$B$12) -> 0 | N42: =INDEX('All Districts Rounded Data'!N$54:N$71,Index!$B$12) -> 0 | O42: =INDEX('All Districts Rounded Data'!O$54:O$71,Index!$B$12) -> 0 | P42: =INDEX('All Districts Rounded Data'!P$54:P$71,Index!$B$12) -> 0 | Q42: =INDEX('All Districts Rounded Data'!Q$54:Q$71,Index!$B$12) -> 0 | R42: =INDEX('All Districts Rounded Data'!R$54:R$71,Index!$B$12) -> 0 | S42: =INDEX('All Districts Rounded Data'!S$54:S$71,Index!$B$12) -> 0 | T42: =INDEX('All Districts Rounded Data'!T$54:T$71,Index!$B$12) -> 0 | U42: =INDEX('All Districts Rounded Data'!U$54:U$71,Index!$B$12) -> 0 | V42: =INDEX('All Districts Rounded Data'!V$54:V$71,Index!$B$12) -> 0 | W42: =INDEX('All Districts Rounded Data'!W$54:W$71,Index!$B$12) -> 0 | X42: =INDEX('All Districts Rounded Data'!X$54:X$71,Index!$B$12) -> 0 | Y42: =INDEX('All Districts Rounded Data'!Y$54:Y$71,Index!$B$12) -> 0 | Z42: =INDEX('All Districts Rounded Data'!Z$54:Z$71,Index!$B$12) -> 0 | AA42: =INDEX('All Districts Rounded Data'!AA$54:AA$71,Index!$B$12) -> 0
A43: Source: Office for National Statistics. Presented by Kent Analytics, Kent County Council
A44: All figures have been individually rounded to the nearest one hundred and therefore may not sum
A45: =Index!C13&" estimated population aged "&Index!C4&" - "&Index!C9 -> - estimated population aged 0 - 90+
B46: 2022 | C46: 2023 | D46: 2024 | E46: 2025 | F46: 2026 | G46: 2027 | H46: 2028 | I46: 2029 | J46: 2030 | K46: 2031 | L46: 2032 | M46: 2033 | N46: 2034 | O46: 2035 | P46: 2036 | Q46: 2037 | R46: 2038 | S46: 2039 | T46: 2040 | U46: 2041 | V46: 2042 | W46: 2043 | X46: 2044 | Y46: 2045 | Z46: 2046 | AA46: 2047
A47: Males | B47: =INDEX('All Districts Rounded Data'!B$12:B$29,Index!$B$13) -> 0 | C47: =INDEX('All Districts Rounded Data'!C$12:C$29,Index!$B$13) -> 0 | D47: =INDEX('All Districts Rounded Data'!D$12:D$29,Index!$B$13) -> 0 | E47: =INDEX('All Districts Rounded Data'!E$12:E$29,Index!$B$13) -> 0 | F47: =INDEX('All Districts Rounded Data'!F$12:F$29,Index!$B$13) -> 0 | G47: =INDEX('All Districts Rounded Data'!G$12:G$29,Index!$B$13) -> 0 | H47: =INDEX('All Districts Rounded Data'!H$12:H$29,Index!$B$13) -> 0 | I47: =INDEX('All Districts Rounded Data'!I$12:I$29,Index!$B$13) -> 0 | J47: =INDEX('All Districts Rounded Data'!J$12:J$29,Index!$B$13) -> 0 | K47: =INDEX('All Districts Rounded Data'!K$12:K$29,Index!$B$13) -> 0 | L47: =INDEX('All Districts Rounded Data'!L$12:L$29,Index!$B$13) -> 0 | M47: =INDEX('All Districts Rounded Data'!M$12:M$29,Index!$B$13) -> 0 | N47: =INDEX('All Districts Rounded Data'!N$12:N$29,Index!$B$13) -> 0 | O47: =INDEX('All Districts Rounded Data'!O$12:O$29,Index!$B$13) -> 0 | P47: =INDEX('All Districts Rounded Data'!P$12:P$29,Index!$B$13) -> 0 | Q47: =INDEX('All Districts Rounded Data'!Q$12:Q$29,Index!$B$13) -> 0 | R47: =INDEX('All Districts Rounded Data'!R$12:R$29,Index!$B$13) -> 0 | S47: =INDEX('All Districts Rounded Data'!S$12:S$29,Index!$B$13) -> 0 | T47: =INDEX('All Districts Rounded Data'!T$12:T$29,Index!$B$13) -> 0 | U47: =INDEX('All Districts Rounded Data'!U$12:U$29,Index!$B$13) -> 0 | V47: =INDEX('All Districts Rounded Data'!V$12:V$29,Index!$B$13) -> 0 | W47: =INDEX('All Districts Rounded Data'!W$12:W$29,Index!$B$13) -> 0 | X47: =INDEX('All Districts Rounded Data'!X$12:X$29,Index!$B$13) -> 0 | Y47: =INDEX('All Districts Rounded Data'!Y$12:Y$29,Index!$B$13) -> 0 | Z47: =INDEX('All Districts Rounded Data'!Z$12:Z$29,Index!$B$13) -> 0 | AA47: =INDEX('All Districts Rounded Data'!AA$12:AA$29,Index!$B$13) -> 0
A48: Females | B48: =INDEX('All Districts Rounded Data'!B$33:B$50,Index!$B$13) -> 0 | C48: =INDEX('All Districts Rounded Data'!C$33:C$50,Index!$B$13) -> 0 | D48: =INDEX('All Districts Rounded Data'!D$33:D$50,Index!$B$13) -> 0 | E48: =INDEX('All Districts Rounded Data'!E$33:E$50,Index!$B$13) -> 0 | F48: =INDEX('All Districts Rounded Data'!F$33:F$50,Index!$B$13) -> 0 | G48: =INDEX('All Districts Rounded Data'!G$33:G$50,Index!$B$13) -> 0 | H48: =INDEX('All Districts Rounded Data'!H$33:H$50,Index!$B$13) -> 0 | I48: =INDEX('All Districts Rounded Data'!I$33:I$50,Index!$B$13) -> 0 | J48: =INDEX('All Districts Rounded Data'!J$33:J$50,Index!$B$13) -> 0 | K48: =INDEX('All Districts Rounded Data'!K$33:K$50,Index!$B$13) -> 0 | L48: =INDEX('All Districts Rounded Data'!L$33:L$50,Index!$B$13) -> 0 | M48: =INDEX('All Districts Rounded Data'!M$33:M$50,Index!$B$13) -> 0 | N48: =INDEX('All Districts Rounded Data'!N$33:N$50,Index!$B$13) -> 0 | O48: =INDEX('All Districts Rounded Data'!O$33:O$50,Index!$B$13) -> 0 | P48: =INDEX('All Districts Rounded Data'!P$33:P$50,Index!$B$13) -> 0 | Q48: =INDEX('All Districts Rounded Data'!Q$33:Q$50,Index!$B$13) -> 0 | R48: =INDEX('All Districts Rounded Data'!R$33:R$50,Index!$B$13) -> 0 | S48: =INDEX('All Districts Rounded Data'!S$33:S$50,Index!$B$13) -> 0 | T48: =INDEX('All Districts Rounded Data'!T$33:T$50,Index!$B$13) -> 0 | U48: =INDEX('All Districts Rounded Data'!U$33:U$50,Index!$B$13) -> 0 | V48: =INDEX('All Districts Rounded Data'!V$33:V$50,Index!$B$13) -> 0 | W48: =INDEX('All Districts Rounded Data'!W$33:W$50,Index!$B$13) -> 0 | X48: =INDEX('All Districts Rounded Data'!X$33:X$50,Index!$B$13) -> 0 | Y48: =INDEX('All Districts Rounded Data'!Y$33:Y$50,Index!$B$13) -> 0 | Z48: =INDEX('All Districts Rounded Data'!Z$33:Z$50,Index!$B$13) -> 0 | AA48: =INDEX('All Districts Rounded Data'!AA$33:AA$50,Index!$B$13) -> 0
A49: Total | B49: =INDEX('All Districts Rounded Data'!B$54:B$71,Index!$B$13) -> 0 | C49: =INDEX('All Districts Rounded Data'!C$54:C$71,Index!$B$13) -> 0 | D49: =INDEX('All Districts Rounded Data'!D$54:D$71,Index!$B$13) -> 0 | E49: =INDEX('All Districts Rounded Data'!E$54:E$71,Index!$B$13) -> 0 | F49: =INDEX('All Districts Rounded Data'!F$54:F$71,Index!$B$13) -> 0 | G49: =INDEX('All Districts Rounded Data'!G$54:G$71,Index!$B$13) -> 0 | H49: =INDEX('All Districts Rounded Data'!H$54:H$71,Index!$B$13) -> 0 | I49: =INDEX('All Districts Rounded Data'!I$54:I$71,Index!$B$13) -> 0 | J49: =INDEX('All Districts Rounded Data'!J$54:J$71,Index!$B$13) -> 0 | K49: =INDEX('All Districts Rounded Data'!K$54:K$71,Index!$B$13) -> 0 | L49: =INDEX('All Districts Rounded Data'!L$54:L$71,Index!$B$13) -> 0 | M49: =INDEX('All Districts Rounded Data'!M$54:M$71,Index!$B$13) -> 0 | N49: =INDEX('All Districts Rounded Data'!N$54:N$71,Index!$B$13) -> 0 | O49: =INDEX('All Districts Rounded Data'!O$54:O$71,Index!$B$13) -> 0 | P49: =INDEX('All Districts Rounded Data'!P$54:P$71,Index!$B$13) -> 0 | Q49: =INDEX('All Districts Rounded Data'!Q$54:Q$71,Index!$B$13) -> 0 | R49: =INDEX('All Districts Rounded Data'!R$54:R$71,Index!$B$13) -> 0 | S49: =INDEX('All Districts Rounded Data'!S$54:S$71,Index!$B$13) -> 0 | T49: =INDEX('All Districts Rounded Data'!T$54:T$71,Index!$B$13) -> 0 | U49: =INDEX('All Districts Rounded Data'!U$54:U$71,Index!$B$13) -> 0 | V49: =INDEX('All Districts Rounded Data'!V$54:V$71,Index!$B$13) -> 0 | W49: =INDEX('All Districts Rounded Data'!W$54:W$71,Index!$B$13) -> 0 | X49: =INDEX('All Districts Rounded Data'!X$54:X$71,Index!$B$13) -> 0 | Y49: =INDEX('All Districts Rounded Data'!Y$54:Y$71,Index!$B$13) -> 0 | Z49: =INDEX('All Districts Rounded Data'!Z$54:Z$71,Index!$B$13) -> 0 | AA49: =INDEX('All Districts Rounded Data'!AA$54:AA$71,Index!$B$13) -> 0
A50: Source: Office for National Statistics. Presented by Kent Analytics, Kent County Council
A51: All figures have been individually rounded to the nearest one hundred and therefore may not sum

Sheet Population Pyramid
L1: 1
C3: Interactive mid-year population estimate toolkit | I3: Click here to return to the population summary page
C4: Source: Office for National Statistics Mid Year Estimates.
C5: Presented by: Kent Analytics, Kent County Council. Email: research@kent.gov.uk
F7: Select district
F9: Select year
C12: ='All Districts unrounded'!A120&", "&'All Districts unrounded'!A121 -> Ashford, 2022
D13: Total | E13: % of total population | F13: Males | G13: % of total population | H13: Females | I13: % of total population
C14: All Ages | D14: =ROUND('All Districts unrounded'!B122+'All Districts unrounded'!E122,-2) -> 135700 | E14: =('All Districts unrounded'!B122+'All Districts unrounded'!E122)/'All Districts unrounded'!$C$120 -> 1 | F14: =ROUND('All Districts unrounded'!B122,-2) -> 66100 | G14: ='All Districts unrounded'!C122 -> 0.4868536404 | H14: =ROUND('All Districts unrounded'!E122,-2) -> 69700 | I14: ='All Districts unrounded'!F122 -> 0.5131463596
C15: 0-4 | D15: =ROUND('All Districts unrounded'!B123+'All Districts unrounded'!E123,-2) -> 7700 | E15: =('All Districts unrounded'!B123+'All Districts unrounded'!E123)/'All Districts unrounded'!$C$120 -> 0.05668147428 | F15: =ROUND('All Districts unrounded'!B123,-2) -> 4000 | G15: ='All Districts unrounded'!C123 -> 0.02923950759 | H15: =ROUND('All Districts unrounded'!E123,-2) -> 3700 | I15: ='All Districts unrounded'!F123 -> 0.02744196669
C16: 5-9 | D16: =ROUND('All Districts unrounded'!B124+'All Districts unrounded'!E124,-2) -> 8500 | E16: =('All Districts unrounded'!B124+'All Districts unrounded'!E124)/'All Districts unrounded'!$C$120 -> 0.06267818861 | F16: =ROUND('All Districts unrounded'!B124,-2) -> 4400 | G16: ='All Districts unrounded'!C124 -> 0.03231153447 | H16: =ROUND('All Districts unrounded'!E124,-2) -> 4100 | I16: ='All Districts unrounded'!F124 -> 0.03036665414
C17: 10-14 | D17: =ROUND('All Districts unrounded'!B125+'All Districts unrounded'!E125,-2) -> 8900 | E17: =('All Districts unrounded'!B125+'All Districts unrounded'!E125)/'All Districts unrounded'!$C$120 -> 0.06522716055 | F17: =ROUND('All Districts unrounded'!B125,-2) -> 4500 | G17: ='All Districts unrounded'!C125 -> 0.0330629655 | H17: =ROUND('All Districts unrounded'!E125,-2) -> 4400 | I17: ='All Districts unrounded'!F125 -> 0.03216419505
C18: 15-19 | D18: =ROUND('All Districts unrounded'!B126+'All Districts unrounded'!E126,-2) -> 7500 | E18: =('All Districts unrounded'!B126+'All Districts unrounded'!E126)/'All Districts unrounded'!$C$120 -> 0.05495023611 | F18: =ROUND('All Districts unrounded'!B126,-2) -> 3800 | G18: ='All Districts unrounded'!C126 -> 0.02823759955 | H18: =ROUND('All Districts unrounded'!E126,-2) -> 3600 | I18: ='All Districts unrounded'!F126 -> 0.02671263657
C19: 20-24 | D19: =ROUND('All Districts unrounded'!B127+'All Districts unrounded'!E127,-2) -> 6300 | E19: =('All Districts unrounded'!B127+'All Districts unrounded'!E127)/'All Districts unrounded'!$C$120 -> 0.04631614619 | F19: =ROUND('All Districts unrounded'!B127,-2) -> 3200 | G19: ='All Districts unrounded'!C127 -> 0.02386161882 | H19: =ROUND('All Districts unrounded'!E127,-2) -> 3000 | I19: ='All Districts unrounded'!F127 -> 0.02245452737
C20: 25-29 | D20: =ROUND('All Districts unrounded'!B128+'All Districts unrounded'!E128,-2) -> 7900 | E20: =('All Districts unrounded'!B128+'All Districts unrounded'!E128)/'All Districts unrounded'!$C$120 -> 0.05794859328 | F20: =ROUND('All Districts unrounded'!B128,-2) -> 3800 | G20: ='All Districts unrounded'!C128 -> 0.02803132436 | H20: =ROUND('All Districts unrounded'!E128,-2) -> 4100 | I20: ='All Districts unrounded'!F128 -> 0.02991726892
C21: 30-34 | D21: =ROUND('All Districts unrounded'!B129+'All Districts unrounded'!E129,-2) -> 9200 | E21: =('All Districts unrounded'!B129+'All Districts unrounded'!E129)/'All Districts unrounded'!$C$120 -> 0.06741515091 | F21: =ROUND('All Districts unrounded'!B129,-2) -> 4300 | G21: ='All Districts unrounded'!C129 -> 0.03170744285 | H21: =ROUND('All Districts unrounded'!E129,-2) -> 4800 | I21: ='All Districts unrounded'!F129 -> 0.03570770806
C22: 35-39 | D22: =ROUND('All Districts unrounded'!B130+'All Districts unrounded'!E130,-2) -> 8900 | E22: =('All Districts unrounded'!B130+'All Districts unrounded'!E130)/'All Districts unrounded'!$C$120 -> 0.0653155642 | F22: =ROUND('All Districts unrounded'!B130,-2) -> 4200 | G22: ='All Districts unrounded'!C130 -> 0.03106651638 | H22: =ROUND('All Districts unrounded'!E130,-2) -> 4600 | I22: ='All Districts unrounded'!F130 -> 0.03424904782
C23: 40-44 | D23: =ROUND('All Districts unrounded'!B131+'All Districts unrounded'!E131,-2) -> 8400 | E23: =('All Districts unrounded'!B131+'All Districts unrounded'!E131)/'All Districts unrounded'!$C$120 -> 0.06192675758 | F23: =ROUND('All Districts unrounded'!B131,-2) -> 4000 | G23: ='All Districts unrounded'!C131 -> 0.02971099373 | H23: =ROUND('All Districts unrounded'!E131,-2) -> 4400 | I23: ='All Districts unrounded'!F131 -> 0.03221576384
C24: 45-49 | D24: =ROUND('All Districts unrounded'!B132+'All Districts unrounded'!E132,-2) -> 8300 | E24: =('All Districts unrounded'!B132+'All Districts unrounded'!E132)/'All Districts unrounded'!$C$120 -> 0.06150684023 | F24: =ROUND('All Districts unrounded'!B132,-2) -> 4000 | G24: ='All Districts unrounded'!C132 -> 0.02945314975 | H24: =ROUND('All Districts unrounded'!E132,-2) -> 4400 | I24: ='All Districts unrounded'!F132 -> 0.03205369048
C25: 50-54 | D25: =ROUND('All Districts unrounded'!B133+'All Districts unrounded'!E133,-2) -> 9800 | E25: =('All Districts unrounded'!B133+'All Districts unrounded'!E133)/'All Districts unrounded'!$C$120 -> 0.07237312234 | F25: =ROUND('All Districts unrounded'!B133,-2) -> 4800 | G25: ='All Districts unrounded'!C133 -> 0.03519938707 | H25: =ROUND('All Districts unrounded'!E133,-2) -> 5000 | I25: ='All Districts unrounded'!F133 -> 0.03717373528
C26: 55-59 | D26: =ROUND('All Districts unrounded'!B134+'All Districts unrounded'!E134,-2) -> 9700 | E26: =('All Districts unrounded'!B134+'All Districts unrounded'!E134)/'All Districts unrounded'!$C$120 -> 0.07123860882 | F26: =ROUND('All Districts unrounded'!B134,-2) -> 4700 | G26: ='All Districts unrounded'!C134 -> 0.03483103852 | H26: =ROUND('All Districts unrounded'!E134,-2) -> 4900 | I26: ='All Districts unrounded'!F134 -> 0.0364075703
C27: 60-64 | D27: =ROUND('All Districts unrounded'!B135+'All Districts unrounded'!E135,-2) -> 8100 | E27: =('All Districts unrounded'!B135+'All Districts unrounded'!E135)/'All Districts unrounded'!$C$120 -> 0.05936305169 | F27: =ROUND('All Districts unrounded'!B135,-2) -> 4000 | G27: ='All Districts unrounded'!C135 -> 0.02972572767 | H27: =ROUND('All Districts unrounded'!E135,-2) -> 4000 | I27: ='All Districts unrounded'!F135 -> 0.02963732402
C28: 65-69 | D28: =ROUND('All Districts unrounded'!B136+'All Districts unrounded'!E136,-2) -> 6800 | E28: =('All Districts unrounded'!B136+'All Districts unrounded'!E136)/'All Districts unrounded'!$C$120 -> 0.04992596194 | F28: =ROUND('All Districts unrounded'!B136,-2) -> 3200 | G28: ='All Districts unrounded'!C136 -> 0.02386898579 | H28: =ROUND('All Districts unrounded'!E136,-2) -> 3500 | I28: ='All Districts unrounded'!F136 -> 0.02605697615
C29: 70-74 | D29: =ROUND('All Districts unrounded'!B137+'All Districts unrounded'!E137,-2) -> 6800 | E29: =('All Districts unrounded'!B137+'All Districts unrounded'!E137)/'All Districts unrounded'!$C$120 -> 0.05002173256 | F29: =ROUND('All Districts unrounded'!B137,-2) -> 3200 | G29: ='All Districts unrounded'!C137 -> 0.02358904089 | H29: =ROUND('All Districts unrounded'!E137,-2) -> 3600 | I29: ='All Districts unrounded'!F137 -> 0.02643269167
C30: 75-79 | D30: =ROUND('All Districts unrounded'!B138+'All Districts unrounded'!E138,-2) -> 6200 | E30: =('All Districts unrounded'!B138+'All Districts unrounded'!E138)/'All Districts unrounded'!$C$120 -> 0.04591096279 | F30: =ROUND('All Districts unrounded'!B138,-2) -> 2900 | G30: ='All Districts unrounded'!C138 -> 0.02143788538 | H30: =ROUND('All Districts unrounded'!E138,-2) -> 3300 | I30: ='All Districts unrounded'!F138 -> 0.0244730774
C31: 80-84 | D31: =ROUND('All Districts unrounded'!B139+'All Districts unrounded'!E139,-2) -> 3600 | E31: =('All Districts unrounded'!B139+'All Districts unrounded'!E139)/'All Districts unrounded'!$C$120 -> 0.02649162744 | F31: =ROUND('All Districts unrounded'!B139,-2) -> 1600 | G31: ='All Districts unrounded'!C139 -> 0.01198606169 | H31: =ROUND('All Districts unrounded'!E139,-2) -> 2000 | I31: ='All Districts unrounded'!F139 -> 0.01450556575
C32: 85+ | D32: =ROUND('All Districts unrounded'!B140+'All Districts unrounded'!E140,-2) -> 3400 | E32: =('All Districts unrounded'!B140+'All Districts unrounded'!E140)/'All Districts unrounded'!$C$120 -> 0.02470882047 | F32: =ROUND('All Districts unrounded'!B140,-2) -> 1300 | G32: ='All Districts unrounded'!C140 -> 0.009532860374 | H32: =ROUND('All Districts unrounded'!E140,-2) -> 2100 | I32: ='All Districts unrounded'!F140 -> 0.0151759601
C33: Source: Office for National Statistics. Presented by: Kent Analytics, Kent County Council
C34: All figures have been individually rounded to the nearest one hundred and therefore may not sum
C35: Percentages have been calculated using unrounded numbers

Sheet Workbook Methodology (hidden)
A1: Created by: Jeanette Forster, Strategic Commissioning - Analytics, Kent County Council
A2: 29th September 2011
A4: All drop down boxes in this workbook are operated using Index functions
A6: Viewing additional districts using the additional district drop down boxes operates via a macro.
A7: This macro hides and unhides the rows in which the comparitor districts is situated
A8: Additional rows should not be added above row 50 as this will disrupt the macro
A10: New data can be pasted into the yellow sections of each district data worksheet
A12: Columns AG to BJ in each district worksheet contains calculations which adds the single year data to create a cummulative age
A13: This cummulative age data is used to calculate the selectable ages
A15: The All Districts Rounded Data worksheet rounds the selected age group data calculated on each of the district sheets
A17: All Indexes and drop down lists can be found in the Index worksheet

Sheet Index (hidden)
A1: Index | E1: Chart Formatting
A3: Start age index | C3: Selected start age | E3: Chart Title
A4: Index 1 | B4: 1 | C4: =INDEX($B$30:$B$120,B4) -> 0 | E4: ="Population aged "&C5&"-"&C9&", 2022-2047" -> Population aged 0-90+, 2022-2047
C5: =IF($B$4=91,"90+",INDEX(A$30:A$120,$B$4)) -> 0
A6: End age index | C6: Selected end age | E6: Table title
A7: Index 2 | B7: 91 | C7: =INDEX(B$30:B$120,$B$7) -> 90 | E7: ="Change in population aged "&C5&"-"&C9 -> Change in population aged 0-90+
C8: =(B7-1)-C4 -> 90 | E8: ="Population change aged: "&C5&"-"&C9&" - "&C16&"-"&C19 -> Population change aged: 0-90+ - 2022-2047
A9: District Select | C9: =IF($B$7=91,"90+",INDEX(A$30:A$120,$B$7)) -> 90+ | E9: Chart Labels
A10: Index 3 | C10: Selected district | E10: =C11&" males" -> Ashford males
A11: District 1 | B11: 2 | C11: =INDEX($C$30:$C$47,$B11) -> Ashford | E11: =C11&" females" -> Ashford females
A12: District 2 | B12: 1 | C12: =INDEX($C$30:$C$47,$B12) -> - | E12: =C11&" total" -> Ashford total
A13: District 3 | B13: 1 | C13: =INDEX($C$30:$C$47,$B13) -> - | E13: =C12&" males" -> - males
E14: =C12&" females" -> - females
A15: Start year select | C15: Selected start year | E15: =C12&" total" -> - total
A16: Index 4 | B16: 1 | C16: =INDEX(D30:D55,B16) -> 2022 | E16: =C13&" males" -> - males
C17: =C16-C19 -> -25 | E17: =C13&" females" -> - females
A18: End year select | C18: Selected end year | E18: =C13&" total" -> - total
A19: Index 5 | B19: 26 | C19: =INDEX(D30:D55,B19) -> 2047
A21: Pop Pyramid year select | C21: Selected pyramid year
A22: Index 6 | B22: 19 | C22: =INDEX(D30:D55,'Population Pyramid'!$L$1) -> 2022
A27: Drop Downs
A28: Drop down 1 | C28: Drop Down 2 | D28: Drop Down 3
A29: Age selection | B29: age for calculation | C29: District slection | D29: Year selection
A30: 0 | B30: 0 | C30: - | D30: 2022
A31: 1 | B31: 1 | C31: Ashford | D31: 2023
A32: 2 | B32: 2 | C32: Canterbury | D32: 2024
A33: 3 | B33: 3 | C33: Dartford | D33: 2025
A34: 4 | B34: 4 | C34: Dover | D34: 2026
A35: 5 | B35: 5 | C35: Folkestone & Hythe | D35: 2027
A36: 6 | B36: 6 | C36: Gravesham | D36: 2028
A37: 7 | B37: 7 | C37: Maidstone | D37: 2029
A38: 8 | B38: 8 | C38: Medway | D38: 2030
A39: 9 | B39: 9 | C39: Sevenoaks | D39: 2031
A40: 10 | B40: 10 | C40: Swale | D40: 2032
A41: 11 | B41: 11 | C41: Thanet | D41: 2033
A42: 12 | B42: 12 | C42: Tonbridge & Malling | D42: 2034
A43: 13 | B43: 13 | C43: Tunbridge Wells | D43: 2035
A44: 14 | B44: 14 | C44: Kent | D44: 2036
A45: 15 | B45: 15 | C45: Kent + Medway | D45: 2037
A46: 16 | B46: 16 | C46: South East Region | D46: 2038
A47: 17 | B47: 17 | C47: England | D47: 2039
A48: 18 | B48: 18 | D48: 2040
A49: 19 | B49: 19 | D49: 2041
A50: 20 | B50: 20 | D50: 2042
A51: 21 | B51: 21 | D51: 2043
A52: 22 | B52: 22 | D52: 2044
A53: 23 | B53: 23 | D53: 2045
A54: 24 | B54: 24 | D54: 2046
A55: 25 | B55: 25 | D55: 2047
A56: 26 | B56: 26
A57: 27 | B57: 27
A58: 28 | B58: 28
A59: 29 | B59: 29
A60: 30 | B60: 30
A61: 31 | B61: 31
A62: 32 | B62: 32
A63: 33 | B63: 33
A64: 34 | B64: 34
A65: 35 | B65: 35
A66: 36 | B66: 36
A67: 37 | B67: 37
A68: 38 | B68: 38
A69: 39 | B69: 39
A70: 40 | B70: 40
A71: 41 | B71: 41
A72: 42 | B72: 42
A73: 43 | B73: 43
A74: 44 | B74: 44
A75: 45 | B75: 45
A76: 46 | B76: 46
A77: 47 | B77: 47
A78: 48 | B78: 48
A79: 49 | B79: 49
A80: 50 | B80: 50
A81: 51 | B81: 51
A82: 52 | B82: 52
A83: 53 | B83: 53
A84: 54 | B84: 54
A85: 55 | B85: 55
A86: 56 | B86: 56
A87: 57 | B87: 57
A88: 58 | B88: 58
A89: 59 | B89: 59
A90: 60 | B90: 60
A91: 61 | B91: 61
A92: 62 | B92: 62
A93: 63 | B93: 63
A94: 64 | B94: 64
A95: 65 | B95: 65
A96: 66 | B96: 66
A97: 67 | B97: 67
A98: 68 | B98: 68
A99: 69 | B99: 69
A100: 70 | B100: 70
A101: 71 | B101: 71
A102: 72 | B102: 72
A103: 73 | B103: 73
A104: 74 | B104: 74
A105: 75 | B105: 75
A106: 76 | B106: 76
A107: 77 | B107: 77
A108: 78 | B108: 78
A109: 79 | B109: 79
A110: 80 | B110: 80
A111: 81 | B111: 81
A112: 82 | B112: 82
A113: 83 | B113: 83
A114: 84 | B114: 84
A115: 85 | B115: 85
A116: 86 | B116: 86
A117: 87 | B117: 87
A118: 88 | B118: 88
A119: 89 | B119: 89
A120: 90+ | B120: 90

Sheet All Districts Rounded Data (hidden)
A1: All data on this sheet is rounded from each of the district worksheets | AB1: Insert column here before extending the table
A8: Selected Ages: | C8: =Index!$C$4&" : "&Index!$C$7 -> 0 : 90
A10: Males | AC10: Change
B11: ='All Districts unrounded'!B11 -> 2022 | C11: ='All Districts unrounded'!C11 -> 2023 | D11: ='All Districts unrounded'!D11 -> 2024 | E11: ='All Districts unrounded'!E11 -> 2025 | F11: ='All Districts unrounded'!F11 -> 2026 | G11: ='All Districts unrounded'!G11 -> 2027 | H11: ='All Districts unrounded'!H11 -> 2028 | I11: ='All Districts unrounded'!I11 -> 2029 | J11: ='All Districts unrounded'!J11 -> 2030 | K11: ='All Districts unrounded'!K11 -> 2031 | L11: ='All Districts unrounded'!L11 -> 2032 | M11: ='All Districts unrounded'!M11 -> 2033 | N11: ='All Districts unrounded'!N11 -> 2034 | O11: ='All Districts unrounded'!O11 -> 2035 | P11: ='All Districts unrounded'!P11 -> 2036 | Q11: ='All Districts unrounded'!Q11 -> 2037 | R11: ='All Districts unrounded'!R11 -> 2038 | S11: ='All Districts unrounded'!S11 -> 2039 | T11: ='All Districts unrounded'!T11 -> 2040 | U11: ='All Districts unrounded'!U11 -> 2041 | V11: ='All Districts unrounded'!V11 -> 2042 | W11: ='All Districts unrounded'!W11 -> 2043 | X11: ='All Districts unrounded'!X11 -> 2044 | Y11: ='All Districts unrounded'!Y11 -> 2045 | Z11: ='All Districts unrounded'!Z11 -> 2046 | AA11: ='All Districts unrounded'!AA11 -> 2047 | AC11: =Index!$C$16 -> 2022 | AD11: =Index!$C$19 -> 2047 | AE11: Number change | AF11: % change
A12: -
A13: Ashford | B13: =ROUND(ASH!AE$8,-2) -> 66100 | C13: =ROUND(ASH!AF$8,-2) -> 67100 | D13: =ROUND(ASH!AG$8,-2) -> 67900 | E13: =ROUND(ASH!AH$8,-2) -> 68600 | F13: =ROUND(ASH!AI$8,-2) -> 69200 | G13: =ROUND(ASH!AJ$8,-2) -> 69800 | H13: =ROUND(ASH!AK$8,-2) -> 70300 | I13: =ROUND(ASH!AL$8,-2) -> 70900 | J13: =ROUND(ASH!AM$8,-2) -> 71500 | K13: =ROUND(ASH!AN$8,-2) -> 72000 | L13: =ROUND(ASH!AO$8,-2) -> 72500 | M13: =ROUND(ASH!AP$8,-2) -> 73000 | N13: =ROUND(ASH!AQ$8,-2) -> 73500 | O13: =ROUND(ASH!AR$8,-2) -> 74000 | P13: =ROUND(ASH!AS$8,-2) -> 74500 | Q13: =ROUND(ASH!AT$8,-2) -> 74900 | R13: =ROUND(ASH!AU$8,-2) -> 75400 | S13: =ROUND(ASH!AV$8,-2) -> 75800 | T13: =ROUND(ASH!AW$8,-2) -> 76300 | U13: =ROUND(ASH!AX$8,-2) -> 76700 | V13: =ROUND(ASH!AY$8,-2) -> 77200 | W13: =ROUND(ASH!AZ$8,-2) -> 77600 | X13: =ROUND(ASH!BA$8,-2) -> 78100 | Y13: =ROUND(ASH!BB$8,-2) -> 78500 | Z13: =ROUND(ASH!BC$8,-2) -> 78900 | AA13: =ROUND(ASH!BD$8,-2) -> 79300 | AC13: =INDEX($B13:$AA13,Index!$B$16) -> 66100 | AD13: =INDEX($B13:$AA13,Index!$B$19) -> 79300 | AE13: =ROUND('All Districts unrounded'!AE13,-2) -> 13200 | AF13: ='All Districts unrounded'!AF13 -> 0.2000919862
A14: Canterbury | B14: =ROUND(CAN!AE$8,-2) -> 76200 | C14: =ROUND(CAN!AF$8,-2) -> 77700 | D14: =ROUND(CAN!AG$8,-2) -> 79000 | E14: =ROUND(CAN!AH$8,-2) -> 79500 | F14: =ROUND(CAN!AI$8,-2) -> 79900 | G14: =ROUND(CAN!AJ$8,-2) -> 80200 | H14: =ROUND(CAN!AK$8,-2) -> 80500 | I14: =ROUND(CAN!AL$8,-2) -> 80900 | J14: =ROUND(CAN!AM$8,-2) -> 81300 | K14: =ROUND(CAN!AN$8,-2) -> 81700 | L14: =ROUND(CAN!AO$8,-2) -> 82000 | M14: =ROUND(CAN!AP$8,-2) -> 82200 | N14: =ROUND(CAN!AQ$8,-2) -> 82400 | O14: =ROUND(CAN!AR$8,-2) -> 82600 | P14: =ROUND(CAN!AS$8,-2) -> 82900 | Q14: =ROUND(CAN!AT$8,-2) -> 83100 | R14: =ROUND(CAN!AU$8,-2) -> 83300 | S14: =ROUND(CAN!AV$8,-2) -> 83500 | T14: =ROUND(CAN!AW$8,-2) -> 83700 | U14: =ROUND(CAN!AX$8,-2) -> 83900 | V14: =ROUND(CAN!AY$8,-2) -> 84100 | W14: =ROUND(CAN!AZ$8,-2) -> 84300 | X14: =ROUND(CAN!BA$8,-2) -> 84600 | Y14: =ROUND(CAN!BB$8,-2) -> 84900 | Z14: =ROUND(CAN!BC$8,-2) -> 85200 | AA14: =ROUND(CAN!BD$8,-2) -> 85500 | AC14: =INDEX($B14:$AA14,Index!$B$16) -> 76200 | AD14: =INDEX($B14:$AA14,Index!$B$19) -> 85500 | AE14: =ROUND('All Districts unrounded'!AE14,-2) -> 9300 | AF14: ='All Districts unrounded'!AF14 -> 0.122091237
A15: Dartford | B15: =ROUND(DAR!AE$8,-2) -> 58100 | C15: =ROUND(DAR!AF$8,-2) -> 59300 | D15: =ROUND(DAR!AG$8,-2) -> 60400 | E15: =ROUND(DAR!AH$8,-2) -> 61200 | F15: =ROUND(DAR!AI$8,-2) -> 62000 | G15: =ROUND(DAR!AJ$8,-2) -> 62700 | H15: =ROUND(DAR!AK$8,-2) -> 63400 | I15: =ROUND(DAR!AL$8,-2) -> 64100 | J15: =ROUND(DAR!AM$8,-2) -> 64700 | K15: =ROUND(DAR!AN$8,-2) -> 65300 | L15: =ROUND(DAR!AO$8,-2) -> 65900 | M15: =ROUND(DAR!AP$8,-2) -> 66500 | N15: =ROUND(DAR!AQ$8,-2) -> 67100 | O15: =ROUND(DAR!AR$8,-2) -> 67700 | P15: =ROUND(DAR!AS$8,-2) -> 68200 | Q15: =ROUND(DAR!AT$8,-2) -> 68800 | R15: =ROUND(DAR!AU$8,-2) -> 69300 | S15: =ROUND(DAR!AV$8,-2) -> 69800 | T15: =ROUND(DAR!AW$8,-2) -> 70300 | U15: =ROUND(DAR!AX$8,-2) -> 70900 | V15: =ROUND(DAR!AY$8,-2) -> 71400 | W15: =ROUND(DAR!AZ$8,-2) -> 71900 | X15: =ROUND(DAR!BA$8,-2) -> 72400 | Y15: =ROUND(DAR!BB$8,-2) -> 72800 | Z15: =ROUND(DAR!BC$8,-2) -> 73300 | AA15: =ROUND(DAR!BD$8,-2) -> 73700 | AC15: =INDEX($B15:$AA15,Index!$B$16) -> 58100 | AD15: =INDEX($B15:$AA15,Index!$B$19) -> 73700 | AE15: =ROUND('All Districts unrounded'!AE15,-2) -> 15600 | AF15: ='All Districts unrounded'!AF15 -> 0.2687274683
A16: Dover | B16: =ROUND(DOV!AE$8,-2) -> 57200 | C16: =ROUND(DOV!AF$8,-2) -> 57800 | D16: =ROUND(DOV!AG$8,-2) -> 58300 | E16: =ROUND(DOV!AH$8,-2) -> 58700 | F16: =ROUND(DOV!AI$8,-2) -> 59000 | G16: =ROUND(DOV!AJ$8,-2) -> 59400 | H16: =ROUND(DOV!AK$8,-2) -> 59700 | I16: =ROUND(DOV!AL$8,-2) -> 60000 | J16: =ROUND(DOV!AM$8,-2) -> 60300 | K16: =ROUND(DOV!AN$8,-2) -> 60600 | L16: =ROUND(DOV!AO$8,-2) -> 60900 | M16: =ROUND(DOV!AP$8,-2) -> 61200 | N16: =ROUND(DOV!AQ$8,-2) -> 61500 | O16: =ROUND(DOV!AR$8,-2) -> 61700 | P16: =ROUND(DOV!AS$8,-2) -> 62000 | Q16: =ROUND(DOV!AT$8,-2) -> 62300 | R16: =ROUND(DOV!AU$8,-2) -> 62500 | S16: =ROUND(DOV!AV$8,-2) -> 62800 | T16: =ROUND(DOV!AW$8,-2) -> 63000 | U16: =ROUND(DOV!AX$8,-2) -> 63300 | V16: =ROUND(DOV!AY$8,-2) -> 63600 | W16: =ROUND(DOV!AZ$8,-2) -> 63800 | X16: =ROUND(DOV!BA$8,-2) -> 64100 | Y16: =ROUND(DOV!BB$8,-2) -> 64400 | Z16: =ROUND(DOV!BC$8,-2) -> 64600 | AA16: =ROUND(DOV!BD$8,-2) -> 64900 | AC16: =INDEX($B16:$AA16,Index!$B$16) -> 57200 | AD16: =INDEX($B16:$AA16,Index!$B$19) -> 64900 | AE16: =ROUND('All Districts unrounded'!AE16,-2) -> 7600 | AF16: ='All Districts unrounded'!AF16 -> 0.1333211815
A17: Folkestone & Hythe | B17: =ROUND('F&H'!AE$8,-2) -> 53800 | C17: =ROUND('F&H'!AF$8,-2) -> 54200 | D17: =ROUND('F&H'!AG$8,-2) -> 54700 | E17: =ROUND('F&H'!AH$8,-2) -> 55000 | F17: =ROUND('F&H'!AI$8,-2) -> 55200 | G17: =ROUND('F&H'!AJ$8,-2) -> 55500 | H17: =ROUND('F&H'!AK$8,-2) -> 55800 | I17: =ROUND('F&H'!AL$8,-2) -> 56000 | J17: =ROUND('F&H'!AM$8,-2) -> 56300 | K17: =ROUND('F&H'!AN$8,-2) -> 56600 | L17: =ROUND('F&H'!AO$8,-2) -> 56900 | M17: =ROUND('F&H'!AP$8,-2) -> 57200 | N17: =ROUND('F&H'!AQ$8,-2) -> 57400 | O17: =ROUND('F&H'!AR$8,-2) -> 57700 | P17: =ROUND('F&H'!AS$8,-2) -> 58000 | Q17: =ROUND('F&H'!AT$8,-2) -> 58200 | R17: =ROUND('F&H'!AU$8,-2) -> 58500 | S17: =ROUND('F&H'!AV$8,-2) -> 58700 | T17: =ROUND('F&H'!AW$8,-2) -> 59000 | U17: =ROUND('F&H'!AX$8,-2) -> 59300 | V17: =ROUND('F&H'!AY$8,-2) -> 59600 | W17: =ROUND('F&H'!AZ$8,-2) -> 59800 | X17: =ROUND('F&H'!BA$8,-2) -> 60100 | Y17: =ROUND('F&H'!BB$8,-2) -> 60400 | Z17: =ROUND('F&H'!BC$8,-2) -> 60700 | AA17: =ROUND('F&H'!BD$8,-2) -> 61000 | AC17: =INDEX($B17:$AA17,Index!$B$16) -> 53800 | AD17: =INDEX($B17:$AA17,Index!$B$19) -> 61000 | AE17: =ROUND('All Districts unrounded'!AE17,-2) -> 7200 | AF17: ='All Districts unrounded'!AF17 -> 0.1333604247
A18: Gravesham | B18: =ROUND(GRA!AE$8,-2) -> 52100 | C18: =ROUND(GRA!AF$8,-2) -> 52500 | D18: =ROUND(GRA!AG$8,-2) -> 52800 | E18: =ROUND(GRA!AH$8,-2) -> 52900 | F18: =ROUND(GRA!AI$8,-2) -> 53000 | G18: =ROUND(GRA!AJ$8,-2) -> 53000 | H18: =ROUND(GRA!AK$8,-2) -> 53200 | I18: =ROUND(GRA!AL$8,-2) -> 53300 | J18: =ROUND(GRA!AM$8,-2) -> 53400 | K18: =ROUND(GRA!AN$8,-2) -> 53500 | L18: =ROUND(GRA!AO$8,-2) -> 53700 | M18: =ROUND(GRA!AP$8,-2) -> 53800 | N18: =ROUND(GRA!AQ$8,-2) -> 54000 | O18: =ROUND(GRA!AR$8,-2) -> 54100 | P18: =ROUND(GRA!AS$8,-2) -> 54300 | Q18: =ROUND(GRA!AT$8,-2) -> 54500 | R18: =ROUND(GRA!AU$8,-2) -> 54600 | S18: =ROUND(GRA!AV$8,-2) -> 54800 | T18: =ROUND(GRA!AW$8,-2) -> 55000 | U18: =ROUND(GRA!AX$8,-2) -> 55200 | V18: =ROUND(GRA!AY$8,-2) -> 55400 | W18: =ROUND(GRA!AZ$8,-2) -> 55600 | X18: =ROUND(GRA!BA$8,-2) -> 55800 | Y18: =ROUND(GRA!BB$8,-2) -> 56000 | Z18: =ROUND(GRA!BC$8,-2) -> 56200 | AA18: =ROUND(GRA!BD$8,-2) -> 56400 | AC18: =INDEX($B18:$AA18,Index!$B$16) -> 52100 | AD18: =INDEX($B18:$AA18,Index!$B$19) -> 56400 | AE18: =ROUND('All Districts unrounded'!AE18,-2) -> 4300 | AF18: ='All Districts unrounded'!AF18 -> 0.08259961222
A19: Maidstone | B19: =ROUND(MAI!AE$8,-2) -> 89100 | C19: =ROUND(MAI!AF$8,-2) -> 90900 | D19: =ROUND(MAI!AG$8,-2) -> 92400 | E19: =ROUND(MAI!AH$8,-2) -> 93600 | F19: =ROUND(MAI!AI$8,-2) -> 94600 | G19: =ROUND(MAI!AJ$8,-2) -> 95600 | H19: =ROUND(MAI!AK$8,-2) -> 96600 | I19: =ROUND(MAI!AL$8,-2) -> 97600 | J19: =ROUND(MAI!AM$8,-2) -> 98600 | K19: =ROUND(MAI!AN$8,-2) -> 99500 | L19: =ROUND(MAI!AO$8,-2) -> 100400 | M19: =ROUND(MAI!AP$8,-2) -> 101300 | N19: =ROUND(MAI!AQ$8,-2) -> 102100 | O19: =ROUND(MAI!AR$8,-2) -> 102900 | P19: =ROUND(MAI!AS$8,-2) -> 103700 | Q19: =ROUND(MAI!AT$8,-2) -> 104500 | R19: =ROUND(MAI!AU$8,-2) -> 105300 | S19: =ROUND(MAI!AV$8,-2) -> 106000 | T19: =ROUND(MAI!AW$8,-2) -> 106800 | U19: =ROUND(MAI!AX$8,-2) -> 107500 | V19: =ROUND(MAI!AY$8,-2) -> 108200 | W19: =ROUND(MAI!AZ$8,-2) -> 108900 | X19: =ROUND(MAI!BA$8,-2) -> 109700 | Y19: =ROUND(MAI!BB$8,-2) -> 110400 | Z19: =ROUND(MAI!BC$8,-2) -> 111000 | AA19: =ROUND(MAI!BD$8,-2) -> 111700 | AC19: =INDEX($B19:$AA19,Index!$B$16) -> 89100 | AD19: =INDEX($B19:$AA19,Index!$B$19) -> 111700 | AE19: =ROUND('All Districts unrounded'!AE19,-2) -> 22600 | AF19: ='All Districts unrounded'!AF19 -> 0.254281056
A20: Medway | B20: =ROUND(MED!AE$8,-2) -> 138500 | C20: =ROUND(MED!AF$8,-2) -> 139900 | D20: =ROUND(MED!AG$8,-2) -> 141000 | E20: =ROUND(MED!AH$8,-2) -> 141600 | F20: =ROUND(MED!AI$8,-2) -> 142000 | G20: =ROUND(MED!AJ$8,-2) -> 142400 | H20: =ROUND(MED!AK$8,-2) -> 142900 | I20: =ROUND(MED!AL$8,-2) -> 143300 | J20: =ROUND(MED!AM$8,-2) -> 143800 | K20: =ROUND(MED!AN$8,-2) -> 144200 | L20: =ROUND(MED!AO$8,-2) -> 144700 | M20: =ROUND(MED!AP$8,-2) -> 145100 | N20: =ROUND(MED!AQ$8,-2) -> 145600 | O20: =ROUND(MED!AR$8,-2) -> 146000 | P20: =ROUND(MED!AS$8,-2) -> 146500 | Q20: =ROUND(MED!AT$8,-2) -> 146900 | R20: =ROUND(MED!AU$8,-2) -> 147400 | S20: =ROUND(MED!AV$8,-2) -> 147800 | T20: =ROUND(MED!AW$8,-2) -> 148300 | U20: =ROUND(MED!AX$8,-2) -> 148800 | V20: =ROUND(MED!AY$8,-2) -> 149300 | W20: =ROUND(MED!AZ$8,-2) -> 149800 | X20: =ROUND(MED!BA$8,-2) -> 150300 | Y20: =ROUND(MED!BB$8,-2) -> 150800 | Z20: =ROUND(MED!BC$8,-2) -> 151300 | AA20: =ROUND(MED!BD$8,-2) -> 151800 | AC20: =INDEX($B20:$AA20,Index!$B$16) -> 138500 | AD20: =INDEX($B20:$AA20,Index!$B$19) -> 151800 | AE20: =ROUND('All Districts unrounded'!AE20,-2) -> 13400 | AF20: ='All Districts unrounded'!AF20 -> 0.09648320059
A21: Sevenoaks | B21: =ROUND(SEV!AE$8,-2) -> 58400 | C21: =ROUND(SEV!AF$8,-2) -> 58600 | D21: =ROUND(SEV!AG$8,-2) -> 58900 | E21: =ROUND(SEV!AH$8,-2) -> 59100 | F21: =ROUND(SEV!AI$8,-2) -> 59300 | G21: =ROUND(SEV!AJ$8,-2) -> 59400 | H21: =ROUND(SEV!AK$8,-2) -> 59600 | I21: =ROUND(SEV!AL$8,-2) -> 59800 | J21: =ROUND(SEV!AM$8,-2) -> 60000 | K21: =ROUND(SEV!AN$8,-2) -> 60300 | L21: =ROUND(SEV!AO$8,-2) -> 60500 | M21: =ROUND(SEV!AP$8,-2) -> 60800 | N21: =ROUND(SEV!AQ$8,-2) -> 61100 | O21: =ROUND(SEV!AR$8,-2) -> 61300 | P21: =ROUND(SEV!AS$8,-2) -> 61600 | Q21: =ROUND(SEV!AT$8,-2) -> 61900 | R21: =ROUND(SEV!AU$8,-2) -> 62200 | S21: =ROUND(SEV!AV$8,-2) -> 62500 | T21: =ROUND(SEV!AW$8,-2) -> 62800 | U21: =ROUND(SEV!AX$8,-2) -> 63100 | V21: =ROUND(SEV!AY$8,-2) -> 63400 | W21: =ROUND(SEV!AZ$8,-2) -> 63700 | X21: =ROUND(SEV!BA$8,-2) -> 64100 | Y21: =ROUND(SEV!BB$8,-2) -> 64400 | Z21: =ROUND(SEV!BC$8,-2) -> 64700 | AA21: =ROUND(SEV!BD$8,-2) -> 65100 | AC21: =INDEX($B21:$AA21,Index!$B$16) -> 58400 | AD21: =INDEX($B21:$AA21,Index!$B$19) -> 65100 | AE21: =ROUND('All Districts unrounded'!AE21,-2) -> 6700 | AF21: ='All Districts unrounded'!AF21 -> 0.1146916845
A22: Swale | B22: =ROUND(SWA!AE$8,-2) -> 76700 | C22: =ROUND(SWA!AF$8,-2) -> 77600 | D22: =ROUND(SWA!AG$8,-2) -> 78500 | E22: =ROUND(SWA!AH$8,-2) -> 79200 | F22: =ROUND(SWA!AI$8,-2) -> 79800 | G22: =ROUND(SWA!AJ$8,-2) -> 80400 | H22: =ROUND(SWA!AK$8,-2) -> 81000 | I22: =ROUND(SWA!AL$8,-2) -> 81600 | J22: =ROUND(SWA!AM$8,-2) -> 82200 | K22: =ROUND(SWA!AN$8,-2) -> 82700 | L22: =ROUND(SWA!AO$8,-2) -> 83200 | M22: =ROUND(SWA!AP$8,-2) -> 83800 | N22: =ROUND(SWA!AQ$8,-2) -> 84300 | O22: =ROUND(SWA!AR$8,-2) -> 84800 | P22: =ROUND(SWA!AS$8,-2) -> 85300 | Q22: =ROUND(SWA!AT$8,-2) -> 85800 | R22: =ROUND(SWA!AU$8,-2) -> 86300 | S22: =ROUND(SWA!AV$8,-2) -> 86800 | T22: =ROUND(SWA!AW$8,-2) -> 87200 | U22: =ROUND(SWA!AX$8,-2) -> 87700 | V22: =ROUND(SWA!AY$8,-2) -> 88200 | W22: =ROUND(SWA!AZ$8,-2) -> 88700 | X22: =ROUND(SWA!BA$8,-2) -> 89200 | Y22: =ROUND(SWA!BB$8,-2) -> 89600 | Z22: =ROUND(SWA!BC$8,-2) -> 90100 | AA22: =ROUND(SWA!BD$8,-2) -> 90500 | AC22: =INDEX($B22:$AA22,Index!$B$16) -> 76700 | AD22: =INDEX($B22:$AA22,Index!$B$19) -> 90500 | AE22: =ROUND('All Districts unrounded'!AE22,-2) -> 13800 | AF22: ='All Districts unrounded'!AF22 -> 0.1794417871
A23: Thanet | B23: =ROUND(THA!AE$8,-2) -> 67700 | C23: =ROUND(THA!AF$8,-2) -> 68000 | D23: =ROUND(THA!AG$8,-2) -> 68300 | E23: =ROUND(THA!AH$8,-2) -> 68400 | F23: =ROUND(THA!AI$8,-2) -> 68500 | G23: =ROUND(THA!AJ$8,-2) -> 68600 | H23: =ROUND(THA!AK$8,-2) -> 68700 | I23: =ROUND(THA!AL$8,-2) -> 68900 | J23: =ROUND(THA!AM$8,-2) -> 69000 | K23: =ROUND(THA!AN$8,-2) -> 69100 | L23: =ROUND(THA!AO$8,-2) -> 69300 | M23: =ROUND(THA!AP$8,-2) -> 69400 | N23: =ROUND(THA!AQ$8,-2) -> 69600 | O23: =ROUND(THA!AR$8,-2) -> 69700 | P23: =ROUND(THA!AS$8,-2) -> 69900 | Q23: =ROUND(THA!AT$8,-2) -> 70000 | R23: =ROUND(THA!AU$8,-2) -> 70200 | S23: =ROUND(THA!AV$8,-2) -> 70300 | T23: =ROUND(THA!AW$8,-2) -> 70500 | U23: =ROUND(THA!AX$8,-2) -> 70700 | V23: =ROUND(THA!AY$8,-2) -> 70900 | W23: =ROUND(THA!AZ$8,-2) -> 71100 | X23: =ROUND(THA!BA$8,-2) -> 71300 | Y23: =ROUND(THA!BB$8,-2) -> 71500 | Z23: =ROUND(THA!BC$8,-2) -> 71700 | AA23: =ROUND(THA!BD$8,-2) -> 72000 | AC23: =INDEX($B23:$AA23,Index!$B$16) -> 67700 | AD23: =INDEX($B23:$AA23,Index!$B$19) -> 72000 | AE23: =ROUND('All Districts unrounded'!AE23,-2) -> 4300 | AF23: ='All Districts unrounded'!AF23 -> 0.06308175264
A24: Tonbridge & Malling | B24: =ROUND(TON!AE$8,-2) -> 64900 | C24: =ROUND(TON!AF$8,-2) -> 65500 | D24: =ROUND(TON!AG$8,-2) -> 66000 | E24: =ROUND(TON!AH$8,-2) -> 66400 | F24: =ROUND(TON!AI$8,-2) -> 66800 | G24: =ROUND(TON!AJ$8,-2) -> 67100 | H24: =ROUND(TON!AK$8,-2) -> 67500 | I24: =ROUND(TON!AL$8,-2) -> 67900 | J24: =ROUND(TON!AM$8,-2) -> 68300 | K24: =ROUND(TON!AN$8,-2) -> 68700 | L24: =ROUND(TON!AO$8,-2) -> 69000 | M24: =ROUND(TON!AP$8,-2) -> 69400 | N24: =ROUND(TON!AQ$8,-2) -> 69800 | O24: =ROUND(TON!AR$8,-2) -> 70200 | P24: =ROUND(TON!AS$8,-2) -> 70500 | Q24: =ROUND(TON!AT$8,-2) -> 70900 | R24: =ROUND(TON!AU$8,-2) -> 71300 | S24: =ROUND(TON!AV$8,-2) -> 71600 | T24: =ROUND(TON!AW$8,-2) -> 72000 | U24: =ROUND(TON!AX$8,-2) -> 72400 | V24: =ROUND(TON!AY$8,-2) -> 72800 | W24: =ROUND(TON!AZ$8,-2) -> 73200 | X24: =ROUND(TON!BA$8,-2) -> 73600 | Y24: =ROUND(TON!BB$8,-2) -> 74000 | Z24: =ROUND(TON!BC$8,-2) -> 74400 | AA24: =ROUND(TON!BD$8,-2) -> 74800 | AC24: =INDEX($B24:$AA24,Index!$B$16) -> 64900 | AD24: =INDEX($B24:$AA24,Index!$B$19) -> 74800 | AE24: =ROUND('All Districts unrounded'!AE24,-2) -> 9900 | AF24: ='All Districts unrounded'!AF24 -> 0.1523045929
A25: Tunbridge Wells | B25: =ROUND(TUN!AE$8,-2) -> 56500 | C25: =ROUND(TUN!AF$8,-2) -> 56900 | D25: =ROUND(TUN!AG$8,-2) -> 57300 | E25: =ROUND(TUN!AH$8,-2) -> 57600 | F25: =ROUND(TUN!AI$8,-2) -> 57700 | G25: =ROUND(TUN!AJ$8,-2) -> 57900 | H25: =ROUND(TUN!AK$8,-2) -> 58100 | I25: =ROUND(TUN!AL$8,-2) -> 58400 | J25: =ROUND(TUN!AM$8,-2) -> 58600 | K25: =ROUND(TUN!AN$8,-2) -> 58800 | L25: =ROUND(TUN!AO$8,-2) -> 59100 | M25: =ROUND(TUN!AP$8,-2) -> 59400 | N25: =ROUND(TUN!AQ$8,-2) -> 59700 | O25: =ROUND(TUN!AR$8,-2) -> 60000 | P25: =ROUND(TUN!AS$8,-2) -> 60300 | Q25: =ROUND(TUN!AT$8,-2) -> 60600 | R25: =ROUND(TUN!AU$8,-2) -> 60900 | S25: =ROUND(TUN!AV$8,-2) -> 61200 | T25: =ROUND(TUN!AW$8,-2) -> 61600 | U25: =ROUND(TUN!AX$8,-2) -> 61900 | V25: =ROUND(TUN!AY$8,-2) -> 62300 | W25: =ROUND(TUN!AZ$8,-2) -> 62600 | X25: =ROUND(TUN!BA$8,-2) -> 63000 | Y25: =ROUND(TUN!BB$8,-2) -> 63300 | Z25: =ROUND(TUN!BC$8,-2) -> 63700 | AA25: =ROUND(TUN!BD$8,-2) -> 64000 | AC25: =INDEX($B25:$AA25,Index!$B$16) -> 56500 | AD25: =INDEX($B25:$AA25,Index!$B$19) -> 64000 | AE25: =ROUND('All Districts unrounded'!AE25,-2) -> 7500 | AF25: ='All Districts unrounded'!AF25 -> 0.1325870273
A26: Kent | B26: =ROUND(Kent!AE$8,-2) -> 776900 | C26: =ROUND(Kent!AF$8,-2) -> 786100 | D26: =ROUND(Kent!AG$8,-2) -> 794400 | E26: =ROUND(Kent!AH$8,-2) -> 800200 | F26: =ROUND(Kent!AI$8,-2) -> 805000 | G26: =ROUND(Kent!AJ$8,-2) -> 809700 | H26: =ROUND(Kent!AK$8,-2) -> 814500 | I26: =ROUND(Kent!AL$8,-2) -> 819300 | J26: =ROUND(Kent!AM$8,-2) -> 824200 | K26: =ROUND(Kent!AN$8,-2) -> 828900 | L26: =ROUND(Kent!AO$8,-2) -> 833500 | M26: =ROUND(Kent!AP$8,-2) -> 838100 | N26: =ROUND(Kent!AQ$8,-2) -> 842500 | O26: =ROUND(Kent!AR$8,-2) -> 846900 | P26: =ROUND(Kent!AS$8,-2) -> 851200 | Q26: =ROUND(Kent!AT$8,-2) -> 855400 | R26: =ROUND(Kent!AU$8,-2) -> 859600 | S26: =ROUND(Kent!AV$8,-2) -> 863900 | T26: =ROUND(Kent!AW$8,-2) -> 868200 | U26: =ROUND(Kent!AX$8,-2) -> 872500 | V26: =ROUND(Kent!AY$8,-2) -> 877000 | W26: =ROUND(Kent!AZ$8,-2) -> 881400 | X26: =ROUND(Kent!BA$8,-2) -> 885800 | Y26: =ROUND(Kent!BB$8,-2) -> 890200 | Z26: =ROUND(Kent!BC$8,-2) -> 894600 | AA26: =ROUND(Kent!BD$8,-2) -> 898900 | AC26: =INDEX($B26:$AA26,Index!$B$16) -> 776900 | AD26: =INDEX($B26:$AA26,Index!$B$19) -> 898900 | AE26: =ROUND('All Districts unrounded'!AE26,-2) -> 122000 | AF26: ='All Districts unrounded'!AF26 -> 0.1570630586
A27: Kent + Medway | B27: =ROUND('Kent+Med'!AE$8,-2) -> 915400 | C27: =ROUND('Kent+Med'!AF$8,-2) -> 925900 | D27: =ROUND('Kent+Med'!AG$8,-2) -> 935500 | E27: =ROUND('Kent+Med'!AH$8,-2) -> 941800 | F27: =ROUND('Kent+Med'!AI$8,-2) -> 947100 | G27: =ROUND('Kent+Med'!AJ$8,-2) -> 952200 | H27: =ROUND('Kent+Med'!AK$8,-2) -> 957300 | I27: =ROUND('Kent+Med'!AL$8,-2) -> 962600 | J27: =ROUND('Kent+Med'!AM$8,-2) -> 968000 | K27: =ROUND('Kent+Med'!AN$8,-2) -> 973100 | L27: =ROUND('Kent+Med'!AO$8,-2) -> 978200 | M27: =ROUND('Kent+Med'!AP$8,-2) -> 983200 | N27: =ROUND('Kent+Med'!AQ$8,-2) -> 988100 | O27: =ROUND('Kent+Med'!AR$8,-2) -> 992900 | P27: =ROUND('Kent+Med'!AS$8,-2) -> 997600 | Q27: =ROUND('Kent+Med'!AT$8,-2) -> 1002300 | R27: =ROUND('Kent+Med'!AU$8,-2) -> 1007000 | S27: =ROUND('Kent+Med'!AV$8,-2) -> 1011700 | T27: =ROUND('Kent+Med'!AW$8,-2) -> 1016500 | U27: =ROUND('Kent+Med'!AX$8,-2) -> 1021300 | V27: =ROUND('Kent+Med'!AY$8,-2) -> 1026300 | W27: =ROUND('Kent+Med'!AZ$8,-2) -> 1031200 | X27: =ROUND('Kent+Med'!BA$8,-2) -> 1036100 | Y27: =ROUND('Kent+Med'!BB$8,-2) -> 1041000 | Z27: =ROUND('Kent+Med'!BC$8,-2) -> 1045900 | AA27: =ROUND('Kent+Med'!BD$8,-2) -> 1050700 | AC27: =INDEX($B27:$AA27,Index!$B$16) -> 915400 | AD27: =INDEX($B27:$AA27,Index!$B$19) -> 1050700 | AE27: =ROUND('All Districts unrounded'!AE27,-2) -> 135400 | AF27: ='All Districts unrounded'!AF27 -> 0.1478977071
A28: South East Region | B28: =ROUND('South East'!AE$8,-2) -> 4593500 | C28: =ROUND('South East'!AF$8,-2) -> 4652000 | D28: =ROUND('South East'!AG$8,-2) -> 4701800 | E28: =ROUND('South East'!AH$8,-2) -> 4729800 | F28: =ROUND('South East'!AI$8,-2) -> 4751600 | G28: =ROUND('South East'!AJ$8,-2) -> 4772400 | H28: =ROUND('South East'!AK$8,-2) -> 4794700 | I28: =ROUND('South East'!AL$8,-2) -> 4818700 | J28: =ROUND('South East'!AM$8,-2) -> 4842700 | K28: =ROUND('South East'!AN$8,-2) -> 4866100 | L28: =ROUND('South East'!AO$8,-2) -> 4889100 | M28: =ROUND('South East'!AP$8,-2) -> 4911900 | N28: =ROUND('South East'!AQ$8,-2) -> 4934200 | O28: =ROUND('South East'!AR$8,-2) -> 4956200 | P28: =ROUND('South East'!AS$8,-2) -> 4977900 | Q28: =ROUND('South East'!AT$8,-2) -> 4999600 | R28: =ROUND('South East'!AU$8,-2) -> 5021100 | S28: =ROUND('South East'!AV$8,-2) -> 5042800 | T28: =ROUND('South East'!AW$8,-2) -> 5064700 | U28: =ROUND('South East'!AX$8,-2) -> 5086700 | V28: =ROUND('South East'!AY$8,-2) -> 5109000 | W28: =ROUND('South East'!AZ$8,-2) -> 5131400 | X28: =ROUND('South East'!BA$8,-2) -> 5153700 | Y28: =ROUND('South East'!BB$8,-2) -> 5175900 | Z28: =ROUND('South East'!BC$8,-2) -> 5198000 | AA28: =ROUND('South East'!BD$8,-2) -> 5219800 | AC28: =INDEX($B28:$AA28,Index!$B$16) -> 4593500 | AD28: =INDEX($B28:$AA28,Index!$B$19) -> 5219800 | AE28: =ROUND('All Districts unrounded'!AE28,-2) -> 626300 | AF28: ='All Districts unrounded'!AF28 -> 0.1363370714
A29: England | B29: =ROUND(England!AE$8,-2) -> 27986000 | C29: =ROUND(England!AF$8,-2) -> 28402700 | D29: =ROUND(England!AG$8,-2) -> 28744800 | E29: =ROUND(England!AH$8,-2) -> 28912800 | F29: =ROUND(England!AI$8,-2) -> 29037400 | G29: =ROUND(England!AJ$8,-2) -> 29157200 | H29: =ROUND(England!AK$8,-2) -> 29288200 | I29: =ROUND(England!AL$8,-2) -> 29432600 | J29: =ROUND(England!AM$8,-2) -> 29579600 | K29: =ROUND(England!AN$8,-2) -> 29723100 | L29: =ROUND(England!AO$8,-2) -> 29863300 | M29: =ROUND(England!AP$8,-2) -> 30000500 | N29: =ROUND(England!AQ$8,-2) -> 30135200 | O29: =ROUND(England!AR$8,-2) -> 30267500 | P29: =ROUND(England!AS$8,-2) -> 30397800 | Q29: =ROUND(England!AT$8,-2) -> 30526600 | R29: =ROUND(England!AU$8,-2) -> 30654000 | S29: =ROUND(England!AV$8,-2) -> 30780500 | T29: =ROUND(England!AW$8,-2) -> 30906200 | U29: =ROUND(England!AX$8,-2) -> 31031300 | V29: =ROUND(England!AY$8,-2) -> 31155500 | W29: =ROUND(England!AZ$8,-2) -> 31278900 | X29: =ROUND(England!BA$8,-2) -> 31401100 | Y29: =ROUND(England!BB$8,-2) -> 31521800 | Z29: =ROUND(England!BC$8,-2) -> 31640700 | AA29: =ROUND(England!BD$8,-2) -> 31757700 | AC29: =INDEX($B29:$AA29,Index!$B$16) -> 27986000 | AD29: =INDEX($B29:$AA29,Index!$B$19) -> 31757700 | AE29: =ROUND('All Districts unrounded'!AE29,-2) -> 3771700 | AF29: ='All Districts unrounded'!AF29 -> 0.134770694
A31: Females
B32: ='All Districts unrounded'!B32 -> 2022 | C32: ='All Districts unrounded'!C32 -> 2023 | D32: ='All Districts unrounded'!D32 -> 2024 | E32: ='All Districts unrounded'!E32 -> 2025 | F32: ='All Districts unrounded'!F32 -> 2026 | G32: ='All Districts unrounded'!G32 -> 2027 | H32: ='All Districts unrounded'!H32 -> 2028 | I32: ='All Districts unrounded'!I32 -> 2029 | J32: ='All Districts unrounded'!J32 -> 2030 | K32: ='All Districts unrounded'!K32 -> 2031 | L32: ='All Districts unrounded'!L32 -> 2032 | M32: ='All Districts unrounded'!M32 -> 2033 | N32: ='All Districts unrounded'!N32 -> 2034 | O32: ='All Districts unrounded'!O32 -> 2035 | P32: ='All Districts unrounded'!P32 -> 2036 | Q32: ='All Districts unrounded'!Q32 -> 2037 | R32: ='All Districts unrounded'!R32 -> 2038 | S32: ='All Districts unrounded'!S32 -> 2039 | T32: ='All Districts unrounded'!T32 -> 2040 | U32: ='All Districts unrounded'!U32 -> 2041 | V32: ='All Districts unrounded'!V32 -> 2042 | W32: ='All Districts unrounded'!W32 -> 2043 | X32: ='All Districts unrounded'!X32 -> 2044 | Y32: ='All Districts unrounded'!Y32 -> 2045 | Z32: ='All Districts unrounded'!Z32 -> 2046 | AA32: ='All Districts unrounded'!AA32 -> 2047 | AC32: =Index!$C$16 -> 2022 | AD32: =Index!$C$19 -> 2047 | AE32: Number change | AF32: % change
A33: -
A34: Ashford | B34: =ROUND(ASH!AE$9,-2) -> 69700 | C34: =ROUND(ASH!AF$9,-2) -> 70700 | D34: =ROUND(ASH!AG$9,-2) -> 71600 | E34: =ROUND(ASH!AH$9,-2) -> 72400 | F34: =ROUND(ASH!AI$9,-2) -> 73000 | G34: =ROUND(ASH!AJ$9,-2) -> 73600 | H34: =ROUND(ASH!AK$9,-2) -> 74200 | I34: =ROUND(ASH!AL$9,-2) -> 74800 | J34: =ROUND(ASH!AM$9,-2) -> 75400 | K34: =ROUND(ASH!AN$9,-2) -> 76000 | L34: =ROUND(ASH!AO$9,-2) -> 76600 | M34: =ROUND(ASH!AP$9,-2) -> 77100 | N34: =ROUND(ASH!AQ$9,-2) -> 77700 | O34: =ROUND(ASH!AR$9,-2) -> 78200 | P34: =ROUND(ASH!AS$9,-2) -> 78700 | Q34: =ROUND(ASH!AT$9,-2) -> 79100 | R34: =ROUND(ASH!AU$9,-2) -> 79600 | S34: =ROUND(ASH!AV$9,-2) -> 80100 | T34: =ROUND(ASH!AW$9,-2) -> 80600 | U34: =ROUND(ASH!AX$9,-2) -> 81000 | V34: =ROUND(ASH!AY$9,-2) -> 81500 | W34: =ROUND(ASH!AZ$9,-2) -> 81900 | X34: =ROUND(ASH!BA$9,-2) -> 82400 | Y34: =ROUND(ASH!BB$9,-2) -> 82800 | Z34: =ROUND(ASH!BC$9,-2) -> 83200 | AA34: =ROUND(ASH!BD$9,-2) -> 83600 | AC34: =INDEX($B34:$AA34,Index!$B$16) -> 69700 | AD34: =INDEX($B34:$AA34,Index!$B$19) -> 83600 | AE34: =ROUND('All Districts unrounded'!AE34,-2) -> 13900 | AF34: ='All Districts unrounded'!AF34 -> 0.1999159285
A35: Canterbury | B35: =ROUND(CAN!AE$9,-2) -> 82100 | C35: =ROUND(CAN!AF$9,-2) -> 83600 | D35: =ROUND(CAN!AG$9,-2) -> 85000 | E35: =ROUND(CAN!AH$9,-2) -> 85700 | F35: =ROUND(CAN!AI$9,-2) -> 86100 | G35: =ROUND(CAN!AJ$9,-2) -> 86500 | H35: =ROUND(CAN!AK$9,-2) -> 87000 | I35: =ROUND(CAN!AL$9,-2) -> 87500 | J35: =ROUND(CAN!AM$9,-2) -> 88000 | K35: =ROUND(CAN!AN$9,-2) -> 88400 | L35: =ROUND(CAN!AO$9,-2) -> 88800 | M35: =ROUND(CAN!AP$9,-2) -> 89000 | N35: =ROUND(CAN!AQ$9,-2) -> 89300 | O35: =ROUND(CAN!AR$9,-2) -> 89700 | P35: =ROUND(CAN!AS$9,-2) -> 90000 | Q35: =ROUND(CAN!AT$9,-2) -> 90300 | R35: =ROUND(CAN!AU$9,-2) -> 90600 | S35: =ROUND(CAN!AV$9,-2) -> 90800 | T35: =ROUND(CAN!AW$9,-2) -> 91000 | U35: =ROUND(CAN!AX$9,-2) -> 91300 | V35: =ROUND(CAN!AY$9,-2) -> 91500 | W35: =ROUND(CAN!AZ$9,-2) -> 91800 | X35: =ROUND(CAN!BA$9,-2) -> 92100 | Y35: =ROUND(CAN!BB$9,-2) -> 92400 | Z35: =ROUND(CAN!BC$9,-2) -> 92800 | AA35: =ROUND(CAN!BD$9,-2) -> 93200 | AC35: =INDEX($B35:$AA35,Index!$B$16) -> 82100 | AD35: =INDEX($B35:$AA35,Index!$B$19) -> 93200 | AE35: =ROUND('All Districts unrounded'!AE35,-2) -> 11100 | AF35: ='All Districts unrounded'!AF35 -> 0.1354814995
A36: Dartford | B36: =ROUND(DAR!AE$9,-2) -> 60700 | C36: =ROUND(DAR!AF$9,-2) -> 61900 | D36: =ROUND(DAR!AG$9,-2) -> 63100 | E36: =ROUND(DAR!AH$9,-2) -> 64000 | F36: =ROUND(DAR!AI$9,-2) -> 64800 | G36: =ROUND(DAR!AJ$9,-2) -> 65500 | H36: =ROUND(DAR!AK$9,-2) -> 66200 | I36: =ROUND(DAR!AL$9,-2) -> 66900 | J36: =ROUND(DAR!AM$9,-2) -> 67500 | K36: =ROUND(DAR!AN$9,-2) -> 68200 | L36: =ROUND(DAR!AO$9,-2) -> 68800 | M36: =ROUND(DAR!AP$9,-2) -> 69400 | N36: =ROUND(DAR!AQ$9,-2) -> 70000 | O36: =ROUND(DAR!AR$9,-2) -> 70500 | P36: =ROUND(DAR!AS$9,-2) -> 71000 | Q36: =ROUND(DAR!AT$9,-2) -> 71500 | R36: =ROUND(DAR!AU$9,-2) -> 72100 | S36: =ROUND(DAR!AV$9,-2) -> 72600 | T36: =ROUND(DAR!AW$9,-2) -> 73000 | U36: =ROUND(DAR!AX$9,-2) -> 73500 | V36: =ROUND(DAR!AY$9,-2) -> 74000 | W36: =ROUND(DAR!AZ$9,-2) -> 74400 | X36: =ROUND(DAR!BA$9,-2) -> 74900 | Y36: =ROUND(DAR!BB$9,-2) -> 75300 | Z36: =ROUND(DAR!BC$9,-2) -> 75700 | AA36: =ROUND(DAR!BD$9,-2) -> 76000 | AC36: =INDEX($B36:$AA36,Index!$B$16) -> 60700 | AD36: =INDEX($B36:$AA36,Index!$B$19) -> 76000 | AE36: =ROUND('All Districts unrounded'!AE36,-2) -> 15300 | AF36: ='All Districts unrounded'!AF36 -> 0.2526208589
A37: Dover | B37: =ROUND(DOV!AE$9,-2) -> 60300 | C37: =ROUND(DOV!AF$9,-2) -> 60800 | D37: =ROUND(DOV!AG$9,-2) -> 61200 | E37: =ROUND(DOV!AH$9,-2) -> 61600 | F37: =ROUND(DOV!AI$9,-2) -> 62000 | G37: =ROUND(DOV!AJ$9,-2) -> 62300 | H37: =ROUND(DOV!AK$9,-2) -> 62600 | I37: =ROUND(DOV!AL$9,-2) -> 62900 | J37: =ROUND(DOV!AM$9,-2) -> 63200 | K37: =ROUND(DOV!AN$9,-2) -> 63500 | L37: =ROUND(DOV!AO$9,-2) -> 63800 | M37: =ROUND(DOV!AP$9,-2) -> 64100 | N37: =ROUND(DOV!AQ$9,-2) -> 64300 | O37: =ROUND(DOV!AR$9,-2) -> 64600 | P37: =ROUND(DOV!AS$9,-2) -> 64800 | Q37: =ROUND(DOV!AT$9,-2) -> 65100 | R37: =ROUND(DOV!AU$9,-2) -> 65300 | S37: =ROUND(DOV!AV$9,-2) -> 65600 | T37: =ROUND(DOV!AW$9,-2) -> 65800 | U37: =ROUND(DOV!AX$9,-2) -> 66100 | V37: =ROUND(DOV!AY$9,-2) -> 66300 | W37: =ROUND(DOV!AZ$9,-2) -> 66600 | X37: =ROUND(DOV!BA$9,-2) -> 66800 | Y37: =ROUND(DOV!BB$9,-2) -> 67100 | Z37: =ROUND(DOV!BC$9,-2) -> 67300 | AA37: =ROUND(DOV!BD$9,-2) -> 67500 | AC37: =INDEX($B37:$AA37,Index!$B$16) -> 60300 | AD37: =INDEX($B37:$AA37,Index!$B$19) -> 67500 | AE37: =ROUND('All Districts unrounded'!AE37,-2) -> 7200 | AF37: ='All Districts unrounded'!AF37 -> 0.1200652592
A38: Folkestone & Hythe | B38: =ROUND('F&H'!AE$9,-2) -> 56600 | C38: =ROUND('F&H'!AF$9,-2) -> 57000 | D38: =ROUND('F&H'!AG$9,-2) -> 57500 | E38: =ROUND('F&H'!AH$9,-2) -> 57800 | F38: =ROUND('F&H'!AI$9,-2) -> 58100 | G38: =ROUND('F&H'!AJ$9,-2) -> 58400 | H38: =ROUND('F&H'!AK$9,-2) -> 58800 | I38: =ROUND('F&H'!AL$9,-2) -> 59100 | J38: =ROUND('F&H'!AM$9,-2) -> 59400 | K38: =ROUND('F&H'!AN$9,-2) -> 59700 | L38: =ROUND('F&H'!AO$9,-2) -> 60000 | M38: =ROUND('F&H'!AP$9,-2) -> 60400 | N38: =ROUND('F&H'!AQ$9,-2) -> 60700 | O38: =ROUND('F&H'!AR$9,-2) -> 61000 | P38: =ROUND('F&H'!AS$9,-2) -> 61300 | Q38: =ROUND('F&H'!AT$9,-2) -> 61600 | R38: =ROUND('F&H'!AU$9,-2) -> 61900 | S38: =ROUND('F&H'!AV$9,-2) -> 62100 | T38: =ROUND('F&H'!AW$9,-2) -> 62400 | U38: =ROUND('F&H'!AX$9,-2) -> 62700 | V38: =ROUND('F&H'!AY$9,-2) -> 63000 | W38: =ROUND('F&H'!AZ$9,-2) -> 63300 | X38: =ROUND('F&H'!BA$9,-2) -> 63600 | Y38: =ROUND('F&H'!BB$9,-2) -> 63900 | Z38: =ROUND('F&H'!BC$9,-2) -> 64200 | AA38: =ROUND('F&H'!BD$9,-2) -> 64400 | AC38: =INDEX($B38:$AA38,Index!$B$16) -> 56600 | AD38: =INDEX($B38:$AA38,Index!$B$19) -> 64400 | AE38: =ROUND('All Districts unrounded'!AE38,-2) -> 7900 | AF38: ='All Districts unrounded'!AF38 -> 0.139103544
A39: Gravesham | B39: =ROUND(GRA!AE$9,-2) -> 54800 | C39: =ROUND(GRA!AF$9,-2) -> 55200 | D39: =ROUND(GRA!AG$9,-2) -> 55500 | E39: =ROUND(GRA!AH$9,-2) -> 55600 | F39: =ROUND(GRA!AI$9,-2) -> 55700 | G39: =ROUND(GRA!AJ$9,-2) -> 55900 | H39: =ROUND(GRA!AK$9,-2) -> 56000 | I39: =ROUND(GRA!AL$9,-2) -> 56100 | J39: =ROUND(GRA!AM$9,-2) -> 56300 | K39: =ROUND(GRA!AN$9,-2) -> 56400 | L39: =ROUND(GRA!AO$9,-2) -> 56600 | M39: =ROUND(GRA!AP$9,-2) -> 56700 | N39: =ROUND(GRA!AQ$9,-2) -> 56900 | O39: =ROUND(GRA!AR$9,-2) -> 57100 | P39: =ROUND(GRA!AS$9,-2) -> 57200 | Q39: =ROUND(GRA!AT$9,-2) -> 57400 | R39: =ROUND(GRA!AU$9,-2) -> 57600 | S39: =ROUND(GRA!AV$9,-2) -> 57700 | T39: =ROUND(GRA!AW$9,-2) -> 57900 | U39: =ROUND(GRA!AX$9,-2) -> 58100 | V39: =ROUND(GRA!AY$9,-2) -> 58300 | W39: =ROUND(GRA!AZ$9,-2) -> 58500 | X39: =ROUND(GRA!BA$9,-2) -> 58700 | Y39: =ROUND(GRA!BB$9,-2) -> 58900 | Z39: =ROUND(GRA!BC$9,-2) -> 59100 | AA39: =ROUND(GRA!BD$9,-2) -> 59300 | AC39: =INDEX($B39:$AA39,Index!$B$16) -> 54800 | AD39: =INDEX($B39:$AA39,Index!$B$19) -> 59300 | AE39: =ROUND('All Districts unrounded'!AE39,-2) -> 4500 | AF39: ='All Districts unrounded'!AF39 -> 0.08168047391
A40: Maidstone | B40: =ROUND(MAI!AE$9,-2) -> 91500 | C40: =ROUND(MAI!AF$9,-2) -> 93400 | D40: =ROUND(MAI!AG$9,-2) -> 95100 | E40: =ROUND(MAI!AH$9,-2) -> 96500 | F40: =ROUND(MAI!AI$9,-2) -> 97700 | G40: =ROUND(MAI!AJ$9,-2) -> 98900 | H40: =ROUND(MAI!AK$9,-2) -> 100000 | I40: =ROUND(MAI!AL$9,-2) -> 101100 | J40: =ROUND(MAI!AM$9,-2) -> 102200 | K40: =ROUND(MAI!AN$9,-2) -> 103300 | L40: =ROUND(MAI!AO$9,-2) -> 104300 | M40: =ROUND(MAI!AP$9,-2) -> 105300 | N40: =ROUND(MAI!AQ$9,-2) -> 106300 | O40: =ROUND(MAI!AR$9,-2) -> 107200 | P40: =ROUND(MAI!AS$9,-2) -> 108000 | Q40: =ROUND(MAI!AT$9,-2) -> 108900 | R40: =ROUND(MAI!AU$9,-2) -> 109700 | S40: =ROUND(MAI!AV$9,-2) -> 110500 | T40: =ROUND(MAI!AW$9,-2) -> 111300 | U40: =ROUND(MAI!AX$9,-2) -> 112100 | V40: =ROUND(MAI!AY$9,-2) -> 112800 | W40: =ROUND(MAI!AZ$9,-2) -> 113600 | X40: =ROUND(MAI!BA$9,-2) -> 114300 | Y40: =ROUND(MAI!BB$9,-2) -> 115000 | Z40: =ROUND(MAI!BC$9,-2) -> 115700 | AA40: =ROUND(MAI!BD$9,-2) -> 116400 | AC40: =INDEX($B40:$AA40,Index!$B$16) -> 91500 | AD40: =INDEX($B40:$AA40,Index!$B$19) -> 116400 | AE40: =ROUND('All Districts unrounded'!AE40,-2) -> 24800 | AF40: ='All Districts unrounded'!AF40 -> 0.2714679496
A41: Medway | B41: =ROUND(MED!AE$9,-2) -> 144200 | C41: =ROUND(MED!AF$9,-2) -> 145500 | D41: =ROUND(MED!AG$9,-2) -> 146600 | E41: =ROUND(MED!AH$9,-2) -> 147300 | F41: =ROUND(MED!AI$9,-2) -> 147800 | G41: =ROUND(MED!AJ$9,-2) -> 148300 | H41: =ROUND(MED!AK$9,-2) -> 148800 | I41: =ROUND(MED!AL$9,-2) -> 149400 | J41: =ROUND(MED!AM$9,-2) -> 149900 | K41: =ROUND(MED!AN$9,-2) -> 150400 | L41: =ROUND(MED!AO$9,-2) -> 150900 | M41: =ROUND(MED!AP$9,-2) -> 151400 | N41: =ROUND(MED!AQ$9,-2) -> 151900 | O41: =ROUND(MED!AR$9,-2) -> 152400 | P41: =ROUND(MED!AS$9,-2) -> 152800 | Q41: =ROUND(MED!AT$9,-2) -> 153300 | R41: =ROUND(MED!AU$9,-2) -> 153700 | S41: =ROUND(MED!AV$9,-2) -> 154200 | T41: =ROUND(MED!AW$9,-2) -> 154700 | U41: =ROUND(MED!AX$9,-2) -> 155100 | V41: =ROUND(MED!AY$9,-2) -> 155600 | W41: =ROUND(MED!AZ$9,-2) -> 156100 | X41: =ROUND(MED!BA$9,-2) -> 156500 | Y41: =ROUND(MED!BB$9,-2) -> 157000 | Z41: =ROUND(MED!BC$9,-2) -> 157400 | AA41: =ROUND(MED!BD$9,-2) -> 157900 | AC41: =INDEX($B41:$AA41,Index!$B$16) -> 144200 | AD41: =INDEX($B41:$AA41,Index!$B$19) -> 157900 | AE41: =ROUND('All Districts unrounded'!AE41,-2) -> 13700 | AF41: ='All Districts unrounded'!AF41 -> 0.09500977413
A42: Sevenoaks | B42: =ROUND(SEV!AE$9,-2) -> 62800 | C42: =ROUND(SEV!AF$9,-2) -> 63100 | D42: =ROUND(SEV!AG$9,-2) -> 63500 | E42: =ROUND(SEV!AH$9,-2) -> 63700 | F42: =ROUND(SEV!AI$9,-2) -> 64000 | G42: =ROUND(SEV!AJ$9,-2) -> 64300 | H42: =ROUND(SEV!AK$9,-2) -> 64600 | I42: =ROUND(SEV!AL$9,-2) -> 64900 | J42: =ROUND(SEV!AM$9,-2) -> 65200 | K42: =ROUND(SEV!AN$9,-2) -> 65400 | L42: =ROUND(SEV!AO$9,-2) -> 65800 | M42: =ROUND(SEV!AP$9,-2) -> 66100 | N42: =ROUND(SEV!AQ$9,-2) -> 66400 | O42: =ROUND(SEV!AR$9,-2) -> 66700 | P42: =ROUND(SEV!AS$9,-2) -> 67000 | Q42: =ROUND(SEV!AT$9,-2) -> 67300 | R42: =ROUND(SEV!AU$9,-2) -> 67600 | S42: =ROUND(SEV!AV$9,-2) -> 68000 | T42: =ROUND(SEV!AW$9,-2) -> 68300 | U42: =ROUND(SEV!AX$9,-2) -> 68600 | V42: =ROUND(SEV!AY$9,-2) -> 68900 | W42: =ROUND(SEV!AZ$9,-2) -> 69300 | X42: =ROUND(SEV!BA$9,-2) -> 69600 | Y42: =ROUND(SEV!BB$9,-2) -> 70000 | Z42: =ROUND(SEV!BC$9,-2) -> 70300 | AA42: =ROUND(SEV!BD$9,-2) -> 70600 | AC42: =INDEX($B42:$AA42,Index!$B$16) -> 62800 | AD42: =INDEX($B42:$AA42,Index!$B$19) -> 70600 | AE42: =ROUND('All Districts unrounded'!AE42,-2) -> 7800 | AF42: ='All Districts unrounded'!AF42 -> 0.1245678633
A43: Swale | B43: =ROUND(SWA!AE$9,-2) -> 77900 | C43: =ROUND(SWA!AF$9,-2) -> 78800 | D43: =ROUND(SWA!AG$9,-2) -> 79800 | E43: =ROUND(SWA!AH$9,-2) -> 80500 | F43: =ROUND(SWA!AI$9,-2) -> 81300 | G43: =ROUND(SWA!AJ$9,-2) -> 82000 | H43: =ROUND(SWA!AK$9,-2) -> 82700 | I43: =ROUND(SWA!AL$9,-2) -> 83300 | J43: =ROUND(SWA!AM$9,-2) -> 84000 | K43: =ROUND(SWA!AN$9,-2) -> 84600 | L43: =ROUND(SWA!AO$9,-2) -> 85200 | M43: =ROUND(SWA!AP$9,-2) -> 85800 | N43: =ROUND(SWA!AQ$9,-2) -> 86400 | O43: =ROUND(SWA!AR$9,-2) -> 86900 | P43: =ROUND(SWA!AS$9,-2) -> 87500 | Q43: =ROUND(SWA!AT$9,-2) -> 88000 | R43: =ROUND(SWA!AU$9,-2) -> 88500 | S43: =ROUND(SWA!AV$9,-2) -> 89000 | T43: =ROUND(SWA!AW$9,-2) -> 89500 | U43: =ROUND(SWA!AX$9,-2) -> 90000 | V43: =ROUND(SWA!AY$9,-2) -> 90500 | W43: =ROUND(SWA!AZ$9,-2) -> 91000 | X43: =ROUND(SWA!BA$9,-2) -> 91500 | Y43: =ROUND(SWA!BB$9,-2) -> 92000 | Z43: =ROUND(SWA!BC$9,-2) -> 92400 | AA43: =ROUND(SWA!BD$9,-2) -> 92800 | AC43: =INDEX($B43:$AA43,Index!$B$16) -> 77900 | AD43: =INDEX($B43:$AA43,Index!$B$19) -> 92800 | AE43: =ROUND('All Districts unrounded'!AE43,-2) -> 15000 | AF43: ='All Districts unrounded'!AF43 -> 0.192314045
A44: Thanet | B44: =ROUND(THA!AE$9,-2) -> 73000 | C44: =ROUND(THA!AF$9,-2) -> 73300 | D44: =ROUND(THA!AG$9,-2) -> 73600 | E44: =ROUND(THA!AH$9,-2) -> 73800 | F44: =ROUND(THA!AI$9,-2) -> 73900 | G44: =ROUND(THA!AJ$9,-2) -> 74000 | H44: =ROUND(THA!AK$9,-2) -> 74200 | I44: =ROUND(THA!AL$9,-2) -> 74300 | J44: =ROUND(THA!AM$9,-2) -> 74500 | K44: =ROUND(THA!AN$9,-2) -> 74700 | L44: =ROUND(THA!AO$9,-2) -> 74900 | M44: =ROUND(THA!AP$9,-2) -> 75100 | N44: =ROUND(THA!AQ$9,-2) -> 75200 | O44: =ROUND(THA!AR$9,-2) -> 75400 | P44: =ROUND(THA!AS$9,-2) -> 75600 | Q44: =ROUND(THA!AT$9,-2) -> 75800 | R44: =ROUND(THA!AU$9,-2) -> 76000 | S44: =ROUND(THA!AV$9,-2) -> 76100 | T44: =ROUND(THA!AW$9,-2) -> 76300 | U44: =ROUND(THA!AX$9,-2) -> 76500 | V44: =ROUND(THA!AY$9,-2) -> 76700 | W44: =ROUND(THA!AZ$9,-2) -> 76900 | X44: =ROUND(THA!BA$9,-2) -> 77100 | Y44: =ROUND(THA!BB$9,-2) -> 77300 | Z44: =ROUND(THA!BC$9,-2) -> 77500 | AA44: =ROUND(THA!BD$9,-2) -> 77700 | AC44: =INDEX($B44:$AA44,Index!$B$16) -> 73000 | AD44: =INDEX($B44:$AA44,Index!$B$19) -> 77700 | AE44: =ROUND('All Districts unrounded'!AE44,-2) -> 4700 | AF44: ='All Districts unrounded'!AF44 -> 0.06443808141
A45: Tonbridge & Malling | B45: =ROUND(TON!AE$9,-2) -> 68700 | C45: =ROUND(TON!AF$9,-2) -> 69300 | D45: =ROUND(TON!AG$9,-2) -> 70000 | E45: =ROUND(TON!AH$9,-2) -> 70500 | F45: =ROUND(TON!AI$9,-2) -> 71000 | G45: =ROUND(TON!AJ$9,-2) -> 71500 | H45: =ROUND(TON!AK$9,-2) -> 72000 | I45: =ROUND(TON!AL$9,-2) -> 72500 | J45: =ROUND(TON!AM$9,-2) -> 72900 | K45: =ROUND(TON!AN$9,-2) -> 73400 | L45: =ROUND(TON!AO$9,-2) -> 73900 | M45: =ROUND(TON!AP$9,-2) -> 74300 | N45: =ROUND(TON!AQ$9,-2) -> 74800 | O45: =ROUND(TON!AR$9,-2) -> 75200 | P45: =ROUND(TON!AS$9,-2) -> 75600 | Q45: =ROUND(TON!AT$9,-2) -> 76000 | R45: =ROUND(TON!AU$9,-2) -> 76400 | S45: =ROUND(TON!AV$9,-2) -> 76900 | T45: =ROUND(TON!AW$9,-2) -> 77300 | U45: =ROUND(TON!AX$9,-2) -> 77700 | V45: =ROUND(TON!AY$9,-2) -> 78200 | W45: =ROUND(TON!AZ$9,-2) -> 78600 | X45: =ROUND(TON!BA$9,-2) -> 79000 | Y45: =ROUND(TON!BB$9,-2) -> 79400 | Z45: =ROUND(TON!BC$9,-2) -> 79800 | AA45: =ROUND(TON!BD$9,-2) -> 80200 | AC45: =INDEX($B45:$AA45,Index!$B$16) -> 68700 | AD45: =INDEX($B45:$AA45,Index!$B$19) -> 80200 | AE45: =ROUND('All Districts unrounded'!AE45,-2) -> 11500 | AF45: ='All Districts unrounded'!AF45 -> 0.166695816
A46: Tunbridge Wells | B46: =ROUND(TUN!AE$9,-2) -> 59600 | C46: =ROUND(TUN!AF$9,-2) -> 60100 | D46: =ROUND(TUN!AG$9,-2) -> 60600 | E46: =ROUND(TUN!AH$9,-2) -> 60900 | F46: =ROUND(TUN!AI$9,-2) -> 61200 | G46: =ROUND(TUN!AJ$9,-2) -> 61500 | H46: =ROUND(TUN!AK$9,-2) -> 61800 | I46: =ROUND(TUN!AL$9,-2) -> 62100 | J46: =ROUND(TUN!AM$9,-2) -> 62400 | K46: =ROUND(TUN!AN$9,-2) -> 62700 | L46: =ROUND(TUN!AO$9,-2) -> 63000 | M46: =ROUND(TUN!AP$9,-2) -> 63400 | N46: =ROUND(TUN!AQ$9,-2) -> 63700 | O46: =ROUND(TUN!AR$9,-2) -> 64000 | P46: =ROUND(TUN!AS$9,-2) -> 64300 | Q46: =ROUND(TUN!AT$9,-2) -> 64700 | R46: =ROUND(TUN!AU$9,-2) -> 65000 | S46: =ROUND(TUN!AV$9,-2) -> 65300 | T46: =ROUND(TUN!AW$9,-2) -> 65600 | U46: =ROUND(TUN!AX$9,-2) -> 66000 | V46: =ROUND(TUN!AY$9,-2) -> 66300 | W46: =ROUND(TUN!AZ$9,-2) -> 66600 | X46: =ROUND(TUN!BA$9,-2) -> 67000 | Y46: =ROUND(TUN!BB$9,-2) -> 67300 | Z46: =ROUND(TUN!BC$9,-2) -> 67600 | AA46: =ROUND(TUN!BD$9,-2) -> 67900 | AC46: =INDEX($B46:$AA46,Index!$B$16) -> 59600 | AD46: =INDEX($B46:$AA46,Index!$B$19) -> 67900 | AE46: =ROUND('All Districts unrounded'!AE46,-2) -> 8300 | AF46: ='All Districts unrounded'!AF46 -> 0.1393071377
A47: Kent | B47: =ROUND(Kent!AE$9,-2) -> 817600 | C47: =ROUND(Kent!AF$9,-2) -> 827300 | D47: =ROUND(Kent!AG$9,-2) -> 836500 | E47: =ROUND(Kent!AH$9,-2) -> 843100 | F47: =ROUND(Kent!AI$9,-2) -> 848900 | G47: =ROUND(Kent!AJ$9,-2) -> 854400 | H47: =ROUND(Kent!AK$9,-2) -> 859900 | I47: =ROUND(Kent!AL$9,-2) -> 865500 | J47: =ROUND(Kent!AM$9,-2) -> 871000 | K47: =ROUND(Kent!AN$9,-2) -> 876400 | L47: =ROUND(Kent!AO$9,-2) -> 881600 | M47: =ROUND(Kent!AP$9,-2) -> 886700 | N47: =ROUND(Kent!AQ$9,-2) -> 891600 | O47: =ROUND(Kent!AR$9,-2) -> 896500 | P47: =ROUND(Kent!AS$9,-2) -> 901100 | Q47: =ROUND(Kent!AT$9,-2) -> 905700 | R47: =ROUND(Kent!AU$9,-2) -> 910200 | S47: =ROUND(Kent!AV$9,-2) -> 914700 | T47: =ROUND(Kent!AW$9,-2) -> 919200 | U47: =ROUND(Kent!AX$9,-2) -> 923600 | V47: =ROUND(Kent!AY$9,-2) -> 928100 | W47: =ROUND(Kent!AZ$9,-2) -> 932500 | X47: =ROUND(Kent!BA$9,-2) -> 936900 | Y47: =ROUND(Kent!BB$9,-2) -> 941200 | Z47: =ROUND(Kent!BC$9,-2) -> 945500 | AA47: =ROUND(Kent!BD$9,-2) -> 949700 | AC47: =INDEX($B47:$AA47,Index!$B$16) -> 817600 | AD47: =INDEX($B47:$AA47,Index!$B$19) -> 949700 | AE47: =ROUND('All Districts unrounded'!AE47,-2) -> 132100 | AF47: ='All Districts unrounded'!AF47 -> 0.1615334478
A48: Kent + Medway | B48: =ROUND('Kent+Med'!AE$9,-2) -> 961800 | C48: =ROUND('Kent+Med'!AF$9,-2) -> 972800 | D48: =ROUND('Kent+Med'!AG$9,-2) -> 983100 | E48: =ROUND('Kent+Med'!AH$9,-2) -> 990400 | F48: =ROUND('Kent+Med'!AI$9,-2) -> 996700 | G48: =ROUND('Kent+Med'!AJ$9,-2) -> 1002700 | H48: =ROUND('Kent+Med'!AK$9,-2) -> 1008800 | I48: =ROUND('Kent+Med'!AL$9,-2) -> 1014900 | J48: =ROUND('Kent+Med'!AM$9,-2) -> 1020900 | K48: =ROUND('Kent+Med'!AN$9,-2) -> 1026800 | L48: =ROUND('Kent+Med'!AO$9,-2) -> 1032600 | M48: =ROUND('Kent+Med'!AP$9,-2) -> 1038200 | N48: =ROUND('Kent+Med'!AQ$9,-2) -> 1043500 | O48: =ROUND('Kent+Med'!AR$9,-2) -> 1048800 | P48: =ROUND('Kent+Med'!AS$9,-2) -> 1053900 | Q48: =ROUND('Kent+Med'!AT$9,-2) -> 1059000 | R48: =ROUND('Kent+Med'!AU$9,-2) -> 1064000 | S48: =ROUND('Kent+Med'!AV$9,-2) -> 1068900 | T48: =ROUND('Kent+Med'!AW$9,-2) -> 1073800 | U48: =ROUND('Kent+Med'!AX$9,-2) -> 1078700 | V48: =ROUND('Kent+Med'!AY$9,-2) -> 1083700 | W48: =ROUND('Kent+Med'!AZ$9,-2) -> 1088600 | X48: =ROUND('Kent+Med'!BA$9,-2) -> 1093400 | Y48: =ROUND('Kent+Med'!BB$9,-2) -> 1098200 | Z48: =ROUND('Kent+Med'!BC$9,-2) -> 1102900 | AA48: =ROUND('Kent+Med'!BD$9,-2) -> 1107500 | AC48: =INDEX($B48:$AA48,Index!$B$16) -> 961800 | AD48: =INDEX($B48:$AA48,Index!$B$19) -> 1107500 | AE48: =ROUND('All Districts unrounded'!AE48,-2) -> 145800 | AF48: ='All Districts unrounded'!AF48 -> 0.1515623462
A49: South East Region | B49: =ROUND('South East'!AE$9,-2) -> 4793800 | C49: =ROUND('South East'!AF$9,-2) -> 4851000 | D49: =ROUND('South East'!AG$9,-2) -> 4901000 | E49: =ROUND('South East'!AH$9,-2) -> 4930000 | F49: =ROUND('South East'!AI$9,-2) -> 4953200 | G49: =ROUND('South East'!AJ$9,-2) -> 4975500 | H49: =ROUND('South East'!AK$9,-2) -> 4999200 | I49: =ROUND('South East'!AL$9,-2) -> 5024200 | J49: =ROUND('South East'!AM$9,-2) -> 5049300 | K49: =ROUND('South East'!AN$9,-2) -> 5073700 | L49: =ROUND('South East'!AO$9,-2) -> 5097700 | M49: =ROUND('South East'!AP$9,-2) -> 5121200 | N49: =ROUND('South East'!AQ$9,-2) -> 5143900 | O49: =ROUND('South East'!AR$9,-2) -> 5166200 | P49: =ROUND('South East'!AS$9,-2) -> 5188100 | Q49: =ROUND('South East'!AT$9,-2) -> 5209700 | R49: =ROUND('South East'!AU$9,-2) -> 5231000 | S49: =ROUND('South East'!AV$9,-2) -> 5252100 | T49: =ROUND('South East'!AW$9,-2) -> 5273000 | U49: =ROUND('South East'!AX$9,-2) -> 5293800 | V49: =ROUND('South East'!AY$9,-2) -> 5314800 | W49: =ROUND('South East'!AZ$9,-2) -> 5335600 | X49: =ROUND('South East'!BA$9,-2) -> 5356200 | Y49: =ROUND('South East'!BB$9,-2) -> 5376500 | Z49: =ROUND('South East'!BC$9,-2) -> 5396600 | AA49: =ROUND('South East'!BD$9,-2) -> 5416300 | AC49: =INDEX($B49:$AA49,Index!$B$16) -> 4793800 | AD49: =INDEX($B49:$AA49,Index!$B$19) -> 5416300 | AE49: =ROUND('All Districts unrounded'!AE49,-2) -> 622500 | AF49: ='All Districts unrounded'!AF49 -> 0.12985369
A50: England | B50: =ROUND(England!AE$9,-2) -> 29126500 | C50: =ROUND(England!AF$9,-2) -> 29507600 | D50: =ROUND(England!AG$9,-2) -> 29823400 | E50: =ROUND(England!AH$9,-2) -> 29980500 | F50: =ROUND(England!AI$9,-2) -> 30099600 | G50: =ROUND(England!AJ$9,-2) -> 30215600 | H50: =ROUND(England!AK$9,-2) -> 30342200 | I50: =ROUND(England!AL$9,-2) -> 30481100 | J50: =ROUND(England!AM$9,-2) -> 30622700 | K50: =ROUND(England!AN$9,-2) -> 30761200 | L50: =ROUND(England!AO$9,-2) -> 30896500 | M50: =ROUND(England!AP$9,-2) -> 31028800 | N50: =ROUND(England!AQ$9,-2) -> 31158100 | O50: =ROUND(England!AR$9,-2) -> 31284700 | P50: =ROUND(England!AS$9,-2) -> 31408600 | Q50: =ROUND(England!AT$9,-2) -> 31530100 | R50: =ROUND(England!AU$9,-2) -> 31649200 | S50: =ROUND(England!AV$9,-2) -> 31766300 | T50: =ROUND(England!AW$9,-2) -> 31881400 | U50: =ROUND(England!AX$9,-2) -> 31994600 | V50: =ROUND(England!AY$9,-2) -> 32106000 | W50: =ROUND(England!AZ$9,-2) -> 32215500 | X50: =ROUND(England!BA$9,-2) -> 32322900 | Y50: =ROUND(England!BB$9,-2) -> 32428100 | Z50: =ROUND(England!BC$9,-2) -> 32530900 | AA50: =ROUND(England!BD$9,-2) -> 32631200 | AC50: =INDEX($B50:$AA50,Index!$B$16) -> 29126500 | AD50: =INDEX($B50:$AA50,Index!$B$19) -> 32631200 | AE50: =ROUND('All Districts unrounded'!AE50,-2) -> 3504600 | AF50: ='All Districts unrounded'!AF50 -> 0.1203250234
A52: Total
B53: ='All Districts unrounded'!B53 -> 2022 | C53: ='All Districts unrounded'!C53 -> 2023 | D53: ='All Districts unrounded'!D53 -> 2024 | E53: ='All Districts unrounded'!E53 -> 2025 | F53: ='All Districts unrounded'!F53 -> 2026 | G53: ='All Districts unrounded'!G53 -> 2027 | H53: ='All Districts unrounded'!H53 -> 2028 | I53: ='All Districts unrounded'!I53 -> 2029 | J53: ='All Districts unrounded'!J53 -> 2030 | K53: ='All Districts unrounded'!K53 -> 2031 | L53: ='All Districts unrounded'!L53 -> 2032 | M53: ='All Districts unrounded'!M53 -> 2033 | N53: ='All Districts unrounded'!N53 -> 2034 | O53: ='All Districts unrounded'!O53 -> 2035 | P53: ='All Districts unrounded'!P53 -> 2036 | Q53: ='All Districts unrounded'!Q53 -> 2037 | R53: ='All Districts unrounded'!R53 -> 2038 | S53: ='All Districts unrounded'!S53 -> 2039 | T53: ='All Districts unrounded'!T53 -> 2040 | U53: ='All Districts unrounded'!U53 -> 2041 | V53: ='All Districts unrounded'!V53 -> 2042 | W53: ='All Districts unrounded'!W53 -> 2043 | X53: ='All Districts unrounded'!X53 -> 2044 | Y53: ='All Districts unrounded'!Y53 -> 2045 | Z53: ='All Districts unrounded'!Z53 -> 2046 | AA53: ='All Districts unrounded'!AA53 -> 2047 | AC53: =Index!$C$16 -> 2022 | AD53: =Index!$C$19 -> 2047 | AE53: Number change | AF53: % change
A54: -
A55: Ashford | B55: =ROUND(ASH!AE$10,-2) -> 135700 | C55: =ROUND(ASH!AF$10,-2) -> 137700 | D55: =ROUND(ASH!AG$10,-2) -> 139500 | E55: =ROUND(ASH!AH$10,-2) -> 141000 | F55: =ROUND(ASH!AI$10,-2) -> 142200 | G55: =ROUND(ASH!AJ$10,-2) -> 143400 | H55: =ROUND(ASH!AK$10,-2) -> 144600 | I55: =ROUND(ASH!AL$10,-2) -> 145700 | J55: =ROUND(ASH!AM$10,-2) -> 146900 | K55: =ROUND(ASH!AN$10,-2) -> 148000 | L55: =ROUND(ASH!AO$10,-2) -> 149100 | M55: =ROUND(ASH!AP$10,-2) -> 150200 | N55: =ROUND(ASH!AQ$10,-2) -> 151200 | O55: =ROUND(ASH!AR$10,-2) -> 152200 | P55: =ROUND(ASH!AS$10,-2) -> 153100 | Q55: =ROUND(ASH!AT$10,-2) -> 154100 | R55: =ROUND(ASH!AU$10,-2) -> 155000 | S55: =ROUND(ASH!AV$10,-2) -> 155900 | T55: =ROUND(ASH!AW$10,-2) -> 156800 | U55: =ROUND(ASH!AX$10,-2) -> 157700 | V55: =ROUND(ASH!AY$10,-2) -> 158600 | W55: =ROUND(ASH!AZ$10,-2) -> 159500 | X55: =ROUND(ASH!BA$10,-2) -> 160400 | Y55: =ROUND(ASH!BB$10,-2) -> 161300 | Z55: =ROUND(ASH!BC$10,-2) -> 162100 | AA55: =ROUND(ASH!BD$10,-2) -> 162900 | AC55: =INDEX($B55:$AA55,Index!$B$16) -> 135700 | AD55: =INDEX($B55:$AA55,Index!$B$19) -> 162900 | AE55: =ROUND('All Districts unrounded'!AE55,-2) -> 27100 | AF55: ='All Districts unrounded'!AF55 -> 0.2000016428
A56: Canterbury | B56: =ROUND(CAN!AE$10,-2) -> 158300 | C56: =ROUND(CAN!AF$10,-2) -> 161300 | D56: =ROUND(CAN!AG$10,-2) -> 164000 | E56: =ROUND(CAN!AH$10,-2) -> 165200 | F56: =ROUND(CAN!AI$10,-2) -> 166000 | G56: =ROUND(CAN!AJ$10,-2) -> 166700 | H56: =ROUND(CAN!AK$10,-2) -> 167500 | I56: =ROUND(CAN!AL$10,-2) -> 168400 | J56: =ROUND(CAN!AM$10,-2) -> 169300 | K56: =ROUND(CAN!AN$10,-2) -> 170100 | L56: =ROUND(CAN!AO$10,-2) -> 170700 | M56: =ROUND(CAN!AP$10,-2) -> 171200 | N56: =ROUND(CAN!AQ$10,-2) -> 171700 | O56: =ROUND(CAN!AR$10,-2) -> 172300 | P56: =ROUND(CAN!AS$10,-2) -> 172900 | Q56: =ROUND(CAN!AT$10,-2) -> 173400 | R56: =ROUND(CAN!AU$10,-2) -> 173900 | S56: =ROUND(CAN!AV$10,-2) -> 174300 | T56: =ROUND(CAN!AW$10,-2) -> 174700 | U56: =ROUND(CAN!AX$10,-2) -> 175200 | V56: =ROUND(CAN!AY$10,-2) -> 175600 | W56: =ROUND(CAN!AZ$10,-2) -> 176100 | X56: =ROUND(CAN!BA$10,-2) -> 176700 | Y56: =ROUND(CAN!BB$10,-2) -> 177300 | Z56: =ROUND(CAN!BC$10,-2) -> 178000 | AA56: =ROUND(CAN!BD$10,-2) -> 178700 | AC56: =INDEX($B56:$AA56,Index!$B$16) -> 158300 | AD56: =INDEX($B56:$AA56,Index!$B$19) -> 178700 | AE56: =ROUND('All Districts unrounded'!AE56,-2) -> 20400 | AF56: ='All Districts unrounded'!AF56 -> 0.1290326316
A57: Dartford | B57: =ROUND(DAR!AE$10,-2) -> 118800 | C57: =ROUND(DAR!AF$10,-2) -> 121200 | D57: =ROUND(DAR!AG$10,-2) -> 123400 | E57: =ROUND(DAR!AH$10,-2) -> 125200 | F57: =ROUND(DAR!AI$10,-2) -> 126800 | G57: =ROUND(DAR!AJ$10,-2) -> 128200 | H57: =ROUND(DAR!AK$10,-2) -> 129600 | I57: =ROUND(DAR!AL$10,-2) -> 130900 | J57: =ROUND(DAR!AM$10,-2) -> 132200 | K57: =ROUND(DAR!AN$10,-2) -> 133500 | L57: =ROUND(DAR!AO$10,-2) -> 134700 | M57: =ROUND(DAR!AP$10,-2) -> 135900 | N57: =ROUND(DAR!AQ$10,-2) -> 137100 | O57: =ROUND(DAR!AR$10,-2) -> 138200 | P57: =ROUND(DAR!AS$10,-2) -> 139300 | Q57: =ROUND(DAR!AT$10,-2) -> 140300 | R57: =ROUND(DAR!AU$10,-2) -> 141400 | S57: =ROUND(DAR!AV$10,-2) -> 142400 | T57: =ROUND(DAR!AW$10,-2) -> 143400 | U57: =ROUND(DAR!AX$10,-2) -> 144400 | V57: =ROUND(DAR!AY$10,-2) -> 145300 | W57: =ROUND(DAR!AZ$10,-2) -> 146300 | X57: =ROUND(DAR!BA$10,-2) -> 147200 | Y57: =ROUND(DAR!BB$10,-2) -> 148100 | Z57: =ROUND(DAR!BC$10,-2) -> 148900 | AA57: =ROUND(DAR!BD$10,-2) -> 149800 | AC57: =INDEX($B57:$AA57,Index!$B$16) -> 118800 | AD57: =INDEX($B57:$AA57,Index!$B$19) -> 149800 | AE57: =ROUND('All Districts unrounded'!AE57,-2) -> 30900 | AF57: ='All Districts unrounded'!AF57 -> 0.2604981988
A58: Dover | B58: =ROUND(DOV!AE$10,-2) -> 117500 | C58: =ROUND(DOV!AF$10,-2) -> 118600 | D58: =ROUND(DOV!AG$10,-2) -> 119500 | E58: =ROUND(DOV!AH$10,-2) -> 120300 | F58: =ROUND(DOV!AI$10,-2) -> 121000 | G58: =ROUND(DOV!AJ$10,-2) -> 121600 | H58: =ROUND(DOV!AK$10,-2) -> 122300 | I58: =ROUND(DOV!AL$10,-2) -> 122900 | J58: =ROUND(DOV!AM$10,-2) -> 123500 | K58: =ROUND(DOV!AN$10,-2) -> 124100 | L58: =ROUND(DOV!AO$10,-2) -> 124700 | M58: =ROUND(DOV!AP$10,-2) -> 125300 | N58: =ROUND(DOV!AQ$10,-2) -> 125800 | O58: =ROUND(DOV!AR$10,-2) -> 126300 | P58: =ROUND(DOV!AS$10,-2) -> 126800 | Q58: =ROUND(DOV!AT$10,-2) -> 127300 | R58: =ROUND(DOV!AU$10,-2) -> 127900 | S58: =ROUND(DOV!AV$10,-2) -> 128400 | T58: =ROUND(DOV!AW$10,-2) -> 128900 | U58: =ROUND(DOV!AX$10,-2) -> 129400 | V58: =ROUND(DOV!AY$10,-2) -> 129900 | W58: =ROUND(DOV!AZ$10,-2) -> 130400 | X58: =ROUND(DOV!BA$10,-2) -> 130900 | Y58: =ROUND(DOV!BB$10,-2) -> 131400 | Z58: =ROUND(DOV!BC$10,-2) -> 131900 | AA58: =ROUND(DOV!BD$10,-2) -> 132400 | AC58: =INDEX($B58:$AA58,Index!$B$16) -> 117500 | AD58: =INDEX($B58:$AA58,Index!$B$19) -> 132400 | AE58: =ROUND('All Districts unrounded'!AE58,-2) -> 14900 | AF58: ='All Districts unrounded'!AF58 -> 0.1265212427
A59: Folkestone & Hythe | B59: =ROUND('F&H'!AE$10,-2) -> 110400 | C59: =ROUND('F&H'!AF$10,-2) -> 111300 | D59: =ROUND('F&H'!AG$10,-2) -> 112100 | E59: =ROUND('F&H'!AH$10,-2) -> 112800 | F59: =ROUND('F&H'!AI$10,-2) -> 113400 | G59: =ROUND('F&H'!AJ$10,-2) -> 113900 | H59: =ROUND('F&H'!AK$10,-2) -> 114500 | I59: =ROUND('F&H'!AL$10,-2) -> 115100 | J59: =ROUND('F&H'!AM$10,-2) -> 115700 | K59: =ROUND('F&H'!AN$10,-2) -> 116300 | L59: =ROUND('F&H'!AO$10,-2) -> 116900 | M59: =ROUND('F&H'!AP$10,-2) -> 117500 | N59: =ROUND('F&H'!AQ$10,-2) -> 118100 | O59: =ROUND('F&H'!AR$10,-2) -> 118700 | P59: =ROUND('F&H'!AS$10,-2) -> 119200 | Q59: =ROUND('F&H'!AT$10,-2) -> 119800 | R59: =ROUND('F&H'!AU$10,-2) -> 120300 | S59: =ROUND('F&H'!AV$10,-2) -> 120900 | T59: =ROUND('F&H'!AW$10,-2) -> 121500 | U59: =ROUND('F&H'!AX$10,-2) -> 122000 | V59: =ROUND('F&H'!AY$10,-2) -> 122600 | W59: =ROUND('F&H'!AZ$10,-2) -> 123100 | X59: =ROUND('F&H'!BA$10,-2) -> 123700 | Y59: =ROUND('F&H'!BB$10,-2) -> 124300 | Z59: =ROUND('F&H'!BC$10,-2) -> 124800 | AA59: =ROUND('F&H'!BD$10,-2) -> 125400 | AC59: =INDEX($B59:$AA59,Index!$B$16) -> 110400 | AD59: =INDEX($B59:$AA59,Index!$B$19) -> 125400 | AE59: =ROUND('All Districts unrounded'!AE59,-2) -> 15000 | AF59: ='All Districts unrounded'!AF59 -> 0.1363046867
A60: Gravesham | B60: =ROUND(GRA!AE$10,-2) -> 106900 | C60: =ROUND(GRA!AF$10,-2) -> 107700 | D60: =ROUND(GRA!AG$10,-2) -> 108300 | E60: =ROUND(GRA!AH$10,-2) -> 108500 | F60: =ROUND(GRA!AI$10,-2) -> 108700 | G60: =ROUND(GRA!AJ$10,-2) -> 108900 | H60: =ROUND(GRA!AK$10,-2) -> 109100 | I60: =ROUND(GRA!AL$10,-2) -> 109400 | J60: =ROUND(GRA!AM$10,-2) -> 109700 | K60: =ROUND(GRA!AN$10,-2) -> 109900 | L60: =ROUND(GRA!AO$10,-2) -> 110300 | M60: =ROUND(GRA!AP$10,-2) -> 110600 | N60: =ROUND(GRA!AQ$10,-2) -> 110900 | O60: =ROUND(GRA!AR$10,-2) -> 111200 | P60: =ROUND(GRA!AS$10,-2) -> 111500 | Q60: =ROUND(GRA!AT$10,-2) -> 111800 | R60: =ROUND(GRA!AU$10,-2) -> 112200 | S60: =ROUND(GRA!AV$10,-2) -> 112500 | T60: =ROUND(GRA!AW$10,-2) -> 112900 | U60: =ROUND(GRA!AX$10,-2) -> 113300 | V60: =ROUND(GRA!AY$10,-2) -> 113700 | W60: =ROUND(GRA!AZ$10,-2) -> 114100 | X60: =ROUND(GRA!BA$10,-2) -> 114500 | Y60: =ROUND(GRA!BB$10,-2) -> 114900 | Z60: =ROUND(GRA!BC$10,-2) -> 115300 | AA60: =ROUND(GRA!BD$10,-2) -> 115600 | AC60: =INDEX($B60:$AA60,Index!$B$16) -> 106900 | AD60: =INDEX($B60:$AA60,Index!$B$19) -> 115600 | AE60: =ROUND('All Districts unrounded'!AE60,-2) -> 8800 | AF60: ='All Districts unrounded'!AF60 -> 0.08212849256
A61: Maidstone | B61: =ROUND(MAI!AE$10,-2) -> 180600 | C61: =ROUND(MAI!AF$10,-2) -> 184300 | D61: =ROUND(MAI!AG$10,-2) -> 187600 | E61: =ROUND(MAI!AH$10,-2) -> 190100 | F61: =ROUND(MAI!AI$10,-2) -> 192300 | G61: =ROUND(MAI!AJ$10,-2) -> 194500 | H61: =ROUND(MAI!AK$10,-2) -> 196600 | I61: =ROUND(MAI!AL$10,-2) -> 198700 | J61: =ROUND(MAI!AM$10,-2) -> 200800 | K61: =ROUND(MAI!AN$10,-2) -> 202800 | L61: =ROUND(MAI!AO$10,-2) -> 204700 | M61: =ROUND(MAI!AP$10,-2) -> 206600 | N61: =ROUND(MAI!AQ$10,-2) -> 208400 | O61: =ROUND(MAI!AR$10,-2) -> 210100 | P61: =ROUND(MAI!AS$10,-2) -> 211800 | Q61: =ROUND(MAI!AT$10,-2) -> 213400 | R61: =ROUND(MAI!AU$10,-2) -> 215000 | S61: =ROUND(MAI!AV$10,-2) -> 216500 | T61: =ROUND(MAI!AW$10,-2) -> 218000 | U61: =ROUND(MAI!AX$10,-2) -> 219500 | V61: =ROUND(MAI!AY$10,-2) -> 221000 | W61: =ROUND(MAI!AZ$10,-2) -> 222500 | X61: =ROUND(MAI!BA$10,-2) -> 224000 | Y61: =ROUND(MAI!BB$10,-2) -> 225400 | Z61: =ROUND(MAI!BC$10,-2) -> 226700 | AA61: =ROUND(MAI!BD$10,-2) -> 228100 | AC61: =INDEX($B61:$AA61,Index!$B$16) -> 180600 | AD61: =INDEX($B61:$AA61,Index!$B$19) -> 228100 | AE61: =ROUND('All Districts unrounded'!AE61,-2) -> 47500 | AF61: ='All Districts unrounded'!AF61 -> 0.2629913385
A62: Medway | B62: =ROUND(MED!AE$10,-2) -> 282600 | C62: =ROUND(MED!AF$10,-2) -> 285300 | D62: =ROUND(MED!AG$10,-2) -> 287600 | E62: =ROUND(MED!AH$10,-2) -> 288900 | F62: =ROUND(MED!AI$10,-2) -> 289800 | G62: =ROUND(MED!AJ$10,-2) -> 290700 | H62: =ROUND(MED!AK$10,-2) -> 291700 | I62: =ROUND(MED!AL$10,-2) -> 292700 | J62: =ROUND(MED!AM$10,-2) -> 293700 | K62: =ROUND(MED!AN$10,-2) -> 294600 | L62: =ROUND(MED!AO$10,-2) -> 295600 | M62: =ROUND(MED!AP$10,-2) -> 296600 | N62: =ROUND(MED!AQ$10,-2) -> 297500 | O62: =ROUND(MED!AR$10,-2) -> 298400 | P62: =ROUND(MED!AS$10,-2) -> 299300 | Q62: =ROUND(MED!AT$10,-2) -> 300200 | R62: =ROUND(MED!AU$10,-2) -> 301100 | S62: =ROUND(MED!AV$10,-2) -> 302000 | T62: =ROUND(MED!AW$10,-2) -> 303000 | U62: =ROUND(MED!AX$10,-2) -> 303900 | V62: =ROUND(MED!AY$10,-2) -> 304900 | W62: =ROUND(MED!AZ$10,-2) -> 305900 | X62: =ROUND(MED!BA$10,-2) -> 306800 | Y62: =ROUND(MED!BB$10,-2) -> 307800 | Z62: =ROUND(MED!BC$10,-2) -> 308800 | AA62: =ROUND(MED!BD$10,-2) -> 309700 | AC62: =INDEX($B62:$AA62,Index!$B$16) -> 282600 | AD62: =INDEX($B62:$AA62,Index!$B$19) -> 309700 | AE62: =ROUND('All Districts unrounded'!AE62,-2) -> 27100 | AF62: ='All Districts unrounded'!AF62 -> 0.09573171103
A63: Sevenoaks | B63: =ROUND(SEV!AE$10,-2) -> 121200 | C63: =ROUND(SEV!AF$10,-2) -> 121800 | D63: =ROUND(SEV!AG$10,-2) -> 122400 | E63: =ROUND(SEV!AH$10,-2) -> 122900 | F63: =ROUND(SEV!AI$10,-2) -> 123300 | G63: =ROUND(SEV!AJ$10,-2) -> 123700 | H63: =ROUND(SEV!AK$10,-2) -> 124200 | I63: =ROUND(SEV!AL$10,-2) -> 124700 | J63: =ROUND(SEV!AM$10,-2) -> 125200 | K63: =ROUND(SEV!AN$10,-2) -> 125700 | L63: =ROUND(SEV!AO$10,-2) -> 126300 | M63: =ROUND(SEV!AP$10,-2) -> 126900 | N63: =ROUND(SEV!AQ$10,-2) -> 127400 | O63: =ROUND(SEV!AR$10,-2) -> 128000 | P63: =ROUND(SEV!AS$10,-2) -> 128600 | Q63: =ROUND(SEV!AT$10,-2) -> 129200 | R63: =ROUND(SEV!AU$10,-2) -> 129800 | S63: =ROUND(SEV!AV$10,-2) -> 130400 | T63: =ROUND(SEV!AW$10,-2) -> 131000 | U63: =ROUND(SEV!AX$10,-2) -> 131700 | V63: =ROUND(SEV!AY$10,-2) -> 132400 | W63: =ROUND(SEV!AZ$10,-2) -> 133000 | X63: =ROUND(SEV!BA$10,-2) -> 133700 | Y63: =ROUND(SEV!BB$10,-2) -> 134400 | Z63: =ROUND(SEV!BC$10,-2) -> 135000 | AA63: =ROUND(SEV!BD$10,-2) -> 135700 | AC63: =INDEX($B63:$AA63,Index!$B$16) -> 121200 | AD63: =INDEX($B63:$AA63,Index!$B$19) -> 135700 | AE63: =ROUND('All Districts unrounded'!AE63,-2) -> 14500 | AF63: ='All Districts unrounded'!AF63 -> 0.1198092067
A64: Swale | B64: =ROUND(SWA!AE$10,-2) -> 154600 | C64: =ROUND(SWA!AF$10,-2) -> 156500 | D64: =ROUND(SWA!AG$10,-2) -> 158300 | E64: =ROUND(SWA!AH$10,-2) -> 159700 | F64: =ROUND(SWA!AI$10,-2) -> 161100 | G64: =ROUND(SWA!AJ$10,-2) -> 162400 | H64: =ROUND(SWA!AK$10,-2) -> 163700 | I64: =ROUND(SWA!AL$10,-2) -> 164900 | J64: =ROUND(SWA!AM$10,-2) -> 166100 | K64: =ROUND(SWA!AN$10,-2) -> 167300 | L64: =ROUND(SWA!AO$10,-2) -> 168500 | M64: =ROUND(SWA!AP$10,-2) -> 169600 | N64: =ROUND(SWA!AQ$10,-2) -> 170700 | O64: =ROUND(SWA!AR$10,-2) -> 171700 | P64: =ROUND(SWA!AS$10,-2) -> 172800 | Q64: =ROUND(SWA!AT$10,-2) -> 173800 | R64: =ROUND(SWA!AU$10,-2) -> 174800 | S64: =ROUND(SWA!AV$10,-2) -> 175800 | T64: =ROUND(SWA!AW$10,-2) -> 176800 | U64: =ROUND(SWA!AX$10,-2) -> 177700 | V64: =ROUND(SWA!AY$10,-2) -> 178700 | W64: =ROUND(SWA!AZ$10,-2) -> 179700 | X64: =ROUND(SWA!BA$10,-2) -> 180600 | Y64: =ROUND(SWA!BB$10,-2) -> 181600 | Z64: =ROUND(SWA!BC$10,-2) -> 182500 | AA64: =ROUND(SWA!BD$10,-2) -> 183300 | AC64: =INDEX($B64:$AA64,Index!$B$16) -> 154600 | AD64: =INDEX($B64:$AA64,Index!$B$19) -> 183300 | AE64: =ROUND('All Districts unrounded'!AE64,-2) -> 28700 | AF64: ='All Districts unrounded'!AF64 -> 0.1859255424
A65: Thanet | B65: =ROUND(THA!AE$10,-2) -> 140700 | C65: =ROUND(THA!AF$10,-2) -> 141300 | D65: =ROUND(THA!AG$10,-2) -> 141900 | E65: =ROUND(THA!AH$10,-2) -> 142200 | F65: =ROUND(THA!AI$10,-2) -> 142400 | G65: =ROUND(THA!AJ$10,-2) -> 142700 | H65: =ROUND(THA!AK$10,-2) -> 142900 | I65: =ROUND(THA!AL$10,-2) -> 143200 | J65: =ROUND(THA!AM$10,-2) -> 143500 | K65: =ROUND(THA!AN$10,-2) -> 143900 | L65: =ROUND(THA!AO$10,-2) -> 144200 | M65: =ROUND(THA!AP$10,-2) -> 144500 | N65: =ROUND(THA!AQ$10,-2) -> 144800 | O65: =ROUND(THA!AR$10,-2) -> 145200 | P65: =ROUND(THA!AS$10,-2) -> 145500 | Q65: =ROUND(THA!AT$10,-2) -> 145800 | R65: =ROUND(THA!AU$10,-2) -> 146100 | S65: =ROUND(THA!AV$10,-2) -> 146500 | T65: =ROUND(THA!AW$10,-2) -> 146800 | U65: =ROUND(THA!AX$10,-2) -> 147200 | V65: =ROUND(THA!AY$10,-2) -> 147600 | W65: =ROUND(THA!AZ$10,-2) -> 148000 | X65: =ROUND(THA!BA$10,-2) -> 148400 | Y65: =ROUND(THA!BB$10,-2) -> 148800 | Z65: =ROUND(THA!BC$10,-2) -> 149200 | AA65: =ROUND(THA!BD$10,-2) -> 149700 | AC65: =INDEX($B65:$AA65,Index!$B$16) -> 140700 | AD65: =INDEX($B65:$AA65,Index!$B$19) -> 149700 | AE65: =ROUND('All Districts unrounded'!AE65,-2) -> 9000 | AF65: ='All Districts unrounded'!AF65 -> 0.06378546093
A66: Tonbridge & Malling | B66: =ROUND(TON!AE$10,-2) -> 133700 | C66: =ROUND(TON!AF$10,-2) -> 134800 | D66: =ROUND(TON!AG$10,-2) -> 135900 | E66: =ROUND(TON!AH$10,-2) -> 136900 | F66: =ROUND(TON!AI$10,-2) -> 137800 | G66: =ROUND(TON!AJ$10,-2) -> 138600 | H66: =ROUND(TON!AK$10,-2) -> 139500 | I66: =ROUND(TON!AL$10,-2) -> 140400 | J66: =ROUND(TON!AM$10,-2) -> 141200 | K66: =ROUND(TON!AN$10,-2) -> 142100 | L66: =ROUND(TON!AO$10,-2) -> 142900 | M66: =ROUND(TON!AP$10,-2) -> 143800 | N66: =ROUND(TON!AQ$10,-2) -> 144600 | O66: =ROUND(TON!AR$10,-2) -> 145400 | P66: =ROUND(TON!AS$10,-2) -> 146100 | Q66: =ROUND(TON!AT$10,-2) -> 146900 | R66: =ROUND(TON!AU$10,-2) -> 147700 | S66: =ROUND(TON!AV$10,-2) -> 148500 | T66: =ROUND(TON!AW$10,-2) -> 149300 | U66: =ROUND(TON!AX$10,-2) -> 150100 | V66: =ROUND(TON!AY$10,-2) -> 151000 | W66: =ROUND(TON!AZ$10,-2) -> 151800 | X66: =ROUND(TON!BA$10,-2) -> 152700 | Y66: =ROUND(TON!BB$10,-2) -> 153500 | Z66: =ROUND(TON!BC$10,-2) -> 154200 | AA66: =ROUND(TON!BD$10,-2) -> 155000 | AC66: =INDEX($B66:$AA66,Index!$B$16) -> 133700 | AD66: =INDEX($B66:$AA66,Index!$B$19) -> 155000 | AE66: =ROUND('All Districts unrounded'!AE66,-2) -> 21300 | AF66: ='All Districts unrounded'!AF66 -> 0.1597054181
A67: Tunbridge Wells | B67: =ROUND(TUN!AE$10,-2) -> 116200 | C67: =ROUND(TUN!AF$10,-2) -> 117000 | D67: =ROUND(TUN!AG$10,-2) -> 117900 | E67: =ROUND(TUN!AH$10,-2) -> 118500 | F67: =ROUND(TUN!AI$10,-2) -> 118900 | G67: =ROUND(TUN!AJ$10,-2) -> 119400 | H67: =ROUND(TUN!AK$10,-2) -> 119900 | I67: =ROUND(TUN!AL$10,-2) -> 120400 | J67: =ROUND(TUN!AM$10,-2) -> 121000 | K67: =ROUND(TUN!AN$10,-2) -> 121600 | L67: =ROUND(TUN!AO$10,-2) -> 122200 | M67: =ROUND(TUN!AP$10,-2) -> 122800 | N67: =ROUND(TUN!AQ$10,-2) -> 123400 | O67: =ROUND(TUN!AR$10,-2) -> 124000 | P67: =ROUND(TUN!AS$10,-2) -> 124600 | Q67: =ROUND(TUN!AT$10,-2) -> 125300 | R67: =ROUND(TUN!AU$10,-2) -> 125900 | S67: =ROUND(TUN!AV$10,-2) -> 126600 | T67: =ROUND(TUN!AW$10,-2) -> 127200 | U67: =ROUND(TUN!AX$10,-2) -> 127900 | V67: =ROUND(TUN!AY$10,-2) -> 128600 | W67: =ROUND(TUN!AZ$10,-2) -> 129300 | X67: =ROUND(TUN!BA$10,-2) -> 130000 | Y67: =ROUND(TUN!BB$10,-2) -> 130600 | Z67: =ROUND(TUN!BC$10,-2) -> 131300 | AA67: =ROUND(TUN!BD$10,-2) -> 132000 | AC67: =INDEX($B67:$AA67,Index!$B$16) -> 116200 | AD67: =INDEX($B67:$AA67,Index!$B$19) -> 132000 | AE67: =ROUND('All Districts unrounded'!AE67,-2) -> 15800 | AF67: ='All Districts unrounded'!AF67 -> 0.1360369443
A68: Kent | B68: =ROUND(Kent!AE$10,-2) -> 1594500 | C68: =ROUND(Kent!AF$10,-2) -> 1613400 | D68: =ROUND(Kent!AG$10,-2) -> 1630900 | E68: =ROUND(Kent!AH$10,-2) -> 1643300 | F68: =ROUND(Kent!AI$10,-2) -> 1653900 | G68: =ROUND(Kent!AJ$10,-2) -> 1664100 | H68: =ROUND(Kent!AK$10,-2) -> 1674400 | I68: =ROUND(Kent!AL$10,-2) -> 1684900 | J68: =ROUND(Kent!AM$10,-2) -> 1695200 | K68: =ROUND(Kent!AN$10,-2) -> 1705300 | L68: =ROUND(Kent!AO$10,-2) -> 1715100 | M68: =ROUND(Kent!AP$10,-2) -> 1724800 | N68: =ROUND(Kent!AQ$10,-2) -> 1734100 | O68: =ROUND(Kent!AR$10,-2) -> 1743400 | P68: =ROUND(Kent!AS$10,-2) -> 1752300 | Q68: =ROUND(Kent!AT$10,-2) -> 1761100 | R68: =ROUND(Kent!AU$10,-2) -> 1769800 | S68: =ROUND(Kent!AV$10,-2) -> 1778600 | T68: =ROUND(Kent!AW$10,-2) -> 1787400 | U68: =ROUND(Kent!AX$10,-2) -> 1796100 | V68: =ROUND(Kent!AY$10,-2) -> 1805000 | W68: =ROUND(Kent!AZ$10,-2) -> 1813900 | X68: =ROUND(Kent!BA$10,-2) -> 1822700 | Y68: =ROUND(Kent!BB$10,-2) -> 1831400 | Z68: =ROUND(Kent!BC$10,-2) -> 1840100 | AA68: =ROUND(Kent!BD$10,-2) -> 1848600 | AC68: =INDEX($B68:$AA68,Index!$B$16) -> 1594500 | AD68: =INDEX($B68:$AA68,Index!$B$19) -> 1848600 | AE68: =ROUND('All Districts unrounded'!AE68,-2) -> 254100 | AF68: ='All Districts unrounded'!AF68 -> 0.1593553601
A69: Kent + Medway | B69: =ROUND('Kent+Med'!AE$10,-2) -> 1877100 | C69: =ROUND('Kent+Med'!AF$10,-2) -> 1898700 | D69: =ROUND('Kent+Med'!AG$10,-2) -> 1918500 | E69: =ROUND('Kent+Med'!AH$10,-2) -> 1932200 | F69: =ROUND('Kent+Med'!AI$10,-2) -> 1943700 | G69: =ROUND('Kent+Med'!AJ$10,-2) -> 1954800 | H69: =ROUND('Kent+Med'!AK$10,-2) -> 1966100 | I69: =ROUND('Kent+Med'!AL$10,-2) -> 1977500 | J69: =ROUND('Kent+Med'!AM$10,-2) -> 1988900 | K69: =ROUND('Kent+Med'!AN$10,-2) -> 1999900 | L69: =ROUND('Kent+Med'!AO$10,-2) -> 2010800 | M69: =ROUND('Kent+Med'!AP$10,-2) -> 2021400 | N69: =ROUND('Kent+Med'!AQ$10,-2) -> 2031600 | O69: =ROUND('Kent+Med'!AR$10,-2) -> 2041800 | P69: =ROUND('Kent+Med'!AS$10,-2) -> 2051600 | Q69: =ROUND('Kent+Med'!AT$10,-2) -> 2061300 | R69: =ROUND('Kent+Med'!AU$10,-2) -> 2070900 | S69: =ROUND('Kent+Med'!AV$10,-2) -> 2080600 | T69: =ROUND('Kent+Med'!AW$10,-2) -> 2090400 | U69: =ROUND('Kent+Med'!AX$10,-2) -> 2100100 | V69: =ROUND('Kent+Med'!AY$10,-2) -> 2109900 | W69: =ROUND('Kent+Med'!AZ$10,-2) -> 2119800 | X69: =ROUND('Kent+Med'!BA$10,-2) -> 2129600 | Y69: =ROUND('Kent+Med'!BB$10,-2) -> 2139300 | Z69: =ROUND('Kent+Med'!BC$10,-2) -> 2148800 | AA69: =ROUND('Kent+Med'!BD$10,-2) -> 2158300 | AC69: =INDEX($B69:$AA69,Index!$B$16) -> 1877100 | AD69: =INDEX($B69:$AA69,Index!$B$19) -> 2158300 | AE69: =ROUND('All Districts unrounded'!AE69,-2) -> 281100 | AF69: ='All Districts unrounded'!AF69 -> 0.1497753254
A70: South East Region | B70: =ROUND('South East'!AE$10,-2) -> 9387300 | C70: =ROUND('South East'!AF$10,-2) -> 9503000 | D70: =ROUND('South East'!AG$10,-2) -> 9602700 | E70: =ROUND('South East'!AH$10,-2) -> 9659800 | F70: =ROUND('South East'!AI$10,-2) -> 9704800 | G70: =ROUND('South East'!AJ$10,-2) -> 9748000 | H70: =ROUND('South East'!AK$10,-2) -> 9793900 | I70: =ROUND('South East'!AL$10,-2) -> 9842900 | J70: =ROUND('South East'!AM$10,-2) -> 9892000 | K70: =ROUND('South East'!AN$10,-2) -> 9939800 | L70: =ROUND('South East'!AO$10,-2) -> 9986800 | M70: =ROUND('South East'!AP$10,-2) -> 10033000 | N70: =ROUND('South East'!AQ$10,-2) -> 10078200 | O70: =ROUND('South East'!AR$10,-2) -> 10122400 | P70: =ROUND('South East'!AS$10,-2) -> 10166000 | Q70: =ROUND('South East'!AT$10,-2) -> 10209200 | R70: =ROUND('South East'!AU$10,-2) -> 10252100 | S70: =ROUND('South East'!AV$10,-2) -> 10294900 | T70: =ROUND('South East'!AW$10,-2) -> 10337700 | U70: =ROUND('South East'!AX$10,-2) -> 10380500 | V70: =ROUND('South East'!AY$10,-2) -> 10423700 | W70: =ROUND('South East'!AZ$10,-2) -> 10467000 | X70: =ROUND('South East'!BA$10,-2) -> 10509900 | Y70: =ROUND('South East'!BB$10,-2) -> 10552500 | Z70: =ROUND('South East'!BC$10,-2) -> 10594600 | AA70: =ROUND('South East'!BD$10,-2) -> 10636000 | AC70: =INDEX($B70:$AA70,Index!$B$16) -> 9387300 | AD70: =INDEX($B70:$AA70,Index!$B$19) -> 10636000 | AE70: =ROUND('All Districts unrounded'!AE70,-2) -> 1248800 | AF70: ='All Districts unrounded'!AF70 -> 0.1330262212
A71: England | B71: =ROUND(England!AE$10,-2) -> 57112500 | C71: =ROUND(England!AF$10,-2) -> 57910200 | D71: =ROUND(England!AG$10,-2) -> 58568200 | E71: =ROUND(England!AH$10,-2) -> 58893300 | F71: =ROUND(England!AI$10,-2) -> 59137100 | G71: =ROUND(England!AJ$10,-2) -> 59372800 | H71: =ROUND(England!AK$10,-2) -> 59630400 | I71: =ROUND(England!AL$10,-2) -> 59913800 | J71: =ROUND(England!AM$10,-2) -> 60202300 | K71: =ROUND(England!AN$10,-2) -> 60484300 | L71: =ROUND(England!AO$10,-2) -> 60759900 | M71: =ROUND(England!AP$10,-2) -> 61029300 | N71: =ROUND(England!AQ$10,-2) -> 61293300 | O71: =ROUND(England!AR$10,-2) -> 61552300 | P71: =ROUND(England!AS$10,-2) -> 61806500 | Q71: =ROUND(England!AT$10,-2) -> 62056600 | R71: =ROUND(England!AU$10,-2) -> 62303300 | S71: =ROUND(England!AV$10,-2) -> 62546800 | T71: =ROUND(England!AW$10,-2) -> 62787700 | U71: =ROUND(England!AX$10,-2) -> 63025900 | V71: =ROUND(England!AY$10,-2) -> 63261600 | W71: =ROUND(England!AZ$10,-2) -> 63494500 | X71: =ROUND(England!BA$10,-2) -> 63724000 | Y71: =ROUND(England!BB$10,-2) -> 63949900 | Z71: =ROUND(England!BC$10,-2) -> 64171700 | AA71: =ROUND(England!BD$10,-2) -> 64388900 | AC71: =INDEX($B71:$AA71,Index!$B$16) -> 57112500 | AD71: =INDEX($B71:$AA71,Index!$B$19) -> 64388900 | AE71: =ROUND('All Districts unrounded'!AE71,-2) -> 7276300 | AF71: ='All Districts unrounded'!AF71 -> 0.1274036262

Sheet All Districts unrounded (hidden)
A1: All data on this sheet is rounded from each of the district worksheets | AB1: Insert column here before extending the table
A8: Selected Ages: | C8: =Index!$C$4&" : "&Index!$C$7 -> 0 : 90
A10: Males | AC10: Change
B11: 2022 | C11: 2023 | D11: 2024 | E11: 2025 | F11: 2026 | G11: 2027 | H11: 2028 | I11: 2029 | J11: 2030 | K11: 2031 | L11: 2032 | M11: 2033 | N11: 2034 | O11: 2035 | P11: 2036 | Q11: 2037 | R11: 2038 | S11: 2039 | T11: 2040 | U11: 2041 | V11: 2042 | W11: 2043 | X11: 2044 | Y11: 2045 | Z11: 2046 | AA11: 2047 | AC11: =Index!$C$16 -> 2022 | AD11: =Index!$C$19 -> 2047 | AE11: Number change | AF11: % change
A12: -
A13: Ashford | B13: =ASH!AE$4 -> 66086 | C13: =ASH!AF$4 -> 67054.372 | D13: =ASH!AG$4 -> 67928.962 | E13: =ASH!AH$4 -> 68606.538 | F13: =ASH!AI$4 -> 69215.796 | G13: =ASH!AJ$4 -> 69790.641 | H13: =ASH!AK$4 -> 70348.669 | I13: =ASH!AL$4 -> 70912.95 | J13: =ASH!AM$4 -> 71467.727 | K13: =ASH!AN$4 -> 72002.333 | L13: =ASH!AO$4 -> 72518.927 | M13: =ASH!AP$4 -> 73026.765 | N13: =ASH!AQ$4 -> 73517.955 | O13: =ASH!AR$4 -> 73990.502 | P13: =ASH!AS$4 -> 74457.922 | Q13: =ASH!AT$4 -> 74908.909 | R13: =ASH!AU$4 -> 75366.86 | S13: =ASH!AV$4 -> 75823.013 | T13: =ASH!AW$4 -> 76274.088 | U13: =ASH!AX$4 -> 76720.265 | V13: =ASH!AY$4 -> 77171.639 | W13: =ASH!AZ$4 -> 77619.242 | X13: =ASH!BA$4 -> 78057.549 | Y13: =ASH!BB$4 -> 78484.717 | Z13: =ASH!BC$4 -> 78901.455 | AA13: =ASH!BD$4 -> 79309.279 | AC13: =INDEX($B13:$AA13,Index!$B$16) -> 66086 | AD13: =INDEX($B13:$AA13,Index!$B$19) -> 79309.279 | AE13: =AD13-AC13 -> 13223.279 | AF13: =IF(AC13<0,0,AE13/AC13) -> 0.2000919862
A14: Canterbury | B14: =CAN!AE$4 -> 76230 | C14: =CAN!AF$4 -> 77691.016 | D14: =CAN!AG$4 -> 78954.269 | E14: =CAN!AH$4 -> 79529.031 | F14: =CAN!AI$4 -> 79863.541 | G14: =CAN!AJ$4 -> 80179.529 | H14: =CAN!AK$4 -> 80526.377 | I14: =CAN!AL$4 -> 80918.029 | J14: =CAN!AM$4 -> 81322.958 | K14: =CAN!AN$4 -> 81684.55 | L14: =CAN!AO$4 -> 81972.114 | M14: =CAN!AP$4 -> 82191.171 | N14: =CAN!AQ$4 -> 82400.509 | O14: =CAN!AR$4 -> 82643.26 | P14: =CAN!AS$4 -> 82878.751 | Q14: =CAN!AT$4 -> 83096.739 | R14: =CAN!AU$4 -> 83295.238 | S14: =CAN!AV$4 -> 83489.764 | T14: =CAN!AW$4 -> 83674.047 | U14: =CAN!AX$4 -> 83895.286 | V14: =CAN!AY$4 -> 84087.949 | W14: =CAN!AZ$4 -> 84309.143 | X14: =CAN!BA$4 -> 84569.697 | Y14: =CAN!BB$4 -> 84871.071 | Z14: =CAN!BC$4 -> 85201.866 | AA14: =CAN!BD$4 -> 85537.015 | AC14: =INDEX($B14:$AA14,Index!$B$16) -> 76230 | AD14: =INDEX($B14:$AA14,Index!$B$19) -> 85537.015 | AE14: =AD14-AC14 -> 9307.015 | AF14: =IF(AC14<0,0,AE14/AC14) -> 0.122091237
A15: Dartford | B15: =DAR!AE$4 -> 58107 | C15: =DAR!AF$4 -> 59296.327 | D15: =DAR!AG$4 -> 60366.388 | E15: =DAR!AH$4 -> 61216.273 | F15: =DAR!AI$4 -> 61986.313 | G15: =DAR!AJ$4 -> 62707.456 | H15: =DAR!AK$4 -> 63396.882 | I15: =DAR!AL$4 -> 64060.216 | J15: =DAR!AM$4 -> 64694.667 | K15: =DAR!AN$4 -> 65310.494 | L15: =DAR!AO$4 -> 65921.717 | M15: =DAR!AP$4 -> 66525.01 | N15: =DAR!AQ$4 -> 67113.266 | O15: =DAR!AR$4 -> 67680.81 | P15: =DAR!AS$4 -> 68225.557 | Q15: =DAR!AT$4 -> 68761.609 | R15: =DAR!AU$4 -> 69294.142 | S15: =DAR!AV$4 -> 69819.976 | T15: =DAR!AW$4 -> 70347.349 | U15: =DAR!AX$4 -> 70856.98 | V15: =DAR!AY$4 -> 71369.425 | W15: =DAR!AZ$4 -> 71872.743 | X15: =DAR!BA$4 -> 72358.873 | Y15: =DAR!BB$4 -> 72828.444 | Z15: =DAR!BC$4 -> 73281.639 | AA15: =DAR!BD$4 -> 73721.947 | AC15: =INDEX($B15:$AA15,Index!$B$16) -> 58107 | AD15: =INDEX($B15:$AA15,Index!$B$19) -> 73721.947 | AE15: 15614.947 | AF15: 0.2687274683
A16: Dover | B16: =DOV!AE$4 -> 57248 | C16: =DOV!AF$4 -> 57784.675 | D16: =DOV!AG$4 -> 58284.819 | E16: =DOV!AH$4 -> 58683.08 | F16: =DOV!AI$4 -> 59034.267 | G16: =DOV!AJ$4 -> 59371.705 | H16: =DOV!AK$4 -> 59695.458 | I16: =DOV!AL$4 -> 60019.147 | J16: =DOV!AM$4 -> 60337.256 | K16: =DOV!AN$4 -> 60643.424 | L16: =DOV!AO$4 -> 60927.808 | M16: =DOV!AP$4 -> 61210.511 | N16: =DOV!AQ$4 -> 61486.964 | O16: =DOV!AR$4 -> 61749.949 | P16: =DOV!AS$4 -> 62008.572 | Q16: =DOV!AT$4 -> 62260.641 | R16: =DOV!AU$4 -> 62520.907 | S16: =DOV!AV$4 -> 62774.214 | T16: =DOV!AW$4 -> 63034.188 | U16: =DOV!AX$4 -> 63297.458 | V16: =DOV!AY$4 -> 63566.268 | W16: =DOV!AZ$4 -> 63833.722 | X16: =DOV!BA$4 -> 64098.55 | Y16: =DOV!BB$4 -> 64361.595 | Z16: =DOV!BC$4 -> 64621.92 | AA16: =DOV!BD$4 -> 64880.371 | AC16: =INDEX($B16:$AA16,Index!$B$16) -> 57248 | AD16: =INDEX($B16:$AA16,Index!$B$19) -> 64880.371 | AE16: 7632.371 | AF16: 0.1333211815
A17: Folkestone & Hythe | B17: ='F&H'!AE$4 -> 53781 | C17: ='F&H'!AF$4 -> 54232.194 | D17: ='F&H'!AG$4 -> 54659.859 | E17: ='F&H'!AH$4 -> 54961.385 | F17: ='F&H'!AI$4 -> 55234.043 | G17: ='F&H'!AJ$4 -> 55505.111 | H17: ='F&H'!AK$4 -> 55769.316 | I17: ='F&H'!AL$4 -> 56048.728 | J17: ='F&H'!AM$4 -> 56327.675 | K17: ='F&H'!AN$4 -> 56608.29 | L17: ='F&H'!AO$4 -> 56879.875 | M17: ='F&H'!AP$4 -> 57160.661 | N17: ='F&H'!AQ$4 -> 57435.495 | O17: ='F&H'!AR$4 -> 57700.166 | P17: ='F&H'!AS$4 -> 57957.865 | Q17: ='F&H'!AT$4 -> 58222.747 | R17: ='F&H'!AU$4 -> 58483.424 | S17: ='F&H'!AV$4 -> 58748.79 | T17: ='F&H'!AW$4 -> 59016.803 | U17: ='F&H'!AX$4 -> 59285.441 | V17: ='F&H'!AY$4 -> 59561.163 | W17: ='F&H'!AZ$4 -> 59838.489 | X17: ='F&H'!BA$4 -> 60116.65 | Y17: ='F&H'!BB$4 -> 60394.531 | Z17: ='F&H'!BC$4 -> 60673.307 | AA17: ='F&H'!BD$4 -> 60953.257 | AC17: =INDEX($B17:$AA17,Index!$B$16) -> 53781 | AD17: =INDEX($B17:$AA17,Index!$B$19) -> 60953.257 | AE17: =AD17-AC17 -> 7172.257 | AF17: =IF(AC17<0,0,AE17/AC17) -> 0.1333604247
A18: Gravesham | B18: =GRA!AE$4 -> 52092 | C18: =GRA!AF$4 -> 52478.652 | D18: =GRA!AG$4 -> 52798.345 | E18: =GRA!AH$4 -> 52902.6 | F18: =GRA!AI$4 -> 52969.77 | G18: =GRA!AJ$4 -> 53046.061 | H18: =GRA!AK$4 -> 53150.746 | I18: =GRA!AL$4 -> 53270.514 | J18: =GRA!AM$4 -> 53397.771 | K18: =GRA!AN$4 -> 53529.847 | L18: =GRA!AO$4 -> 53672.679 | M18: =GRA!AP$4 -> 53818.397 | N18: =GRA!AQ$4 -> 53974.826 | O18: =GRA!AR$4 -> 54128.517 | P18: =GRA!AS$4 -> 54292.868 | Q18: =GRA!AT$4 -> 54455.32 | R18: =GRA!AU$4 -> 54631.081 | S18: =GRA!AV$4 -> 54808.047 | T18: =GRA!AW$4 -> 55001.082 | U18: =GRA!AX$4 -> 55188.691 | V18: =GRA!AY$4 -> 55390.338 | W18: =GRA!AZ$4 -> 55593.508 | X18: =GRA!BA$4 -> 55795.495 | Y18: =GRA!BB$4 -> 55996.635 | Z18: =GRA!BC$4 -> 56196.404 | AA18: =GRA!BD$4 -> 56394.779 | AC18: =INDEX($B18:$AA18,Index!$B$16) -> 52092 | AD18: =INDEX($B18:$AA18,Index!$B$19) -> 56394.779 | AE18: 4302.779 | AF18: 0.08259961222
A19: Maidstone | B19: =MAI!AE$4 -> 89057 | C19: =MAI!AF$4 -> 90853.792 | D19: =MAI!AG$4 -> 92427.952 | E19: =MAI!AH$4 -> 93588.842 | F19: =MAI!AI$4 -> 94612.103 | G19: =MAI!AJ$4 -> 95600.062 | H19: =MAI!AK$4 -> 96576.032 | I19: =MAI!AL$4 -> 97580.389 | J19: =MAI!AM$4 -> 98553.362 | K19: =MAI!AN$4 -> 99474.665 | L19: =MAI!AO$4 -> 100379.085 | M19: =MAI!AP$4 -> 101266.172 | N19: =MAI!AQ$4 -> 102119.007 | O19: =MAI!AR$4 -> 102948.683 | P19: =MAI!AS$4 -> 103743.026 | Q19: =MAI!AT$4 -> 104508.588 | R19: =MAI!AU$4 -> 105259.454 | S19: =MAI!AV$4 -> 106005.373 | T19: =MAI!AW$4 -> 106751.433 | U19: =MAI!AX$4 -> 107480.408 | V19: =MAI!AY$4 -> 108218.696 | W19: =MAI!AZ$4 -> 108948.407 | X19: =MAI!BA$4 -> 109661.284 | Y19: =MAI!BB$4 -> 110357.525 | Z19: =MAI!BC$4 -> 111036.811 | AA19: =MAI!BD$4 -> 111702.508 | AC19: =INDEX($B19:$AA19,Index!$B$16) -> 89057 | AD19: =INDEX($B19:$AA19,Index!$B$19) -> 111702.508 | AE19: 22645.508 | AF19: 0.254281056
A20: Medway | B20: =MED!AE$4 -> 138487 | C20: =MED!AF$4 -> 139859.15 | D20: =MED!AG$4 -> 141018.828 | E20: =MED!AH$4 -> 141614.84 | F20: =MED!AI$4 -> 142025.522 | G20: =MED!AJ$4 -> 142441.04 | H20: =MED!AK$4 -> 142857.948 | I20: =MED!AL$4 -> 143316.132 | J20: =MED!AM$4 -> 143782.937 | K20: =MED!AN$4 -> 144231.15 | L20: =MED!AO$4 -> 144690.619 | M20: =MED!AP$4 -> 145138.31 | N20: =MED!AQ$4 -> 145578.887 | O20: =MED!AR$4 -> 146020.24 | P20: =MED!AS$4 -> 146457.745 | Q20: =MED!AT$4 -> 146900.845 | R20: =MED!AU$4 -> 147355.283 | S20: =MED!AV$4 -> 147824.517 | T20: =MED!AW$4 -> 148308.201 | U20: =MED!AX$4 -> 148790.436 | V20: =MED!AY$4 -> 149294.827 | W20: =MED!AZ$4 -> 149805.997 | X20: =MED!BA$4 -> 150317.079 | Y20: =MED!BB$4 -> 150828.907 | Z20: =MED!BC$4 -> 151340.2 | AA20: =MED!BD$4 -> 151848.669 | AC20: =INDEX($B20:$AA20,Index!$B$16) -> 138487 | AD20: =INDEX($B20:$AA20,Index!$B$19) -> 151848.669 | AE20: 13361.669 | AF20: 0.09648320059
A21: Sevenoaks | B21: =SEV!AE$4 -> 58385 | C21: =SEV!AF$4 -> 58645.027 | D21: =SEV!AG$4 -> 58928.231 | E21: =SEV!AH$4 -> 59135.535 | F21: =SEV!AI$4 -> 59289.524 | G21: =SEV!AJ$4 -> 59427.947 | H21: =SEV!AK$4 -> 59602.793 | I21: =SEV!AL$4 -> 59799.159 | J21: =SEV!AM$4 -> 60018.335 | K21: =SEV!AN$4 -> 60251.585 | L21: =SEV!AO$4 -> 60503.966 | M21: =SEV!AP$4 -> 60786.76 | N21: =SEV!AQ$4 -> 61052.62 | O21: =SEV!AR$4 -> 61322.687 | P21: =SEV!AS$4 -> 61582.711 | Q21: =SEV!AT$4 -> 61864.065 | R21: =SEV!AU$4 -> 62150.849 | S21: =SEV!AV$4 -> 62454.619 | T21: =SEV!AW$4 -> 62762.76 | U21: =SEV!AX$4 -> 63074.704 | V21: =SEV!AY$4 -> 63407.496 | W21: =SEV!AZ$4 -> 63745.979 | X21: =SEV!BA$4 -> 64082.261 | Y21: =SEV!BB$4 -> 64415.871 | Z21: =SEV!BC$4 -> 64748.963 | AA21: =SEV!BD$4 -> 65081.274 | AC21: =INDEX($B21:$AA21,Index!$B$16) -> 58385 | AD21: =INDEX($B21:$AA21,Index!$B$19) -> 65081.274 | AE21: 6696.274 | AF21: 0.1146916845
A22: Swale | B22: =SWA!AE$4 -> 76727 | C22: =SWA!AF$4 -> 77645.793 | D22: =SWA!AG$4 -> 78508.104 | E22: =SWA!AH$4 -> 79182 | F22: =SWA!AI$4 -> 79790.764 | G22: =SWA!AJ$4 -> 80396.541 | H22: =SWA!AK$4 -> 80991.436 | I22: =SWA!AL$4 -> 81577.682 | J22: =SWA!AM$4 -> 82150.571 | K22: =SWA!AN$4 -> 82705.499 | L22: =SWA!AO$4 -> 83246.709 | M22: =SWA!AP$4 -> 83776.185 | N22: =SWA!AQ$4 -> 84304.458 | O22: =SWA!AR$4 -> 84810.208 | P22: =SWA!AS$4 -> 85307.219 | Q22: =SWA!AT$4 -> 85792.829 | R22: =SWA!AU$4 -> 86273.927 | S22: =SWA!AV$4 -> 86759.731 | T22: =SWA!AW$4 -> 87245.79 | U22: =SWA!AX$4 -> 87725.926 | V22: =SWA!AY$4 -> 88209.396 | W22: =SWA!AZ$4 -> 88686.677 | X22: =SWA!BA$4 -> 89154.878 | Y22: =SWA!BB$4 -> 89611.545 | Z22: =SWA!BC$4 -> 90058.595 | AA22: =SWA!BD$4 -> 90495.03 | AC22: =INDEX($B22:$AA22,Index!$B$16) -> 76727 | AD22: =INDEX($B22:$AA22,Index!$B$19) -> 90495.03 | AE22: 13768.03 | AF22: 0.1794417871
A23: Thanet | B23: =THA!AE$4 -> 67692 | C23: =THA!AF$4 -> 68006.929 | D23: =THA!AG$4 -> 68281.267 | E23: =THA!AH$4 -> 68417.782 | F23: =THA!AI$4 -> 68520.791 | G23: =THA!AJ$4 -> 68618.808 | H23: =THA!AK$4 -> 68731.299 | I23: =THA!AL$4 -> 68870.083 | J23: =THA!AM$4 -> 69009.098 | K23: =THA!AN$4 -> 69146.485 | L23: =THA!AO$4 -> 69288.105 | M23: =THA!AP$4 -> 69437.947 | N23: =THA!AQ$4 -> 69585.18 | O23: =THA!AR$4 -> 69728.061 | P23: =THA!AS$4 -> 69873.111 | Q23: =THA!AT$4 -> 70022.76 | R23: =THA!AU$4 -> 70175.23 | S23: =THA!AV$4 -> 70334.701 | T23: =THA!AW$4 -> 70507.933 | U23: =THA!AX$4 -> 70689.223 | V23: =THA!AY$4 -> 70885.476 | W23: =THA!AZ$4 -> 71091.312 | X23: =THA!BA$4 -> 71302.24 | Y23: =THA!BB$4 -> 71517.971 | Z23: =THA!BC$4 -> 71738.675 | AA23: =THA!BD$4 -> 71962.13 | AC23: =INDEX($B23:$AA23,Index!$B$16) -> 67692 | AD23: =INDEX($B23:$AA23,Index!$B$19) -> 71962.13 | AE23: 4270.13 | AF23: 0.06308175264
A24: Tonbridge & Malling | B24: =TON!AE$4 -> 64926 | C24: =TON!AF$4 -> 65450.125 | D24: =TON!AG$4 -> 65983.692 | E24: =TON!AH$4 -> 66413.315 | F24: =TON!AI$4 -> 66780.618 | G24: =TON!AJ$4 -> 67147.027 | H24: =TON!AK$4 -> 67534.878 | I24: =TON!AL$4 -> 67912.941 | J24: =TON!AM$4 -> 68303.603 | K24: =TON!AN$4 -> 68676.249 | L24: =TON!AO$4 -> 69046.638 | M24: =TON!AP$4 -> 69437.578 | N24: =TON!AQ$4 -> 69815.946 | O24: =TON!AR$4 -> 70187.52 | P24: =TON!AS$4 -> 70543.753 | Q24: =TON!AT$4 -> 70895.835 | R24: =TON!AU$4 -> 71259.265 | S24: =TON!AV$4 -> 71636.271 | T24: =TON!AW$4 -> 72029.192 | U24: =TON!AX$4 -> 72420.688 | V24: =TON!AY$4 -> 72829.556 | W24: =TON!AZ$4 -> 73237.566 | X24: =TON!BA$4 -> 73641.369 | Y24: =TON!BB$4 -> 74037.267 | Z24: =TON!BC$4 -> 74429.98 | AA24: =TON!BD$4 -> 74814.528 | AC24: =INDEX($B24:$AA24,Index!$B$16) -> 64926 | AD24: =INDEX($B24:$AA24,Index!$B$19) -> 74814.528 | AE24: 9888.528 | AF24: 0.1523045929
A25: Tunbridge Wells | B25: =TUN!AE$4 -> 56534 | C25: =TUN!AF$4 -> 56921.314 | D25: =TUN!AG$4 -> 57322.018 | E25: =TUN!AH$4 -> 57555.195 | F25: =TUN!AI$4 -> 57727.34 | G25: =TUN!AJ$4 -> 57918.992 | H25: =TUN!AK$4 -> 58127.174 | I25: =TUN!AL$4 -> 58364.021 | J25: =TUN!AM$4 -> 58588.528 | K25: =TUN!AN$4 -> 58849.767 | L25: =TUN!AO$4 -> 59131.849 | M25: =TUN!AP$4 -> 59430.386 | N25: =TUN!AQ$4 -> 59712.089 | O25: =TUN!AR$4 -> 60004.382 | P25: =TUN!AS$4 -> 60298.038 | Q25: =TUN!AT$4 -> 60602.613 | R25: =TUN!AU$4 -> 60913.526 | S25: =TUN!AV$4 -> 61243.836 | T25: =TUN!AW$4 -> 61584.41 | U25: =TUN!AX$4 -> 61913.675 | V25: =TUN!AY$4 -> 62272.784 | W25: =TUN!AZ$4 -> 62634.579 | X25: =TUN!BA$4 -> 62990.623 | Y25: =TUN!BB$4 -> 63341.134 | Z25: =TUN!BC$4 -> 63686.388 | AA25: =TUN!BD$4 -> 64029.675 | AC25: =INDEX($B25:$AA25,Index!$B$16) -> 56534 | AD25: =INDEX($B25:$AA25,Index!$B$19) -> 64029.675 | AE25: 7495.675 | AF25: 0.1325870273
A26: Kent | B26: =Kent!AE$4 -> 776865 | C26: =Kent!AF$4 -> 786060.216 | D26: =Kent!AG$4 -> 794443.906 | E26: =Kent!AH$4 -> 800191.576 | F26: =Kent!AI$4 -> 805024.87 | G26: =Kent!AJ$4 -> 809709.88 | H26: =Kent!AK$4 -> 814451.06 | I26: =Kent!AL$4 -> 819333.859 | J26: =Kent!AM$4 -> 824171.551 | K26: =Kent!AN$4 -> 828883.188 | L26: =Kent!AO$4 -> 833489.472 | M26: =Kent!AP$4 -> 838067.543 | N26: =Kent!AQ$4 -> 842518.315 | O26: =Kent!AR$4 -> 846894.745 | P26: =Kent!AS$4 -> 851169.393 | Q26: =Kent!AT$4 -> 855392.655 | R26: =Kent!AU$4 -> 859623.903 | S26: =Kent!AV$4 -> 863898.335 | T26: =Kent!AW$4 -> 868229.075 | U26: =Kent!AX$4 -> 872548.745 | V26: =Kent!AY$4 -> 876970.186 | W26: =Kent!AZ$4 -> 881411.367 | X26: =Kent!BA$4 -> 885829.469 | Y26: =Kent!BB$4 -> 890218.306 | Z26: =Kent!BC$4 -> 894576.003 | AA26: =Kent!BD$4 -> 898881.793 | AC26: =INDEX($B26:$AA26,Index!$B$16) -> 776865 | AD26: =INDEX($B26:$AA26,Index!$B$19) -> 898881.793 | AE26: 122016.793 | AF26: 0.1570630586
A27: Kent + Medway | B27: ='Kent+Med'!AE4 -> 915352 | C27: ='Kent+Med'!AF4 -> 925919.366 | D27: ='Kent+Med'!AG4 -> 935462.734 | E27: ='Kent+Med'!AH4 -> 941806.416 | F27: ='Kent+Med'!AI4 -> 947050.392 | G27: ='Kent+Med'!AJ4 -> 952150.92 | H27: ='Kent+Med'!AK4 -> 957309.008 | I27: ='Kent+Med'!AL4 -> 962649.991 | J27: ='Kent+Med'!AM4 -> 967954.488 | K27: ='Kent+Med'!AN4 -> 973114.338 | L27: ='Kent+Med'!AO4 -> 978180.091 | M27: ='Kent+Med'!AP4 -> 983205.853 | N27: ='Kent+Med'!AQ4 -> 988097.202 | O27: ='Kent+Med'!AR4 -> 992914.985 | P27: ='Kent+Med'!AS4 -> 997627.138 | Q27: ='Kent+Med'!AT4 -> 1002293.5 | R27: ='Kent+Med'!AU4 -> 1006979.186 | S27: ='Kent+Med'!AV4 -> 1011722.852 | T27: ='Kent+Med'!AW4 -> 1016537.276 | U27: ='Kent+Med'!AX4 -> 1021339.181 | V27: ='Kent+Med'!AY4 -> 1026265.013 | W27: ='Kent+Med'!AZ4 -> 1031217.364 | X27: ='Kent+Med'!BA4 -> 1036146.548 | Y27: ='Kent+Med'!BB4 -> 1041047.213 | Z27: ='Kent+Med'!BC4 -> 1045916.203 | AA27: ='Kent+Med'!BD4 -> 1050730.462 | AC27: =INDEX($B27:$AA27,Index!$B$16) -> 915352 | AD27: =INDEX($B27:$AA27,Index!$B$19) -> 1050730.462 | AE27: 135378.462 | AF27: 0.1478977071
A28: South East Region | B28: ='South East'!AE4 -> 4593507 | C28: ='South East'!AF4 -> 4651983.34 | D28: ='South East'!AG4 -> 4701773.54 | E28: ='South East'!AH4 -> 4729781.481 | F28: ='South East'!AI4 -> 4751579.713 | G28: ='South East'!AJ4 -> 4772416.694 | H28: ='South East'!AK4 -> 4794699.108 | I28: ='South East'!AL4 -> 4818671.395 | J28: ='South East'!AM4 -> 4842698.175 | K28: ='South East'!AN4 -> 4866126.212 | L28: ='South East'!AO4 -> 4889140.192 | M28: ='South East'!AP4 -> 4911894.376 | N28: ='South East'!AQ4 -> 4934237.454 | O28: ='South East'!AR4 -> 4956206.623 | P28: ='South East'!AS4 -> 4977949.111 | Q28: ='South East'!AT4 -> 4999570.347 | R28: ='South East'!AU4 -> 5021121.295 | S28: ='South East'!AV4 -> 5042847.498 | T28: ='South East'!AW4 -> 5064692.115 | U28: ='South East'!AX4 -> 5086688.627 | V28: ='South East'!AY4 -> 5108986.534 | W28: ='South East'!AZ4 -> 5131401.613 | X28: ='South East'!BA4 -> 5153715.732 | Y28: ='South East'!BB4 -> 5175921.401 | Z28: ='South East'!BC4 -> 5197970.903 | AA28: ='South East'!BD4 -> 5219772.292 | AC28: =INDEX($B28:$AA28,Index!$B$16) -> 4593507 | AD28: =INDEX($B28:$AA28,Index!$B$19) -> 5219772.292 | AE28: =AD28-AC28 -> 626265.292 | AF28: =IF(AC28<0,0,AE28/AC28) -> 0.1363370714
A29: England | B29: =England!AE4 -> 27986032 | C29: =England!AF4 -> 28402661.04 | D29: =England!AG4 -> 28744822.98 | E29: =England!AH4 -> 28912766.99 | F29: =England!AI4 -> 29037418.99 | G29: =England!AJ4 -> 29157236.02 | H29: =England!AK4 -> 29288245.96 | I29: =England!AL4 -> 29432604.98 | J29: =England!AM4 -> 29579583.99 | K29: =England!AN4 -> 29723117.95 | L29: =England!AO4 -> 29863332.03 | M29: =England!AP4 -> 30000549.99 | N29: =England!AQ4 -> 30135189.05 | O29: =England!AR4 -> 30267530.06 | P29: =England!AS4 -> 30397848.99 | Q29: =England!AT4 -> 30526551.1 | R29: =England!AU4 -> 30654009.02 | S29: =England!AV4 -> 30780511 | T29: =England!AW4 -> 30906237.04 | U29: =England!AX4 -> 31031251.03 | V29: =England!AY4 -> 31155533 | W29: =England!AZ4 -> 31278917.06 | X29: =England!BA4 -> 31401093 | Y29: =England!BB4 -> 31521771.04 | Z29: =England!BC4 -> 31640736.99 | AA29: =England!BD4 -> 31757728.96 | AC29: =INDEX($B29:$AA29,Index!$B$16) -> 27986032 | AD29: =INDEX($B29:$AA29,Index!$B$19) -> 31757728.96 | AE29: =AD29-AC29 -> 3771696.956 | AF29: =IF(AC29<0,0,AE29/AC29) -> 0.134770694
A31: Females
B32: 2022 | C32: 2023 | D32: 2024 | E32: 2025 | F32: 2026 | G32: 2027 | H32: 2028 | I32: 2029 | J32: 2030 | K32: 2031 | L32: 2032 | M32: 2033 | N32: 2034 | O32: 2035 | P32: 2036 | Q32: 2037 | R32: 2038 | S32: 2039 | T32: 2040 | U32: 2041 | V32: 2042 | W32: 2043 | X32: 2044 | Y32: 2045 | Z32: 2046 | AA32: 2047 | AC32: =Index!$C$16 -> 2022 | AD32: =Index!$C$19 -> 2047 | AE32: Number change | AF32: % change
A33: -
A34: Ashford | B34: =ASH!AE$5 -> 69655 | C34: =ASH!AF$5 -> 70652.877 | D34: =ASH!AG$5 -> 71600.314 | E34: =ASH!AH$5 -> 72350.021 | F34: =ASH!AI$5 -> 73011.332 | G34: =ASH!AJ$5 -> 73627.835 | H34: =ASH!AK$5 -> 74236.648 | I34: =ASH!AL$5 -> 74835.926 | J34: =ASH!AM$5 -> 75434.905 | K34: =ASH!AN$5 -> 76013.519 | L34: =ASH!AO$5 -> 76574.626 | M34: =ASH!AP$5 -> 77135.927 | N34: =ASH!AQ$5 -> 77665.066 | O34: =ASH!AR$5 -> 78180.576 | P34: =ASH!AS$5 -> 78670.025 | Q34: =ASH!AT$5 -> 79149.95 | R34: =ASH!AU$5 -> 79634.041 | S34: =ASH!AV$5 -> 80097.807 | T34: =ASH!AW$5 -> 80563.044 | U34: =ASH!AX$5 -> 81012.713 | V34: =ASH!AY$5 -> 81468.036 | W34: =ASH!AZ$5 -> 81918.119 | X34: =ASH!BA$5 -> 82353.298 | Y34: =ASH!BB$5 -> 82773.535 | Z34: =ASH!BC$5 -> 83181.582 | AA34: =ASH!BD$5 -> 83580.144 | AC34: =INDEX($B34:$AA34,Index!$B$16) -> 69655 | AD34: =INDEX($B34:$AA34,Index!$B$19) -> 83580.144 | AE34: =AD34-AC34 -> 13925.144 | AF34: =IF(AC34<0,0,AE34/AC34) -> 0.1999159285
A35: Canterbury | B35: =CAN!AE$5 -> 82052 | C35: =CAN!AF$5 -> 83560.818 | D35: =CAN!AG$5 -> 85034.362 | E35: =CAN!AH$5 -> 85708.013 | F35: =CAN!AI$5 -> 86108.338 | G35: =CAN!AJ$5 -> 86546.894 | H35: =CAN!AK$5 -> 87021.009 | I35: =CAN!AL$5 -> 87522.703 | J35: =CAN!AM$5 -> 87984.206 | K35: =CAN!AN$5 -> 88409.853 | L35: =CAN!AO$5 -> 88757.398 | M35: =CAN!AP$5 -> 89042.587 | N35: =CAN!AQ$5 -> 89334.887 | O35: =CAN!AR$5 -> 89680.288 | P35: =CAN!AS$5 -> 90021.631 | Q35: =CAN!AT$5 -> 90307.934 | R35: =CAN!AU$5 -> 90557.576 | S35: =CAN!AV$5 -> 90804.273 | T35: =CAN!AW$5 -> 91038.797 | U35: =CAN!AX$5 -> 91313.651 | V35: =CAN!AY$5 -> 91541.899 | W35: =CAN!AZ$5 -> 91798.968 | X35: =CAN!BA$5 -> 92088.189 | Y35: =CAN!BB$5 -> 92438.779 | Z35: =CAN!BC$5 -> 92807.417 | AA35: =CAN!BD$5 -> 93168.528 | AC35: =INDEX($B35:$AA35,Index!$B$16) -> 82052 | AD35: =INDEX($B35:$AA35,Index!$B$19) -> 93168.528 | AE35: =AD35-AC35 -> 11116.528 | AF35: =IF(AC35<0,0,AE35/AC35) -> 0.1354814995
A36: Dartford | B36: =DAR!AE$5 -> 60703 | C36: =DAR!AF$5 -> 61936.947 | D36: =DAR!AG$5 -> 63078.517 | E36: =DAR!AH$5 -> 63978.872 | F36: =DAR!AI$5 -> 64776.747 | G36: =DAR!AJ$5 -> 65507.31 | H36: =DAR!AK$5 -> 66209.383 | I36: =DAR!AL$5 -> 66888.101 | J36: =DAR!AM$5 -> 67549.639 | K36: =DAR!AN$5 -> 68189.124 | L36: =DAR!AO$5 -> 68795.819 | M36: =DAR!AP$5 -> 69382.602 | N36: =DAR!AQ$5 -> 69951.14 | O36: =DAR!AR$5 -> 70510.408 | P36: =DAR!AS$5 -> 71032.559 | Q36: =DAR!AT$5 -> 71549.982 | R36: =DAR!AU$5 -> 72061.992 | S36: =DAR!AV$5 -> 72556.401 | T36: =DAR!AW$5 -> 73039.75 | U36: =DAR!AX$5 -> 73505.17 | V36: =DAR!AY$5 -> 73972.102 | W36: =DAR!AZ$5 -> 74424.583 | X36: =DAR!BA$5 -> 74855.29 | Y36: =DAR!BB$5 -> 75266.431 | Z36: =DAR!BC$5 -> 75660.206 | AA36: =DAR!BD$5 -> 76037.844 | AC36: =INDEX($B36:$AA36,Index!$B$16) -> 60703 | AD36: =INDEX($B36:$AA36,Index!$B$19) -> 76037.844 | AE36: 15334.844 | AF36: 0.2526208589
A37: Dover | B37: =DOV!AE$5 -> 60298 | C37: =DOV!AF$5 -> 60782.916 | D37: =DOV!AG$5 -> 61243.455 | E37: =DOV!AH$5 -> 61624.661 | F37: =DOV!AI$5 -> 61952.895 | G37: =DOV!AJ$5 -> 62263.125 | H37: =DOV!AK$5 -> 62581.152 | I37: =DOV!AL$5 -> 62898.478 | J37: =DOV!AM$5 -> 63205.227 | K37: =DOV!AN$5 -> 63497.534 | L37: =DOV!AO$5 -> 63792.054 | M37: =DOV!AP$5 -> 64074.68 | N37: =DOV!AQ$5 -> 64342.77 | O37: =DOV!AR$5 -> 64596.946 | P37: =DOV!AS$5 -> 64840.798 | Q37: =DOV!AT$5 -> 65088.422 | R37: =DOV!AU$5 -> 65335.313 | S37: =DOV!AV$5 -> 65583.949 | T37: =DOV!AW$5 -> 65834.568 | U37: =DOV!AX$5 -> 66071.664 | V37: =DOV!AY$5 -> 66325.345 | W37: =DOV!AZ$5 -> 66576.86 | X37: =DOV!BA$5 -> 66824.341 | Y37: =DOV!BB$5 -> 67065.368 | Z37: =DOV!BC$5 -> 67302.93 | AA37: =DOV!BD$5 -> 67537.695 | AC37: =INDEX($B37:$AA37,Index!$B$16) -> 60298 | AD37: =INDEX($B37:$AA37,Index!$B$19) -> 67537.695 | AE37: 7239.695 | AF37: 0.1200652592
A38: Folkestone & Hythe | B38: ='F&H'!AE$5 -> 56575 | C38: ='F&H'!AF$5 -> 57028.036 | D38: ='F&H'!AG$5 -> 57459.867 | E38: ='F&H'!AH$5 -> 57817.735 | F38: ='F&H'!AI$5 -> 58139.464 | G38: ='F&H'!AJ$5 -> 58444.872 | H38: ='F&H'!AK$5 -> 58759.125 | I38: ='F&H'!AL$5 -> 59078.932 | J38: ='F&H'!AM$5 -> 59396.811 | K38: ='F&H'!AN$5 -> 59721.477 | L38: ='F&H'!AO$5 -> 60041.492 | M38: ='F&H'!AP$5 -> 60354.057 | N38: ='F&H'!AQ$5 -> 60666.066 | O38: ='F&H'!AR$5 -> 60967.982 | P38: ='F&H'!AS$5 -> 61265.828 | Q38: ='F&H'!AT$5 -> 61555.049 | R38: ='F&H'!AU$5 -> 61850.532 | S38: ='F&H'!AV$5 -> 62143.951 | T38: ='F&H'!AW$5 -> 62439.216 | U38: ='F&H'!AX$5 -> 62726.224 | V38: ='F&H'!AY$5 -> 63018.751 | W38: ='F&H'!AZ$5 -> 63311.283 | X38: ='F&H'!BA$5 -> 63599.706 | Y38: ='F&H'!BB$5 -> 63884.188 | Z38: ='F&H'!BC$5 -> 64166.24 | AA38: ='F&H'!BD$5 -> 64444.783 | AC38: =INDEX($B38:$AA38,Index!$B$16) -> 56575 | AD38: =INDEX($B38:$AA38,Index!$B$19) -> 64444.783 | AE38: =AD38-AC38 -> 7869.783 | AF38: =IF(AC38<0,0,AE38/AC38) -> 0.139103544
A39: Gravesham | B39: =GRA!AE$5 -> 54778 | C39: =GRA!AF$5 -> 55172.958 | D39: =GRA!AG$5 -> 55487.74 | E39: =GRA!AH$5 -> 55631.405 | F39: =GRA!AI$5 -> 55737.73 | G39: =GRA!AJ$5 -> 55855.137 | H39: =GRA!AK$5 -> 55969.244 | I39: =GRA!AL$5 -> 56099.997 | J39: =GRA!AM$5 -> 56256.848 | K39: =GRA!AN$5 -> 56412.887 | L39: =GRA!AO$5 -> 56579.476 | M39: =GRA!AP$5 -> 56735.014 | N39: =GRA!AQ$5 -> 56901.356 | O39: =GRA!AR$5 -> 57069.398 | P39: =GRA!AS$5 -> 57223.427 | Q39: =GRA!AT$5 -> 57391.15 | R39: =GRA!AU$5 -> 57569.541 | S39: =GRA!AV$5 -> 57741.316 | T39: =GRA!AW$5 -> 57921.579 | U39: =GRA!AX$5 -> 58104.386 | V39: =GRA!AY$5 -> 58302.459 | W39: =GRA!AZ$5 -> 58499.116 | X39: =GRA!BA$5 -> 58691.712 | Y39: =GRA!BB$5 -> 58880.165 | Z39: =GRA!BC$5 -> 59066.828 | AA39: =GRA!BD$5 -> 59252.293 | AC39: =INDEX($B39:$AA39,Index!$B$16) -> 54778 | AD39: =INDEX($B39:$AA39,Index!$B$19) -> 59252.293 | AE39: 4474.293 | AF39: 0.08168047391
A40: Maidstone | B40: =MAI!AE$5 -> 91512 | C40: =MAI!AF$5 -> 93407.653 | D40: =MAI!AG$5 -> 95124.549 | E40: =MAI!AH$5 -> 96477.111 | F40: =MAI!AI$5 -> 97698.493 | G40: =MAI!AJ$5 -> 98862.942 | H40: =MAI!AK$5 -> 100004.108 | I40: =MAI!AL$5 -> 101140.582 | J40: =MAI!AM$5 -> 102239.509 | K40: =MAI!AN$5 -> 103301.159 | L40: =MAI!AO$5 -> 104326.986 | M40: =MAI!AP$5 -> 105315.652 | N40: =MAI!AQ$5 -> 106260.981 | O40: =MAI!AR$5 -> 107172.474 | P40: =MAI!AS$5 -> 108034.95 | Q40: =MAI!AT$5 -> 108872.108 | R40: =MAI!AU$5 -> 109691.122 | S40: =MAI!AV$5 -> 110501.524 | T40: =MAI!AW$5 -> 111287.77 | U40: =MAI!AX$5 -> 112054.013 | V40: =MAI!AY$5 -> 112821.435 | W40: =MAI!AZ$5 -> 113572.917 | X40: =MAI!BA$5 -> 114299.243 | Y40: =MAI!BB$5 -> 115001.819 | Z40: =MAI!BC$5 -> 115686.776 | AA40: =MAI!BD$5 -> 116354.575 | AC40: =INDEX($B40:$AA40,Index!$B$16) -> 91512 | AD40: =INDEX($B40:$AA40,Index!$B$19) -> 116354.575 | AE40: 24842.575 | AF40: 0.2714679496
A41: Medway | B41: =MED!AE$5 -> 144156 | C41: =MED!AF$5 -> 145451.478 | D41: =MED!AG$5 -> 146605.002 | E41: =MED!AH$5 -> 147262.316 | F41: =MED!AI$5 -> 147789.665 | G41: =MED!AJ$5 -> 148302.811 | H41: =MED!AK$5 -> 148829.002 | I41: =MED!AL$5 -> 149364.323 | J41: =MED!AM$5 -> 149892.653 | K41: =MED!AN$5 -> 150416.363 | L41: =MED!AO$5 -> 150936.335 | M41: =MED!AP$5 -> 151434.684 | N41: =MED!AQ$5 -> 151911.999 | O41: =MED!AR$5 -> 152374.403 | P41: =MED!AS$5 -> 152824.848 | Q41: =MED!AT$5 -> 153284.592 | R41: =MED!AU$5 -> 153736.031 | S41: =MED!AV$5 -> 154192.549 | T41: =MED!AW$5 -> 154656.763 | U41: =MED!AX$5 -> 155119.06 | V41: =MED!AY$5 -> 155592.2 | W41: =MED!AZ$5 -> 156061.292 | X41: =MED!BA$5 -> 156521.404 | Y41: =MED!BB$5 -> 156974.068 | Z41: =MED!BC$5 -> 157416.656 | AA41: =MED!BD$5 -> 157852.229 | AC41: =INDEX($B41:$AA41,Index!$B$16) -> 144156 | AD41: =INDEX($B41:$AA41,Index!$B$19) -> 157852.229 | AE41: 13696.229 | AF41: 0.09500977413
A42: Sevenoaks | B42: =SEV!AE$5 -> 62788 | C42: =SEV!AF$5 -> 63126.395 | D42: =SEV!AG$5 -> 63468.83 | E42: =SEV!AH$5 -> 63742.426 | F42: =SEV!AI$5 -> 64023.902 | G42: =SEV!AJ$5 -> 64271.611 | H42: =SEV!AK$5 -> 64561.357 | I42: =SEV!AL$5 -> 64857.609 | J42: =SEV!AM$5 -> 65151.884 | K42: =SEV!AN$5 -> 65449.717 | L42: =SEV!AO$5 -> 65776.489 | M42: =SEV!AP$5 -> 66100.808 | N42: =SEV!AQ$5 -> 66393.902 | O42: =SEV!AR$5 -> 66703.794 | P42: =SEV!AS$5 -> 67009.642 | Q42: =SEV!AT$5 -> 67314.26 | R42: =SEV!AU$5 -> 67633.144 | S42: =SEV!AV$5 -> 67964.034 | T42: =SEV!AW$5 -> 68284.481 | U42: =SEV!AX$5 -> 68605.831 | V42: =SEV!AY$5 -> 68946.934 | W42: =SEV!AZ$5 -> 69288.652 | X42: =SEV!BA$5 -> 69625.525 | Y42: =SEV!BB$5 -> 69954.658 | Z42: =SEV!BC$5 -> 70283.264 | AA42: =SEV!BD$5 -> 70609.367 | AC42: =INDEX($B42:$AA42,Index!$B$16) -> 62788 | AD42: =INDEX($B42:$AA42,Index!$B$19) -> 70609.367 | AE42: 7821.367 | AF42: 0.1245678633
A43: Swale | B43: =SWA!AE$5 -> 77871 | C43: =SWA!AF$5 -> 78843.072 | D43: =SWA!AG$5 -> 79765.534 | E43: =SWA!AH$5 -> 80549.344 | F43: =SWA!AI$5 -> 81278.431 | G43: =SWA!AJ$5 -> 81978.992 | H43: =SWA!AK$5 -> 82659.435 | I43: =SWA!AL$5 -> 83318.349 | J43: =SWA!AM$5 -> 83967.91 | K43: =SWA!AN$5 -> 84598.701 | L43: =SWA!AO$5 -> 85210.941 | M43: =SWA!AP$5 -> 85805.771 | N43: =SWA!AQ$5 -> 86376.987 | O43: =SWA!AR$5 -> 86931.447 | P43: =SWA!AS$5 -> 87460.843 | Q43: =SWA!AT$5 -> 87983.162 | R43: =SWA!AU$5 -> 88488.259 | S43: =SWA!AV$5 -> 88997.705 | T43: =SWA!AW$5 -> 89506.548 | U43: =SWA!AX$5 -> 90004.814 | V43: =SWA!AY$5 -> 90505.863 | W43: =SWA!AZ$5 -> 90999.823 | X43: =SWA!BA$5 -> 91482.674 | Y43: =SWA!BB$5 -> 91950.104 | Z43: =SWA!BC$5 -> 92403.897 | AA43: =SWA!BD$5 -> 92846.687 | AC43: =INDEX($B43:$AA43,Index!$B$16) -> 77871 | AD43: =INDEX($B43:$AA43,Index!$B$19) -> 92846.687 | AE43: 14975.687 | AF43: 0.192314045
A44: Thanet | B44: =THA!AE$5 -> 72991 | C44: =THA!AF$5 -> 73321.157 | D44: =THA!AG$5 -> 73622.553 | E44: =THA!AH$5 -> 73785.563 | F44: =THA!AI$5 -> 73913.334 | G44: =THA!AJ$5 -> 74046.761 | H44: =THA!AK$5 -> 74184.014 | I44: =THA!AL$5 -> 74346.519 | J44: =THA!AM$5 -> 74526.558 | K44: =THA!AN$5 -> 74706.928 | L44: =THA!AO$5 -> 74890.863 | M44: =THA!AP$5 -> 75073.486 | N44: =THA!AQ$5 -> 75249.559 | O44: =THA!AR$5 -> 75433.461 | P44: =THA!AS$5 -> 75613.962 | Q44: =THA!AT$5 -> 75788.195 | R44: =THA!AU$5 -> 75966.08 | S44: =THA!AV$5 -> 76143.459 | T44: =THA!AW$5 -> 76327.171 | U44: =THA!AX$5 -> 76512.147 | V44: =THA!AY$5 -> 76704.382 | W44: =THA!AZ$5 -> 76899.785 | X44: =THA!BA$5 -> 77095.678 | Y44: =THA!BB$5 -> 77292.541 | Z44: =THA!BC$5 -> 77491.853 | AA44: =THA!BD$5 -> 77694.4 | AC44: =INDEX($B44:$AA44,Index!$B$16) -> 72991 | AD44: =INDEX($B44:$AA44,Index!$B$19) -> 77694.4 | AE44: 4703.4 | AF44: 0.06443808141
A45: Tonbridge & Malling | B45: =TON!AE$5 -> 68738 | C45: =TON!AF$5 -> 69348.302 | D45: =TON!AG$5 -> 69962.937 | E45: =TON!AH$5 -> 70505.261 | F45: =TON!AI$5 -> 71009.188 | G45: =TON!AJ$5 -> 71486.858 | H45: =TON!AK$5 -> 71976.702 | I45: =TON!AL$5 -> 72470.414 | J45: =TON!AM$5 -> 72939.543 | K45: =TON!AN$5 -> 73400.4 | L45: =TON!AO$5 -> 73851.405 | M45: =TON!AP$5 -> 74318.289 | N45: =TON!AQ$5 -> 74770.519 | O45: =TON!AR$5 -> 75192.841 | P45: =TON!AS$5 -> 75600.565 | Q45: =TON!AT$5 -> 76014.415 | R45: =TON!AU$5 -> 76446.938 | S45: =TON!AV$5 -> 76876.981 | T45: =TON!AW$5 -> 77300.008 | U45: =TON!AX$5 -> 77724.481 | V45: =TON!AY$5 -> 78159.03 | W45: =TON!AZ$5 -> 78589.777 | X45: =TON!BA$5 -> 79010.027 | Y45: =TON!BB$5 -> 79416.433 | Z45: =TON!BC$5 -> 79811.04 | AA45: =TON!BD$5 -> 80196.337 | AC45: =INDEX($B45:$AA45,Index!$B$16) -> 68738 | AD45: =INDEX($B45:$AA45,Index!$B$19) -> 80196.337 | AE45: 11458.337 | AF45: 0.166695816
A46: Tunbridge Wells | B46: =TUN!AE$5 -> 59641 | C46: =TUN!AF$5 -> 60122.031 | D46: =TUN!AG$5 -> 60607.519 | E46: =TUN!AH$5 -> 60944.973 | F46: =TUN!AI$5 -> 61217.817 | G46: =TUN!AJ$5 -> 61475.97 | H46: =TUN!AK$5 -> 61767.54 | I46: =TUN!AL$5 -> 62074.552 | J46: =TUN!AM$5 -> 62391.206 | K46: =TUN!AN$5 -> 62707.949 | L46: =TUN!AO$5 -> 63041.925 | M46: =TUN!AP$5 -> 63384.56 | N46: =TUN!AQ$5 -> 63716.175 | O46: =TUN!AR$5 -> 64030.339 | P46: =TUN!AS$5 -> 64347.012 | Q46: =TUN!AT$5 -> 64661.558 | R46: =TUN!AU$5 -> 64983.863 | S46: =TUN!AV$5 -> 65308.697 | T46: =TUN!AW$5 -> 65635.857 | U46: =TUN!AX$5 -> 65959.331 | V46: =TUN!AY$5 -> 66300.998 | W46: =TUN!AZ$5 -> 66643.12 | X46: =TUN!BA$5 -> 66977.847 | Y46: =TUN!BB$5 -> 67304.73 | Z46: =TUN!BC$5 -> 67627.415 | AA46: =TUN!BD$5 -> 67949.417 | AC46: =INDEX($B46:$AA46,Index!$B$16) -> 59641 | AD46: =INDEX($B46:$AA46,Index!$B$19) -> 67949.417 | AE46: 8308.417 | AF46: 0.1393071377
A47: Kent | B47: =Kent!AE$5 -> 817602 | C47: =Kent!AF$5 -> 827303.162 | D47: =Kent!AG$5 -> 836456.177 | E47: =Kent!AH$5 -> 843115.385 | F47: =Kent!AI$5 -> 848867.671 | G47: =Kent!AJ$5 -> 854368.307 | H47: =Kent!AK$5 -> 859929.717 | I47: =Kent!AL$5 -> 865532.162 | J47: =Kent!AM$5 -> 871044.246 | K47: =Kent!AN$5 -> 876409.248 | L47: =Kent!AO$5 -> 881639.474 | M47: =Kent!AP$5 -> 886723.433 | N47: =Kent!AQ$5 -> 891629.408 | O47: =Kent!AR$5 -> 896469.954 | P47: =Kent!AS$5 -> 901121.242 | Q47: =Kent!AT$5 -> 905676.185 | R47: =Kent!AU$5 -> 910218.401 | S47: =Kent!AV$5 -> 914720.097 | T47: =Kent!AW$5 -> 919178.789 | U47: =Kent!AX$5 -> 923594.425 | V47: =Kent!AY$5 -> 928067.234 | W47: =Kent!AZ$5 -> 932523.003 | X47: =Kent!BA$5 -> 936903.53 | Y47: =Kent!BB$5 -> 941228.751 | Z47: =Kent!BC$5 -> 945489.448 | AA47: =Kent!BD$5 -> 949672.07 | AC47: =INDEX($B47:$AA47,Index!$B$16) -> 817602 | AD47: =INDEX($B47:$AA47,Index!$B$19) -> 949672.07 | AE47: 132070.07 | AF47: 0.1615334478
A48: Kent + Medway | B48: ='Kent+Med'!AE5 -> 961758 | C48: ='Kent+Med'!AF5 -> 972754.64 | D48: ='Kent+Med'!AG5 -> 983061.179 | E48: ='Kent+Med'!AH5 -> 990377.701 | F48: ='Kent+Med'!AI5 -> 996657.336 | G48: ='Kent+Med'!AJ5 -> 1002671.118 | H48: ='Kent+Med'!AK5 -> 1008758.719 | I48: ='Kent+Med'!AL5 -> 1014896.485 | J48: ='Kent+Med'!AM5 -> 1020936.899 | K48: ='Kent+Med'!AN5 -> 1026825.611 | L48: ='Kent+Med'!AO5 -> 1032575.809 | M48: ='Kent+Med'!AP5 -> 1038158.117 | N48: ='Kent+Med'!AQ5 -> 1043541.407 | O48: ='Kent+Med'!AR5 -> 1048844.357 | P48: ='Kent+Med'!AS5 -> 1053946.09 | Q48: ='Kent+Med'!AT5 -> 1058960.777 | R48: ='Kent+Med'!AU5 -> 1063954.432 | S48: ='Kent+Med'!AV5 -> 1068912.646 | T48: ='Kent+Med'!AW5 -> 1073835.552 | U48: ='Kent+Med'!AX5 -> 1078713.485 | V48: ='Kent+Med'!AY5 -> 1083659.434 | W48: ='Kent+Med'!AZ5 -> 1088584.295 | X48: ='Kent+Med'!BA5 -> 1093424.934 | Y48: ='Kent+Med'!BB5 -> 1098202.819 | Z48: ='Kent+Med'!BC5 -> 1102906.104 | AA48: ='Kent+Med'!BD5 -> 1107524.299 | AC48: =INDEX($B48:$AA48,Index!$B$16) -> 961758 | AD48: =INDEX($B48:$AA48,Index!$B$19) -> 1107524.299 | AE48: 145766.299 | AF48: 0.1515623462
A49: South East Region | B49: ='South East'!AE5 -> 4793779 | C49: ='South East'!AF5 -> 4850971.648 | D49: ='South East'!AG5 -> 4900970.714 | E49: ='South East'!AH5 -> 4930006.126 | F49: ='South East'!AI5 -> 4953188.533 | G49: ='South East'!AJ5 -> 4975546.648 | H49: ='South East'!AK5 -> 4999165.051 | I49: ='South East'!AL5 -> 5024224.117 | J49: ='South East'!AM5 -> 5049332.253 | K49: ='South East'!AN5 -> 5073691.139 | L49: ='South East'!AO5 -> 5097699.788 | M49: ='South East'!AP5 -> 5121152.82 | N49: ='South East'!AQ5 -> 5143927.875 | O49: ='South East'!AR5 -> 5166224.821 | P49: ='South East'!AS5 -> 5188051.792 | Q49: ='South East'!AT5 -> 5209679.41 | R49: ='South East'!AU5 -> 5230986.09 | S49: ='South East'!AV5 -> 5252091.668 | T49: ='South East'!AW5 -> 5273029.081 | U49: ='South East'!AX5 -> 5293808.778 | V49: ='South East'!AY5 -> 5314753.935 | W49: ='South East'!AZ5 -> 5335626.966 | X49: ='South East'!BA5 -> 5356225.829 | Y49: ='South East'!BB5 -> 5376546.555 | Z49: ='South East'!BC5 -> 5396585.648 | AA49: ='South East'!BD5 -> 5416268.892 | AC49: =INDEX($B49:$AA49,Index!$B$16) -> 4793779 | AD49: =INDEX($B49:$AA49,Index!$B$19) -> 5416268.892 | AE49: =AD49-AC49 -> 622489.892 | AF49: =IF(AC49<0,0,AE49/AC49) -> 0.12985369
A50: England | B50: =England!AE5 -> 29126510 | C50: =England!AF5 -> 29507550.03 | D50: =England!AG5 -> 29823396.01 | E50: =England!AH5 -> 29980510.02 | F50: =England!AI5 -> 30099632.99 | G50: =England!AJ5 -> 30215557.98 | H50: =England!AK5 -> 30342184.99 | I50: =England!AL5 -> 30481149.92 | J50: =England!AM5 -> 30622672.03 | K50: =England!AN5 -> 30761182.99 | L50: =England!AO5 -> 30896522.06 | M50: =England!AP5 -> 31028773.95 | N50: =England!AQ5 -> 31158142.05 | O50: =England!AR5 -> 31284726.96 | P50: =England!AS5 -> 31408618.04 | Q50: =England!AT5 -> 31530058.02 | R50: =England!AU5 -> 31649247.98 | S50: =England!AV5 -> 31766336.9 | T50: =England!AW5 -> 31881416.93 | U50: =England!AX5 -> 31994613.03 | V50: =England!AY5 -> 32106045.99 | W50: =England!AZ5 -> 32215547.01 | X50: =England!BA5 -> 32322944.04 | Y50: =England!BB5 -> 32428125.95 | Z50: =England!BC5 -> 32530923.02 | AA50: =England!BD5 -> 32631158 | AC50: =INDEX($B50:$AA50,Index!$B$16) -> 29126510 | AD50: =INDEX($B50:$AA50,Index!$B$19) -> 32631158 | AE50: =AD50-AC50 -> 3504647.996 | AF50: =IF(AC50<0,0,AE50/AC50) -> 0.1203250234
A52: Total
B53: 2022 | C53: 2023 | D53: 2024 | E53: 2025 | F53: 2026 | G53: 2027 | H53: 2028 | I53: 2029 | J53: 2030 | K53: 2031 | L53: 2032 | M53: 2033 | N53: 2034 | O53: 2035 | P53: 2036 | Q53: 2037 | R53: 2038 | S53: 2039 | T53: 2040 | U53: 2041 | V53: 2042 | W53: 2043 | X53: 2044 | Y53: 2045 | Z53: 2046 | AA53: 2047 | AC53: =Index!$C$16 -> 2022 | AD53: =Index!$C$19 -> 2047 | AE53: Number change | AF53: % change
A54: -
A55: Ashford | B55: =ASH!AE$6 -> 135741 | C55: =ASH!AF$6 -> 137707.249 | D55: =ASH!AG$6 -> 139529.276 | E55: =ASH!AH$6 -> 140956.559 | F55: =ASH!AI$6 -> 142227.128 | G55: =ASH!AJ$6 -> 143418.476 | H55: =ASH!AK$6 -> 144585.317 | I55: =ASH!AL$6 -> 145748.876 | J55: =ASH!AM$6 -> 146902.632 | K55: =ASH!AN$6 -> 148015.852 | L55: =ASH!AO$6 -> 149093.553 | M55: =ASH!AP$6 -> 150162.692 | N55: =ASH!AQ$6 -> 151183.021 | O55: =ASH!AR$6 -> 152171.078 | P55: =ASH!AS$6 -> 153127.947 | Q55: =ASH!AT$6 -> 154058.859 | R55: =ASH!AU$6 -> 155000.901 | S55: =ASH!AV$6 -> 155920.82 | T55: =ASH!AW$6 -> 156837.132 | U55: =ASH!AX$6 -> 157732.978 | V55: =ASH!AY$6 -> 158639.675 | W55: =ASH!AZ$6 -> 159537.361 | X55: =ASH!BA$6 -> 160410.847 | Y55: =ASH!BB$6 -> 161258.252 | Z55: =ASH!BC$6 -> 162083.037 | AA55: =ASH!BD$6 -> 162889.423 | AC55: =INDEX($B55:$AA55,Index!$B$16) -> 135741 | AD55: =INDEX($B55:$AA55,Index!$B$19) -> 162889.423 | AE55: =AD55-AC55 -> 27148.423 | AF55: =IF(AC55<0,0,AE55/AC55) -> 0.2000016428
A56: Canterbury | B56: =CAN!AE$6 -> 158282 | C56: =CAN!AF$6 -> 161251.834 | D56: =CAN!AG$6 -> 163988.631 | E56: =CAN!AH$6 -> 165237.044 | F56: =CAN!AI$6 -> 165971.879 | G56: =CAN!AJ$6 -> 166726.423 | H56: =CAN!AK$6 -> 167547.386 | I56: =CAN!AL$6 -> 168440.732 | J56: =CAN!AM$6 -> 169307.164 | K56: =CAN!AN$6 -> 170094.403 | L56: =CAN!AO$6 -> 170729.512 | M56: =CAN!AP$6 -> 171233.758 | N56: =CAN!AQ$6 -> 171735.396 | O56: =CAN!AR$6 -> 172323.548 | P56: =CAN!AS$6 -> 172900.382 | Q56: =CAN!AT$6 -> 173404.673 | R56: =CAN!AU$6 -> 173852.814 | S56: =CAN!AV$6 -> 174294.037 | T56: =CAN!AW$6 -> 174712.844 | U56: =CAN!AX$6 -> 175208.937 | V56: =CAN!AY$6 -> 175629.848 | W56: =CAN!AZ$6 -> 176108.111 | X56: =CAN!BA$6 -> 176657.886 | Y56: =CAN!BB$6 -> 177309.85 | Z56: =CAN!BC$6 -> 178009.283 | AA56: =CAN!BD$6 -> 178705.543 | AC56: =INDEX($B56:$AA56,Index!$B$16) -> 158282 | AD56: =INDEX($B56:$AA56,Index!$B$19) -> 178705.543 | AE56: =AD56-AC56 -> 20423.543 | AF56: =IF(AC56<0,0,AE56/AC56) -> 0.1290326316
A57: Dartford | B57: =DAR!AE$6 -> 118810 | C57: =DAR!AF$6 -> 121233.274 | D57: =DAR!AG$6 -> 123444.905 | E57: =DAR!AH$6 -> 125195.145 | F57: =DAR!AI$6 -> 126763.06 | G57: =DAR!AJ$6 -> 128214.766 | H57: =DAR!AK$6 -> 129606.265 | I57: =DAR!AL$6 -> 130948.317 | J57: =DAR!AM$6 -> 132244.306 | K57: =DAR!AN$6 -> 133499.618 | L57: =DAR!AO$6 -> 134717.536 | M57: =DAR!AP$6 -> 135907.612 | N57: =DAR!AQ$6 -> 137064.406 | O57: =DAR!AR$6 -> 138191.218 | P57: =DAR!AS$6 -> 139258.116 | Q57: =DAR!AT$6 -> 140311.591 | R57: =DAR!AU$6 -> 141356.134 | S57: =DAR!AV$6 -> 142376.377 | T57: =DAR!AW$6 -> 143387.099 | U57: =DAR!AX$6 -> 144362.15 | V57: =DAR!AY$6 -> 145341.527 | W57: =DAR!AZ$6 -> 146297.326 | X57: =DAR!BA$6 -> 147214.163 | Y57: =DAR!BB$6 -> 148094.875 | Z57: =DAR!BC$6 -> 148941.845 | AA57: =DAR!BD$6 -> 149759.791 | AC57: =INDEX($B57:$AA57,Index!$B$16) -> 118810 | AD57: =INDEX($B57:$AA57,Index!$B$19) -> 149759.791 | AE57: 30949.791 | AF57: 0.2604981988
A58: Dover | B58: =DOV!AE$6 -> 117546 | C58: =DOV!AF$6 -> 118567.591 | D58: =DOV!AG$6 -> 119528.274 | E58: =DOV!AH$6 -> 120307.741 | F58: =DOV!AI$6 -> 120987.162 | G58: =DOV!AJ$6 -> 121634.83 | H58: =DOV!AK$6 -> 122276.61 | I58: =DOV!AL$6 -> 122917.625 | J58: =DOV!AM$6 -> 123542.483 | K58: =DOV!AN$6 -> 124140.958 | L58: =DOV!AO$6 -> 124719.862 | M58: =DOV!AP$6 -> 125285.191 | N58: =DOV!AQ$6 -> 125829.734 | O58: =DOV!AR$6 -> 126346.895 | P58: =DOV!AS$6 -> 126849.37 | Q58: =DOV!AT$6 -> 127349.063 | R58: =DOV!AU$6 -> 127856.22 | S58: =DOV!AV$6 -> 128358.163 | T58: =DOV!AW$6 -> 128868.756 | U58: =DOV!AX$6 -> 129369.122 | V58: =DOV!AY$6 -> 129891.613 | W58: =DOV!AZ$6 -> 130410.582 | X58: =DOV!BA$6 -> 130922.891 | Y58: =DOV!BB$6 -> 131426.963 | Z58: =DOV!BC$6 -> 131924.85 | AA58: =DOV!BD$6 -> 132418.066 | AC58: =INDEX($B58:$AA58,Index!$B$16) -> 117546 | AD58: =INDEX($B58:$AA58,Index!$B$19) -> 132418.066 | AE58: 14872.066 | AF58: 0.1265212427
A59: Folkestone & Hythe | B59: ='F&H'!AE$6 -> 110356 | C59: ='F&H'!AF$6 -> 111260.23 | D59: ='F&H'!AG$6 -> 112119.726 | E59: ='F&H'!AH$6 -> 112779.12 | F59: ='F&H'!AI$6 -> 113373.507 | G59: ='F&H'!AJ$6 -> 113949.983 | H59: ='F&H'!AK$6 -> 114528.441 | I59: ='F&H'!AL$6 -> 115127.66 | J59: ='F&H'!AM$6 -> 115724.486 | K59: ='F&H'!AN$6 -> 116329.767 | L59: ='F&H'!AO$6 -> 116921.367 | M59: ='F&H'!AP$6 -> 117514.718 | N59: ='F&H'!AQ$6 -> 118101.561 | O59: ='F&H'!AR$6 -> 118668.148 | P59: ='F&H'!AS$6 -> 119223.693 | Q59: ='F&H'!AT$6 -> 119777.796 | R59: ='F&H'!AU$6 -> 120333.956 | S59: ='F&H'!AV$6 -> 120892.741 | T59: ='F&H'!AW$6 -> 121456.019 | U59: ='F&H'!AX$6 -> 122011.665 | V59: ='F&H'!AY$6 -> 122579.914 | W59: ='F&H'!AZ$6 -> 123149.772 | X59: ='F&H'!BA$6 -> 123716.356 | Y59: ='F&H'!BB$6 -> 124278.719 | Z59: ='F&H'!BC$6 -> 124839.547 | AA59: ='F&H'!BD$6 -> 125398.04 | AC59: =INDEX($B59:$AA59,Index!$B$16) -> 110356 | AD59: =INDEX($B59:$AA59,Index!$B$19) -> 125398.04 | AE59: =AD59-AC59 -> 15042.04 | AF59: =IF(AC59<0,0,AE59/AC59) -> 0.1363046867
A60: Gravesham | B60: =GRA!AE$6 -> 106870 | C60: =GRA!AF$6 -> 107651.61 | D60: =GRA!AG$6 -> 108286.085 | E60: =GRA!AH$6 -> 108534.005 | F60: =GRA!AI$6 -> 108707.5 | G60: =GRA!AJ$6 -> 108901.198 | H60: =GRA!AK$6 -> 109119.99 | I60: =GRA!AL$6 -> 109370.511 | J60: =GRA!AM$6 -> 109654.619 | K60: =GRA!AN$6 -> 109942.734 | L60: =GRA!AO$6 -> 110252.155 | M60: =GRA!AP$6 -> 110553.411 | N60: =GRA!AQ$6 -> 110876.182 | O60: =GRA!AR$6 -> 111197.915 | P60: =GRA!AS$6 -> 111516.295 | Q60: =GRA!AT$6 -> 111846.47 | R60: =GRA!AU$6 -> 112200.622 | S60: =GRA!AV$6 -> 112549.363 | T60: =GRA!AW$6 -> 112922.661 | U60: =GRA!AX$6 -> 113293.077 | V60: =GRA!AY$6 -> 113692.797 | W60: =GRA!AZ$6 -> 114092.624 | X60: =GRA!BA$6 -> 114487.207 | Y60: =GRA!BB$6 -> 114876.8 | Z60: =GRA!BC$6 -> 115263.232 | AA60: =GRA!BD$6 -> 115647.072 | AC60: =INDEX($B60:$AA60,Index!$B$16) -> 106870 | AD60: =INDEX($B60:$AA60,Index!$B$19) -> 115647.072 | AE60: 8777.072 | AF60: 0.08212849256
A61: Maidstone | B61: =MAI!AE$6 -> 180569 | C61: =MAI!AF$6 -> 184261.445 | D61: =MAI!AG$6 -> 187552.501 | E61: =MAI!AH$6 -> 190065.953 | F61: =MAI!AI$6 -> 192310.596 | G61: =MAI!AJ$6 -> 194463.004 | H61: =MAI!AK$6 -> 196580.14 | I61: =MAI!AL$6 -> 198720.971 | J61: =MAI!AM$6 -> 200792.871 | K61: =MAI!AN$6 -> 202775.824 | L61: =MAI!AO$6 -> 204706.071 | M61: =MAI!AP$6 -> 206581.824 | N61: =MAI!AQ$6 -> 208379.988 | O61: =MAI!AR$6 -> 210121.157 | P61: =MAI!AS$6 -> 211777.976 | Q61: =MAI!AT$6 -> 213380.696 | R61: =MAI!AU$6 -> 214950.576 | S61: =MAI!AV$6 -> 216506.897 | T61: =MAI!AW$6 -> 218039.203 | U61: =MAI!AX$6 -> 219534.421 | V61: =MAI!AY$6 -> 221040.131 | W61: =MAI!AZ$6 -> 222521.324 | X61: =MAI!BA$6 -> 223960.527 | Y61: =MAI!BB$6 -> 225359.344 | Z61: =MAI!BC$6 -> 226723.587 | AA61: =MAI!BD$6 -> 228057.083 | AC61: =INDEX($B61:$AA61,Index!$B$16) -> 180569 | AD61: =INDEX($B61:$AA61,Index!$B$19) -> 228057.083 | AE61: 47488.083 | AF61: 0.2629913385
A62: Medway | B62: =MED!AE$6 -> 282643 | C62: =MED!AF$6 -> 285310.628 | D62: =MED!AG$6 -> 287623.83 | E62: =MED!AH$6 -> 288877.156 | F62: =MED!AI$6 -> 289815.187 | G62: =MED!AJ$6 -> 290743.851 | H62: =MED!AK$6 -> 291686.95 | I62: =MED!AL$6 -> 292680.455 | J62: =MED!AM$6 -> 293675.59 | K62: =MED!AN$6 -> 294647.513 | L62: =MED!AO$6 -> 295626.954 | M62: =MED!AP$6 -> 296572.994 | N62: =MED!AQ$6 -> 297490.886 | O62: =MED!AR$6 -> 298394.643 | P62: =MED!AS$6 -> 299282.593 | Q62: =MED!AT$6 -> 300185.437 | R62: =MED!AU$6 -> 301091.314 | S62: =MED!AV$6 -> 302017.066 | T62: =MED!AW$6 -> 302964.964 | U62: =MED!AX$6 -> 303909.496 | V62: =MED!AY$6 -> 304887.027 | W62: =MED!AZ$6 -> 305867.289 | X62: =MED!BA$6 -> 306838.483 | Y62: =MED!BB$6 -> 307802.975 | Z62: =MED!BC$6 -> 308756.856 | AA62: =MED!BD$6 -> 309700.898 | AC62: =INDEX($B62:$AA62,Index!$B$16) -> 282643 | AD62: =INDEX($B62:$AA62,Index!$B$19) -> 309700.898 | AE62: 27057.898 | AF62: 0.09573171103
A63: Sevenoaks | B63: =SEV!AE$6 -> 121173 | C63: =SEV!AF$6 -> 121771.422 | D63: =SEV!AG$6 -> 122397.061 | E63: =SEV!AH$6 -> 122877.961 | F63: =SEV!AI$6 -> 123313.426 | G63: =SEV!AJ$6 -> 123699.558 | H63: =SEV!AK$6 -> 124164.15 | I63: =SEV!AL$6 -> 124656.768 | J63: =SEV!AM$6 -> 125170.219 | K63: =SEV!AN$6 -> 125701.302 | L63: =SEV!AO$6 -> 126280.455 | M63: =SEV!AP$6 -> 126887.568 | N63: =SEV!AQ$6 -> 127446.522 | O63: =SEV!AR$6 -> 128026.481 | P63: =SEV!AS$6 -> 128592.353 | Q63: =SEV!AT$6 -> 129178.325 | R63: =SEV!AU$6 -> 129783.993 | S63: =SEV!AV$6 -> 130418.653 | T63: =SEV!AW$6 -> 131047.241 | U63: =SEV!AX$6 -> 131680.535 | V63: =SEV!AY$6 -> 132354.43 | W63: =SEV!AZ$6 -> 133034.631 | X63: =SEV!BA$6 -> 133707.786 | Y63: =SEV!BB$6 -> 134370.529 | Z63: =SEV!BC$6 -> 135032.227 | AA63: =SEV!BD$6 -> 135690.641 | AC63: =INDEX($B63:$AA63,Index!$B$16) -> 121173 | AD63: =INDEX($B63:$AA63,Index!$B$19) -> 135690.641 | AE63: 14517.641 | AF63: 0.1198092067
A64: Swale | B64: =SWA!AE$6 -> 154598 | C64: =SWA!AF$6 -> 156488.865 | D64: =SWA!AG$6 -> 158273.638 | E64: =SWA!AH$6 -> 159731.344 | F64: =SWA!AI$6 -> 161069.195 | G64: =SWA!AJ$6 -> 162375.533 | H64: =SWA!AK$6 -> 163650.871 | I64: =SWA!AL$6 -> 164896.031 | J64: =SWA!AM$6 -> 166118.481 | K64: =SWA!AN$6 -> 167304.2 | L64: =SWA!AO$6 -> 168457.65 | M64: =SWA!AP$6 -> 169581.956 | N64: =SWA!AQ$6 -> 170681.445 | O64: =SWA!AR$6 -> 171741.655 | P64: =SWA!AS$6 -> 172768.062 | Q64: =SWA!AT$6 -> 173775.991 | R64: =SWA!AU$6 -> 174762.186 | S64: =SWA!AV$6 -> 175757.436 | T64: =SWA!AW$6 -> 176752.338 | U64: =SWA!AX$6 -> 177730.74 | V64: =SWA!AY$6 -> 178715.259 | W64: =SWA!AZ$6 -> 179686.5 | X64: =SWA!BA$6 -> 180637.552 | Y64: =SWA!BB$6 -> 181561.649 | Z64: =SWA!BC$6 -> 182462.492 | AA64: =SWA!BD$6 -> 183341.717 | AC64: =INDEX($B64:$AA64,Index!$B$16) -> 154598 | AD64: =INDEX($B64:$AA64,Index!$B$19) -> 183341.717 | AE64: 28743.717 | AF64: 0.1859255424
A65: Thanet | B65: =THA!AE$6 -> 140683 | C65: =THA!AF$6 -> 141328.086 | D65: =THA!AG$6 -> 141903.82 | E65: =THA!AH$6 -> 142203.345 | F65: =THA!AI$6 -> 142434.125 | G65: =THA!AJ$6 -> 142665.569 | H65: =THA!AK$6 -> 142915.313 | I65: =THA!AL$6 -> 143216.602 | J65: =THA!AM$6 -> 143535.656 | K65: =THA!AN$6 -> 143853.413 | L65: =THA!AO$6 -> 144178.968 | M65: =THA!AP$6 -> 144511.433 | N65: =THA!AQ$6 -> 144834.739 | O65: =THA!AR$6 -> 145161.522 | P65: =THA!AS$6 -> 145487.073 | Q65: =THA!AT$6 -> 145810.955 | R65: =THA!AU$6 -> 146141.31 | S65: =THA!AV$6 -> 146478.16 | T65: =THA!AW$6 -> 146835.104 | U65: =THA!AX$6 -> 147201.37 | V65: =THA!AY$6 -> 147589.858 | W65: =THA!AZ$6 -> 147991.097 | X65: =THA!BA$6 -> 148397.918 | Y65: =THA!BB$6 -> 148810.512 | Z65: =THA!BC$6 -> 149230.528 | AA65: =THA!BD$6 -> 149656.53 | AC65: =INDEX($B65:$AA65,Index!$B$16) -> 140683 | AD65: =INDEX($B65:$AA65,Index!$B$19) -> 149656.53 | AE65: 8973.53 | AF65: 0.06378546093
A66: Tonbridge & Malling | B66: =TON!AE$6 -> 133664 | C66: =TON!AF$6 -> 134798.427 | D66: =TON!AG$6 -> 135946.629 | E66: =TON!AH$6 -> 136918.576 | F66: =TON!AI$6 -> 137789.806 | G66: =TON!AJ$6 -> 138633.885 | H66: =TON!AK$6 -> 139511.58 | I66: =TON!AL$6 -> 140383.355 | J66: =TON!AM$6 -> 141243.146 | K66: =TON!AN$6 -> 142076.649 | L66: =TON!AO$6 -> 142898.043 | M66: =TON!AP$6 -> 143755.867 | N66: =TON!AQ$6 -> 144586.465 | O66: =TON!AR$6 -> 145380.361 | P66: =TON!AS$6 -> 146144.318 | Q66: =TON!AT$6 -> 146910.25 | R66: =TON!AU$6 -> 147706.203 | S66: =TON!AV$6 -> 148513.252 | T66: =TON!AW$6 -> 149329.2 | U66: =TON!AX$6 -> 150145.169 | V66: =TON!AY$6 -> 150988.586 | W66: =TON!AZ$6 -> 151827.343 | X66: =TON!BA$6 -> 152651.396 | Y66: =TON!BB$6 -> 153453.7 | Z66: =TON!BC$6 -> 154241.02 | AA66: =TON!BD$6 -> 155010.865 | AC66: =INDEX($B66:$AA66,Index!$B$16) -> 133664 | AD66: =INDEX($B66:$AA66,Index!$B$19) -> 155010.865 | AE66: 21346.865 | AF66: 0.1597054181
A67: Tunbridge Wells | B67: =TUN!AE$6 -> 116175 | C67: =TUN!AF$6 -> 117043.345 | D67: =TUN!AG$6 -> 117929.537 | E67: =TUN!AH$6 -> 118500.168 | F67: =TUN!AI$6 -> 118945.157 | G67: =TUN!AJ$6 -> 119394.962 | H67: =TUN!AK$6 -> 119894.714 | I67: =TUN!AL$6 -> 120438.573 | J67: =TUN!AM$6 -> 120979.734 | K67: =TUN!AN$6 -> 121557.716 | L67: =TUN!AO$6 -> 122173.774 | M67: =TUN!AP$6 -> 122814.946 | N67: =TUN!AQ$6 -> 123428.264 | O67: =TUN!AR$6 -> 124034.721 | P67: =TUN!AS$6 -> 124645.05 | Q67: =TUN!AT$6 -> 125264.171 | R67: =TUN!AU$6 -> 125897.389 | S67: =TUN!AV$6 -> 126552.533 | T67: =TUN!AW$6 -> 127220.267 | U67: =TUN!AX$6 -> 127873.006 | V67: =TUN!AY$6 -> 128573.782 | W67: =TUN!AZ$6 -> 129277.699 | X67: =TUN!BA$6 -> 129968.47 | Y67: =TUN!BB$6 -> 130645.864 | Z67: =TUN!BC$6 -> 131313.803 | AA67: =TUN!BD$6 -> 131979.092 | AC67: =INDEX($B67:$AA67,Index!$B$16) -> 116175 | AD67: =INDEX($B67:$AA67,Index!$B$19) -> 131979.092 | AE67: 15804.092 | AF67: 0.1360369443
A68: Kent | B68: =Kent!AE$6 -> 1594467 | C68: =Kent!AF$6 -> 1613363.378 | D68: =Kent!AG$6 -> 1630900.083 | E68: =Kent!AH$6 -> 1643306.961 | F68: =Kent!AI$6 -> 1653892.541 | G68: =Kent!AJ$6 -> 1664078.187 | H68: =Kent!AK$6 -> 1674380.777 | I68: =Kent!AL$6 -> 1684866.021 | J68: =Kent!AM$6 -> 1695215.797 | K68: =Kent!AN$6 -> 1705292.436 | L68: =Kent!AO$6 -> 1715128.946 | M68: =Kent!AP$6 -> 1724790.976 | N68: =Kent!AQ$6 -> 1734147.723 | O68: =Kent!AR$6 -> 1743364.699 | P68: =Kent!AS$6 -> 1752290.635 | Q68: =Kent!AT$6 -> 1761068.84 | R68: =Kent!AU$6 -> 1769842.304 | S68: =Kent!AV$6 -> 1778618.432 | T68: =Kent!AW$6 -> 1787407.864 | U68: =Kent!AX$6 -> 1796143.17 | V68: =Kent!AY$6 -> 1805037.42 | W68: =Kent!AZ$6 -> 1813934.37 | X68: =Kent!BA$6 -> 1822732.999 | Y68: =Kent!BB$6 -> 1831447.057 | Z68: =Kent!BC$6 -> 1840065.451 | AA68: =Kent!BD$6 -> 1848553.863 | AC68: =INDEX($B68:$AA68,Index!$B$16) -> 1594467 | AD68: =INDEX($B68:$AA68,Index!$B$19) -> 1848553.863 | AE68: 254086.863 | AF68: 0.1593553601
A69: Kent + Medway | B69: ='Kent+Med'!AE6 -> 1877110 | C69: ='Kent+Med'!AF6 -> 1898674.006 | D69: ='Kent+Med'!AG6 -> 1918523.913 | E69: ='Kent+Med'!AH6 -> 1932184.117 | F69: ='Kent+Med'!AI6 -> 1943707.728 | G69: ='Kent+Med'!AJ6 -> 1954822.038 | H69: ='Kent+Med'!AK6 -> 1966067.727 | I69: ='Kent+Med'!AL6 -> 1977546.476 | J69: ='Kent+Med'!AM6 -> 1988891.387 | K69: ='Kent+Med'!AN6 -> 1999939.949 | L69: ='Kent+Med'!AO6 -> 2010755.9 | M69: ='Kent+Med'!AP6 -> 2021363.97 | N69: ='Kent+Med'!AQ6 -> 2031638.609 | O69: ='Kent+Med'!AR6 -> 2041759.342 | P69: ='Kent+Med'!AS6 -> 2051573.228 | Q69: ='Kent+Med'!AT6 -> 2061254.277 | R69: ='Kent+Med'!AU6 -> 2070933.618 | S69: ='Kent+Med'!AV6 -> 2080635.498 | T69: ='Kent+Med'!AW6 -> 2090372.828 | U69: ='Kent+Med'!AX6 -> 2100052.666 | V69: ='Kent+Med'!AY6 -> 2109924.447 | W69: ='Kent+Med'!AZ6 -> 2119801.659 | X69: ='Kent+Med'!BA6 -> 2129571.482 | Y69: ='Kent+Med'!BB6 -> 2139250.032 | Z69: ='Kent+Med'!BC6 -> 2148822.307 | AA69: ='Kent+Med'!BD6 -> 2158254.761 | AC69: =INDEX($B69:$AA69,Index!$B$16) -> 1877110 | AD69: =INDEX($B69:$AA69,Index!$B$19) -> 2158254.761 | AE69: 281144.761 | AF69: 0.1497753254
A70: South East Region | B70: ='South East'!AE6 -> 9387286 | C70: ='South East'!AF6 -> 9502954.988 | D70: ='South East'!AG6 -> 9602744.254 | E70: ='South East'!AH6 -> 9659787.607 | F70: ='South East'!AI6 -> 9704768.246 | G70: ='South East'!AJ6 -> 9747963.342 | H70: ='South East'!AK6 -> 9793864.159 | I70: ='South East'!AL6 -> 9842895.512 | J70: ='South East'!AM6 -> 9892030.428 | K70: ='South East'!AN6 -> 9939817.351 | L70: ='South East'!AO6 -> 9986839.98 | M70: ='South East'!AP6 -> 10033047.2 | N70: ='South East'!AQ6 -> 10078165.33 | O70: ='South East'!AR6 -> 10122431.44 | P70: ='South East'!AS6 -> 10166000.9 | Q70: ='South East'!AT6 -> 10209249.76 | R70: ='South East'!AU6 -> 10252107.39 | S70: ='South East'!AV6 -> 10294939.17 | T70: ='South East'!AW6 -> 10337721.2 | U70: ='South East'!AX6 -> 10380497.4 | V70: ='South East'!AY6 -> 10423740.47 | W70: ='South East'!AZ6 -> 10467028.58 | X70: ='South East'!BA6 -> 10509941.56 | Y70: ='South East'!BB6 -> 10552467.96 | Z70: ='South East'!BC6 -> 10594556.55 | AA70: ='South East'!BD6 -> 10636041.18 | AC70: =INDEX($B70:$AA70,Index!$B$16) -> 9387286 | AD70: =INDEX($B70:$AA70,Index!$B$19) -> 10636041.18 | AE70: =AD70-AC70 -> 1248755.184 | AF70: =IF(AC70<0,0,AE70/AC70) -> 0.1330262212
A71: England | B71: =England!AE6 -> 57112542 | C71: =England!AF6 -> 57910211.06 | D71: =England!AG6 -> 58568218.99 | E71: =England!AH6 -> 58893277.01 | F71: =England!AI6 -> 59137051.98 | G71: =England!AJ6 -> 59372794 | H71: =England!AK6 -> 59630430.96 | I71: =England!AL6 -> 59913754.9 | J71: =England!AM6 -> 60202256.02 | K71: =England!AN6 -> 60484300.94 | L71: =England!AO6 -> 60759854.09 | M71: =England!AP6 -> 61029323.94 | N71: =England!AQ6 -> 61293331.1 | O71: =England!AR6 -> 61552257.02 | P71: =England!AS6 -> 61806467.03 | Q71: =England!AT6 -> 62056609.12 | R71: =England!AU6 -> 62303257 | S71: =England!AV6 -> 62546847.9 | T71: =England!AW6 -> 62787653.97 | U71: =England!AX6 -> 63025864.06 | V71: =England!AY6 -> 63261578.99 | W71: =England!AZ6 -> 63494464.07 | X71: =England!BA6 -> 63724037.05 | Y71: =England!BB6 -> 63949896.99 | Z71: =England!BC6 -> 64171660.01 | AA71: =England!BD6 -> 64388886.95 | AC71: =INDEX($B71:$AA71,Index!$B$16) -> 57112542 | AD71: =INDEX($B71:$AA71,Index!$B$19) -> 64388886.95 | AE71: =AD71-AC71 -> 7276344.952 | AF71: =IF(AC71<0,0,AE71/AC71) -> 0.1274036262
A75: Population by 5 year
A76: =INDEX(Index!D30:D61,'Population Pyramid'!L1) -> 2022 | C76: - | D76: Ashford | E76: Canterbury | F76: Dartford | G76: Dover | H76: Folketone & Hythe | I76: Gravesham | J76: Maidstone | K76: Medway | L76: Sevenoaks | M76: Swale | N76: Thanet | O76: Tonbridge & Malling | P76: Tunbridge Wells | Q76: Kent | R76: Kent + Medway | S76: South East Region | T76: England & Wales
A77: Males | B77: All Ages | C77: - | D77: =ASH!$CJ$15 -> 66086 | E77: =CAN!$CJ$15 -> 76230 | F77: =DAR!$CJ$15 -> 58107 | G77: =DOV!$CJ$15 -> 57248 | H77: ='F&H'!$CJ$15 -> 53781 | I77: =GRA!$CJ$15 -> 52092 | J77: =MAI!$CJ$15 -> 89057 | K77: =MED!$CJ$15 -> 138487 | L77: =SEV!$CJ$15 -> 58385 | M77: =SWA!$CJ$15 -> 76727 | N77: =THA!$CJ$15 -> 67692 | O77: =TON!$CJ$15 -> 64926 | P77: =TUN!$CJ$15 -> 56534 | Q77: =Kent!$CJ$15 -> 776865 | R77: ='Kent+Med'!$CJ$15 -> 915352 | S77: ='South East'!$CJ$15 -> 4593507 | T77: =England!$CJ$15 -> 27986032
A78: Males | B78: 0-4 | C78: - | D78: =ASH!$CJ$16 -> 3969 | E78: =CAN!$CJ$16 -> 3562 | F78: =DAR!$CJ$16 -> 4383 | G78: =DOV!$CJ$16 -> 2910 | H78: ='F&H'!$CJ$16 -> 2551 | I78: =GRA!$CJ$16 -> 3382 | J78: =MAI!$CJ$16 -> 5571 | K78: =MED!$CJ$16 -> 8860 | L78: =SEV!$CJ$16 -> 3395 | M78: =SWA!$CJ$16 -> 4565 | N78: =THA!$CJ$16 -> 3840 | O78: =TON!$CJ$16 -> 3915 | P78: =TUN!$CJ$16 -> 3136 | Q78: =Kent!$CJ$16 -> 45179 | R78: ='Kent+Med'!$CJ$16 -> 54039 | S78: ='South East'!$CJ$16 -> 254023 | T78: =England!$CJ$16 -> 1568276
A79: Males | B79: 5-9 | C79: - | D79: =ASH!$CJ$17 -> 4386 | E79: =CAN!$CJ$17 -> 4016 | F79: =DAR!$CJ$17 -> 4292 | G79: =DOV!$CJ$17 -> 3327 | H79: ='F&H'!$CJ$17 -> 2917 | I79: =GRA!$CJ$17 -> 3601 | J79: =MAI!$CJ$17 -> 5814 | K79: =MED!$CJ$17 -> 9393 | L79: =SEV!$CJ$17 -> 3819 | M79: =SWA!$CJ$17 -> 4959 | N79: =THA!$CJ$17 -> 4030 | O79: =TON!$CJ$17 -> 4366 | P79: =TUN!$CJ$17 -> 3642 | Q79: =Kent!$CJ$17 -> 49169 | R79: ='Kent+Med'!$CJ$17 -> 58562 | S79: ='South East'!$CJ$17 -> 282547 | T79: =England!$CJ$17 -> 1707638
A80: Males | B80: 10-14 | C80: - | D80: =ASH!$CJ$18 -> 4488 | E80: =CAN!$CJ$18 -> 4477 | F80: =DAR!$CJ$18 -> 4414 | G80: =DOV!$CJ$18 -> 3547 | H80: ='F&H'!$CJ$18 -> 3196 | I80: =GRA!$CJ$18 -> 3740 | J80: =MAI!$CJ$18 -> 5712 | K80: =MED!$CJ$18 -> 9603 | L80: =SEV!$CJ$18 -> 4219 | M80: =SWA!$CJ$18 -> 5067 | N80: =THA!$CJ$18 -> 4417 | O80: =TON!$CJ$18 -> 4643 | P80: =TUN!$CJ$18 -> 4173 | Q80: =Kent!$CJ$18 -> 52093 | R80: ='Kent+Med'!$CJ$18 -> 61696 | S80: ='South East'!$CJ$18 -> 300488 | T80: =England!$CJ$18 -> 1789255
A81: Males | B81: 15-19 | C81: - | D81: =ASH!$CJ$19 -> 3833 | E81: =CAN!$CJ$19 -> 6253 | F81: =DAR!$CJ$19 -> 3380 | G81: =DOV!$CJ$19 -> 3141 | H81: ='F&H'!$CJ$19 -> 2946 | I81: =GRA!$CJ$19 -> 3276 | J81: =MAI!$CJ$19 -> 4872 | K81: =MED!$CJ$19 -> 8435 | L81: =SEV!$CJ$19 -> 3474 | M81: =SWA!$CJ$19 -> 4452 | N81: =THA!$CJ$19 -> 3893 | O81: =TON!$CJ$19 -> 4112 | P81: =TUN!$CJ$19 -> 3491 | Q81: =Kent!$CJ$19 -> 47123 | R81: ='Kent+Med'!$CJ$19 -> 55558 | S81: ='South East'!$CJ$19 -> 278492 | T81: =England!$CJ$19 -> 1703618
A82: Males | B82: 20-24 | C82: - | D82: =ASH!$CJ$20 -> 3239 | E82: =CAN!$CJ$20 -> 7207 | F82: =DAR!$CJ$20 -> 2742 | G82: =DOV!$CJ$20 -> 2640 | H82: ='F&H'!$CJ$20 -> 2618 | I82: =GRA!$CJ$20 -> 2856 | J82: =MAI!$CJ$20 -> 4417 | K82: =MED!$CJ$20 -> 7970 | L82: =SEV!$CJ$20 -> 2439 | M82: =SWA!$CJ$20 -> 4000 | N82: =THA!$CJ$20 -> 3226 | O82: =TON!$CJ$20 -> 2924 | P82: =TUN!$CJ$20 -> 2376 | Q82: =Kent!$CJ$20 -> 40684 | R82: ='Kent+Med'!$CJ$20 -> 48654 | S82: ='South East'!$CJ$20 -> 262563 | T82: =England!$CJ$20 -> 1740839
A83: Males | B83: 25-29 | C83: - | D83: =ASH!$CJ$21 -> 3805 | E83: =CAN!$CJ$21 -> 4195 | F83: =DAR!$CJ$21 -> 3476 | G83: =DOV!$CJ$21 -> 3081 | H83: ='F&H'!$CJ$21 -> 2829 | I83: =GRA!$CJ$21 -> 3056 | J83: =MAI!$CJ$21 -> 5500 | K83: =MED!$CJ$21 -> 8766 | L83: =SEV!$CJ$21 -> 2591 | M83: =SWA!$CJ$21 -> 4806 | N83: =THA!$CJ$21 -> 3492 | O83: =TON!$CJ$21 -> 3346 | P83: =TUN!$CJ$21 -> 2886 | Q83: =Kent!$CJ$21 -> 43063 | R83: ='Kent+Med'!$CJ$21 -> 51829 | S83: ='South East'!$CJ$21 -> 267121 | T83: =England!$CJ$21 -> 1836278
A84: Males | B84: 30-34 | C84: - | D84: =ASH!$CJ$22 -> 4304 | E84: =CAN!$CJ$22 -> 4169 | F84: =DAR!$CJ$22 -> 4527 | G84: =DOV!$CJ$22 -> 3387 | H84: ='F&H'!$CJ$22 -> 3024 | I84: =GRA!$CJ$22 -> 3494 | J84: =MAI!$CJ$22 -> 6187 | K84: =MED!$CJ$22 -> 9788 | L84: =SEV!$CJ$22 -> 3123 | M84: =SWA!$CJ$22 -> 5231 | N84: =THA!$CJ$22 -> 3979 | O84: =TON!$CJ$22 -> 3927 | P84: =TUN!$CJ$22 -> 3171 | Q84: =Kent!$CJ$22 -> 48523 | R84: ='Kent+Med'!$CJ$22 -> 58311 | S84: ='South East'!$CJ$22 -> 293809 | T84: =England!$CJ$22 -> 1933496
A85: Males | B85: 35-39 | C85: - | D85: =ASH!$CJ$23 -> 4217 | E85: =CAN!$CJ$23 -> 4156 | F85: =DAR!$CJ$23 -> 4621 | G85: =DOV!$CJ$23 -> 3366 | H85: ='F&H'!$CJ$23 -> 2935 | I85: =GRA!$CJ$23 -> 3595 | J85: =MAI!$CJ$23 -> 6116 | K85: =MED!$CJ$23 -> 9620 | L85: =SEV!$CJ$23 -> 3378 | M85: =SWA!$CJ$23 -> 5099 | N85: =THA!$CJ$23 -> 4035 | O85: =TON!$CJ$23 -> 3908 | P85: =TUN!$CJ$23 -> 3622 | Q85: =Kent!$CJ$23 -> 49048 | R85: ='Kent+Med'!$CJ$23 -> 58668 | S85: ='South East'!$CJ$23 -> 299148 | T85: =England!$CJ$23 -> 1865668
A86: Males | B86: 40-44 | C86: - | D86: =ASH!$CJ$24 -> 4033 | E86: =CAN!$CJ$24 -> 4130 | F86: =DAR!$CJ$24 -> 4572 | G86: =DOV!$CJ$24 -> 3191 | H86: ='F&H'!$CJ$24 -> 3054 | I86: =GRA!$CJ$24 -> 3411 | J86: =MAI!$CJ$24 -> 5981 | K86: =MED!$CJ$24 -> 9336 | L86: =SEV!$CJ$24 -> 3824 | M86: =SWA!$CJ$24 -> 4937 | N86: =THA!$CJ$24 -> 3972 | O86: =TON!$CJ$24 -> 4171 | P86: =TUN!$CJ$24 -> 3795 | Q86: =Kent!$CJ$24 -> 49071 | R86: ='Kent+Med'!$CJ$24 -> 58407 | S86: ='South East'!$CJ$24 -> 303108 | T86: =England!$CJ$24 -> 1798188
A87: Males | B87: 45-49 | C87: - | D87: =ASH!$CJ$25 -> 3998 | E87: =CAN!$CJ$25 -> 4101 | F87: =DAR!$CJ$25 -> 4102 | G87: =DOV!$CJ$25 -> 3099 | H87: ='F&H'!$CJ$25 -> 2969 | I87: =GRA!$CJ$25 -> 3217 | J87: =MAI!$CJ$25 -> 5652 | K87: =MED!$CJ$25 -> 8653 | L87: =SEV!$CJ$25 -> 3854 | M87: =SWA!$CJ$25 -> 4505 | N87: =THA!$CJ$25 -> 3907 | O87: =TON!$CJ$25 -> 4406 | P87: =TUN!$CJ$25 -> 3969 | Q87: =Kent!$CJ$25 -> 47779 | R87: ='Kent+Med'!$CJ$25 -> 56432 | S87: ='South East'!$CJ$25 -> 294363 | T87: =England!$CJ$25 -> 1713834
A88: Males | B88: 50-54 | C88: - | D88: =ASH!$CJ$26 -> 4778 | E88: =CAN!$CJ$26 -> 4717 | F88: =DAR!$CJ$26 -> 3757 | G88: =DOV!$CJ$26 -> 3788 | H88: ='F&H'!$CJ$26 -> 3883 | I88: =GRA!$CJ$26 -> 3594 | J88: =MAI!$CJ$26 -> 6310 | K88: =MED!$CJ$26 -> 9318 | L88: =SEV!$CJ$26 -> 4140 | M88: =SWA!$CJ$26 -> 5263 | N88: =THA!$CJ$26 -> 4464 | O88: =TON!$CJ$26 -> 4863 | P88: =TUN!$CJ$26 -> 4305 | Q88: =Kent!$CJ$26 -> 53862 | R88: ='Kent+Med'!$CJ$26 -> 63180 | S88: ='South East'!$CJ$26 -> 319253 | T88: =England!$CJ$26 -> 1901068
A89: Males | B89: 55-59 | C89: - | D89: =ASH!$CJ$27 -> 4728 | E89: =CAN!$CJ$27 -> 4994 | F89: =DAR!$CJ$27 -> 3664 | G89: =DOV!$CJ$27 -> 4421 | H89: ='F&H'!$CJ$27 -> 4129 | I89: =GRA!$CJ$27 -> 3521 | J89: =MAI!$CJ$27 -> 6060 | K89: =MED!$CJ$27 -> 9358 | L89: =SEV!$CJ$27 -> 4317 | M89: =SWA!$CJ$27 -> 5425 | N89: =THA!$CJ$27 -> 4790 | O89: =TON!$CJ$27 -> 4620 | P89: =TUN!$CJ$27 -> 4166 | Q89: =Kent!$CJ$27 -> 54835 | R89: ='Kent+Med'!$CJ$27 -> 64193 | S89: ='South East'!$CJ$27 -> 320381 | T89: =England!$CJ$27 -> 1892533
A90: Males | B90: 60-64 | C90: - | D90: =ASH!$CJ$28 -> 4035 | E90: =CAN!$CJ$28 -> 4491 | F90: =DAR!$CJ$28 -> 2810 | G90: =DOV!$CJ$28 -> 4031 | H90: ='F&H'!$CJ$28 -> 3827 | I90: =GRA!$CJ$28 -> 2991 | J90: =MAI!$CJ$28 -> 5150 | K90: =MED!$CJ$28 -> 7850 | L90: =SEV!$CJ$28 -> 3763 | M90: =SWA!$CJ$28 -> 4639 | N90: =THA!$CJ$28 -> 4498 | O90: =TON!$CJ$28 -> 3959 | P90: =TUN!$CJ$28 -> 3398 | Q90: =Kent!$CJ$28 -> 47592 | R90: ='Kent+Med'!$CJ$28 -> 55442 | S90: ='South East'!$CJ$28 -> 277144 | T90: =England!$CJ$28 -> 1661598
A91: Males | B91: 65-69 | C91: - | D91: =ASH!$CJ$29 -> 3240 | E91: =CAN!$CJ$29 -> 4133 | F91: =DAR!$CJ$29 -> 2161 | G91: =DOV!$CJ$29 -> 3756 | H91: ='F&H'!$CJ$29 -> 3264 | I91: =GRA!$CJ$29 -> 2372 | J91: =MAI!$CJ$29 -> 4153 | K91: =MED!$CJ$29 -> 6447 | L91: =SEV!$CJ$29 -> 3088 | M91: =SWA!$CJ$29 -> 3934 | N91: =THA!$CJ$29 -> 3996 | O91: =TON!$CJ$29 -> 3196 | P91: =TUN!$CJ$29 -> 2706 | Q91: =Kent!$CJ$29 -> 39999 | R91: ='Kent+Med'!$CJ$29 -> 46446 | S91: ='South East'!$CJ$29 -> 228521 | T91: =England!$CJ$29 -> 1372227
A92: Males | B92: 70-74 | C92: - | D92: =ASH!$CJ$30 -> 3202 | E92: =CAN!$CJ$30 -> 4159 | F92: =DAR!$CJ$30 -> 1863 | G92: =DOV!$CJ$30 -> 3401 | H92: ='F&H'!$CJ$30 -> 3450 | I92: =GRA!$CJ$30 -> 2100 | J92: =MAI!$CJ$30 -> 4032 | K92: =MED!$CJ$30 -> 5737 | L92: =SEV!$CJ$30 -> 3006 | M92: =SWA!$CJ$30 -> 3650 | N92: =THA!$CJ$30 -> 4085 | O92: =TON!$CJ$30 -> 2965 | P92: =TUN!$CJ$30 -> 2569 | Q92: =Kent!$CJ$30 -> 38482 | R92: ='Kent+Med'!$CJ$30 -> 44219 | S92: ='South East'!$CJ$30 -> 213640 | T92: =England!$CJ$30 -> 1264199
A93: Males | B93: 75-79 | C93: - | D93: =ASH!$CJ$31 -> 2910 | E93: =CAN!$CJ$31 -> 3550 | F93: =DAR!$CJ$31 -> 1516 | G93: =DOV!$CJ$31 -> 3063 | H93: ='F&H'!$CJ$31 -> 3091 | I93: =GRA!$CJ$31 -> 1798 | J93: =MAI!$CJ$31 -> 3699 | K93: =MED!$CJ$31 -> 4723 | L93: =SEV!$CJ$31 -> 2806 | M93: =SWA!$CJ$31 -> 3148 | N93: =THA!$CJ$31 -> 3500 | O93: =TON!$CJ$31 -> 2611 | P93: =TUN!$CJ$31 -> 2356 | Q93: =Kent!$CJ$31 -> 34048 | R93: ='Kent+Med'!$CJ$31 -> 38771 | S93: ='South East'!$CJ$31 -> 187670 | T93: =England!$CJ$31 -> 1064194
A94: Males | B94: 80-84 | C94: - | D94: =ASH!$CJ$32 -> 1627 | E94: =CAN!$CJ$32 -> 2150 | F94: =DAR!$CJ$32 -> 933 | G94: =DOV!$CJ$32 -> 1763 | H94: ='F&H'!$CJ$32 -> 1698 | I94: =GRA!$CJ$32 -> 1140 | J94: =MAI!$CJ$32 -> 2109 | K94: =MED!$CJ$32 -> 2661 | L94: =SEV!$CJ$32 -> 1586 | M94: =SWA!$CJ$32 -> 1785 | N94: =THA!$CJ$32 -> 2012 | O94: =TON!$CJ$32 -> 1620 | P94: =TUN!$CJ$32 -> 1458 | Q94: =Kent!$CJ$32 -> 19881 | R94: ='Kent+Med'!$CJ$32 -> 22542 | S94: ='South East'!$CJ$32 -> 111456 | T94: =England!$CJ$32 -> 634345
A95: Males | B95: 85+ | C95: - | D95: =ASH!$CJ$33 -> 1294 | E95: =CAN!$CJ$33 -> 1770 | F95: =DAR!$CJ$33 -> 894 | G95: =DOV!$CJ$33 -> 1336 | H95: ='F&H'!$CJ$33 -> 1400 | I95: =GRA!$CJ$33 -> 948 | J95: =MAI!$CJ$33 -> 1722 | K95: =MED!$CJ$33 -> 1969 | L95: =SEV!$CJ$33 -> 1563 | M95: =SWA!$CJ$33 -> 1262 | N95: =THA!$CJ$33 -> 1556 | O95: =TON!$CJ$33 -> 1374 | P95: =TUN!$CJ$33 -> 1315 | Q95: =Kent!$CJ$33 -> 16434 | R95: ='Kent+Med'!$CJ$33 -> 18403 | S95: ='South East'!$CJ$33 -> 99780 | T95: =England!$CJ$33 -> 538778
A97: Females | B97: All Ages | C97: - | D97: =ASH!$CJ$35 -> 69655 | E97: =CAN!$CJ$35 -> 82052 | F97: =DAR!$CJ$35 -> 60703 | G97: =DOV!$CJ$35 -> 60298 | H97: ='F&H'!$CJ$35 -> 56575 | I97: =GRA!$CJ$35 -> 54778 | J97: =MAI!$CJ$35 -> 91512 | K97: =MED!$CJ$35 -> 144156 | L97: =SEV!$CJ$35 -> 62788 | M97: =SWA!$CJ$35 -> 77871 | N97: =THA!$CJ$35 -> 72991 | O97: =TON!$CJ$35 -> 68738 | P97: =TUN!$CJ$35 -> 59641 | Q97: =Kent!$CJ$35 -> 817602 | R97: ='Kent+Med'!$CJ$35 -> 961758 | S97: ='South East'!$CJ$35 -> 4793779 | T97: =England!$CJ$35 -> 29126510
A98: Females | B98: 0-4 | C98: - | D98: =ASH!$CJ$36 -> 3725 | E98: =CAN!$CJ$36 -> 3349 | F98: =DAR!$CJ$36 -> 3950 | G98: =DOV!$CJ$36 -> 2757 | H98: ='F&H'!$CJ$36 -> 2484 | I98: =GRA!$CJ$36 -> 3247 | J98: =MAI!$CJ$36 -> 5190 | K98: =MED!$CJ$36 -> 8402 | L98: =SEV!$CJ$36 -> 3275 | M98: =SWA!$CJ$36 -> 4373 | N98: =THA!$CJ$36 -> 3502 | O98: =TON!$CJ$36 -> 3667 | P98: =TUN!$CJ$36 -> 2979 | Q98: =Kent!$CJ$36 -> 42498 | R98: ='Kent+Med'!$CJ$36 -> 50900 | S98: ='South East'!$CJ$36 -> 241350 | T98: =England!$CJ$36 -> 1497099
A99: Females | B99: 5-9 | C99: - | D99: =ASH!$CJ$37 -> 4122 | E99: =CAN!$CJ$37 -> 3672 | F99: =DAR!$CJ$37 -> 4225 | G99: =DOV!$CJ$37 -> 3159 | H99: ='F&H'!$CJ$37 -> 2788 | I99: =GRA!$CJ$37 -> 3523 | J99: =MAI!$CJ$37 -> 5515 | K99: =MED!$CJ$37 -> 9106 | L99: =SEV!$CJ$37 -> 3721 | M99: =SWA!$CJ$37 -> 4706 | N99: =THA!$CJ$37 -> 3729 | O99: =TON!$CJ$37 -> 4207 | P99: =TUN!$CJ$37 -> 3442 | Q99: =Kent!$CJ$37 -> 46809 | R99: ='Kent+Med'!$CJ$37 -> 55915 | S99: ='South East'!$CJ$37 -> 268889 | T99: =England!$CJ$37 -> 1629351
A100: Females | B100: 10-14 | C100: - | D100: =ASH!$CJ$38 -> 4366 | E100: =CAN!$CJ$38 -> 4318 | F100: =DAR!$CJ$38 -> 4066 | G100: =DOV!$CJ$38 -> 3476 | H100: ='F&H'!$CJ$38 -> 3052 | I100: =GRA!$CJ$38 -> 3643 | J100: =MAI!$CJ$38 -> 5382 | K100: =MED!$CJ$38 -> 9156 | L100: =SEV!$CJ$38 -> 3991 | M100: =SWA!$CJ$38 -> 4816 | N100: =THA!$CJ$38 -> 4064 | O100: =TON!$CJ$38 -> 4291 | P100: =TUN!$CJ$38 -> 4093 | Q100: =Kent!$CJ$38 -> 49558 | R100: ='Kent+Med'!$CJ$38 -> 58714 | S100: ='South East'!$CJ$38 -> 285597 | T100: =England!$CJ$38 -> 1705034
A101: Females | B101: 15-19 | C101: - | D101: =ASH!$CJ$39 -> 3626 | E101: =CAN!$CJ$39 -> 5894 | F101: =DAR!$CJ$39 -> 3187 | G101: =DOV!$CJ$39 -> 2880 | H101: ='F&H'!$CJ$39 -> 2581 | I101: =GRA!$CJ$39 -> 2978 | J101: =MAI!$CJ$39 -> 4444 | K101: =MED!$CJ$39 -> 8080 | L101: =SEV!$CJ$39 -> 3422 | M101: =SWA!$CJ$39 -> 4013 | N101: =THA!$CJ$39 -> 3395 | O101: =TON!$CJ$39 -> 3674 | P101: =TUN!$CJ$39 -> 3296 | Q101: =Kent!$CJ$39 -> 43390 | R101: ='Kent+Med'!$CJ$39 -> 51470 | S101: ='South East'!$CJ$39 -> 260388 | T101: =England!$CJ$39 -> 1606478
A102: Females | B102: 20-24 | C102: - | D102: =ASH!$CJ$40 -> 3048 | E102: =CAN!$CJ$40 -> 7571 | F102: =DAR!$CJ$40 -> 2618 | G102: =DOV!$CJ$40 -> 2525 | H102: ='F&H'!$CJ$40 -> 2297 | I102: =GRA!$CJ$40 -> 2620 | J102: =MAI!$CJ$40 -> 4092 | K102: =MED!$CJ$40 -> 7576 | L102: =SEV!$CJ$40 -> 2399 | M102: =SWA!$CJ$40 -> 3779 | N102: =THA!$CJ$40 -> 3060 | O102: =TON!$CJ$40 -> 2916 | P102: =TUN!$CJ$40 -> 2218 | Q102: =Kent!$CJ$40 -> 39143 | R102: ='Kent+Med'!$CJ$40 -> 46719 | S102: ='South East'!$CJ$40 -> 248495 | T102: =England!$CJ$40 -> 1695715
A103: Females | B103: 25-29 | C103: - | D103: =ASH!$CJ$41 -> 4061 | E103: =CAN!$CJ$41 -> 4315 | F103: =DAR!$CJ$41 -> 4226 | G103: =DOV!$CJ$41 -> 3240 | H103: ='F&H'!$CJ$41 -> 2897 | I103: =GRA!$CJ$41 -> 3263 | J103: =MAI!$CJ$41 -> 5714 | K103: =MED!$CJ$41 -> 9282 | L103: =SEV!$CJ$41 -> 2823 | M103: =SWA!$CJ$41 -> 4691 | N103: =THA!$CJ$41 -> 3969 | O103: =TON!$CJ$41 -> 3684 | P103: =TUN!$CJ$41 -> 2879 | Q103: =Kent!$CJ$41 -> 45762 | R103: ='Kent+Med'!$CJ$41 -> 55044 | S103: ='South East'!$CJ$41 -> 272194 | T103: =England!$CJ$41 -> 1884992
A104: Females | B104: 30-34 | C104: - | D104: =ASH!$CJ$42 -> 4847 | E104: =CAN!$CJ$42 -> 4430 | F104: =DAR!$CJ$42 -> 5342 | G104: =DOV!$CJ$42 -> 3742 | H104: ='F&H'!$CJ$42 -> 3298 | I104: =GRA!$CJ$42 -> 3921 | J104: =MAI!$CJ$42 -> 6527 | K104: =MED!$CJ$42 -> 11001 | L104: =SEV!$CJ$42 -> 3596 | M104: =SWA!$CJ$42 -> 5392 | N104: =THA!$CJ$42 -> 4599 | O104: =TON!$CJ$42 -> 4503 | P104: =TUN!$CJ$42 -> 3521 | Q104: =Kent!$CJ$42 -> 53718 | R104: ='Kent+Med'!$CJ$42 -> 64719 | S104: ='South East'!$CJ$42 -> 316589 | T104: =England!$CJ$42 -> 2058539
A105: Females | B105: 35-39 | C105: - | D105: =ASH!$CJ$43 -> 4649 | E105: =CAN!$CJ$43 -> 4643 | F105: =DAR!$CJ$43 -> 5287 | G105: =DOV!$CJ$43 -> 3478 | H105: ='F&H'!$CJ$43 -> 3197 | I105: =GRA!$CJ$43 -> 4143 | J105: =MAI!$CJ$43 -> 6459 | K105: =MED!$CJ$43 -> 10255 | L105: =SEV!$CJ$43 -> 3954 | M105: =SWA!$CJ$43 -> 5174 | N105: =THA!$CJ$43 -> 4559 | O105: =TON!$CJ$43 -> 4551 | P105: =TUN!$CJ$43 -> 3915 | Q105: =Kent!$CJ$43 -> 54009 | R105: ='Kent+Med'!$CJ$43 -> 64264 | S105: ='South East'!$CJ$43 -> 322033 | T105: =England!$CJ$43 -> 1994319
A106: Females | B106: 40-44 | C106: - | D106: =ASH!$CJ$44 -> 4373 | E106: =CAN!$CJ$44 -> 4496 | F106: =DAR!$CJ$44 -> 4714 | G106: =DOV!$CJ$44 -> 3353 | H106: ='F&H'!$CJ$44 -> 3353 | I106: =GRA!$CJ$44 -> 3721 | J106: =MAI!$CJ$44 -> 6053 | K106: =MED!$CJ$44 -> 9916 | L106: =SEV!$CJ$44 -> 4183 | M106: =SWA!$CJ$44 -> 4932 | N106: =THA!$CJ$44 -> 4319 | O106: =TON!$CJ$44 -> 4675 | P106: =TUN!$CJ$44 -> 4171 | Q106: =Kent!$CJ$44 -> 52343 | R106: ='Kent+Med'!$CJ$44 -> 62259 | S106: ='South East'!$CJ$44 -> 319455 | T106: =England!$CJ$44 -> 1887642
A107: Females | B107: 45-49 | C107: - | D107: =ASH!$CJ$45 -> 4351 | E107: =CAN!$CJ$45 -> 4563 | F107: =DAR!$CJ$45 -> 3918 | G107: =DOV!$CJ$45 -> 3359 | H107: ='F&H'!$CJ$45 -> 3325 | I107: =GRA!$CJ$45 -> 3290 | J107: =MAI!$CJ$45 -> 5800 | K107: =MED!$CJ$45 -> 8886 | L107: =SEV!$CJ$45 -> 4124 | M107: =SWA!$CJ$45 -> 4643 | N107: =THA!$CJ$45 -> 4279 | O107: =TON!$CJ$45 -> 4655 | P107: =TUN!$CJ$45 -> 4118 | Q107: =Kent!$CJ$45 -> 50425 | R107: ='Kent+Med'!$CJ$45 -> 59311 | S107: ='South East'!$CJ$45 -> 304623 | T107: =England!$CJ$45 -> 1765240
A108: Females | B108: 50-54 | C108: - | D108: =ASH!$CJ$46 -> 5046 | E108: =CAN!$CJ$46 -> 5149 | F108: =DAR!$CJ$46 -> 3820 | G108: =DOV!$CJ$46 -> 4126 | H108: ='F&H'!$CJ$46 -> 3955 | I108: =GRA!$CJ$46 -> 3727 | J108: =MAI!$CJ$46 -> 6319 | K108: =MED!$CJ$46 -> 9374 | L108: =SEV!$CJ$46 -> 4494 | M108: =SWA!$CJ$46 -> 5333 | N108: =THA!$CJ$46 -> 5072 | O108: =TON!$CJ$46 -> 4960 | P108: =TUN!$CJ$46 -> 4567 | Q108: =Kent!$CJ$46 -> 56568 | R108: ='Kent+Med'!$CJ$46 -> 65942 | S108: ='South East'!$CJ$46 -> 331530 | T108: =England!$CJ$46 -> 1965506
A109: Females | B109: 55-59 | C109: - | D109: =ASH!$CJ$47 -> 4942 | E109: =CAN!$CJ$47 -> 5355 | F109: =DAR!$CJ$47 -> 3585 | G109: =DOV!$CJ$47 -> 4579 | H109: ='F&H'!$CJ$47 -> 4240 | I109: =GRA!$CJ$47 -> 3561 | J109: =MAI!$CJ$47 -> 6147 | K109: =MED!$CJ$47 -> 9423 | L109: =SEV!$CJ$47 -> 4530 | M109: =SWA!$CJ$47 -> 5521 | N109: =THA!$CJ$47 -> 5186 | O109: =TON!$CJ$47 -> 4899 | P109: =TUN!$CJ$47 -> 4316 | Q109: =Kent!$CJ$47 -> 56861 | R109: ='Kent+Med'!$CJ$47 -> 66284 | S109: ='South East'!$CJ$47 -> 330731 | T109: =England!$CJ$47 -> 1961166
A110: Females | B110: 60-64 | C110: - | D110: =ASH!$CJ$48 -> 4023 | E110: =CAN!$CJ$48 -> 4973 | F110: =DAR!$CJ$48 -> 2901 | G110: =DOV!$CJ$48 -> 4365 | H110: ='F&H'!$CJ$48 -> 3980 | I110: =GRA!$CJ$48 -> 3043 | J110: =MAI!$CJ$48 -> 5202 | K110: =MED!$CJ$48 -> 8258 | L110: =SEV!$CJ$48 -> 3837 | M110: =SWA!$CJ$48 -> 4742 | N110: =THA!$CJ$48 -> 4738 | O110: =TON!$CJ$48 -> 4012 | P110: =TUN!$CJ$48 -> 3501 | Q110: =Kent!$CJ$48 -> 49317 | R110: ='Kent+Med'!$CJ$48 -> 57575 | S110: ='South East'!$CJ$48 -> 285989 | T110: =England!$CJ$48 -> 1719417
A111: Females | B111: 65-69 | C111: - | D111: =ASH!$CJ$49 -> 3537 | E111: =CAN!$CJ$49 -> 4563 | F111: =DAR!$CJ$49 -> 2223 | G111: =DOV!$CJ$49 -> 3902 | H111: ='F&H'!$CJ$49 -> 3674 | I111: =GRA!$CJ$49 -> 2517 | J111: =MAI!$CJ$49 -> 4527 | K111: =MED!$CJ$49 -> 6683 | L111: =SEV!$CJ$49 -> 3303 | M111: =SWA!$CJ$49 -> 3907 | N111: =THA!$CJ$49 -> 4518 | O111: =TON!$CJ$49 -> 3314 | P111: =TUN!$CJ$49 -> 2903 | Q111: =Kent!$CJ$49 -> 42888 | R111: ='Kent+Med'!$CJ$49 -> 49571 | S111: ='South East'!$CJ$49 -> 243127 | T111: =England!$CJ$49 -> 1453538
A112: Females | B112: 70-74 | C112: - | D112: =ASH!$CJ$50 -> 3588 | E112: =CAN!$CJ$50 -> 4601 | F112: =DAR!$CJ$50 -> 2088 | G112: =DOV!$CJ$50 -> 3771 | H112: ='F&H'!$CJ$50 -> 3747 | I112: =GRA!$CJ$50 -> 2334 | J112: =MAI!$CJ$50 -> 4570 | K112: =MED!$CJ$50 -> 6454 | L112: =SEV!$CJ$50 -> 3388 | M112: =SWA!$CJ$50 -> 4007 | N112: =THA!$CJ$50 -> 4536 | O112: =TON!$CJ$50 -> 3323 | P112: =TUN!$CJ$50 -> 2976 | Q112: =Kent!$CJ$50 -> 42929 | R112: ='Kent+Med'!$CJ$50 -> 49383 | S112: ='South East'!$CJ$50 -> 239587 | T112: =England!$CJ$50 -> 1393523
A113: Females | B113: 75-79 | C113: - | D113: =ASH!$CJ$51 -> 3322 | E113: =CAN!$CJ$51 -> 4300 | F113: =DAR!$CJ$51 -> 1865 | G113: =DOV!$CJ$51 -> 3337 | H113: ='F&H'!$CJ$51 -> 3372 | I113: =GRA!$CJ$51 -> 2219 | J113: =MAI!$CJ$51 -> 4017 | K113: =MED!$CJ$51 -> 5400 | L113: =SEV!$CJ$51 -> 3182 | M113: =SWA!$CJ$51 -> 3550 | N113: =THA!$CJ$51 -> 4134 | O113: =TON!$CJ$51 -> 3213 | P113: =TUN!$CJ$51 -> 2683 | Q113: =Kent!$CJ$51 -> 39194 | R113: ='Kent+Med'!$CJ$51 -> 44594 | S113: ='South East'!$CJ$51 -> 217411 | T113: =England!$CJ$51 -> 1219566
A114: Females | B114: 80-84 | C114: - | D114: =ASH!$CJ$52 -> 1969 | E114: =CAN!$CJ$52 -> 2712 | F114: =DAR!$CJ$52 -> 1255 | G114: =DOV!$CJ$52 -> 2059 | H114: ='F&H'!$CJ$52 -> 2071 | I114: =GRA!$CJ$52 -> 1469 | J114: =MAI!$CJ$52 -> 2619 | K114: =MED!$CJ$52 -> 3431 | L114: =SEV!$CJ$52 -> 2013 | M114: =SWA!$CJ$52 -> 2140 | N114: =THA!$CJ$52 -> 2546 | O114: =TON!$CJ$52 -> 2050 | P114: =TUN!$CJ$52 -> 1820 | Q114: =Kent!$CJ$52 -> 24723 | R114: ='Kent+Med'!$CJ$52 -> 28154 | S114: ='South East'!$CJ$52 -> 141714 | T114: =England!$CJ$52 -> 803315
A115: Females | B115: 85+ | C115: - | D115: =ASH!$CJ$53 -> 2060 | E115: =CAN!$CJ$53 -> 3148 | F115: =DAR!$CJ$53 -> 1433 | G115: =DOV!$CJ$53 -> 2190 | H115: ='F&H'!$CJ$53 -> 2264 | I115: =GRA!$CJ$53 -> 1559 | J115: =MAI!$CJ$53 -> 2935 | K115: =MED!$CJ$53 -> 3473 | L115: =SEV!$CJ$53 -> 2553 | M115: =SWA!$CJ$53 -> 2152 | N115: =THA!$CJ$53 -> 2786 | O115: =ASH!$CJ$53 -> 2060 | P115: =TUN!$CJ$53 -> 2243 | Q115: =Kent!$CJ$53 -> 27467 | R115: ='Kent+Med'!$CJ$53 -> 30940 | S115: ='South East'!$CJ$53 -> 164077 | T115: =England!$CJ$53 -> 886070
A118: Population Pyramid data
A119: Selected district | I119: KCC Area
A120: =INDEX(C76:T76,Index!B11) -> Ashford | B120: Total Pop | C120: =SUM(B122,E122) -> 135741 | H120: KCC | I120: Total Pop | J120: =SUM(I122,L122) -> 1594467
A121: =Index!C22 -> 2022 | B121: Males | E121: Females | I121: Males | L121: Females
A122: All Ages | B122: =INDEX(C77:T77,Index!$B$11) -> 66086 | C122: =B122/C120 -> 0.4868536404 | E122: =INDEX(C97:T97,Index!$B$11) -> 69655 | F122: =E122/C120 -> 0.5131463596 | H122: All Ages | I122: =Kent!CJ15 -> 776865 | L122: =Kent!CJ35 -> 817602
A123: 0-4 | B123: =INDEX(C78:T78,Index!$B$11) -> 3969 | C123: =B123/$C$120 -> 0.02923950759 | D123: =C123*-1 -> -0.02923950759 | E123: =INDEX(C98:T98,Index!$B$11) -> 3725 | F123: =E123/$C$120 -> 0.02744196669 | H123: 0-4 | I123: =Kent!CJ16 -> 45179 | J123: =I123/$J$120 -> 0.02833486049 | K123: =J123*-1 -> -0.02833486049 | L123: =Kent!CJ36 -> 42498 | M123: =L123/$J$120 -> 0.02665342086
A124: 5-9 | B124: =INDEX(C79:T79,Index!$B$11) -> 4386 | C124: =B124/$C$120 -> 0.03231153447 | D124: =C124*-1 -> -0.03231153447 | E124: =INDEX(C99:T99,Index!$B$11) -> 4122 | F124: =E124/$C$120 -> 0.03036665414 | H124: 5-9 | I124: =Kent!CJ17 -> 49169 | J124: =I124/$J$120 -> 0.03083726411 | K124: =J124*-1 -> -0.03083726411 | L124: =Kent!CJ37 -> 46809 | M124: =L124/$J$120 -> 0.02935714568
A125: 10-14 | B125: =INDEX(C80:T80,Index!$B$11) -> 4488 | C125: 0.0330629655 | D125: -0.0330629655 | E125: =INDEX(C100:T100,Index!$B$11) -> 4366 | F125: 0.03216419505 | H125: 10-14 | I125: =Kent!CJ18 -> 52093 | J125: 0.03267110577 | K125: -0.03267110577 | L125: =Kent!CJ38 -> 49558 | M125: 0.03108123279
A126: 15-19 | B126: =INDEX(C81:T81,Index!$B$11) -> 3833 | C126: 0.02823759955 | D126: -0.02823759955 | E126: =INDEX(C101:T101,Index!$B$11) -> 3626 | F126: 0.02671263657 | H126: 15-19 | I126: =Kent!CJ19 -> 47123 | J126: 0.02955407669 | K126: -0.02955407669 | L126: =Kent!CJ39 -> 43390 | M126: 0.02721285546
A127: 20-24 | B127: =INDEX(C82:T82,Index!$B$11) -> 3239 | C127: 0.02386161882 | D127: -0.02386161882 | E127: =INDEX(C102:T102,Index!$B$11) -> 3048 | F127: 0.02245452737 | H127: 20-24 | I127: =Kent!CJ20 -> 40684 | J127: 0.02551573661 | K127: -0.02551573661 | L127: =Kent!CJ40 -> 39143 | M127: 0.02454926944
A128: 25-29 | B128: =INDEX(C83:T83,Index!$B$11) -> 3805 | C128: 0.02803132436 | D128: -0.02803132436 | E128: =INDEX(C103:T103,Index!$B$11) -> 4061 | F128: 0.02991726892 | H128: 25-29 | I128: =Kent!CJ21 -> 43063 | J128: 0.02700777125 | K128: -0.02700777125 | L128: =Kent!CJ41 -> 45762 | M128: 0.02870049992
A129: 30-34 | B129: =INDEX(C84:T84,Index!$B$11) -> 4304 | C129: 0.03170744285 | D129: -0.03170744285 | E129: =INDEX(C104:T104,Index!$B$11) -> 4847 | F129: 0.03570770806 | H129: 30-34 | I129: =Kent!CJ22 -> 48523 | J129: 0.03043211305 | K129: -0.03043211305 | L129: =Kent!CJ42 -> 53718 | M129: 0.03369025511
A130: 35-39 | B130: =INDEX(C85:T85,Index!$B$11) -> 4217 | C130: 0.03106651638 | D130: -0.03106651638 | E130: =INDEX(C105:T105,Index!$B$11) -> 4649 | F130: 0.03424904782 | H130: 35-39 | I130: =Kent!CJ23 -> 49048 | J130: 0.03076137669 | K130: -0.03076137669 | L130: =Kent!CJ43 -> 54009 | M130: 0.03387276124
A131: 40-44 | B131: =INDEX(C86:T86,Index!$B$11) -> 4033 | C131: 0.02971099373 | D131: -0.02971099373 | E131: =INDEX(C106:T106,Index!$B$11) -> 4373 | F131: 0.03221576384 | H131: 40-44 | I131: =Kent!CJ24 -> 49071 | J131: 0.03077580157 | K131: -0.03077580157 | L131: =Kent!CJ44 -> 52343 | M131: 0.03282789797
A132: 45-49 | B132: =INDEX(C87:T87,Index!$B$11) -> 3998 | C132: 0.02945314975 | D132: -0.02945314975 | E132: =INDEX(C107:T107,Index!$B$11) -> 4351 | F132: 0.03205369048 | H132: 45-49 | I132: =Kent!CJ25 -> 47779 | J132: 0.02996549944 | K132: -0.02996549944 | L132: =Kent!CJ45 -> 50425 | M132: 0.03162498816
A133: 50-54 | B133: =INDEX(C88:T88,Index!$B$11) -> 4778 | C133: 0.03519938707 | D133: -0.03519938707 | E133: =INDEX(C108:T108,Index!$B$11) -> 5046 | F133: 0.03717373528 | H133: 50-54 | I133: =Kent!CJ26 -> 53862 | J133: 0.03378056742 | K133: -0.03378056742 | L133: =Kent!CJ46 -> 56568 | M133: 0.03547768627
A134: 55-59 | B134: =INDEX(C89:T89,Index!$B$11) -> 4728 | C134: 0.03483103852 | D134: -0.03483103852 | E134: =INDEX(C109:T109,Index!$B$11) -> 4942 | F134: 0.0364075703 | H134: 55-59 | I134: =Kent!CJ27 -> 54835 | J134: 0.03439080269 | K134: -0.03439080269 | L134: =Kent!CJ47 -> 56861 | M134: 0.03566144674
A135: 60-64 | B135: =INDEX(C90:T90,Index!$B$11) -> 4035 | C135: 0.02972572767 | D135: -0.02972572767 | E135: =INDEX(C110:T110,Index!$B$11) -> 4023 | F135: 0.02963732402 | H135: 60-64 | I135: =Kent!CJ28 -> 47592 | J135: 0.02984821887 | K135: -0.02984821887 | L135: =Kent!CJ48 -> 49317 | M135: 0.0309300851
A136: 65-69 | B136: =INDEX(C91:T91,Index!$B$11) -> 3240 | C136: 0.02386898579 | D136: -0.02386898579 | E136: =INDEX(C111:T111,Index!$B$11) -> 3537 | F136: 0.02605697615 | H136: 65-69 | I136: =Kent!CJ29 -> 39999 | J136: 0.02508612596 | K136: -0.02508612596 | L136: =Kent!CJ49 -> 42888 | M136: 0.0268980167
A137: 70-74 | B137: =INDEX(C92:T92,Index!$B$11) -> 3202 | C137: 0.02358904089 | D137: -0.02358904089 | E137: =INDEX(C112:T112,Index!$B$11) -> 3588 | F137: 0.02643269167 | H137: 70-74 | I137: =Kent!CJ30 -> 38482 | J137: 0.02413471085 | K137: -0.02413471085 | L137: =Kent!CJ50 -> 42929 | M137: 0.02692373063
A138: 75-79 | B138: =INDEX(C93:T93,Index!$B$11) -> 2910 | C138: 0.02143788538 | D138: -0.02143788538 | E138: =INDEX(C113:T113,Index!$B$11) -> 3322 | F138: 0.0244730774 | H138: 75-79 | I138: =Kent!CJ31 -> 34048 | J138: 0.02135384426 | K138: -0.02135384426 | L138: =Kent!CJ51 -> 39194 | M138: 0.02458125505
A139: 80-84 | B139: =INDEX(C94:T94,Index!$B$11) -> 1627 | C139: 0.01198606169 | D139: -0.01198606169 | E139: =INDEX(C114:T114,Index!$B$11) -> 1969 | F139: 0.01450556575 | H139: 80-84 | I139: =Kent!CJ32 -> 19881 | J139: 0.01246874347 | K139: -0.01246874347 | L139: =Kent!CJ52 -> 24723 | M139: 0.01550549494
A140: 85+ | B140: =INDEX(C95:T95,Index!$B$11) -> 1294 | C140: 0.009532860374 | D140: -0.009532860374 | E140: =INDEX(C115:T115,Index!$B$11) -> 2060 | F140: 0.0151759601 | H140: 85+ | I140: =Kent!CJ33 -> 16434 | J140: 0.01030689252 | K140: -0.01030689252 | L140: =Kent!CJ53 -> 27467 | M140: 0.0172264462

Sheet England (hidden)
A1: 2022 Sub-national Population Projections | BE1: Insert column here before extending the table
A2: ONS Sub-national Population Projections 2022-2047 - MIGCAT _ Released 25/04/2025 - (1992 to 2001 Revised 7th October 2004) ( 2002 to 2010 revised in light of the 2011 census. Released 30 April 2013) | AD2: Selected Ages: | AF2: =Index!$C$4&" : "&Index!$C$7 -> 0 : 90 | BI2: Start year | BJ2: End Year | BK2: Number change | BL2: % Change
AE3: =AE13 -> 2022 | AF3: =AF13 -> 2023 | AG3: =AG13 -> 2024 | AH3: =AH13 -> 2025 | AI3: =AI13 -> 2026 | AJ3: =AJ13 -> 2027 | AK3: 2028 | AL3: 2029 | AM3: 2030 | AN3: 2031 | AO3: 2032 | AP3: 2033 | AQ3: 2034 | AR3: 2035 | AS3: 2036 | AT3: 2037 | AU3: 2038 | AV3: 2039 | AW3: 2040 | AX3: 2041 | AY3: 2042 | AZ3: 2043 | BA3: 2044 | BB3: 2045 | BC3: 2046 | BD3: =BD13 -> 2047 | BI3: =INDEX($AE3:$BD3,Index!$B$16) -> 2022 | BJ3: =INDEX($AE3:$BD3,Index!$B$19) -> 2047
AD4: Males | AE4: =OFFSET(AE16,Index!$B$7-1,0)-IF(Index!$B$4-2=-1,0,OFFSET(AE16,Index!$B$4-2,0)) -> 27986032 | AF4: =OFFSET(AF16,Index!$B$7-1,0)-IF(Index!$B$4-2=-1,0,OFFSET(AF16,Index!$B$4-2,0)) -> 28402661.04 | AG4: =OFFSET(AG16,Index!$B$7-1,0)-IF(Index!$B$4-2=-1,0,OFFSET(AG16,Index!$B$4-2,0)) -> 28744822.98 | AH4: =OFFSET(AH16,Index!$B$7-1,0)-IF(Index!$B$4-2=-1,0,OFFSET(AH16,Index!$B$4-2,0)) -> 28912766.99 | AI4: =OFFSET(AI16,Index!$B$7-1,0)-IF(Index!$B$4-2=-1,0,OFFSET(AI16,Index!$B$4-2,0)) -> 29037418.99 | AJ4: =OFFSET(AJ16,Index!$B$7-1,0)-IF(Index!$B$4-2=-1,0,OFFSET(AJ16,Index!$B$4-2,0)) -> 29157236.02 | AK4: =OFFSET(AK16,Index!$B$7-1,0)-IF(Index!$B$4-2=-1,0,OFFSET(AK16,Index!$B$4-2,0)) -> 29288245.96 | AL4: =OFFSET(AL16,Index!$B$7-1,0)-IF(Index!$B$4-2=-1,0,OFFSET(AL16,Index!$B$4-2,0)) -> 29432604.98 | AM4: =OFFSET(AM16,Index!$B$7-1,0)-IF(Index!$B$4-2=-1,0,OFFSET(AM16,Index!$B$4-2,0)) -> 29579583.99 | AN4: =OFFSET(AN16,Index!$B$7-1,0)-IF(Index!$B$4-2=-1,0,OFFSET(AN16,Index!$B$4-2,0)) -> 29723117.95 | AO4: =OFFSET(AO16,Index!$B$7-1,0)-IF(Index!$B$4-2=-1,0,OFFSET(AO16,Index!$B$4-2,0)) -> 29863332.03 | AP4: =OFFSET(AP16,Index!$B$7-1,0)-IF(Index!$B$4-2=-1,0,OFFSET(AP16,Index!$B$4-2,0)) -> 30000549.99 | AQ4: =OFFSET(AQ16,Index!$B$7-1,0)-IF(Index!$B$4-2=-1,0,OFFSET(AQ16,Index!$B$4-2,0)) -> 30135189.05 | AR4: =OFFSET(AR16,Index!$B$7-1,0)-IF(Index!$B$4-2=-1,0,OFFSET(AR16,Index!$B$4-2,0)) -> 30267530.06 | AS4: =OFFSET(AS16,Index!$B$7-1,0)-IF(Index!$B$4-2=-1,0,OFFSET(AS16,Index!$B$4-2,0)) -> 30397848.99 | AT4: =OFFSET(AT16,Index!$B$7-1,0)-IF(Index!$B$4-2=-1,0,OFFSET(AT16,Index!$B$4-2,0)) -> 30526551.1 | AU4: =OFFSET(AU16,Index!$B$7-1,0)-IF(Index!$B$4-2=-1,0,OFFSET(AU16,Index!$B$4-2,0)) -> 30654009.02 | AV4: =OFFSET(AV16,Index!$B$7-1,0)-IF(Index!$B$4-2=-1,0,OFFSET(AV16,Index!$B$4-2,0)) -> 30780511 | AW4: =OFFSET(AW16,Index!$B$7-1,0)-IF(Index!$B$4-2=-1,0,OFFSET(AW16,Index!$B$4-2,0)) -> 30906237.04 | AX4: =OFFSET(AX16,Index!$B$7-1,0)-IF(Index!$B$4-2=-1,0,OFFSET(AX16,Index!$B$4-2,0)) -> 31031251.03 | AY4: =OFFSET(AY16,Index!$B$7-1,0)-IF(Index!$B$4-2=-1,0,OFFSET(AY16,Index!$B$4-2,0)) -> 31155533 | AZ4: =OFFSET(AZ16,Index!$B$7-1,0)-IF(Index!$B$4-2=-1,0,OFFSET(AZ16,Index!$B$4-2,0)) -> 31278917.06 | BA4: =OFFSET(BA16,Index!$B$7-1,0)-IF(Index!$B$4-2=-1,0,OFFSET(BA16,Index!$B$4-2,0)) -> 31401093 | BB4: =OFFSET(BB16,Index!$B$7-1,0)-IF(Index!$B$4-2=-1,0,OFFSET(BB16,Index!$B$4-2,0)) -> 31521771.04 | BC4: =OFFSET(BC16,Index!$B$7-1,0)-IF(Index!$B$4-2=-1,0,OFFSET(BC16,Index!$B$4-2,0)) -> 31640736.99 | BD4: =OFFSET(BD16,Index!$B$7-1,0)-IF(Index!$B$4-2=-1,0,OFFSET(BD16,Index!$B$4-2,0)) -> 31757728.96 | BI4: =INDEX($AE4:$BD4,Index!$B$16) -> 27986032 | BJ4: =INDEX($AE4:$BD4,Index!$B$19) -> 31757728.96 | BK4: =BJ4-BI4 -> 3771696.956 | BL4: =BK4/BI4 -> 0.134770694
AD5: Females | AE5: =OFFSET(AE109,Index!$B$7-1,0)-IF(Index!$B$4-2=-1,0,OFFSET(AE109,Index!$B$4-2,0)) -> 29126510 | AF5: =OFFSET(AF109,Index!$B$7-1,0)-IF(Index!$B$4-2=-1,0,OFFSET(AF109,Index!$B$4-2,0)) -> 29507550.03 | AG5: =OFFSET(AG109,Index!$B$7-1,0)-IF(Index!$B$4-2=-1,0,OFFSET(AG109,Index!$B$4-2,0)) -> 29823396.01 | AH5: =OFFSET(AH109,Index!$B$7-1,0)-IF(Index!$B$4-2=-1,0,OFFSET(AH109,Index!$B$4-2,0)) -> 29980510.02 | AI5: =OFFSET(AI109,Index!$B$7-1,0)-IF(Index!$B$4-2=-1,0,OFFSET(AI109,Index!$B$4-2,0)) -> 30099632.99 | AJ5: =OFFSET(AJ109,Index!$B$7-1,0)-IF(Index!$B$4-2=-1,0,OFFSET(AJ109,Index!$B$4-2,0)) -> 30215557.98 | AK5: =OFFSET(AK109,Index!$B$7-1,0)-IF(Index!$B$4-2=-1,0,OFFSET(AK109,Index!$B$4-2,0)) -> 30342184.99 | AL5: =OFFSET(AL109,Index!$B$7-1,0)-IF(Index!$B$4-2=-1,0,OFFSET(AL109,Index!$B$4-2,0)) -> 30481149.92 | AM5: =OFFSET(AM109,Index!$B$7-1,0)-IF(Index!$B$4-2=-1,0,OFFSET(AM109,Index!$B$4-2,0)) -> 30622672.03 | AN5: =OFFSET(AN109,Index!$B$7-1,0)-IF(Index!$B$4-2=-1,0,OFFSET(AN109,Index!$B$4-2,0)) -> 30761182.99 | AO5: =OFFSET(AO109,Index!$B$7-1,0)-IF(Index!$B$4-2=-1,0,OFFSET(AO109,Index!$B$4-2,0)) -> 30896522.06 | AP5: =OFFSET(AP109,Index!$B$7-1,0)-IF(Index!$B$4-2=-1,0,OFFSET(AP109,Index!$B$4-2,0)) -> 31028773.95 | AQ5: =OFFSET(AQ109,Index!$B$7-1,0)-IF(Index!$B$4-2=-1,0,OFFSET(AQ109,Index!$B$4-2,0)) -> 31158142.05 | AR5: =OFFSET(AR109,Index!$B$7-1,0)-IF(Index!$B$4-2=-1,0,OFFSET(AR109,Index!$B$4-2,0)) -> 31284726.96 | AS5: =OFFSET(AS109,Index!$B$7-1,0)-IF(Index!$B$4-2=-1,0,OFFSET(AS109,Index!$B$4-2,0)) -> 31408618.04 | AT5: =OFFSET(AT109,Index!$B$7-1,0)-IF(Index!$B$4-2=-1,0,OFFSET(AT109,Index!$B$4-2,0)) -> 31530058.02 | AU5: =OFFSET(AU109,Index!$B$7-1,0)-IF(Index!$B$4-2=-1,0,OFFSET(AU109,Index!$B$4-2,0)) -> 31649247.98 | AV5: =OFFSET(AV109,Index!$B$7-1,0)-IF(Index!$B$4-2=-1,0,OFFSET(AV109,Index!$B$4-2,0)) -> 31766336.9 | AW5: =OFFSET(AW109,Index!$B$7-1,0)-IF(Index!$B$4-2=-1,0,OFFSET(AW109,Index!$B$4-2,0)) -> 31881416.93 | AX5: =OFFSET(AX109,Index!$B$7-1,0)-IF(Index!$B$4-2=-1,0,OFFSET(AX109,Index!$B$4-2,0)) -> 31994613.03 | AY5: =OFFSET(AY109,Index!$B$7-1,0)-IF(Index!$B$4-2=-1,0,OFFSET(AY109,Index!$B$4-2,0)) -> 32106045.99 | AZ5: =OFFSET(AZ109,Index!$B$7-1,0)-IF(Index!$B$4-2=-1,0,OFFSET(AZ109,Index!$B$4-2,0)) -> 32215547.01 | BA5: =OFFSET(BA109,Index!$B$7-1,0)-IF(Index!$B$4-2=-1,0,OFFSET(BA109,Index!$B$4-2,0)) -> 32322944.04 | BB5: =OFFSET(BB109,Index!$B$7-1,0)-IF(Index!$B$4-2=-1,0,OFFSET(BB109,Index!$B$4-2,0)) -> 32428125.95 | BC5: =OFFSET(BC109,Index!$B$7-1,0)-IF(Index!$B$4-2=-1,0,OFFSET(BC109,Index!$B$4-2,0)) -> 32530923.02 | BD5: =OFFSET(BD109,Index!$B$7-1,0)-IF(Index!$B$4-2=-1,0,OFFSET(BD109,Index!$B$4-2,0)) -> 32631158 | BI5: =INDEX($AE5:$BD5,Index!$B$16) -> 29126510 | BJ5: =INDEX($AE5:$BD5,Index!$B$19) -> 32631158 | BK5: =BJ5-BI5 -> 3504647.996 | BL5: =BK5/BI5 -> 0.1203250234
AD6: Total | AE6: =SUM(AE4:AE5) -> 57112542 | AF6: =SUM(AF4:AF5) -> 57910211.06 | AG6: =SUM(AG4:AG5) -> 58568218.99 | AH6: =SUM(AH4:AH5) -> 58893277.01 | AI6: =SUM(AI4:AI5) -> 59137051.98 | AJ6: =SUM(AJ4:AJ5) -> 59372794 | AK6: 59630430.96 | AL6: 59913754.9 | AM6: 60202256.02 | AN6: 60484300.94 | AO6: 60759854.09 | AP6: 61029323.94 | AQ6: 61293331.1 | AR6: 61552257.02 | AS6: 61806467.03 | AT6: 62056609.12 | AU6: 62303257 | AV6: 62546847.9 | AW6: 62787653.97 | AX6: 63025864.06 | AY6: 63261578.99 | AZ6: 63494464.07 | BA6: 63724037.05 | BB6: 63949896.99 | BC6: 64171660.01 | BD6: 64388886.95 | BI6: =INDEX($AE6:$BD6,Index!$B$16) -> 57112542 | BJ6: =INDEX($AE6:$BD6,Index!$B$19) -> 64388886.95 | BK6: =BJ6-BI6 -> 7276344.952 | BL6: =BK6/BI6 -> 0.1274036262
AD8: Males | AE8: =IF(AE4<0,"0",AE4) -> 27986032 | AF8: =IF(AF4<0,"0",AF4) -> 28402661.04 | AG8: 28744822.98 | AH8: 28912766.99 | AI8: 29037418.99 | AJ8: 29157236.02 | AK8: 29288245.96 | AL8: 29432604.98 | AM8: 29579583.99 | AN8: 29723117.95 | AO8: 29863332.03 | AP8: 30000549.99 | AQ8: 30135189.05 | AR8: 30267530.06 | AS8: 30397848.99 | AT8: 30526551.1 | AU8: 30654009.02 | AV8: 30780511 | AW8: 30906237.04 | AX8: 31031251.03 | AY8: 31155533 | AZ8: 31278917.06 | BA8: 31401093 | BB8: 31521771.04 | BC8: 31640736.99 | BD8: 31757728.96
AD9: Females | AE9: =IF(AE5<0,"0",AE5) -> 29126510 | AF9: 29507550.03 | AG9: 29823396.01 | AH9: 29980510.02 | AI9: 30099632.99 | AJ9: 30215557.98 | AK9: 30342184.99 | AL9: 30481149.92 | AM9: 30622672.03 | AN9: 30761182.99 | AO9: 30896522.06 | AP9: 31028773.95 | AQ9: 31158142.05 | AR9: 31284726.96 | AS9: 31408618.04 | AT9: 31530058.02 | AU9: 31649247.98 | AV9: 31766336.9 | AW9: 31881416.93 | AX9: 31994613.03 | AY9: 32106045.99 | AZ9: 32215547.01 | BA9: 32322944.04 | BB9: 32428125.95 | BC9: 32530923.02 | BD9: 32631158
AD10: Total | AE10: =SUM(AE8:AE9) -> 57112542 | AF10: 57910211.06 | AG10: 58568218.99 | AH10: 58893277.01 | AI10: 59137051.98 | AJ10: 59372794 | AK10: 59630430.96 | AL10: 59913754.9 | AM10: 60202256.02 | AN10: 60484300.94 | AO10: 60759854.09 | AP10: 61029323.94 | AQ10: 61293331.1 | AR10: 61552257.02 | AS10: 61806467.03 | AT10: 62056609.12 | AU10: 62303257 | AV10: 62546847.9 | AW10: 62787653.97 | AX10: 63025864.06 | AY10: 63261578.99 | AZ10: 63494464.07 | BA10: 63724037.05 | BB10: 63949896.99 | BC10: 64171660.01 | BD10: 64388886.95
D12: Population projections for . . . . . . | H12: England | AI12: Cummulative Ages | BF12: Population Pyramid Data
C13: Base Year | AE13: =C14 -> 2022 | AF13: 2023 | AG13: 2024 | AH13: 2025 | AI13: 2026 | AJ13: 2027 | AK13: 2028 | AL13: 2029 | AM13: 2030 | AN13: 2031 | AO13: 2032 | AP13: 2033 | AQ13: 2034 | AR13: 2035 | AS13: 2036 | AT13: 2037 | AU13: 2038 | AV13: 2039 | AW13: 2040 | AX13: 2041 | AY13: 2042 | AZ13: 2043 | BA13: 2044 | BB13: 2045 | BC13: 2046 | BD13: 2047
A14: Sex | B14: Age | C14: 2022 | D14: 2023 | E14: 2024 | F14: 2025 | G14: 2026 | H14: 2027 | I14: 2028 | J14: 2029 | K14: 2030 | L14: 2031 | M14: 2032 | N14: 2033 | O14: 2034 | P14: 2035 | Q14: 2036 | R14: 2037 | S14: 2038 | T14: 2039 | U14: 2040 | V14: 2041 | W14: 2042 | X14: 2043 | Y14: 2044 | Z14: 2045 | AA14: 2046 | AB14: 2047 | BI14: =C14 -> 2022 | BJ14: 2023 | BK14: 2024 | BL14: 2025 | BM14: 2026 | BN14: 2027 | BO14: 2028 | BP14: 2029 | BQ14: 2030 | BR14: 2031 | BS14: 2032 | BT14: 2033 | BU14: 2034 | BV14: 2035 | BW14: 2036 | BX14: 2037 | BY14: 2038 | BZ14: 2039 | CA14: 2040 | CB14: 2041 | CC14: 2042 | CD14: 2043 | CE14: 2044 | CF14: 2045 | CG14: 2046 | CH14: 2047 | CJ14: =INDEX(BI14:CH14,'Population Pyramid'!$L$1) -> 2022
B15: All persons | C15: =SUM(C107,C200) -> 57112542 | D15: =SUM(D107,D200) -> 57910211.06 | E15: 58568218.99 | F15: 58893277.01 | G15: 59137051.98 | H15: 59372794 | I15: 59630430.96 | J15: 59913754.9 | K15: 60202256.02 | L15: 60484300.94 | M15: 60759854.09 | N15: 61029323.94 | O15: 61293331.1 | P15: 61552257.02 | Q15: 61806467.03 | R15: 62056609.12 | S15: 62303257 | T15: 62546847.9 | U15: 62787653.97 | V15: 63025864.06 | W15: 63261578.99 | X15: 63494464.07 | Y15: =SUM(Y107,Y200) -> 63724037.05 | Z15: 63949896.99 | AA15: 64171660.01 | AB15: 64388886.95 | AD15: Males | BF15: Males | BG15: All Ages | BI15: =C107 -> 27986032 | BJ15: 28402661.04 | BK15: 28744822.98 | BL15: 28912766.99 | BM15: 29037418.99 | BN15: 29157236.02 | BO15: 29288245.96 | BP15: 29432604.98 | BQ15: 29579583.99 | BR15: 29723117.95 | BS15: 29863332.03 | BT15: 30000549.99 | BU15: 30135189.05 | BV15: 30267530.06 | BW15: 30397848.99 | BX15: 30526551.1 | BY15: 30654009.02 | BZ15: 30780511 | CA15: 30906237.04 | CB15: 31031251.03 | CC15: 31155533 | CD15: 31278917.06 | CE15: 31401093 | CF15: 31521771.04 | CG15: 31640736.99 | CH15: 31757728.96 | CJ15: =INDEX(BI15:CH15,'Population Pyramid'!$L$1) -> 27986032
A16: male | B16: 0 | C16: 305081 | D16: 292898.001 | E16: 294386.006 | F16: 295784.999 | G16: 295230.992 | H16: 294189.996 | I16: 293510.985 | J16: 293422 | K16: 293561.003 | L16: 293796.999 | M16: 294110.988 | N16: 294674.997 | O16: 295568 | P16: 296653 | Q16: 297900.998 | R16: 299339.001 | S16: 300973.996 | T16: 302680.001 | U16: 304319.001 | V16: 305837.998 | W16: 307214.003 | X16: 308250.007 | Y16: 308863.004 | Z16: 309189.002 | AA16: 309257.002 | AB16: 309114 | AD16: 0 | AE16: =C16 -> 305081 | AF16: 292898.001 | AG16: 294386.006 | AH16: 295784.999 | AI16: 295230.992 | AJ16: 294189.996 | AK16: 293510.985 | AL16: 293422 | AM16: 293561.003 | AN16: 293796.999 | AO16: 294110.988 | AP16: 294674.997 | AQ16: 295568 | AR16: 296653 | AS16: 297900.998 | AT16: 299339.001 | AU16: 300973.996 | AV16: 302680.001 | AW16: 304319.001 | AX16: 305837.998 | AY16: 307214.003 | AZ16: 308250.007 | BA16: 308863.004 | BB16: 309189.002 | BC16: 309257.002 | BD16: 309114 | BF16: Males | BG16: 0-4 | BI16: =SUM(C16:C20) -> 1568276 | BJ16: 1555337.025 | BK16: 1540171.012 | BL16: 1521471.995 | BM16: 1508745.985 | BN16: 1491898.004 | BO16: 1490484.983 | BP16: 1490181.988 | BQ16: 1488854.998 | BR16: 1487927.001 | BS16: 1488054.989 | BT16: 1489272.999 | BU16: 1491431.998 | BV16: 1494539.014 | BW16: 1498651.983 | BX16: 1503887.003 | BY16: 1510189.001 | BZ16: 1517308.979 | CA16: 1524979.009 | CB16: 1532915.994 | CC16: 1540787.003 | CD16: 1548062.004 | CE16: 1554247.02 | CF16: 1559118.994 | CG16: 1562539.011 | CH16: 1564445.996 | CJ16: =INDEX(BI16:CH16,'Population Pyramid'!$L$1) -> 1568276
A17: male | B17: 1 | C17: 303201 | D17: 309600.001 | E17: 296739.989 | F17: 296474.995 | G17: 297512.003 | H17: 296955.007 | I17: 296007.001 | J17: 295431.996 | K17: 295383.997 | L17: 295523.993 | M17: 295762.997 | N17: 296080.004 | O17: 296645.996 | P17: 297541.006 | Q17: 298627.002 | R17: 299876.998 | S17: 301315.999 | T17: 302950.996 | U17: 304657.997 | V17: 306297.008 | W17: 307816.993 | X17: 309193.998 | Y17: 310231.005 | Z17: 310844.006 | AA17: 311170.999 | AB17: 311242.003 | AD17: 1 | AE17: =AE16+C17 -> 608282 | AF17: =AF16+D17 -> 602498.002 | AG17: =AG16+E17 -> 591125.995 | AH17: =AH16+F17 -> 592259.994 | AI17: =AI16+G17 -> 592742.995 | AJ17: =AJ16+H17 -> 591145.003 | AK17: =AK16+I17 -> 589517.986 | AL17: =AL16+J17 -> 588853.996 | AM17: =AM16+K17 -> 588945 | AN17: =AN16+L17 -> 589320.992 | AO17: =AO16+M17 -> 589873.985 | AP17: =AP16+N17 -> 590755.001 | AQ17: =AQ16+O17 -> 592213.996 | AR17: =AR16+P17 -> 594194.006 | AS17: =AS16+Q17 -> 596528 | AT17: =AT16+R17 -> 599215.999 | AU17: =AU16+S17 -> 602289.995 | AV17: =AV16+T17 -> 605630.997 | AW17: =AW16+U17 -> 608976.998 | AX17: =AX16+V17 -> 612135.006 | AY17: =AY16+W17 -> 615030.996 | AZ17: =AZ16+X17 -> 617444.005 | BA17: =BA16+Y17 -> 619094.009 | BB17: =BB16+Z17 -> 620033.008 | BC17: =BC16+AA17 -> 620428.001 | BD17: =BD16+AB17 -> 620356.003 | BF17: Males | BG17: 5-9 | BI17: =SUM(C21:C25) -> 1707638 | BJ17: 1699648.003 | BK17: 1694181.998 | BL17: 1676711.012 | BM17: 1644271.995 | BN17: 1623653.005 | BO17: 1595147.996 | BP17: 1569725.017 | BQ17: 1550955.002 | BR17: 1540381 | BS17: 1525638.018 | BT17: 1525457.003 | BU17: 1525486.99 | BV17: 1524176.028 | BW17: 1523266.013 | BX17: 1523407.994 | BY17: 1524635.005 | BZ17: 1526797.998 | CA17: 1529908.99 | CB17: 1534024.009 | CC17: 1539258.011 | CD17: 1545558 | CE17: 1552669.018 | CF17: 1560325.006 | CG17: 1568252.99 | CH17: 1576121 | CJ17: =INDEX(BI17:CH17,'Population Pyramid'!$L$1) -> 1707638
A18: male | B18: 2 | C18: 314338 | D18: 308907.003 | E18: 314404.003 | F18: 299335.003 | G18: 298606.992 | H18: 299634.001 | I18: 299202.995 | J18: 298397.997 | K18: 297876.005 | L18: 297828.996 | M18: 297969.01 | N18: 298208.994 | O18: 298526.997 | P18: 299095 | Q18: 299987.988 | R18: 301074.994 | S18: 302325.006 | T18: 303763.994 | U18: 305398.998 | V18: 307105.994 | W18: 308743.001 | X18: 310261.997 | Y18: 311641.004 | Z18: 312677.997 | AA18: 313288.999 | AB18: 313619.002 | AD18: 2 | AE18: 922620 | AF18: 911405.005 | AG18: 905529.998 | AH18: 891594.997 | AI18: 891349.987 | AJ18: 890779.004 | AK18: 888720.981 | AL18: 887251.993 | AM18: 886821.005 | AN18: 887149.988 | AO18: 887842.995 | AP18: 888963.995 | AQ18: 890740.993 | AR18: 893289.006 | AS18: 896515.988 | AT18: 900290.993 | AU18: 904615.001 | AV18: 909394.991 | AW18: 914375.996 | AX18: 919241 | AY18: 923773.997 | AZ18: 927706.002 | BA18: 930735.013 | BB18: 932711.005 | BC18: 933717 | BD18: 933975.005 | BF18: Males | BG18: 10-14 | BI18: =SUM(C26:C30) -> 1789255 | BJ18: 1798745.009 | BK18: 1798881.999 | BL18: 1788290.001 | BM18: 1775085.987 | BN18: 1753106.998 | BO18: 1732765.016 | BP18: 1718759.991 | BQ18: 1700796.017 | BR18: 1669910.978 | BS18: 1651064.017 | BT18: 1623717.028 | BU18: 1598667.027 | BV18: 1579966.989 | BW18: 1569441.019 | BX18: 1554740.027 | BY18: 1554583.002 | BZ18: 1554623.002 | CA18: 1553322.005 | CB18: 1552419 | CC18: 1552567.009 | CD18: 1553795.984 | CE18: 1555961.996 | CF18: 1559069.005 | CG18: 1563177.994 | CH18: 1568411.015 | CJ18: =INDEX(BI18:CH18,'Population Pyramid'!$L$1) -> 1789255
A19: male | B19: 3 | C19: 320870 | D19: 318886.009 | E19: 312525.002 | F19: 316033.998 | G19: 300506.996 | H19: 299769.002 | I19: 300963.003 | J19: 300725.006 | K19: 299990.001 | L19: 299468.007 | M19: 299422.999 | N19: 299564.003 | O19: 299805.009 | P19: 300123.004 | Q19: 300691 | R19: 301583.004 | S19: 302670.004 | T19: 303920.993 | U19: 305359.006 | V19: 306993.999 | W19: 308699.008 | X19: 310336.003 | Y19: 311856.002 | Z19: 313233.991 | AA19: 314270.005 | AB19: 314881.994 | AD19: 3 | AE19: 1243490 | AF19: 1230291.014 | AG19: 1218055 | AH19: 1207628.995 | AI19: 1191856.983 | AJ19: 1190548.006 | AK19: 1189683.984 | AL19: 1187976.999 | AM19: 1186811.006 | AN19: 1186617.995 | AO19: 1187265.994 | AP19: 1188527.998 | AQ19: 1190546.002 | AR19: 1193412.01 | AS19: 1197206.988 | AT19: 1201873.997 | AU19: 1207285.005 | AV19: 1213315.984 | AW19: 1219735.002 | AX19: 1226234.999 | AY19: 1232473.005 | AZ19: 1238042.005 | BA19: 1242591.015 | BB19: 1245944.996 | BC19: 1247987.005 | BD19: 1248856.999 | BF19: Males | BG19: 15-19 | BI19: =SUM(C31:C35) -> 1703618 | BJ19: 1761117.995 | BK19: 1795141.006 | BL19: 1814241.999 | BM19: 1839596.009 | BN19: 1859738.988 | BO19: 1858786.999 | BP19: 1851913.995 | BQ19: 1840808.999 | BR19: 1828480.007 | BS19: 1807545.997 | BT19: 1787917 | BU19: 1774167.019 | BV19: 1756284.012 | BW19: 1725501.995 | BX19: 1706765.016 | BY19: 1679505.997 | BZ19: 1654553.998 | CA19: 1635940.999 | CB19: 1625462.014 | CC19: 1610792.023 | CD19: 1610677.005 | CE19: 1610732.009 | CF19: 1609441.99 | CG19: 1608552.004 | CH19: 1608708.996 | CJ19: =INDEX(BI19:CH19,'Population Pyramid'!$L$1) -> 1703618
A20: male | B20: 4 | C20: 324786 | D20: 325046.011 | E20: 322116.012 | F20: 313843 | G20: 316889.002 | H20: 301349.998 | I20: 300800.999 | J20: 302204.989 | K20: 302043.992 | L20: 301309.006 | M20: 300788.995 | N20: 300745.001 | O20: 300885.996 | P20: 301127.004 | Q20: 301444.995 | R20: 302013.006 | S20: 302903.996 | T20: 303992.995 | U20: 305244.007 | V20: 306680.995 | W20: 308313.998 | X20: 310019.999 | Y20: 311656.005 | Z20: 313173.998 | AA20: 314552.006 | AB20: 315588.997 | AD20: 4 | AE20: 1568276 | AF20: 1555337.025 | AG20: 1540171.012 | AH20: 1521471.995 | AI20: 1508745.985 | AJ20: 1491898.004 | AK20: 1490484.983 | AL20: 1490181.988 | AM20: 1488854.998 | AN20: 1487927.001 | AO20: 1488054.989 | AP20: 1489272.999 | AQ20: 1491431.998 | AR20: 1494539.014 | AS20: 1498651.983 | AT20: 1503887.003 | AU20: 1510189.001 | AV20: 1517308.979 | AW20: 1524979.009 | AX20: 1532915.994 | AY20: 1540787.003 | AZ20: 1548062.004 | BA20: 1554247.02 | BB20: 1559118.994 | BC20: 1562539.011 | BD20: 1564445.996 | BF20: Males | BG20: 20-24 | BI20: =SUM(C36:C40) -> 1740839 | BJ20: 1807379.007 | BK20: 1860880.007 | BL20: 1884095.989 | BM20: 1899675.996 | BN20: 1916968.01 | BO20: 1941481.993 | BP20: 1956680.985 | BQ20: 1976425.001 | BR20: 2004550.01 | BS20: 2026516.008 | BT20: 2026513.998 | BU20: 2019965.986 | BV20: 2009041.006 | BW20: 1996903.993 | BX20: 1976114.015 | BY20: 1956653.988 | BZ20: 1943087.985 | CA20: 1925425.989 | CB20: 1894888.022 | CC20: 1876298.003 | CD20: 1849185.003 | CE20: 1824386 | CF20: 1805852.998 | CG20: 1795400.995 | CH20: 1780749.981 | CJ20: =INDEX(BI20:CH20,'Population Pyramid'!$L$1) -> 1740839
A21: male | B21: 5 | C21: 332687 | D21: 328782.998 | E21: 328121.007 | F21: 323352 | G21: 314636.007 | H21: 317664.002 | I21: 302311.992 | J21: 301972 | K21: 303451.998 | L21: 303291.997 | M21: 302558.002 | N21: 302039.011 | O21: 301994.003 | P21: 302136.012 | Q21: 302378.006 | R21: 302696 | S21: 303263.004 | T21: 304154.99 | U21: 305244.997 | V21: 306494.001 | W21: 307931.002 | X21: 309565.006 | Y21: 311270.006 | Z21: 312904.999 | AA21: 314422.992 | AB21: 315801.001 | AD21: 5 | AE21: 1900963 | AF21: 1884120.023 | AG21: 1868292.019 | AH21: 1844823.995 | AI21: 1823381.992 | AJ21: 1809562.006 | AK21: 1792796.975 | AL21: 1792153.988 | AM21: 1792306.996 | AN21: 1791218.998 | AO21: 1790612.991 | AP21: 1791312.01 | AQ21: 1793426.001 | AR21: 1796675.026 | AS21: 1801029.989 | AT21: 1806583.003 | AU21: 1813452.005 | AV21: 1821463.969 | AW21: 1830224.006 | AX21: 1839409.995 | AY21: 1848718.005 | AZ21: 1857627.01 | BA21: 1865517.026 | BB21: 1872023.993 | BC21: 1876962.003 | BD21: 1880246.997 | BF21: Males | BG21: 25-29 | BI21: =SUM(C41:C45) -> 1836278 | BJ21: 1898590.975 | BK21: 1945597.991 | BL21: 1956871.984 | BM21: 1954355.992 | BN21: 1945230.002 | BO21: 1950838.993 | BP21: 1966566.977 | BQ21: 1990510.986 | BR21: 2015794.994 | BS21: 2042587.999 | BT21: 2072643.991 | BU21: 2089412.995 | BV21: 2109320.012 | BW21: 2137575.007 | BX21: 2159677.01 | BY21: 2159767.019 | BZ21: 2153234.008 | CA21: 2142293.994 | CB21: 2130151.985 | CC21: 2109397.987 | CD21: 2089922.04 | CE21: 2076292.997 | CF21: 2058540.012 | CG21: 2027896.005 | CH21: 2009189.994 | CJ21: =INDEX(BI21:CH21,'Population Pyramid'!$L$1) -> 1836278
A22: male | B22: 6 | C22: 342680 | D22: 336578.005 | E22: 331788.997 | F22: 329349.005 | G22: 324151.99 | H22: 315422.996 | I22: 318625.004 | J22: 303472.999 | K22: 303206.994 | L22: 304690 | M22: 304530.009 | N22: 303797 | O22: 303277.999 | P22: 303233.998 | Q22: 303376.011 | R22: 303618 | S22: 303935.996 | T22: 304504.01 | U22: 305396 | V22: 306484.996 | W22: 307734.007 | X22: 309170.002 | Y22: 310804 | Z22: 312508.003 | AA22: 314143.993 | AB22: 315661.003 | AD22: 6 | AE22: 2243643 | AF22: 2220698.028 | AG22: 2200081.016 | AH22: 2174173 | AI22: 2147533.982 | AJ22: 2124985.002 | AK22: 2111421.979 | AL22: 2095626.987 | AM22: 2095513.99 | AN22: 2095908.998 | AO22: 2095143 | AP22: 2095109.01 | AQ22: 2096704 | AR22: 2099909.024 | AS22: 2104406 | AT22: 2110201.003 | AU22: 2117388.001 | AV22: 2125967.979 | AW22: 2135620.006 | AX22: 2145894.991 | AY22: 2156452.012 | AZ22: 2166797.012 | BA22: 2176321.026 | BB22: 2184531.996 | BC22: 2191105.996 | BD22: 2195908 | BF22: Males | BG22: 30-34 | BI22: =SUM(C46:C50) -> 1933496 | BJ22: 1978361.002 | BK22: 2018932 | BL22: 2025902.006 | BM22: 2021918.002 | BN22: 2027902.002 | BO22: 2039389 | BP22: 2051953.992 | BQ22: 2061323.006 | BR22: 2064808.997 | BS22: 2062558.008 | BT22: 2072569.995 | BU22: 2089478.014 | BV22: 2113384.966 | BW22: 2138610.02 | BX22: 2165346.985 | BY22: 2195375.995 | BZ22: 2212170 | CA22: 2232065.011 | CB22: 2260279.998 | CC22: 2282357.002 | CD22: 2282489 | CE22: 2276018.997 | CF22: 2265165.995 | CG22: 2253144.976 | CH22: 2232531.994 | CJ22: =INDEX(BI22:CH22,'Population Pyramid'!$L$1) -> 1933496
A23: male | B23: 7 | C23: 339519 | D23: 346436.995 | E23: 339504.006 | F23: 333022.006 | G23: 330178.996 | H23: 324969.001 | I23: 316403.007 | J23: 319788.01 | K23: 304703.002 | L23: 304442.997 | M23: 305926.008 | N23: 305766.997 | O23: 305033.997 | P23: 304516.008 | Q23: 304471.998 | R23: 304614.997 | S23: 304857.005 | T23: 305173.998 | U23: 305743.002 | V23: 306635.001 | W23: 307723.001 | X23: 308971.999 | Y23: 310408.006 | Z23: 312041.002 | AA23: 313746.001 | AB23: 315380.997 | AD23: 7 | AE23: 2583162 | AF23: 2567135.023 | AG23: 2539585.022 | AH23: 2507195.006 | AI23: 2477712.978 | AJ23: 2449954.003 | AK23: 2427824.986 | AL23: 2415414.997 | AM23: 2400216.992 | AN23: 2400351.995 | AO23: 2401069.008 | AP23: 2400876.007 | AQ23: 2401737.997 | AR23: 2404425.032 | AS23: 2408877.998 | AT23: 2414816 | AU23: 2422245.006 | AV23: 2431141.977 | AW23: 2441363.008 | AX23: 2452529.992 | AY23: 2464175.013 | AZ23: 2475769.011 | BA23: 2486729.032 | BB23: 2496572.998 | BC23: 2504851.997 | BD23: 2511288.997 | BF23: Males | BG23: 35-39 | BI23: =SUM(C51:C55) -> 1865668 | BJ23: 1922683.013 | BK23: 1973332.99 | BL23: 2002398.013 | BM23: 2030927.989 | BN23: 2055325.011 | BO23: 2063327.994 | BP23: 2078066.011 | BQ23: 2083807 | BR23: 2084563.991 | BS23: 2095704.001 | BT23: 2110380.996 | BU23: 2123807.998 | BV23: 2133167.994 | BW23: 2136662.996 | BX23: 2134480.003 | BY23: 2144500.99 | BZ23: 2161384.013 | CA23: 2185258 | CB23: 2210430.996 | CC23: 2237096.003 | CD23: 2267054.995 | CE23: 2283834.987 | CF23: 2303686.007 | CG23: 2331813.019 | CH23: 2353831.009 | CJ23: =INDEX(BI23:CH23,'Population Pyramid'!$L$1) -> 1865668
A24: male | B24: 8 | C24: 341572 | D24: 343025.003 | E24: 349184.997 | F24: 340689.998 | G24: 333841.004 | H24: 330988.002 | I24: 325921.994 | J24: 317522.004 | K24: 320965 | L24: 305885.004 | M24: 305628.991 | N24: 307111.995 | O24: 306953.987 | P24: 306221.006 | Q24: 305704.001 | R24: 305660.001 | S24: 305803 | T24: 306044.999 | U24: 306362.996 | V24: 306931.004 | W24: 307823.002 | X24: 308912.004 | Y24: 310160.002 | Z24: 311596.008 | AA24: 313228.001 | AB24: 314934.001 | AD24: 8 | AE24: 2924734 | AF24: 2910160.026 | AG24: 2888770.019 | AH24: 2847885.004 | AI24: 2811553.982 | AJ24: 2780942.005 | AK24: 2753746.98 | AL24: 2732937.001 | AM24: 2721181.992 | AN24: 2706236.999 | AO24: 2706697.999 | AP24: 2707988.002 | AQ24: 2708691.984 | AR24: 2710646.038 | AS24: 2714581.999 | AT24: 2720476.001 | AU24: 2728048.006 | AV24: 2737186.976 | AW24: 2747726.004 | AX24: 2759460.996 | AY24: 2771998.015 | AZ24: 2784681.015 | BA24: 2796889.034 | BB24: 2808169.006 | BC24: 2818079.998 | BD24: 2826222.998 | BF24: Males | BG24: 40-44 | BI24: =SUM(C56:C60) -> 1798188 | BJ24: 1847199.978 | BK24: 1869912.995 | BL24: 1883035.997 | BM24: 1899375.021 | BN24: 1921535.999 | BO24: 1955398.02 | BP24: 1989763.01 | BQ24: 2017973.996 | BR24: 2049570.006 | BS24: 2077499.016 | BT24: 2087890.992 | BU24: 2103355.015 | BV24: 2109268.022 | BW24: 2110237.995 | BX24: 2121495.983 | BY24: 2136223 | BZ24: 2149694.992 | CA24: 2159077.998 | CB24: 2162625.996 | CC24: 2160573.005 | CD24: 2170641.003 | CE24: 2187535.005 | CF24: 2211397.007 | CG24: 2236533.999 | CH24: 2263137.013 | CJ24: =INDEX(BI24:CH24,'Population Pyramid'!$L$1) -> 1798188
A25: male | B25: 9 | C25: 351180 | D25: 344825.002 | E25: 345582.991 | F25: 350298.003 | G25: 341463.998 | H25: 334609.004 | I25: 331885.999 | J25: 326970.004 | K25: 318628.008 | L25: 322071.002 | M25: 306995.008 | N25: 306742 | O25: 308227.004 | P25: 308069.004 | Q25: 307335.997 | R25: 306818.996 | S25: 306776 | T25: 306920.001 | U25: 307161.995 | V25: 307479.007 | W25: 308046.999 | X25: 308938.989 | Y25: 310027.004 | Z25: 311274.994 | AA25: 312712.003 | AB25: 314343.998 | AD25: 9 | AE25: 3275914 | AF25: 3254985.028 | AG25: 3234353.01 | AH25: 3198183.007 | AI25: 3153017.98 | AJ25: 3115551.009 | AK25: 3085632.979 | AL25: 3059907.005 | AM25: 3039810 | AN25: 3028308.001 | AO25: 3013693.007 | AP25: 3014730.002 | AQ25: 3016918.988 | AR25: 3018715.042 | AS25: 3021917.996 | AT25: 3027294.997 | AU25: 3034824.006 | AV25: 3044106.977 | AW25: 3054887.999 | AX25: 3066940.003 | AY25: 3080045.014 | AZ25: 3093620.004 | BA25: 3106916.038 | BB25: 3119444 | BC25: 3130792.001 | BD25: 3140566.996 | BF25: Males | BG25: 45-49 | BI25: =SUM(C61:C65) -> 1713834 | BJ25: 1694911.003 | BK25: 1712014.991 | BL25: 1742959.998 | BM25: 1777321.998 | BN25: 1816132.005 | BO25: 1851363.004 | BP25: 1864850.013 | BQ25: 1877717.004 | BR25: 1896101.006 | BS25: 1920524.997 | BT25: 1955715.998 | BU25: 1990342.019 | BV25: 2018515.992 | BW25: 2050046.007 | BX25: 2077936.998 | BY25: 2088474.992 | BZ25: 2104059.01 | CA25: 2110169.018 | CB25: 2111384.989 | CC25: 2122792.004 | CD25: 2137590.021 | CE25: 2151130.984 | CF25: 2160577.993 | CG25: 2164233.003 | CH25: 2162369.996 | CJ25: =INDEX(BI25:CH25,'Population Pyramid'!$L$1) -> 1713834
A26: male | B26: 10 | C26: 360252 | D26: 354336.012 | E26: 347336.997 | F26: 346723.996 | G26: 351116.994 | H26: 342276 | I26: 335541.008 | J26: 332952.995 | K26: 328088.002 | L26: 319749.988 | M26: 323193.009 | N26: 308120.013 | O26: 307871.004 | P26: 309356.994 | Q26: 309199.002 | R26: 308465.006 | S26: 307950.996 | T26: 307907.999 | U26: 308052 | V26: 308292.991 | W26: 308610.003 | X26: 309177.995 | Y26: 310070.988 | Z26: 311159.003 | AA26: 312405.987 | AB26: 313843.002 | AD26: 10 | AE26: 3636166 | AF26: 3609321.04 | AG26: 3581690.007 | AH26: 3544907.003 | AI26: 3504134.974 | AJ26: 3457827.009 | AK26: 3421173.987 | AL26: 3392860 | AM26: 3367898.002 | AN26: 3348057.989 | AO26: 3336886.016 | AP26: 3322850.015 | AQ26: 3324789.992 | AR26: 3328072.036 | AS26: 3331116.998 | AT26: 3335760.003 | AU26: 3342775.002 | AV26: 3352014.976 | AW26: 3362939.999 | AX26: 3375232.994 | AY26: 3388655.017 | AZ26: 3402797.999 | BA26: 3416987.026 | BB26: 3430603.003 | BC26: 3443197.988 | BD26: 3454409.998 | BF26: Males | BG26: 50-54 | BI26: =SUM(C66:C70) -> 1901068 | BJ26: 1878388.992 | BK26: 1840564.997 | BL26: 1804638.992 | BM26: 1752949.993 | BN26: 1707166.987 | BO26: 1681209 | BP26: 1693228.002 | BQ26: 1724109.013 | BR26: 1759559.976 | BS26: 1799394 | BT26: 1835148.998 | BU26: 1848940.002 | BV26: 1862018.006 | BW26: 1880532.995 | BX26: 1904961.006 | BY26: 1939994.006 | BZ26: 1974415.009 | CA26: 2002501.992 | CB26: 2033902.992 | CC26: 2061693.984 | CD26: 2072386.991 | CE26: 2088077.007 | CF26: 2094400.997 | CG26: 2095915.007 | CH26: 2107500.996 | CJ26: =INDEX(BI26:CH26,'Population Pyramid'!$L$1) -> 1901068
A27: male | B27: 11 | C27: 361384 | D27: 363329.999 | E27: 356818.006 | F27: 348509.999 | G27: 347601.002 | H27: 351984.005 | I27: 343248.001 | J27: 336635.994 | K27: 334092.003 | L27: 329230.999 | M27: 320897.004 | N27: 324341.008 | O27: 309270.993 | P27: 309024.994 | Q27: 310513.003 | R27: 310354.001 | S27: 309621.007 | T27: 309106.995 | U27: 309065.009 | V27: 309208.009 | W27: 309449.994 | X27: 309765.991 | Y27: 310335.008 | Z27: 311226.998 | AA27: 312314.001 | AB27: 313562 | AD27: 11 | AE27: 3997550 | AF27: 3972651.039 | AG27: 3938508.013 | AH27: 3893417.002 | AI27: 3851735.976 | AJ27: 3809811.014 | AK27: 3764421.988 | AL27: 3729495.994 | AM27: 3701990.005 | AN27: 3677288.988 | AO27: 3657783.02 | AP27: 3647191.023 | AQ27: 3634060.985 | AR27: 3637097.03 | AS27: 3641630.001 | AT27: 3646114.004 | AU27: 3652396.009 | AV27: 3661121.971 | AW27: 3672005.008 | AX27: 3684441.003 | AY27: 3698105.011 | AZ27: 3712563.99 | BA27: 3727322.034 | BB27: 3741830.001 | BC27: 3755511.989 | BD27: 3767971.998 | BF27: Males | BG27: 55-59 | BI27: =SUM(C71:C75) -> 1892533 | BJ27: 1900182.004 | BK27: 1900314.988 | BL27: 1885362.988 | BM27: 1880738.009 | BN27: 1861794.993 | BO27: 1834833.971 | BP27: 1794936.01 | BQ27: 1760540.993 | BR27: 1711871.004 | BS27: 1669102 | BT27: 1645329.009 | BU27: 1658160.998 | BV27: 1689132.985 | BW27: 1724348.995 | BX27: 1763651.033 | BY27: 1798878.002 | BZ27: 1812723.015 | CA27: 1826040.016 | CB27: 1844662.996 | CC27: 1869012.003 | CD27: 1903726.019 | CE27: 1937780.005 | CF27: 1965675.998 | CG27: 1996828.967 | CH27: 2024412.003 | CJ27: =INDEX(BI27:CH27,'Population Pyramid'!$L$1) -> 1892533
A28: male | B28: 12 | C28: 356627 | D28: 364323.003 | E28: 365705.001 | F28: 357949.006 | G28: 349363.99 | H28: 348448.997 | I28: 352925.002 | J28: 344300.001 | K28: 337732.001 | L28: 335191.992 | M28: 330333.003 | N28: 322004.004 | O28: 325450.005 | P28: 310384.002 | Q28: 310141.008 | R28: 311629.011 | S28: 311470.006 | T28: 310738.01 | U28: 310223.996 | V28: 310182.006 | W28: 310326 | X28: 310566.999 | Y28: 310884.005 | Z28: 311453 | AA28: 312344.005 | AB28: 313431 | AD28: 12 | AE28: 4354177 | AF28: 4336974.042 | AG28: 4304213.014 | AH28: 4251366.008 | AI28: 4201099.966 | AJ28: 4158260.011 | AK28: 4117346.99 | AL28: 4073795.995 | AM28: 4039722.006 | AN28: 4012480.98 | AO28: 3988116.023 | AP28: 3969195.027 | AQ28: 3959510.99 | AR28: 3947481.032 | AS28: 3951771.009 | AT28: 3957743.015 | AU28: 3963866.015 | AV28: 3971859.981 | AW28: 3982229.004 | AX28: 3994623.009 | AY28: 4008431.011 | AZ28: 4023130.989 | BA28: 4038206.039 | BB28: 4053283.001 | BC28: 4067855.994 | BD28: 4081402.998 | BF28: Males | BG28: 60-64 | BI28: =SUM(C76:C80) -> 1661598 | BJ28: 1705315.997 | BK28: 1748661.006 | BL28: 1786311.996 | BM28: 1809133.01 | BN28: 1824130.002 | BO28: 1828175.994 | BP28: 1826121.009 | BQ28: 1812066.99 | BR28: 1808759.01 | BS28: 1791756.996 | BT28: 1766820.981 | BU28: 1729212 | BV28: 1696887.999 | BW28: 1651022.996 | BX28: 1610896.024 | BY28: 1589096.015 | BZ28: 1602581.992 | CA28: 1633447.991 | CB28: 1668163.991 | CC28: 1706610.007 | CD28: 1741044.018 | CE28: 1754927.001 | CF28: 1768508.008 | CG28: 1787184.017 | CH28: 1811327.964 | CJ28: =INDEX(BI28:CH28,'Population Pyramid'!$L$1) -> 1661598
A29: male | B29: 13 | C29: 353934 | D29: 359538.994 | E29: 366711 | F29: 366892.005 | G29: 358874.996 | H29: 350286.996 | I29: 349456.007 | J29: 354027.001 | K29: 345440.01 | L29: 338877.003 | M29: 336338.999 | N29: 331484.005 | O29: 323159.013 | P29: 326606.001 | Q29: 311545.002 | R29: 311305.006 | S29: 312791.988 | T29: 312633.995 | U29: 311903.002 | V29: 311388.999 | W29: 311347.006 | X29: 311492.002 | Y29: 311732.998 | Z29: 312050.005 | AA29: 312618.001 | AB29: 313510.009 | AD29: 13 | AE29: 4708111 | AF29: 4696513.036 | AG29: 4670924.014 | AH29: 4618258.013 | AI29: 4559974.962 | AJ29: 4508547.007 | AK29: 4466802.997 | AL29: 4427822.996 | AM29: 4385162.016 | AN29: 4351357.983 | AO29: 4324455.022 | AP29: 4300679.032 | AQ29: 4282670.003 | AR29: 4274087.033 | AS29: 4263316.011 | AT29: 4269048.021 | AU29: 4276658.003 | AV29: 4284493.976 | AW29: 4294132.006 | AX29: 4306012.008 | AY29: 4319778.017 | AZ29: 4334622.991 | BA29: 4349939.037 | BB29: 4365333.006 | BC29: 4380473.995 | BD29: 4394913.007 | BF29: Males | BG29: 65-69 | BI29: =SUM(C81:C85) -> 1372227 | BJ29: 1402175.007 | BK29: 1436992 | BL29: 1479630.993 | BM29: 1523831.991 | BN29: 1568897.01 | BO29: 1609000.012 | BP29: 1648954.011 | BQ29: 1684956.987 | BR29: 1707284.98 | BS29: 1722303.982 | BT29: 1726830.995 | BU29: 1725531.988 | BV29: 1712897.997 | BW29: 1710608.99 | BX29: 1695357.002 | BY29: 1672599.996 | BZ29: 1637915.004 | CA29: 1608286.001 | CB29: 1566018.019 | CC29: 1529176.006 | CD29: 1509718.993 | CE29: 1523772.985 | CF29: 1554250.997 | CG29: 1588146.011 | CH29: 1625362.99 | CJ29: =INDEX(BI29:CH29,'Population Pyramid'!$L$1) -> 1372227
A30: male | B30: 14 | C30: 357058 | D30: 357217.001 | E30: 362310.995 | F30: 368214.995 | G30: 368129.005 | H30: 360111 | I30: 351594.998 | J30: 350844 | K30: 355444.001 | L30: 346860.996 | M30: 340302.002 | N30: 337767.998 | O30: 332916.012 | P30: 324594.998 | Q30: 328043.004 | R30: 312987.003 | S30: 312749.005 | T30: 314236.003 | U30: 314077.998 | V30: 313346.995 | W30: 312834.006 | X30: 312792.997 | Y30: 312938.997 | Z30: 313179.999 | AA30: 313496 | AB30: 314065.004 | AD30: 14 | AE30: 5065169 | AF30: 5053730.037 | AG30: 5033235.009 | AH30: 4986473.008 | AI30: 4928103.967 | AJ30: 4868658.007 | AK30: 4818397.995 | AL30: 4778666.996 | AM30: 4740606.017 | AN30: 4698218.979 | AO30: 4664757.024 | AP30: 4638447.03 | AQ30: 4615586.015 | AR30: 4598682.031 | AS30: 4591359.015 | AT30: 4582035.024 | AU30: 4589407.008 | AV30: 4598729.979 | AW30: 4608210.004 | AX30: 4619359.003 | AY30: 4632612.023 | AZ30: 4647415.988 | BA30: 4662878.034 | BB30: 4678513.005 | BC30: 4693969.995 | BD30: 4708978.011 | BF30: Males | BG30: 70-74 | BI30: =SUM(C86:C90) -> 1264199 | BJ30: 1233101.995 | BK30: 1221838.992 | BL30: 1218018.015 | BM30: 1228967.006 | BN30: 1252365.986 | BO30: 1281048.992 | BP30: 1313980.995 | BQ30: 1354617.022 | BR30: 1396809.019 | BS30: 1439650.012 | BT30: 1477756.997 | BU30: 1515501.996 | BV30: 1549449.004 | BW30: 1570789.002 | BX30: 1585494.994 | BY30: 1590552.98 | BZ30: 1590397.006 | CA30: 1579839.011 | CB30: 1579010.016 | CC30: 1566170.973 | CD30: 1546304.991 | CE30: 1515409.009 | CF30: 1489175 | CG30: 1451449.987 | CH30: 1418683.009 | CJ30: =INDEX(BI30:CH30,'Population Pyramid'!$L$1) -> 1264199
A31: male | B31: 15 | C31: 344199 | D31: 360794.003 | E31: 360432.996 | F31: 364153.005 | G31: 369777.008 | H31: 369687.001 | I31: 361732.991 | J31: 353287.002 | K31: 352563.008 | L31: 357164.002 | M31: 348585.002 | N31: 342030 | O31: 339499.005 | P31: 334650.005 | Q31: 326332.996 | R31: 329783.998 | S31: 314730.997 | T31: 314495.995 | U31: 315981.996 | V31: 315823.998 | W31: 315093.999 | X31: 314582.994 | Y31: 314542.997 | Z31: 314689.001 | AA31: 314927.994 | AB31: 315244.996 | AD31: 15 | AE31: 5409368 | AF31: 5414524.04 | AG31: 5393668.005 | AH31: 5350626.013 | AI31: 5297880.975 | AJ31: 5238345.008 | AK31: 5180130.986 | AL31: 5131953.998 | AM31: 5093169.025 | AN31: 5055382.981 | AO31: 5013342.026 | AP31: 4980477.03 | AQ31: 4955085.02 | AR31: 4933332.036 | AS31: 4917692.011 | AT31: 4911819.022 | AU31: 4904138.005 | AV31: 4913225.974 | AW31: 4924192 | AX31: 4935183.001 | AY31: 4947706.022 | AZ31: 4961998.982 | BA31: 4977421.031 | BB31: 4993202.006 | BC31: 5008897.989 | BD31: 5024223.007 | BF31: Males | BG31: 75-79 | BI31: =SUM(C91:C95) -> 1064194 | BJ31: 1112987.001 | BK31: 1133138.011 | BL31: 1145231.006 | BM31: 1147999.006 | BN31: 1092640.002 | BO31: 1067170.002 | BP31: 1058312.984 | BQ31: 1056517.998 | BR31: 1068064.994 | BS31: 1090569.983 | BT31: 1117947.011 | BU31: 1148879.999 | BV31: 1186183.007 | BW31: 1224893.992 | BX31: 1264131.009 | BY31: 1299221.008 | BZ31: 1333909.011 | CA31: 1365156.015 | CB31: 1385299.012 | CC31: 1399739.983 | CD31: 1405678.004 | CE31: 1407197.009 | CF31: 1399500.007 | CG31: 1400636.003 | CH31: 1390998.015 | CJ31: =INDEX(BI31:CH31,'Population Pyramid'!$L$1) -> 1064194
A32: male | B32: 16 | C32: 338370 | D32: 348473.003 | E32: 364522.002 | F32: 362644.999 | G32: 366067.994 | H32: 371687.985 | I32: 371653.002 | J32: 363760.995 | K32: 355340.995 | L32: 354621.015 | M32: 359222.002 | N32: 350647.994 | O32: 344097.003 | P32: 341567.008 | Q32: 336722.008 | R32: 328411.012 | S32: 331860.998 | T32: 316814.004 | U32: 316581 | V32: 318066.005 | W32: 317909.01 | X32: 317180.011 | Y32: 316668.997 | Z32: 316629.992 | AA32: 316776.001 | AB32: 317015 | AD32: 16 | AE32: 5747738 | AF32: 5762997.043 | AG32: 5758190.007 | AH32: 5713271.012 | AI32: 5663948.969 | AJ32: 5610032.993 | AK32: 5551783.988 | AL32: 5495714.993 | AM32: 5448510.02 | AN32: 5410003.996 | AO32: 5372564.028 | AP32: 5331125.024 | AQ32: 5299182.023 | AR32: 5274899.044 | AS32: 5254414.019 | AT32: 5240230.034 | AU32: 5235999.003 | AV32: 5230039.978 | AW32: 5240773 | AX32: 5253249.006 | AY32: 5265615.032 | AZ32: 5279178.993 | BA32: 5294090.028 | BB32: 5309831.998 | BC32: 5325673.99 | BD32: 5341238.007 | BF32: Males | BG32: 80-84 | BI32: =SUM(C96:C100) -> 634345 | BJ32: 654181.014 | BK32: 685974.997 | BL32: 716167.998 | BM32: 754845.01 | BN32: 835039 | BO32: 877830.005 | BP32: 895644.99 | BQ32: 905361.001 | BR32: 906665.976 | BS32: 864883.991 | BT32: 846493.989 | BU32: 841218.009 | BV32: 841567.02 | BW32: 852972.999 | BX32: 873228.006 | BY32: 897834.009 | BZ32: 925172.993 | CA32: 957252.012 | CB32: 990673.017 | CC32: 1024577.992 | CD32: 1055249.003 | CE32: 1085550.988 | CF32: 1112977.027 | CG32: 1131377.002 | CH32: 1145327 | CJ32: =INDEX(BI32:CH32,'Population Pyramid'!$L$1) -> 634345
A33: male | B33: 17 | C33: 340215 | D33: 344002.991 | E33: 353421.008 | F33: 367517 | G33: 365263.003 | H33: 368683.999 | I33: 374365.009 | J33: 374403.001 | K33: 366539.003 | L33: 358124.005 | M33: 357406.991 | N33: 362008.003 | O33: 353439.002 | P33: 346892.003 | Q33: 344364.997 | R33: 339524.001 | S33: 331215.001 | T33: 334665.999 | U33: 319624.006 | V33: 319391.005 | W33: 320876.005 | X33: 320719.002 | Y33: 319992 | Z33: 319481.996 | AA33: 319443.01 | AB33: 319589.998 | AD33: 17 | AE33: 6087953 | AF33: 6107000.034 | AG33: 6111611.015 | AH33: 6080788.012 | AI33: 6029211.972 | AJ33: 5978716.992 | AK33: 5926148.997 | AL33: 5870117.994 | AM33: 5815049.023 | AN33: 5768128.001 | AO33: 5729971.019 | AP33: 5693133.027 | AQ33: 5652621.025 | AR33: 5621791.047 | AS33: 5598779.016 | AT33: 5579754.035 | AU33: 5567214.004 | AV33: 5564705.977 | AW33: 5560397.006 | AX33: 5572640.011 | AY33: 5586491.037 | AZ33: 5599897.995 | BA33: 5614082.028 | BB33: 5629313.994 | BC33: 5645117 | BD33: 5660828.005 | BF33: Males | BG33: 85+ | BI33: =SUM(C101:C106) -> 538778 | BJ33: 552356.015 | BK33: 568290.999 | BL33: 581426.004 | BM33: 587679.987 | BN33: 603712.013 | BO33: 629993.989 | BP33: 662965.003 | BQ33: 692241.976 | BR33: 722015.002 | BS33: 787978.016 | BT33: 832142.009 | BU33: 861628.995 | BV33: 881730.007 | BW33: 895781.992 | BX33: 904980.994 | BY33: 915924.015 | BZ33: 926482.985 | CA33: 935272.988 | CB33: 948937.986 | CC33: 966634.006 | CD33: 989833.985 | CE33: 1015569.988 | CF33: 1044108.001 | CG33: 1077656.003 | CH33: 1114619.985 | CJ33: =INDEX(BI33:CH33,'Population Pyramid'!$L$1) -> 538778
A34: male | B34: 18 | C34: 341672 | D34: 349754 | E34: 352418.005 | F34: 358561.998 | G34: 372030.001 | H34: 369765.999 | I34: 373281.001 | J34: 379065.003 | K34: 379139 | L34: 371281.988 | M34: 362876.004 | N34: 362164.009 | O34: 366765.007 | P34: 358203.001 | Q34: 351663.991 | R34: 349141.004 | S34: 344306 | T34: 336002.999 | U34: 339457.998 | V34: 324418.002 | W34: 324192.008 | X34: 325676.999 | Y34: 325522.012 | Z34: 324794.005 | AA34: 324286.004 | AB34: 324247.996 | AD34: 18 | AE34: 6429625 | AF34: 6456754.034 | AG34: 6464029.02 | AH34: 6439350.01 | AI34: 6401241.973 | AJ34: 6348482.991 | AK34: 6299429.998 | AL34: 6249182.997 | AM34: 6194188.023 | AN34: 6139409.989 | AO34: 6092847.023 | AP34: 6055297.036 | AQ34: 6019386.032 | AR34: 5979994.048 | AS34: 5950443.007 | AT34: 5928895.039 | AU34: 5911520.004 | AV34: 5900708.976 | AW34: 5899855.004 | AX34: 5897058.013 | AY34: 5910683.045 | AZ34: 5925574.994 | BA34: 5939604.04 | BB34: 5954107.999 | BC34: 5969403.004 | BD34: 5985076.001
A35: male | B35: 19 | C35: 339162 | D35: 358093.998 | E35: 364346.995 | F35: 361364.997 | G35: 366458.003 | H35: 379914.004 | I35: 377754.996 | J35: 381397.994 | K35: 387226.993 | L35: 387288.997 | M35: 379455.998 | N35: 371066.994 | O35: 370367.002 | P35: 374971.995 | Q35: 366418.003 | R35: 359905.001 | S35: 357393.001 | T35: 352575.001 | U35: 344295.999 | V35: 347763.004 | W35: 332721.001 | X35: 332517.999 | Y35: 334006.003 | Z35: 333846.996 | AA35: 333118.995 | AB35: 332611.006 | AD35: 19 | AE35: 6768787 | AF35: 6814848.032 | AG35: 6828376.015 | AH35: 6800715.007 | AI35: 6767699.976 | AJ35: 6728396.995 | AK35: 6677184.994 | AL35: 6630580.991 | AM35: 6581415.016 | AN35: 6526698.986 | AO35: 6472303.021 | AP35: 6426364.03 | AQ35: 6389753.034 | AR35: 6354966.043 | AS35: 6316861.01 | AT35: 6288800.04 | AU35: 6268913.005 | AV35: 6253283.977 | AW35: 6244151.003 | AX35: 6244821.017 | AY35: 6243404.046 | AZ35: 6258092.993 | BA35: 6273610.043 | BB35: 6287954.995 | BC35: 6302521.999 | BD35: 6317687.007 | BF35: Females | BG35: All Ages | BI35: =C200 -> 29126510 | BJ35: 29507550.03 | BK35: 29823396.01 | BL35: 29980510.02 | BM35: 30099632.99 | BN35: 30215557.98 | BO35: 30342184.99 | BP35: 30481149.92 | BQ35: 30622672.03 | BR35: 30761182.99 | BS35: 30896522.06 | BT35: 31028773.95 | BU35: 31158142.05 | BV35: 31284726.96 | BW35: 31408618.04 | BX35: 31530058.02 | BY35: 31649247.98 | BZ35: 31766336.9 | CA35: 31881416.93 | CB35: 31994613.03 | CC35: 32106045.99 | CD35: 32215547.01 | CE35: 32322944.04 | CF35: 32428125.95 | CG35: 32530923.02 | CH35: 32631158 | CJ35: =INDEX(BI35:CH35,'Population Pyramid'!$L$1) -> 29126510
A36: male | B36: 20 | C36: 338319 | D36: 357876.004 | E36: 374572.004 | F36: 374268.997 | G36: 370044.993 | H36: 375130.008 | I36: 388736.999 | J36: 386758.992 | K36: 390470.003 | L36: 396283.008 | M36: 396354.007 | N36: 388543.002 | O36: 380174.998 | P36: 379485.005 | Q36: 384093.001 | R36: 375563.002 | S36: 369069.99 | T36: 366572.999 | U36: 361780.996 | V36: 353531.019 | W36: 356991.997 | X36: 341970.002 | Y36: 341784.008 | Z36: 343268.003 | AA36: 343107.006 | AB36: 342378.988 | AD36: 20 | AE36: 7107106 | AF36: 7172724.036 | AG36: 7202948.019 | AH36: 7174984.004 | AI36: 7137744.969 | AJ36: 7103527.003 | AK36: 7065921.993 | AL36: 7017339.983 | AM36: 6971885.019 | AN36: 6922981.994 | AO36: 6868657.028 | AP36: 6814907.032 | AQ36: 6769928.032 | AR36: 6734451.048 | AS36: 6700954.011 | AT36: 6664363.042 | AU36: 6637982.995 | AV36: 6619856.976 | AW36: 6605931.999 | AX36: 6598352.036 | AY36: 6600396.043 | AZ36: 6600062.995 | BA36: 6615394.051 | BB36: 6631222.998 | BC36: 6645629.005 | BD36: 6660065.995 | BF36: Females | BG36: 0-4 | BI36: =SUM(C109:C113) -> 1497099 | BJ36: 1482408.018 | BK36: 1467056.99 | BL36: 1447877.011 | BM36: 1435017.998 | BN36: 1418597.986 | BO36: 1417478.988 | BP36: 1417214.995 | BQ36: 1415912.016 | BR36: 1415018.995 | BS36: 1415136.017 | BT36: 1416290.999 | BU36: 1418347.017 | BV36: 1421301.991 | BW36: 1425215.009 | BX36: 1430194.993 | BY36: 1436194.992 | BZ36: 1442971.001 | CA36: 1450270.997 | CB36: 1457825 | CC36: 1465321.008 | CD36: 1472242.999 | CE36: 1478127.969 | CF36: 1482764.001 | CG36: 1486023.982 | CH36: 1487839.007 | CJ36: =INDEX(BI36:CH36,'Population Pyramid'!$L$1) -> 1497099
A37: male | B37: 21 | C37: 338389 | D37: 354458.997 | E37: 371602.993 | F37: 382289.003 | G37: 380743.001 | H37: 376497.997 | I37: 381887.997 | J37: 395834.995 | K37: 393987.986 | L37: 397699.991 | M37: 403503.001 | N37: 403584.996 | O37: 395787.001 | P37: 387427.005 | Q37: 386741.999 | R37: 391349.999 | S37: 382839 | T37: 376351.997 | U37: 373859.999 | V37: 369080.002 | W37: 360843.008 | X37: 364295.994 | Y37: 349290.995 | Z37: 349101.006 | AA37: 350584.001 | AB37: 350421.999 | AD37: 21 | AE37: 7445495 | AF37: 7527183.033 | AG37: 7574551.012 | AH37: 7557273.007 | AI37: 7518487.97 | AJ37: 7480025 | AK37: 7447809.99 | AL37: 7413174.978 | AM37: 7365873.005 | AN37: 7320681.985 | AO37: 7272160.029 | AP37: 7218492.028 | AQ37: 7165715.033 | AR37: 7121878.053 | AS37: 7087696.01 | AT37: 7055713.041 | AU37: 7020821.995 | AV37: 6996208.973 | AW37: 6979791.998 | AX37: 6967432.038 | AY37: 6961239.051 | AZ37: 6964358.989 | BA37: 6964685.046 | BB37: 6980324.004 | BC37: 6996213.006 | BD37: 7010487.994 | BF37: Females | BG37: 5-9 | BI37: =SUM(C114:C118) -> 1629351 | BJ37: 1621569.996 | BK37: 1614193.989 | BL37: 1597389.003 | BM37: 1566930.991 | BN37: 1546389.985 | BO37: 1517889.979 | BP37: 1493413.972 | BQ37: 1474132.006 | BR37: 1463154.004 | BS37: 1448586.98 | BT37: 1448560.003 | BU37: 1448588.006 | BV37: 1447306.997 | BW37: 1446427.999 | BX37: 1446564.005 | BY37: 1447726.013 | BZ37: 1449786.992 | CA37: 1452744.99 | CB37: 1456664.003 | CC37: 1461643.985 | CD37: 1467641.993 | CE37: 1474406.019 | CF37: 1481695.008 | CG37: 1489242.015 | CH37: 1496731.992 | CJ37: =INDEX(BI37:CH37,'Population Pyramid'!$L$1) -> 1629351
A38: male | B38: 22 | C38: 345333 | D38: 354207.999 | E38: 367372.005 | F38: 378161.99 | G38: 387410.005 | H38: 385822 | I38: 382080 | J38: 388039.001 | K38: 402198.011 | L38: 400365 | M38: 404077.998 | N38: 409882.007 | O38: 409974.998 | P38: 402176.994 | Q38: 393814.992 | R38: 393130.003 | S38: 397740.998 | T38: 389237.992 | U38: 382742.998 | V38: 380249.003 | W38: 375464.996 | X38: 367227.004 | Y38: 370671.996 | Z38: 355670.995 | AA38: 355466.995 | AB38: 356946.996 | AD38: 22 | AE38: 7790828 | AF38: 7881391.032 | AG38: 7941923.017 | AH38: 7935434.997 | AI38: 7905897.975 | AJ38: 7865847 | AK38: 7829889.99 | AL38: 7801213.979 | AM38: 7768071.016 | AN38: 7721046.985 | AO38: 7676238.027 | AP38: 7628374.035 | AQ38: 7575690.031 | AR38: 7524055.047 | AS38: 7481511.002 | AT38: 7448843.044 | AU38: 7418562.993 | AV38: 7385446.965 | AW38: 7362534.996 | AX38: 7347681.041 | AY38: 7336704.047 | AZ38: 7331585.993 | BA38: 7335357.042 | BB38: 7335994.999 | BC38: 7351680.001 | BD38: 7367434.99 | BF38: Females | BG38: 10-14 | BI38: =SUM(C119:C123) -> 1705034 | BJ38: 1712599.989 | BK38: 1713110.996 | BL38: 1703645.003 | BM38: 1691493.015 | BN38: 1670700.02 | BO38: 1652090.001 | BP38: 1637168.011 | BQ38: 1619885.003 | BR38: 1590731.977 | BS38: 1571695.994 | BT38: 1544187.99 | BU38: 1520030.009 | BV38: 1500807.991 | BW38: 1489867.002 | BX38: 1475336.994 | BY38: 1475333.996 | BZ38: 1475372.003 | CA38: 1474094.006 | CB38: 1473218.986 | CC38: 1473360.009 | CD38: 1474534.002 | CE38: 1476600.995 | CF38: 1479556 | CG38: 1483470.008 | CH38: 1488445.995 | CJ38: =INDEX(BI38:CH38,'Population Pyramid'!$L$1) -> 1705034
A39: male | B39: 23 | C39: 358405 | D39: 364280.004 | E39: 369346.004 | F39: 374644.001 | G39: 383572.001 | H39: 392765.001 | I39: 391886.996 | J39: 388961 | K39: 395216.997 | L39: 409390.004 | M39: 407578.007 | N39: 411291.997 | O39: 417102.99 | P39: 417204.997 | Q39: 409400 | R39: 401031.008 | S39: 400341.999 | T39: 404954.994 | U39: 396454.001 | V39: 389945 | W39: 387439.998 | X39: 382648.002 | Y39: 374399.001 | Z39: 377835.99 | AA39: 362831.993 | AB39: 362605.002 | AD39: 23 | AE39: 8149233 | AF39: 8245671.036 | AG39: 8311269.021 | AH39: 8310078.998 | AI39: 8289469.976 | AJ39: 8258612.001 | AK39: 8221776.986 | AL39: 8190174.979 | AM39: 8163288.013 | AN39: 8130436.989 | AO39: 8083816.034 | AP39: 8039666.032 | AQ39: 7992793.021 | AR39: 7941260.044 | AS39: 7890911.002 | AT39: 7849874.052 | AU39: 7818904.992 | AV39: 7790401.959 | AW39: 7758988.997 | AX39: 7737626.041 | AY39: 7724144.045 | AZ39: 7714233.995 | BA39: 7709756.043 | BB39: 7713830.989 | BC39: 7714511.994 | BD39: 7730039.992 | BF39: Females | BG39: 15-19 | BI39: =SUM(C124:C128) -> 1606478 | BJ39: 1661858.001 | BK39: 1696719.993 | BL39: 1719677.998 | BM39: 1745512.013 | BN39: 1766639.01 | BO39: 1765185.003 | BP39: 1759549.993 | BQ39: 1749582.99 | BR39: 1738173.998 | BS39: 1718219.013 | BT39: 1700177.995 | BU39: 1685459.995 | BV39: 1668246.012 | BW39: 1639165.004 | BX39: 1620208.985 | BY39: 1592770.999 | BZ39: 1568669.988 | CA39: 1549504.007 | CB39: 1538601.003 | CC39: 1524105.017 | CD39: 1524093.004 | CE39: 1524137.017 | CF39: 1522866.015 | CG39: 1521989.997 | CH39: 1522126.011 | CJ39: =INDEX(BI39:CH39,'Population Pyramid'!$L$1) -> 1606478
A40: male | B40: 24 | C40: 360393 | D40: 376556.003 | E40: 377987.001 | F40: 374731.998 | G40: 377905.996 | H40: 386753.004 | I40: 396890.001 | J40: 397086.997 | K40: 394552.004 | L40: 400812.007 | M40: 415002.995 | N40: 413211.996 | O40: 416925.999 | P40: 422747.005 | Q40: 422854.001 | R40: 415040.003 | S40: 406662.001 | T40: 405970.003 | U40: 410587.995 | V40: 402082.998 | W40: 395558.004 | X40: 393044.001 | Y40: 388240 | Z40: 379977.004 | AA40: 383411 | AB40: 368396.996 | AD40: 24 | AE40: 8509626 | AF40: 8622227.039 | AG40: 8689256.022 | AH40: 8684810.996 | AI40: 8667375.972 | AJ40: 8645365.005 | AK40: 8618666.987 | AL40: 8587261.976 | AM40: 8557840.017 | AN40: 8531248.996 | AO40: 8498819.029 | AP40: 8452878.028 | AQ40: 8409719.02 | AR40: 8364007.049 | AS40: 8313765.003 | AT40: 8264914.055 | AU40: 8225566.993 | AV40: 8196371.962 | AW40: 8169576.992 | AX40: 8139709.039 | AY40: 8119702.049 | AZ40: 8107277.996 | BA40: 8097996.043 | BB40: 8093807.993 | BC40: 8097922.994 | BD40: 8098436.988 | BF40: Females | BG40: 20-24 | BI40: =SUM(C129:C133) -> 1695715 | BJ40: 1743128 | BK40: 1779852.982 | BL40: 1787290.02 | BM40: 1790347.008 | BN40: 1801114.006 | BO40: 1828455.001 | BP40: 1847898.993 | BQ40: 1871925.007 | BR40: 1900394.995 | BS40: 1923213.007 | BT40: 1922562.995 | BU40: 1917152.021 | BV40: 1907310.006 | BW40: 1895973.992 | BX40: 1876063.993 | BY40: 1858088.996 | BZ40: 1843456.98 | CA40: 1826320.994 | CB40: 1797306.011 | CC40: 1778398.997 | CD40: 1750998.001 | CE40: 1726898.002 | CF40: 1707697.996 | CG40: 1696733.022 | CH40: 1682136.003 | CJ40: =INDEX(BI40:CH40,'Population Pyramid'!$L$1) -> 1695715
A41: male | B41: 25 | C41: 365952 | D41: 375210.995 | E41: 387141.997 | F41: 381176.99 | G41: 375940.997 | H41: 379010.001 | I41: 388822.997 | J41: 400056.998 | K41: 400647.997 | L41: 398115.998 | M41: 404379.003 | N41: 418584.001 | O41: 416806.995 | P41: 420522.003 | Q41: 426350.996 | R41: 426461.006 | S41: 418639.998 | T41: 410259.001 | U41: 409566.001 | V41: 414187.992 | W41: 405677.003 | X41: 399142.998 | Y41: 396622 | Z41: 391810 | AA41: 383538 | AB41: 386968.999 | AD41: 25 | AE41: 8875578 | AF41: 8997438.034 | AG41: 9076398.019 | AH41: 9065987.986 | AI41: 9043316.969 | AJ41: 9024375.006 | AK41: 9007489.984 | AL41: 8987318.974 | AM41: 8958488.014 | AN41: 8929364.994 | AO41: 8903198.032 | AP41: 8871462.029 | AQ41: 8826526.015 | AR41: 8784529.052 | AS41: 8740115.999 | AT41: 8691375.061 | AU41: 8644206.991 | AV41: 8606630.963 | AW41: 8579142.993 | AX41: 8553897.031 | AY41: 8525379.052 | AZ41: 8506420.994 | BA41: 8494618.043 | BB41: 8485617.993 | BC41: 8481460.994 | BD41: 8485405.987 | BF41: Females | BG41: 25-29 | BI41: =SUM(C134:C138) -> 1884992 | BJ41: 1930671.992 | BK41: 1958262.995 | BL41: 1951276.007 | BM41: 1935072.005 | BN41: 1907875.013 | BO41: 1891328.025 | BP41: 1889088.014 | BQ41: 1897244.998 | BR41: 1910386.005 | BS41: 1931115.006 | BT41: 1964304.994 | BU41: 1985388.007 | BV41: 2009548.991 | BW41: 2038136.015 | BX41: 2061027.008 | BY41: 2060419.009 | BZ41: 2054987.005 | CA41: 2045066.994 | CB41: 2033669.997 | CC41: 2013728.979 | CD41: 1995686.99 | CE41: 1980956.99 | CF41: 1963701.003 | CG41: 1934563.982 | CH41: 1915536.001 | CJ41: =INDEX(BI41:CH41,'Population Pyramid'!$L$1) -> 1884992
A42: male | B42: 26 | C42: 360458 | D42: 380923.989 | E42: 386533.999 | F42: 391559.999 | G42: 383854.008 | H42: 378539.006 | I42: 382361.005 | J42: 393048.998 | K42: 404591.995 | L42: 405183.995 | M42: 402654 | N42: 408919.995 | O42: 423132.005 | P42: 421363.007 | Q42: 425078.005 | R42: 430912.001 | S42: 431024.002 | T42: 423203 | U42: 414821.992 | V42: 414129.996 | W42: 418753.003 | X42: 410241.005 | Y42: 403702.994 | Z42: 401180.001 | AA42: 396364.998 | AB42: 388089.995 | AD42: 26 | AE42: 9236036 | AF42: 9378362.023 | AG42: 9462932.018 | AH42: 9457547.985 | AI42: 9427170.977 | AJ42: 9402914.012 | AK42: 9389850.989 | AL42: 9380367.972 | AM42: 9363080.009 | AN42: 9334548.989 | AO42: 9305852.032 | AP42: 9280382.024 | AQ42: 9249658.02 | AR42: 9205892.059 | AS42: 9165194.004 | AT42: 9122287.062 | AU42: 9075230.993 | AV42: 9029833.963 | AW42: 8993964.985 | AX42: 8968027.027 | AY42: 8944132.055 | AZ42: 8916661.999 | BA42: 8898321.037 | BB42: 8886797.994 | BC42: 8877825.992 | BD42: 8873495.982 | BF42: Females | BG42: 30-34 | BI42: =SUM(C139:C143) -> 2058539 | BJ42: 2087615.989 | BK42: 2115182.021 | BL42: 2108790.004 | BM42: 2090830.007 | BN42: 2082583.014 | BO42: 2077490.009 | BP42: 2069686.967 | BQ42: 2060269.985 | BR42: 2049652.006 | BS42: 2029019.993 | BT42: 2016746.994 | BU42: 2015710.009 | BV42: 2023895.004 | BW42: 2037047.995 | BX42: 2057773.976 | BY42: 2090941.984 | BZ42: 2111984.996 | CA42: 2136076.004 | CB42: 2164568.993 | CC42: 2187376.014 | CD42: 2186755.996 | CE42: 2181353.996 | CF42: 2171493.99 | CG42: 2160187.996 | CH42: 2140351.99 | CJ42: =INDEX(BI42:CH42,'Population Pyramid'!$L$1) -> 2058539
A43: male | B43: 27 | C43: 364247 | D43: 375711.003 | E43: 392945.001 | F43: 391967.994 | G43: 395410.004 | H43: 387649.007 | I43: 382946.997 | J43: 387466.994 | K43: 398408.998 | L43: 409950.001 | M43: 410540.001 | N43: 408012.998 | O43: 414279.995 | P43: 428491.999 | Q43: 426730.008 | R43: 430445.004 | S43: 436282.004 | T43: 436397 | U43: 428578.004 | V43: 420201.002 | W43: 419509.992 | X43: 424134.013 | Y43: 415624.998 | Z43: 409087.011 | AA43: 406564.002 | AB43: 401749.995 | AD43: 27 | AE43: 9600283 | AF43: 9754073.026 | AG43: 9855877.019 | AH43: 9849515.979 | AI43: 9822580.981 | AJ43: 9790563.019 | AK43: 9772797.986 | AL43: 9767834.966 | AM43: 9761489.007 | AN43: 9744498.99 | AO43: 9716392.033 | AP43: 9688395.022 | AQ43: 9663938.015 | AR43: 9634384.058 | AS43: 9591924.012 | AT43: 9552732.066 | AU43: 9511512.997 | AV43: 9466230.963 | AW43: 9422542.989 | AX43: 9388228.029 | AY43: 9363642.047 | AZ43: 9340796.012 | BA43: 9313946.035 | BB43: 9295885.005 | BC43: 9284389.994 | BD43: 9275245.977 | BF43: Females | BG43: 35-39 | BI43: =SUM(C144:C148) -> 1994319 | BJ43: 2053293.989 | BK43: 2103479.011 | BL43: 2132875.981 | BM43: 2157493.001 | BN43: 2172899.012 | BO43: 2169660.998 | BP43: 2173676.997 | BQ43: 2165659.995 | BR43: 2151460.991 | BS43: 2147490.02 | BT43: 2145111.989 | BU43: 2138103.998 | BV43: 2128750.981 | BW43: 2118200.013 | BX43: 2097701.015 | BY43: 2085544.988 | BZ43: 2084592.992 | CA43: 2092843.998 | CB43: 2106026.008 | CC43: 2126730.995 | CD43: 2159816.988 | CE43: 2180781.019 | CF43: 2204780.988 | CG43: 2233156.016 | CH43: 2255869.994 | CJ43: =INDEX(BI43:CH43,'Population Pyramid'!$L$1) -> 1994319
A44: male | B44: 28 | C44: 372730 | D44: 379361.997 | E44: 387821.996 | F44: 398694.998 | G44: 396230.989 | H44: 399621.992 | I44: 392406.003 | J44: 388323.993 | K44: 393062.996 | L44: 404006.999 | M44: 415538.997 | N44: 416126.997 | O44: 413604.995 | P44: 419872.002 | Q44: 434080.991 | R44: 432322.001 | S44: 436039.001 | T44: 441876.006 | U44: 441992.006 | V44: 434178.997 | W44: 425807.993 | X44: 425119.01 | Y44: 429744.005 | Z44: 421238.001 | AA44: 414704.002 | AB44: 412184.01 | AD44: 28 | AE44: 9973013 | AF44: 10133435.02 | AG44: 10243699.01 | AH44: 10248210.98 | AI44: 10218811.97 | AJ44: 10190185.01 | AK44: 10165203.99 | AL44: 10156158.96 | AM44: 10154552 | AN44: 10148505.99 | AO44: 10131931.03 | AP44: 10104522.02 | AQ44: 10077543.01 | AR44: 10054256.06 | AS44: 10026005 | AT44: 9985054.067 | AU44: 9947551.998 | AV44: 9908106.969 | AW44: 9864534.995 | AX44: 9822407.026 | AY44: 9789450.04 | AZ44: 9765915.022 | BA44: 9743690.04 | BB44: 9717123.006 | BC44: 9699093.996 | BD44: 9687429.987 | BF44: Females | BG44: 40-44 | BI44: =SUM(C149:C153) -> 1887642 | BJ44: 1946569.025 | BK44: 1976808.004 | BL44: 1996257.022 | BM44: 2017658.979 | BN44: 2050198.006 | BO44: 2090456.989 | BP44: 2127064.001 | BQ44: 2155451.006 | BR44: 2182169.004 | BS44: 2200050.994 | BT44: 2198507.994 | BU44: 2203048.99 | BV44: 2195172.009 | BW44: 2181166.981 | BX44: 2177350.008 | BY44: 2175079.987 | BZ44: 2168181.984 | CA44: 2158932.989 | CB44: 2148492.996 | CC44: 2128169.994 | CD44: 2116162.02 | CE44: 2115326.987 | CF44: 2123653.98 | CG44: 2136876.008 | CH44: 2157577 | CJ44: =INDEX(BI44:CH44,'Population Pyramid'!$L$1) -> 1887642
A45: male | B45: 29 | C45: 372891 | D45: 387382.991 | E45: 391154.998 | F45: 393472.003 | G45: 402919.994 | H45: 400409.996 | I45: 404301.991 | J45: 397669.994 | K45: 393799 | L45: 398538.001 | M45: 409475.998 | N45: 421000 | O45: 421589.005 | P45: 419071.001 | Q45: 425335.007 | R45: 439536.998 | S45: 437782.014 | T45: 441499.001 | U45: 447335.991 | V45: 447453.998 | W45: 439649.996 | X45: 431285.014 | Y45: 430599 | Z45: 435224.999 | AA45: 426725.003 | AB45: 420196.995 | AD45: 29 | AE45: 10345904 | AF45: 10520818.01 | AG45: 10634854.01 | AH45: 10641682.98 | AI45: 10621731.96 | AJ45: 10590595.01 | AK45: 10569505.98 | AL45: 10553828.95 | AM45: 10548351 | AN45: 10547043.99 | AO45: 10541407.03 | AP45: 10525522.02 | AQ45: 10499132.02 | AR45: 10473327.06 | AS45: 10451340.01 | AT45: 10424591.06 | AU45: 10385334.01 | AV45: 10349605.97 | AW45: 10311870.99 | AX45: 10269861.02 | AY45: 10229100.04 | AZ45: 10197200.04 | BA45: 10174289.04 | BB45: 10152348.01 | BC45: 10125819 | BD45: 10107626.98 | BF45: Females | BG45: 45-49 | BI45: =SUM(C154:C158) -> 1765240 | BJ45: 1748589.013 | BK45: 1771615.02 | BL45: 1812321.005 | BM45: 1859570.003 | BN45: 1909599.99 | BO45: 1957313.991 | BP45: 1979663.993 | BQ45: 1998606.005 | BR45: 2021305.001 | BS45: 2055259.016 | BT45: 2096333.993 | BU45: 2133058.995 | BV45: 2161390.995 | BW45: 2188055.998 | BX45: 2205924.009 | BY45: 2204520.99 | BZ45: 2209191 | CA45: 2201512.005 | CB45: 2187758.014 | CC45: 2184148.997 | CD45: 2182031.024 | CE45: 2175305.026 | CF45: 2166222.98 | CG45: 2155944 | CH45: 2135882.995 | CJ45: =INDEX(BI45:CH45,'Population Pyramid'!$L$1) -> 1765240
A46: male | B46: 30 | C46: 383766 | D46: 386861.004 | E46: 398624.001 | F46: 396529.005 | G46: 397489.999 | H46: 406886.002 | I46: 404857.993 | J46: 409296.994 | K46: 402866.998 | L46: 398999.997 | M46: 403736.996 | N46: 414669.996 | O46: 426184.999 | P46: 426777.989 | Q46: 424263.008 | R46: 430523.998 | S46: 444717.995 | T46: 442966.008 | U46: 446684 | V46: 452520.997 | W46: 452640.999 | X46: 444843.999 | Y46: 436487.992 | Z46: 435805 | AA46: 440430.996 | AB46: 431939.004 | AD46: 30 | AE46: 10729670 | AF46: 10907679.02 | AG46: 11033478.01 | AH46: 11038211.99 | AI46: 11019221.96 | AJ46: 10997481.01 | AK46: 10974363.97 | AL46: 10963125.95 | AM46: 10951218 | AN46: 10946043.99 | AO46: 10945144.02 | AP46: 10940192.01 | AQ46: 10925317.01 | AR46: 10900105.05 | AS46: 10875603.02 | AT46: 10855115.06 | AU46: 10830052.01 | AV46: 10792571.98 | AW46: 10758554.99 | AX46: 10722382.02 | AY46: 10681741.04 | AZ46: 10642044.04 | BA46: 10610777.03 | BB46: 10588153.01 | BC46: 10566250 | BD46: 10539565.99 | BF46: Females | BG46: 50-54 | BI46: =SUM(C159:C163) -> 1965506 | BJ46: 1940690.986 | BK46: 1900891.978 | BL46: 1863599.982 | BM46: 1809107.978 | BN46: 1764350.974 | BO46: 1741629.993 | BP46: 1760115.992 | BQ46: 1800416.016 | BR46: 1848154.986 | BS46: 1898645.999 | BT46: 1946459.999 | BU46: 1968805.989 | BV46: 1987727.01 | BW46: 2010392.994 | BX46: 2044204.008 | BY46: 2085055.02 | BZ46: 2121566.001 | CA46: 2149794.99 | CB46: 2176369.982 | CC46: 2194215.007 | CD46: 2193004.004 | CE46: 2197828.001 | CF46: 2190414.009 | CG46: 2177019.002 | CH46: 2173700.988 | CJ46: =INDEX(BI46:CH46,'Population Pyramid'!$L$1) -> 1965506
A47: male | B47: 31 | C47: 389571 | D47: 397065.995 | E47: 397573.001 | F47: 403729.999 | G47: 400346.013 | H47: 401266.005 | I47: 411109.994 | J47: 409600.999 | K47: 414225.002 | L47: 407798 | M47: 403934.009 | N47: 408671.006 | O47: 419597.004 | P47: 431104.99 | Q47: 431701.009 | R47: 429189.997 | S47: 435447.998 | T47: 449633.003 | U47: 447883.003 | V47: 451601.997 | W47: 457438.003 | X47: 457559.998 | Y47: 449772.009 | Z47: 441425.997 | AA47: 440745.994 | AB47: 445373.991 | AD47: 31 | AE47: 11119241 | AF47: 11304745.01 | AG47: 11431051.01 | AH47: 11441941.98 | AI47: 11419567.98 | AJ47: 11398747.01 | AK47: 11385473.97 | AL47: 11372726.95 | AM47: 11365443 | AN47: 11353841.99 | AO47: 11349078.03 | AP47: 11348863.02 | AQ47: 11344914.02 | AR47: 11331210.04 | AS47: 11307304.03 | AT47: 11284305.06 | AU47: 11265500 | AV47: 11242204.98 | AW47: 11206437.99 | AX47: 11173984.02 | AY47: 11139179.04 | AZ47: 11099604.03 | BA47: 11060549.04 | BB47: 11029579 | BC47: 11006995.99 | BD47: 10984939.98 | BF47: Females | BG47: 55-59 | BI47: =SUM(C164:C168) -> 1961166 | BJ47: 1971334.007 | BK47: 1973132 | BL47: 1959471.015 | BM47: 1956747.99 | BN47: 1939542.995 | BO47: 1911038.99 | BP47: 1869295.998 | BQ47: 1832969.994 | BR47: 1780570.011 | BS47: 1737824.977 | BT47: 1716438 | BU47: 1735208.987 | BV47: 1775220.985 | BW47: 1822419.995 | BX47: 1872203.991 | BY47: 1919322.995 | BZ47: 1941460.999 | CA47: 1960364.003 | CB47: 1982979.992 | CC47: 2016568.99 | CD47: 2057077.022 | CE47: 2093245.006 | CF47: 2121295.982 | CG47: 2147719.008 | CH47: 2165518.012 | CJ47: =INDEX(BI47:CH47,'Population Pyramid'!$L$1) -> 1961166
A48: male | B48: 32 | C48: 387673 | D48: 401649.003 | E48: 406702 | F48: 402007.999 | G48: 406953.998 | H48: 403533.999 | I48: 404894.005 | J48: 415228.007 | K48: 413901.004 | L48: 418522.005 | M48: 412099.003 | N48: 408242 | O48: 412977.006 | P48: 423894.993 | Q48: 435393.01 | R48: 435993.999 | S48: 433486 | T48: 439740.996 | U48: 453915.005 | V48: 452165.002 | W48: 455884.999 | X48: 461719.001 | Y48: 461843 | Z48: 454065.999 | AA48: 445731.994 | AB48: 445057 | AD48: 32 | AE48: 11506914 | AF48: 11706394.02 | AG48: 11837753.01 | AH48: 11843949.98 | AI48: 11826521.97 | AJ48: 11802281.01 | AK48: 11790367.97 | AL48: 11787954.95 | AM48: 11779344.01 | AN48: 11772363.99 | AO48: 11761177.04 | AP48: 11757105.02 | AQ48: 11757891.02 | AR48: 11755105.03 | AS48: 11742697.04 | AT48: 11720299.06 | AU48: 11698986 | AV48: 11681945.98 | AW48: 11660352.99 | AX48: 11626149.02 | AY48: 11595064.04 | AZ48: 11561323.03 | BA48: 11522392.04 | BB48: 11483645 | BC48: 11452727.98 | BD48: 11429996.98 | BF48: Females | BG48: 60-64 | BI48: =SUM(C169:C173) -> 1719417 | BJ48: 1770574.999 | BK48: 1821375.02 | BL48: 1868149.014 | BM48: 1899970.984 | BN48: 1916862.003 | BO48: 1923987.005 | BP48: 1923918.004 | BQ48: 1910823.016 | BR48: 1908997.998 | BS48: 1893050.005 | BT48: 1865923.007 | BU48: 1825701.019 | BV48: 1790748.996 | BW48: 1740201.021 | BX48: 1699084.983 | BY48: 1678815.007 | BZ48: 1697759.98 | CA48: 1737378.996 | CB48: 1783865.017 | CC48: 1832749.989 | CD48: 1879006.99 | CE48: 1900929.009 | CF48: 1919840.99 | CG48: 1942390.999 | CH48: 1975654.003 | CJ48: =INDEX(BI48:CH48,'Population Pyramid'!$L$1) -> 1719417
A49: male | B49: 33 | C49: 384614 | D49: 398284.005 | E49: 409985.998 | F49: 410315.997 | G49: 404518 | H49: 409426.998 | I49: 406434.001 | J49: 408274.997 | K49: 418772 | L49: 417445.998 | M49: 422066.002 | N49: 415647.997 | O49: 411794.011 | P49: 416530 | Q49: 427437.997 | R49: 438926.992 | S49: 439532.003 | T49: 437028.998 | U49: 443280 | V49: 457440.998 | W49: 455693.003 | X49: 459414.008 | Y49: 465242.995 | Z49: 465369.999 | AA49: 457607 | AB49: 449283.996 | AD49: 33 | AE49: =AE48+C49 -> 11891528 | AF49: =AF48+D49 -> 12104678.02 | AG49: =AG48+E49 -> 12247739.01 | AH49: =AH48+F49 -> 12254265.98 | AI49: =AI48+G49 -> 12231039.97 | AJ49: =AJ48+H49 -> 12211708.01 | AK49: =AK48+I49 -> 12196801.97 | AL49: =AL48+J49 -> 12196229.95 | AM49: =AM48+K49 -> 12198116.01 | AN49: =AN48+L49 -> 12189809.99 | AO49: =AO48+M49 -> 12183243.04 | AP49: =AP48+N49 -> 12172753.02 | AQ49: =AQ48+O49 -> 12169685.04 | AR49: =AR48+P49 -> 12171635.03 | AS49: =AS48+Q49 -> 12170135.03 | AT49: =AT48+R49 -> 12159226.05 | AU49: =AU48+S49 -> 12138518.01 | AV49: =AV48+T49 -> 12118974.97 | AW49: =AW48+U49 -> 12103632.99 | AX49: =AX48+V49 -> 12083590.02 | AY49: =AY48+W49 -> 12050757.04 | AZ49: =AZ48+X49 -> 12020737.04 | BA49: =BA48+Y49 -> 11987635.04 | BB49: =BB48+Z49 -> 11949015 | BC49: =BC48+AA49 -> 11910334.98 | BD49: =BD48+AB49 -> 11879280.97 | BF49: Females | BG49: 65-69 | BI49: =SUM(C174:C178) -> 1453538 | BJ49: 1483515.99 | BK49: 1517854.009 | BL49: 1561189.996 | BM49: 1608817.002 | BN49: 1659678.982 | BO49: 1707987.019 | BP49: 1756298.006 | BQ49: 1802008.992 | BR49: 1833557.999 | BS49: 1850704.012 | BT49: 1858253.019 | BU49: 1858732.983 | BV49: 1846578.015 | BW49: 1845394.005 | BX49: 1830503.99 | BY49: 1804827.991 | BZ49: 1766550.01 | CA49: 1733390.984 | CB49: 1685275.984 | CC49: 1646247.009 | CD49: 1627379.988 | CE49: 1646500.003 | CF49: 1685595.015 | CG49: 1731190.988 | CH49: 1778959.01 | CJ49: =INDEX(BI49:CH49,'Population Pyramid'!$L$1) -> 1453538
A50: male | B50: 34 | C50: 387872 | D50: 394500.995 | E50: 406047 | F50: 413319.006 | G50: 412609.992 | H50: 406788.998 | I50: 412093.007 | J50: 409552.995 | K50: 411558.002 | L50: 422042.997 | M50: 420721.998 | N50: 425338.996 | O50: 418924.994 | P50: 415076.994 | Q50: 419814.996 | R50: 430711.999 | S50: 442191.999 | T50: 442800.995 | U50: 440303.003 | V50: 446551.004 | W50: 460699.998 | X50: 458951.994 | Y50: 462673.001 | Z50: 468499 | AA50: 468628.992 | AB50: 460878.003 | AD50: 34 | AE50: 12279400 | AF50: 12499179.02 | AG50: 12653786.01 | AH50: 12667584.99 | AI50: 12643649.97 | AJ50: 12618497.01 | AK50: 12608894.98 | AL50: 12605782.95 | AM50: 12609674.01 | AN50: 12611852.99 | AO50: 12603965.04 | AP50: 12598092.01 | AQ50: 12588610.03 | AR50: 12586712.03 | AS50: 12589950.03 | AT50: 12589938.05 | AU50: 12580710.01 | AV50: 12561775.97 | AW50: 12543936 | AX50: 12530141.02 | AY50: 12511457.04 | AZ50: 12479689.04 | BA50: 12450308.04 | BB50: 12417514 | BC50: 12378963.98 | BD50: 12340158.98 | BF50: Females | BG50: 70-74 | BI50: =SUM(C179:C183) -> 1393523 | BJ50: 1358083.001 | BK50: 1346372.009 | BL50: 1339883.001 | BM50: 1349190.98 | BN50: 1371932.001 | BO50: 1400581.009 | BP50: 1433517 | BQ50: 1475764.003 | BR50: 1522349.999 | BS50: 1572049.98 | BT50: 1619189.996 | BU50: 1666131.009 | BV50: 1710409.991 | BW50: 1741163.009 | BX50: 1758227.016 | BY50: 1766160.999 | BZ50: 1767443.987 | CA50: 1756711.999 | CB50: 1756527.008 | CC50: 1743191.99 | CD50: 1719531.014 | CE50: 1683883.024 | CF50: 1653112.002 | CG50: 1608265.01 | CH50: 1572012.999 | CJ50: =INDEX(BI50:CH50,'Population Pyramid'!$L$1) -> 1393523
A51: male | B51: 35 | C51: 378778 | D51: 396914.001 | E51: 401570.996 | F51: 409017.007 | G51: 415315.999 | H51: 414578.003 | I51: 409138.998 | J51: 414861.01 | K51: 412479.999 | L51: 414488 | M51: 424963.998 | N51: 423644.995 | O51: 428261.002 | P51: 421850.992 | Q51: 418011.005 | R51: 422748.999 | S51: 433635.008 | T51: 445105.007 | U51: 445719.002 | V51: 443226.999 | W51: 449469.998 | X51: 463606.998 | Y51: 461860.002 | Z51: 465581.003 | AA51: 471404.004 | AB51: 471537.006 | AD51: 35 | AE51: 12658178 | AF51: 12896093.02 | AG51: 13055357.01 | AH51: 13076601.99 | AI51: 13058965.97 | AJ51: 13033075.01 | AK51: 13018033.98 | AL51: 13020643.96 | AM51: 13022154.01 | AN51: 13026340.99 | AO51: 13028929.03 | AP51: 13021737.01 | AQ51: 13016871.03 | AR51: 13008563.02 | AS51: 13007961.04 | AT51: 13012687.05 | AU51: 13014345.01 | AV51: 13006880.98 | AW51: 12989655 | AX51: 12973368.02 | AY51: 12960927.04 | AZ51: 12943296.03 | BA51: 12912168.04 | BB51: 12883095 | BC51: 12850367.98 | BD51: 12811695.98 | BF51: Females | BG51: 75-79 | BI51: =SUM(C184:C188) -> 1219566 | BJ51: 1276390.01 | BK51: 1301622.989 | BL51: 1319321.981 | BM51: 1325017.995 | BN51: 1265043.997 | BO51: 1234394.011 | BP51: 1224723.014 | BQ51: 1220185.996 | BR51: 1230249.993 | BS51: 1252706.008 | BT51: 1280730.99 | BU51: 1312723.01 | BV51: 1353039.988 | BW51: 1397432.02 | BX51: 1444791.02 | BY51: 1489750.028 | BZ51: 1534440.008 | CA51: 1576499.003 | CB51: 1606015.02 | CC51: 1622954.013 | CD51: 1631465.993 | CE51: 1633954.994 | CF51: 1625327.982 | CG51: 1626616.984 | CH51: 1615526.015 | CJ51: =INDEX(BI51:CH51,'Population Pyramid'!$L$1) -> 1219566
A52: male | B52: 36 | C52: 378159 | D52: 386715.001 | E52: 403033.993 | F52: 404001.003 | G52: 410563.999 | H52: 416828.007 | I52: 416439.001 | J52: 411406.006 | K52: 417272.003 | L52: 414898.994 | M52: 416910.009 | N52: 427375.997 | O52: 426059.999 | P52: 430675.007 | Q52: 424269.999 | R52: 420437.003 | S52: 425174.992 | T52: 436051.005 | U52: 447511.999 | V52: 448131.003 | W52: 445645.01 | X52: 451885 | Y52: 466009.007 | Z52: 464262.011 | AA52: 467985.009 | AB52: 473805.006 | AD52: 36 | AE52: 13036337 | AF52: 13282808.02 | AG52: 13458391 | AH52: 13480603 | AI52: 13469529.96 | AJ52: 13449903.02 | AK52: 13434472.98 | AL52: 13432049.96 | AM52: 13439426.01 | AN52: 13441239.98 | AO52: 13445839.04 | AP52: 13449113.01 | AQ52: 13442931.03 | AR52: 13439238.03 | AS52: 13432231.03 | AT52: 13433124.05 | AU52: 13439520.01 | AV52: 13442931.98 | AW52: 13437167 | AX52: 13421499.02 | AY52: 13406572.05 | AZ52: 13395181.03 | BA52: 13378177.05 | BB52: 13347357.01 | BC52: 13318352.99 | BD52: 13285500.99 | BF52: Females | BG52: 80-84 | BI52: =SUM(C189:C193) -> 803315 | BJ52: 824712.01 | BK52: 858406.003 | BL52: 891826.993 | BM52: 936287.025 | BN52: 1028873.996 | BO52: 1080450.985 | BP52: 1103686.985 | BQ52: 1119515.014 | BR52: 1124335.011 | BS52: 1076242.025 | BT52: 1052575.996 | BU52: 1046427.008 | BV52: 1044449.005 | BW52: 1055074.002 | BX52: 1076475.022 | BY52: 1102946.995 | BZ52: 1132915.992 | CA52: 1169733.976 | CB52: 1210232.005 | CC52: 1253489.022 | CD52: 1294660.989 | CE52: 1335513.997 | CF52: 1373879.028 | CG52: 1401242.004 | CH52: 1417762.997 | CJ52: =INDEX(BI52:CH52,'Population Pyramid'!$L$1) -> 803315
A53: male | B53: 37 | C53: 377162 | D53: 385106.005 | E53: 392012.999 | F53: 404993.001 | G53: 405158.997 | H53: 411691.003 | I53: 418272.997 | J53: 418258.003 | K53: 413371 | L53: 419238.997 | M53: 416874.998 | N53: 418890.002 | O53: 429344.002 | P53: 428032.993 | Q53: 432646.998 | R53: 426247.999 | S53: 422423.995 | T53: 427161.993 | U53: 438027.997 | V53: 449478.001 | W53: 450104 | X53: 447623.001 | Y53: 453859.993 | Z53: 467970.992 | AA53: 466225.999 | AB53: 469948.996 | AD53: 37 | AE53: 13413499 | AF53: 13667914.02 | AG53: 13850404 | AH53: 13885596 | AI53: 13874688.96 | AJ53: 13861594.02 | AK53: 13852745.98 | AL53: 13850307.96 | AM53: 13852797.01 | AN53: 13860478.98 | AO53: 13862714.04 | AP53: 13868003.01 | AQ53: 13872275.03 | AR53: 13867271.02 | AS53: 13864878.03 | AT53: 13859372.05 | AU53: 13861944 | AV53: 13870093.97 | AW53: 13875195 | AX53: 13870977.03 | AY53: 13856676.05 | AZ53: 13842804.04 | BA53: 13832037.04 | BB53: 13815328.01 | BC53: 13784578.99 | BD53: 13755449.98 | BF53: Females | BG53: 85+ | BI53: =SUM(C194:C199) -> 886070 | BJ53: 893945.012 | BK53: 907460.004 | BL53: 919668.989 | BM53: 924568.019 | BN53: 942676.993 | BO53: 974766.998 | BP53: 1015168.983 | BQ53: 1052319.988 | BR53: 1090520.013 | BS53: 1175513.012 | BT53: 1236416.997 | BU53: 1279524.995 | BV53: 1312821.99 | BW53: 1337284.987 | BX53: 1356423.001 | BY53: 1375746.993 | BZ53: 1395004.98 | CA53: 1410175.995 | CB53: 1429217.009 | CC53: 1453645.971 | CD53: 1483457.991 | CE53: 1517195.989 | CF53: 1554228.978 | CG53: 1598291.996 | CH53: 1649526.984 | CJ53: =INDEX(BI53:CH53,'Population Pyramid'!$L$1) -> 886070
A54: male | B54: 38 | C54: 365474 | D54: 383182.005 | E54: 389621 | F54: 393543.997 | G54: 405783 | H54: 405922.998 | I54: 412752.994 | J54: 419674.002 | K54: 419787.004 | L54: 414918.002 | M54: 420788 | N54: 418432.001 | O54: 420450.997 | P54: 430894.001 | Q54: 429587.998 | R54: 434199.994 | S54: 427809.993 | T54: 423991.996 | U54: 428733.001 | V54: 439586.998 | W54: 451026.998 | X54: 451658.996 | Y54: 449185.991 | Z54: 455418.001 | AA54: 469515.995 | AB54: 467772.997 | AD54: 38 | AE54: 13778973 | AF54: 14051096.03 | AG54: 14240025 | AH54: 14279139.99 | AI54: 14280471.96 | AJ54: 14267517.02 | AK54: 14265498.97 | AL54: 14269981.97 | AM54: 14272584.01 | AN54: 14275396.98 | AO54: 14283502.04 | AP54: 14286435.01 | AQ54: 14292726.03 | AR54: 14298165.02 | AS54: 14294466.03 | AT54: 14293572.04 | AU54: 14289753.99 | AV54: 14294085.97 | AW54: 14303928 | AX54: 14310564.02 | AY54: 14307703.04 | AZ54: 14294463.03 | BA54: 14281223.03 | BB54: 14270746.01 | BC54: 14254094.98 | BD54: 14223222.98
A55: male | B55: 39 | C55: 366095 | D55: 370766.001 | E55: 387094.002 | F55: 390843.005 | G55: 394105.994 | H55: 406305 | I55: 406724.004 | J55: 413866.99 | K55: 420896.994 | L55: 421019.998 | M55: 416166.996 | N55: 422038.001 | O55: 419691.998 | P55: 421715.001 | Q55: 432146.996 | R55: 430846.008 | S55: 435457.002 | T55: 429074.012 | U55: 425266.001 | V55: 430007.995 | W55: 440849.997 | X55: 452281 | Y55: 452919.994 | Z55: 450454 | AA55: 456682.012 | AB55: 470767.004 | AD55: 39 | AE55: 14145068 | AF55: 14421862.03 | AG55: 14627119 | AH55: 14669983 | AI55: 14674577.96 | AJ55: 14673822.02 | AK55: 14672222.97 | AL55: 14683848.96 | AM55: 14693481.01 | AN55: 14696416.98 | AO55: 14699669.04 | AP55: 14708473.01 | AQ55: 14712418.03 | AR55: 14719880.02 | AS55: 14726613.03 | AT55: 14724418.05 | AU55: 14725211 | AV55: 14723159.98 | AW55: 14729194 | AX55: 14740572.02 | AY55: 14748553.04 | AZ55: 14746744.03 | BA55: 14734143.02 | BB55: 14721200.01 | BC55: 14710776.99 | BD55: 14693989.98
A56: male | B56: 40 | C56: 365716 | D56: 370628.996 | E56: 374082.999 | F56: 388011.003 | G56: 391169.009 | H56: 394408.989 | I56: 406844.009 | J56: 407551.993 | K56: 414796.993 | L56: 421823.998 | M56: 421956.002 | N56: 417119.001 | O56: 422993.005 | P56: 420657.006 | Q56: 422684.997 | R56: 433104.992 | S56: 431809.993 | T56: 436420.004 | U56: 430044.999 | V56: 426248.006 | W56: 430990.997 | X56: 441822.003 | Y56: 453243.003 | Z56: 453889.004 | AA56: 451429.999 | AB56: 457654.007 | AD56: 40 | AE56: 14510784 | AF56: 14792491.03 | AG56: 15001202 | AH56: 15057994 | AI56: 15065746.96 | AJ56: 15068231.01 | AK56: 15079066.98 | AL56: 15091400.95 | AM56: 15108278 | AN56: 15118240.98 | AO56: 15121625.04 | AP56: 15125592.01 | AQ56: 15135411.03 | AR56: 15140537.03 | AS56: 15149298.02 | AT56: 15157523.04 | AU56: 15157020.99 | AV56: 15159579.99 | AW56: 15159239 | AX56: 15166820.02 | AY56: 15179544.04 | AZ56: 15188566.03 | BA56: 15187386.03 | BB56: 15175089.01 | BC56: 15162206.99 | BD56: 15151643.99
A57: male | B57: 41 | C57: 369082 | D57: 369497.005 | E57: 373337 | F57: 374710.994 | G57: 388104.006 | H57: 391243.004 | I57: 394709.001 | J57: 407385.003 | K57: 408189.998 | L57: 415434 | M57: 422457.999 | N57: 422599.003 | O57: 417781.006 | P57: 423656.006 | Q57: 421331.995 | R57: 423362.992 | S57: 433772.007 | T57: 432483.993 | U57: 437091.997 | V57: 430728.999 | W57: 426943.001 | X57: 431686.999 | Y57: 442505.996 | Z57: 453916.004 | AA57: 454568.999 | AB57: 452117.994 | AD57: 41 | AE57: 14879866 | AF57: 15161988.03 | AG57: 15374539 | AH57: 15432705 | AI57: 15453850.97 | AJ57: 15459474.01 | AK57: 15473775.98 | AL57: 15498785.95 | AM57: 15516468 | AN57: 15533674.98 | AO57: 15544083.04 | AP57: 15548191.01 | AQ57: 15553192.04 | AR57: 15564193.03 | AS57: 15570630.02 | AT57: 15580886.04 | AU57: 15590793 | AV57: 15592063.98 | AW57: 15596330.99 | AX57: 15597549.02 | AY57: 15606487.04 | AZ57: 15620253.03 | BA57: 15629892.02 | BB57: 15629005.02 | BC57: 15616775.99 | BD57: 15603761.99
A58: male | B58: 42 | C58: 371785 | D58: 372363.997 | E58: 371809.001 | F58: 373766.003 | G58: 374675.003 | H58: 388036.004 | I58: 391382.003 | J58: 395084.004 | K58: 407830.002 | L58: 408640 | M58: 415883.01 | N58: 422905.995 | O58: 423054.008 | P58: 418255.01 | Q58: 424134.005 | R58: 421819.004 | S58: 423854.996 | T58: 434253.992 | U58: 432972.001 | V58: 437579.999 | W58: 431228.005 | X58: 427453.998 | Y58: 432198 | Z58: 443005.999 | AA58: 454404.998 | AB58: 455066.001 | AD58: 42 | AE58: 15251651 | AF58: 15534352.03 | AG58: 15746348 | AH58: 15806471 | AI58: 15828525.97 | AJ58: 15847510.02 | AK58: 15865157.99 | AL58: 15893869.96 | AM58: 15924298 | AN58: 15942314.98 | AO58: 15959966.05 | AP58: 15971097.01 | AQ58: 15976246.05 | AR58: 15982448.04 | AS58: 15994764.02 | AT58: 16002705.04 | AU58: 16014647.99 | AV58: 16026317.97 | AW58: 16029302.99 | AX58: 16035129.02 | AY58: 16037715.04 | AZ58: 16047707.03 | BA58: 16062090.02 | BB58: 16072011.01 | BC58: 16071180.99 | BD58: 16058827.99
A59: male | B59: 43 | C59: 357548 | D59: 374668.991 | E59: 374355.997 | F59: 372079.994 | G59: 373609.993 | H59: 374509.007 | I59: 388046.003 | J59: 391609.01 | K59: 395390.005 | L59: 408120.999 | M59: 408936.005 | N59: 416178.998 | O59: 423197.994 | P59: 423354.997 | Q59: 418575.999 | R59: 424455.998 | S59: 422152.007 | T59: 424194.004 | U59: 434581.004 | V59: 433305.991 | W59: 437914.001 | X59: 431572.999 | Y59: 427811.004 | Z59: 432558.001 | AA59: 443354.004 | AB59: 454741.005 | AD59: 43 | AE59: 15609199 | AF59: 15909021.02 | AG59: 16120704 | AH59: 16178550.99 | AI59: 16202135.97 | AJ59: 16222019.02 | AK59: 16253203.99 | AL59: 16285478.97 | AM59: 16319688.01 | AN59: 16350435.97 | AO59: 16368902.05 | AP59: 16387276.01 | AQ59: 16399444.04 | AR59: 16405803.04 | AS59: 16413340.02 | AT59: 16427161.04 | AU59: 16436800 | AV59: 16450511.98 | AW59: 16463884 | AX59: 16468435.01 | AY59: 16475629.04 | AZ59: 16479280.03 | BA59: 16489901.03 | BB59: 16504569.02 | BC59: 16514534.99 | BD59: 16513568.99
A60: male | B60: 44 | C60: 334057 | D60: 360040.989 | E60: 376327.998 | F60: 374468.003 | G60: 371817.01 | H60: 373338.995 | I60: 374417.004 | J60: 388133 | K60: 391766.998 | L60: 395551.009 | M60: 408266 | N60: 409087.995 | O60: 416329.002 | P60: 423345.003 | Q60: 423510.999 | R60: 418752.997 | S60: 424633.997 | T60: 422342.999 | U60: 424387.997 | V60: 434763.001 | W60: 433497.001 | X60: 438105.004 | Y60: 431777.002 | Z60: 428027.999 | AA60: 432775.999 | AB60: 443558.006 | AD60: 44 | AE60: 15943256 | AF60: 16269062.01 | AG60: 16497032 | AH60: 16553019 | AI60: 16573952.98 | AJ60: 16595358.02 | AK60: 16627620.99 | AL60: 16673611.97 | AM60: 16711455.01 | AN60: 16745986.98 | AO60: 16777168.05 | AP60: 16796364 | AQ60: 16815773.04 | AR60: 16829148.04 | AS60: 16836851.02 | AT60: 16845914.04 | AU60: 16861434 | AV60: 16872854.98 | AW60: 16888272 | AX60: 16903198.01 | AY60: 16909126.05 | AZ60: 16917385.03 | BA60: 16921678.03 | BB60: 16932597.01 | BC60: 16947310.99 | BD60: 16957127
A61: male | B61: 45 | C61: 328451 | D61: 336179.997 | E61: 361401.992 | F61: 376266.008 | G61: 374067 | H61: 371417.999 | I61: 373102.002 | J61: 374363.008 | K61: 388125.993 | L61: 391760.998 | M61: 395546.999 | N61: 408246.999 | O61: 409074.996 | P61: 416314 | Q61: 423326.995 | R61: 423501.994 | S61: 418764.001 | T61: 424647.002 | U61: 422367.008 | V61: 424417.999 | W61: 434781 | X61: 433524.009 | Y61: 438131.996 | Z61: 431817.001 | AA61: 428081.994 | AB61: 432830.994 | AD61: 45 | AE61: 16271707 | AF61: 16605242 | AG61: 16858433.99 | AH61: 16929285 | AI61: 16948019.98 | AJ61: 16966776.02 | AK61: 17000723 | AL61: 17047974.97 | AM61: 17099581 | AN61: 17137747.98 | AO61: 17172715.05 | AP61: 17204611 | AQ61: 17224848.04 | AR61: 17245462.04 | AS61: 17260178.02 | AT61: 17269416.03 | AU61: 17280198 | AV61: 17297501.98 | AW61: 17310639 | AX61: 17327616.01 | AY61: 17343907.05 | AZ61: 17350909.04 | BA61: 17359810.03 | BB61: 17364414.02 | BC61: 17375392.99 | BD61: 17389957.99
A62: male | B62: 46 | C62: 335723 | D62: 330254.007 | E62: 337343 | F62: 361249.001 | G62: 375764.998 | H62: 373564.997 | I62: 371070.996 | J62: 372919.999 | K62: 374247.003 | L62: 387991.008 | M62: 391627.998 | N62: 395417.006 | O62: 408099.004 | P62: 408935.007 | Q62: 416170.009 | R62: 423177.995 | S62: 423363 | T62: 418648.008 | U62: 424531.007 | V62: 422264.993 | W62: 424320.001 | X62: 434670.002 | Y62: 433423 | Z62: 438029.995 | AA62: 431731.003 | AB62: 428010 | AD62: 46 | AE62: 16607430 | AF62: 16935496.01 | AG62: 17195776.99 | AH62: 17290534.01 | AI62: 17323784.97 | AJ62: 17340341.02 | AK62: 17371793.99 | AL62: 17420894.97 | AM62: 17473828 | AN62: 17525738.99 | AO62: 17564343.05 | AP62: 17600028.01 | AQ62: 17632947.04 | AR62: 17654397.05 | AS62: 17676348.02 | AT62: 17692594.03 | AU62: 17703561 | AV62: 17716149.99 | AW62: 17735170.01 | AX62: 17749881.01 | AY62: 17768227.05 | AZ62: 17785579.05 | BA62: 17793233.03 | BB62: 17802444.01 | BC62: 17807123.99 | BD62: 17817967.99
A63: male | B63: 47 | C63: 342567 | D63: 337213.004 | E63: 331205.013 | F63: 337140.997 | G63: 360710.003 | H63: 375182.004 | I63: 373119.994 | J63: 370785.002 | K63: 372694.998 | L63: 374029.998 | M63: 387757.003 | N63: 391394.992 | O63: 395186.004 | P63: 407850.002 | Q63: 408692.998 | R63: 415925.007 | S63: 422927.998 | T63: 423123.996 | U63: 418431 | V63: 424315 | W63: 422064 | X63: 424122.002 | Y63: 434458.997 | Z63: 433221.997 | AA63: 437829.003 | AB63: 431547.007 | AD63: 47 | AE63: 16949997 | AF63: 17272709.02 | AG63: 17526982 | AH63: 17627675 | AI63: 17684494.98 | AJ63: 17715523.02 | AK63: 17744913.99 | AL63: 17791679.98 | AM63: 17846523 | AN63: 17899768.99 | AO63: 17952100.05 | AP63: 17991423 | AQ63: 18028133.05 | AR63: 18062247.05 | AS63: 18085041.02 | AT63: 18108519.03 | AU63: 18126489 | AV63: 18139273.98 | AW63: 18153601.01 | AX63: 18174196.01 | AY63: 18190291.05 | AZ63: 18209701.05 | BA63: 18227692.02 | BB63: 18235666.01 | BC63: 18244952.99 | BD63: 18249515
A64: male | B64: 48 | C64: 346674 | D64: 343738 | E64: 337906.993 | F64: 330889.002 | G64: 336571.002 | H64: 360078.004 | I64: 374628.008 | J64: 372709.003 | K64: 370439.008 | L64: 372358.006 | M64: 373703.997 | N64: 387410.012 | O64: 391051.011 | P64: 394842.993 | Q64: 407488.003 | R64: 408340 | S64: 415566.992 | T64: 422566 | U64: 422772.004 | V64: 418102.996 | W64: 423987.004 | X64: 421750.001 | Y64: 423813.994 | Z64: 434136.004 | AA64: 432911.005 | AB64: 437516.991 | AD64: 48 | AE64: 17296671 | AF64: 17616447.02 | AG64: 17864889 | AH64: 17958564 | AI64: 18021065.98 | AJ64: 18075601.02 | AK64: 18119541.99 | AL64: 18164388.98 | AM64: 18216962.01 | AN64: 18272126.99 | AO64: 18325804.05 | AP64: 18378833.01 | AQ64: 18419184.06 | AR64: 18457090.04 | AS64: 18492529.03 | AT64: 18516859.03 | AU64: 18542055.99 | AV64: 18561839.98 | AW64: 18576373.01 | AX64: 18592299 | AY64: 18614278.05 | AZ64: 18631451.05 | BA64: 18651506.02 | BB64: 18669802.01 | BC64: 18677864 | BD64: 18687031.99
A65: male | B65: 49 | C65: 360419 | D65: 347525.995 | E65: 344157.993 | F65: 337414.99 | G65: 330208.995 | H65: 335889.001 | I65: 359442.004 | J65: 374073.001 | K65: 372210.002 | L65: 369960.996 | M65: 371889 | N65: 373246.989 | O65: 386931.004 | P65: 390573.99 | Q65: 394368.002 | R65: 406992.002 | S65: 407853.001 | T65: 415074.004 | U65: 422067.999 | V65: 422284.001 | W65: 417639.999 | X65: 423524.007 | Y65: 421302.997 | Z65: 423372.996 | AA65: 433679.998 | AB65: 432465.004 | AD65: 49 | AE65: 17657090 | AF65: 17963973.01 | AG65: 18209046.99 | AH65: 18295978.99 | AI65: 18351274.97 | AJ65: 18411490.02 | AK65: 18478984 | AL65: 18538461.98 | AM65: 18589172.01 | AN65: 18642087.99 | AO65: 18697693.05 | AP65: 18752080 | AQ65: 18806115.06 | AR65: 18847664.03 | AS65: 18886897.03 | AT65: 18923851.03 | AU65: 18949908.99 | AV65: 18976913.99 | AW65: 18998441.01 | AX65: 19014583 | AY65: 19031918.05 | AZ65: 19054975.05 | BA65: 19072809.01 | BB65: 19093175.01 | BC65: 19111544 | BD65: 19119496.99
A66: male | B66: 50 | C66: 373388 | D66: 360938.997 | E66: 347693 | F66: 343481.001 | G66: 336575.004 | H66: 329413.994 | I66: 335195.005 | J66: 358793.995 | K66: 373423.008 | L66: 371573.992 | M66: 369348.002 | N66: 371286.001 | O66: 372654.997 | P66: 386313.998 | Q66: 389958.997 | R66: 393754.006 | S66: 406356.005 | T66: 407223.998 | U66: 414439.995 | V66: 421425.998 | W66: 421653.993 | X66: 417036.01 | Y66: 422920 | Z66: 420714.999 | AA66: 422791.997 | AB66: 433080.997 | AD66: 50 | AE66: 18030478 | AF66: 18324912.01 | AG66: 18556739.99 | AH66: 18639460 | AI66: 18687849.98 | AJ66: 18740904.02 | AK66: 18814179 | AL66: 18897255.97 | AM66: 18962595.02 | AN66: 19013661.98 | AO66: 19067041.05 | AP66: 19123366 | AQ66: 19178770.06 | AR66: 19233978.03 | AS66: 19276856.02 | AT66: 19317605.04 | AU66: 19356264.99 | AV66: 19384137.98 | AW66: 19412881.01 | AX66: 19436009 | AY66: 19453572.04 | AZ66: 19472011.07 | BA66: 19495729.01 | BB66: 19513890.01 | BC66: 19534335.99 | BD66: 19552577.99
A67: male | B67: 51 | C67: 385363 | D67: 373578.991 | E67: 360813.001 | F67: 346827 | G67: 342462.997 | H67: 335609 | I67: 328590.998 | J67: 334476.999 | K67: 358043.01 | L67: 372628.999 | M67: 370799.004 | N67: 368596.002 | O67: 370544.993 | P67: 371924.999 | Q67: 385556 | R67: 389202 | S67: 392999.997 | T67: 405576.001 | U67: 406452.01 | V67: 413661.998 | W67: 420639.998 | X67: 420879.984 | Y67: 416289.005 | Z67: 422171 | AA67: 419983.005 | AB67: 422069.005 | AD67: 51 | AE67: 18415841 | AF67: 18698491 | AG67: 18917552.99 | AH67: 18986287 | AI67: 19030312.98 | AJ67: 19076513.02 | AK67: 19142770 | AL67: 19231732.97 | AM67: 19320638.03 | AN67: 19386290.98 | AO67: 19437840.06 | AP67: 19491962 | AQ67: 19549315.05 | AR67: 19605903.03 | AS67: 19662412.02 | AT67: 19706807.04 | AU67: 19749264.99 | AV67: 19789713.98 | AW67: 19819333.02 | AX67: 19849671 | AY67: 19874212.04 | AZ67: 19892891.05 | BA67: 19912018.02 | BB67: 19936061.01 | BC67: 19954319 | BD67: 19974647
A68: male | B68: 52 | C68: 375791 | D68: 385232.999 | E68: 373156.001 | F68: 359711.996 | G68: 345625 | H68: 341307 | I68: 334595.996 | J68: 327730.002 | K68: 333651.998 | L68: 357148.995 | M68: 371689.003 | N68: 369877.999 | O68: 367700 | P68: 369660 | Q68: 371052.005 | R68: 384653.001 | S68: 388300.996 | T68: 392099.01 | U68: 404646.985 | V68: 405532.997 | W68: 412736.994 | X68: 419706.008 | Y68: 419957.002 | Z68: 415395.003 | AA68: 421275.001 | AB68: 419108.003 | AD68: 52 | AE68: 18791632 | AF68: 19083724 | AG68: 19290708.99 | AH68: 19345998.99 | AI68: 19375937.98 | AJ68: 19417820.02 | AK68: 19477366 | AL68: 19559462.98 | AM68: 19654290.03 | AN68: 19743439.98 | AO68: 19809529.06 | AP68: 19861840 | AQ68: 19917015.05 | AR68: 19975563.03 | AS68: 20033464.03 | AT68: 20091460.04 | AU68: 20137565.99 | AV68: 20181812.99 | AW68: 20223980 | AX68: 20255204 | AY68: 20286949.04 | AZ68: 20312597.06 | BA68: 20331975.02 | BB68: 20351456.01 | BC68: 20375594 | BD68: 20393755
A69: male | B69: 53 | C69: 383976 | D69: 375399.999 | E69: 384488.996 | F69: 371782.999 | G69: 358247 | H69: 344246.998 | I69: 340063.006 | J69: 333504.005 | K69: 326730.002 | L69: 332656.993 | M69: 356077 | N69: 370569.997 | O69: 368779.006 | P69: 366628.002 | Q69: 368597.992 | R69: 370002 | S69: 383571.007 | T69: 387218.002 | U69: 391018.002 | V69: 403536.998 | W69: 404432.002 | X69: 411627.988 | Y69: 418585.998 | Z69: 418849.998 | AA69: 414317.999 | AB69: 420194.991 | AD69: 53 | AE69: 19175608 | AF69: 19459124 | AG69: 19675197.99 | AH69: 19717781.99 | AI69: 19734184.98 | AJ69: 19762067.02 | AK69: 19817429 | AL69: 19892966.98 | AM69: 19981020.03 | AN69: 20076096.97 | AO69: 20165606.06 | AP69: 20232410 | AQ69: 20285794.06 | AR69: 20342191.03 | AS69: 20402062.02 | AT69: 20461462.04 | AU69: 20521136.99 | AV69: 20569031 | AW69: 20614998.01 | AX69: 20658740.99 | AY69: 20691381.04 | AZ69: 20724225.05 | BA69: 20750561.02 | BB69: 20770306.01 | BC69: 20789912 | BD69: 20813949.99
A70: male | B70: 54 | C70: 382550 | D70: 383238.006 | E70: 374413.999 | F70: 382835.996 | G70: 370039.992 | H70: 356589.995 | I70: 342763.995 | J70: 338723.001 | K70: 332260.995 | L70: 325550.997 | M70: 331480.991 | N70: 354818.999 | O70: 369261.006 | P70: 367491.007 | Q70: 365368.001 | R70: 367349.999 | S70: 368766.001 | T70: 382297.998 | U70: 385945 | V70: 389745.001 | W70: 402230.997 | X70: 403137.001 | Y70: 410325.002 | Z70: 417269.997 | AA70: 417547.005 | AB70: 413048 | AD70: 54 | AE70: 19558158 | AF70: 19842362 | AG70: 20049611.99 | AH70: 20100617.99 | AI70: 20104224.97 | AJ70: 20118657.01 | AK70: 20160193 | AL70: 20231689.98 | AM70: 20313281.02 | AN70: 20401647.97 | AO70: 20497087.05 | AP70: 20587229 | AQ70: 20655055.06 | AR70: 20709682.04 | AS70: 20767430.02 | AT70: 20828812.04 | AU70: 20889902.99 | AV70: 20951328.99 | AW70: 21000943.01 | AX70: 21048485.99 | AY70: 21093612.03 | AZ70: 21127362.05 | BA70: 21160886.02 | BB70: 21187576 | BC70: 21207459 | BD70: 21226997.99
A71: male | B71: 55 | C71: 385620 | D71: 381520.995 | E71: 381935.001 | F71: 372575.999 | G71: 380819.009 | H71: 368100.001 | I71: 354820.998 | J71: 341183 | K71: 337229.996 | L71: 330837.996 | M71: 324194.998 | N71: 330126.999 | O71: 353377.006 | P71: 367762.994 | Q71: 366014.998 | R71: 363921.012 | S71: 365915.997 | T71: 367343.006 | U71: 380835.997 | V71: 384480.999 | W71: 388279.994 | X71: 400731.006 | Y71: 401649.005 | Z71: 408823.993 | AA71: 415756.992 | AB71: 416047.006 | AD71: 55 | AE71: 19943778 | AF71: 20223883 | AG71: 20431546.99 | AH71: 20473193.99 | AI71: 20485043.98 | AJ71: 20486757.01 | AK71: 20515014 | AL71: 20572872.98 | AM71: 20650511.02 | AN71: 20732485.96 | AO71: 20821282.05 | AP71: 20917356 | AQ71: 21008432.07 | AR71: 21077445.03 | AS71: 21133445.02 | AT71: 21192733.05 | AU71: 21255818.99 | AV71: 21318672 | AW71: 21381779 | AX71: 21432966.99 | AY71: 21481892.03 | AZ71: 21528093.05 | BA71: 21562535.03 | BB71: 21596400 | BC71: 21623215.99 | BD71: 21643045
A72: male | B72: 56 | C72: 381730 | D72: 384286.001 | E72: 379961.006 | F72: 379825.995 | G72: 370391.996 | H72: 378606.995 | I72: 366046.991 | J72: 352952 | K72: 339452 | L72: 335560.007 | M72: 329242.004 | N72: 322668.006 | O72: 328602.997 | P72: 351755.998 | Q72: 366080.012 | R72: 364356.001 | S72: 362293.005 | T72: 364299.006 | U72: 365739 | V72: 379186.999 | W72: 382830.006 | X72: 386629.001 | Y72: 399040.996 | Z72: 399967.003 | AA72: 407130 | AB72: 414048.999 | AD72: 56 | AE72: 20325508 | AF72: 20608169 | AG72: 20811507.99 | AH72: 20853019.98 | AI72: 20855435.97 | AJ72: 20865364.01 | AK72: 20881060.99 | AL72: 20925824.98 | AM72: 20989963.02 | AN72: 21068045.97 | AO72: 21150524.05 | AP72: 21240024 | AQ72: 21337035.07 | AR72: 21429201.03 | AS72: 21499525.03 | AT72: 21557089.05 | AU72: 21618112 | AV72: 21682971.01 | AW72: 21747518 | AX72: 21812153.99 | AY72: 21864722.03 | AZ72: 21914722.05 | BA72: 21961576.02 | BB72: 21996367 | BC72: 22030345.99 | BD72: 22057094
A73: male | B73: 57 | C73: 381994 | D73: 380143.006 | E73: 382461 | F73: 377651.998 | G73: 377399.002 | H73: 368038.995 | I73: 376292.991 | J73: 363901.001 | K73: 350942.997 | L73: 337558.992 | M73: 333731.003 | N73: 327489.001 | O73: 320990 | P73: 326924.998 | Q73: 349970.988 | R73: 364230.005 | S73: 362530.006 | T73: 360501.996 | U73: 362521.013 | V73: 363971.999 | W73: 377372.007 | X73: 381012.007 | Y73: 384808.999 | Z73: 397179.003 | AA73: 398116.998 | AB73: 405266.002 | AD73: 57 | AE73: 20707502 | AF73: 20988312 | AG73: 21193968.99 | AH73: 21230671.98 | AI73: 21232834.97 | AJ73: 21233403 | AK73: 21257353.98 | AL73: 21289725.98 | AM73: 21340906.02 | AN73: 21405604.96 | AO73: 21484255.05 | AP73: 21567513 | AQ73: 21658025.07 | AR73: 21756126.03 | AS73: 21849496.02 | AT73: 21921319.06 | AU73: 21980642 | AV73: 22043473 | AW73: 22110039.02 | AX73: 22176125.99 | AY73: 22242094.04 | AZ73: 22295734.06 | BA73: 22346385.02 | BB73: 22393546 | BC73: 22428462.99 | BD73: 22462360
A74: male | B74: 58 | C74: 376158 | D74: 380131 | E74: 378091.99 | F74: 379920.999 | G74: 375029.999 | H74: 374793.996 | I74: 365576.996 | J74: 373871.011 | K74: 361603.997 | L74: 348762.004 | M74: 335500.996 | N74: 331740.004 | O74: 325577.995 | P74: 319155.995 | Q74: 325090.007 | R74: 348022.008 | S74: 362209.011 | T74: 360537.006 | U74: 358545.004 | V74: 360576.999 | W74: 362040.001 | X74: 375388.005 | Y74: 379024.001 | Z74: 382817.998 | AA74: 395143.987 | AB74: 396094.001 | AD74: 58 | AE74: 21083660 | AF74: 21368443 | AG74: 21572060.98 | AH74: 21610592.98 | AI74: 21607864.97 | AJ74: 21608197 | AK74: 21622930.97 | AL74: 21663596.99 | AM74: 21702510.01 | AN74: 21754366.96 | AO74: 21819756.05 | AP74: 21899253.01 | AQ74: 21983603.06 | AR74: 22075282.03 | AS74: 22174586.03 | AT74: 22269341.07 | AU74: 22342851.01 | AV74: 22404010.01 | AW74: 22468584.02 | AX74: 22536702.99 | AY74: 22604134.04 | AZ74: 22671122.07 | BA74: 22725409.02 | BB74: 22776364 | BC74: 22823606.98 | BD74: 22858454
A75: male | B75: 59 | C75: 367031 | D75: 374101.002 | E75: 377865.991 | F75: 375387.997 | G75: 377098.003 | H75: 372255.006 | I75: 372095.995 | J75: 363028.998 | K75: 371312.003 | L75: 359152.005 | M75: 346432.999 | N75: 333304.999 | O75: 329613 | P75: 323533 | Q75: 317192.99 | R75: 323122.007 | S75: 345929.983 | T75: 360042.001 | U75: 358399.002 | V75: 356446 | W75: 358489.995 | X75: 359966 | Y75: 373257.004 | Z75: 376888.001 | AA75: 380680.99 | AB75: 392955.995 | AD75: 59 | AE75: 21450691 | AF75: 21742544.01 | AG75: 21949926.97 | AH75: 21985980.97 | AI75: 21984962.98 | AJ75: 21980452 | AK75: 21995026.97 | AL75: 22026625.99 | AM75: 22073822.02 | AN75: 22113518.97 | AO75: 22166189.05 | AP75: 22232558.01 | AQ75: 22313216.06 | AR75: 22398815.03 | AS75: 22491779.02 | AT75: 22592463.07 | AU75: 22688781 | AV75: 22764052.01 | AW75: 22826983.02 | AX75: 22893148.99 | AY75: 22962624.04 | AZ75: 23031088.07 | BA75: 23098666.03 | BB75: 23153252 | BC75: 23204287.97 | BD75: 23251409.99
A76: male | B76: 60 | C76: 357667 | D76: 364747.001 | E76: 371622.005 | F76: 374945 | G76: 372392.009 | H76: 374102.004 | I76: 369359.997 | J76: 369275.993 | K76: 360321.006 | L76: 368568.996 | M76: 356524.006 | N76: 343936.999 | O76: 330947.997 | P76: 327327.999 | Q76: 321334.003 | R76: 315079.01 | S76: 321002.007 | T76: 343676.002 | U76: 357704.994 | V76: 356095 | W76: 354183.005 | X76: 356240.008 | Y76: 357729.005 | Z76: 370957.999 | AA76: 374584.006 | AB76: 378375.994 | AD76: 60 | AE76: 21808358 | AF76: 22107291.01 | AG76: 22321548.98 | AH76: 22360925.97 | AI76: 22357354.99 | AJ76: 22354554.01 | AK76: 22364386.97 | AL76: 22395901.98 | AM76: 22434143.02 | AN76: 22482087.97 | AO76: 22522713.06 | AP76: 22576495.01 | AQ76: 22644164.06 | AR76: 22726143.02 | AS76: 22813113.02 | AT76: 22907542.08 | AU76: 23009783 | AV76: 23107728.01 | AW76: 23184688.02 | AX76: 23249243.99 | AY76: 23316807.04 | AZ76: 23387328.07 | BA76: 23456395.03 | BB76: 23524210 | BC76: 23578871.98 | BD76: 23629785.99
A77: male | B77: 61 | C77: 344918 | D77: 355116.001 | E77: 362028.001 | F77: 368481.993 | G77: 371695.003 | H77: 369173.997 | I77: 370928.005 | J77: 366289.006 | K77: 366245.996 | L77: 357389.011 | M77: 365600.999 | N77: 353677.986 | O77: 341232.007 | P77: 328392.002 | Q77: 324844.997 | R77: 318940.005 | S77: 312774.009 | T77: 318687.999 | U77: 341217.004 | V77: 355158.991 | W77: 353585.003 | X77: 351715.001 | Y77: 353784.999 | Z77: 355288.011 | AA77: 368449.002 | AB77: 372069.994 | AD77: 61 | AE77: 22153276 | AF77: 22462407.01 | AG77: 22683576.98 | AH77: 22729407.97 | AI77: 22729049.99 | AJ77: 22723728.01 | AK77: 22735314.97 | AL77: 22762190.99 | AM77: 22800389.02 | AN77: 22839476.98 | AO77: 22888314.06 | AP77: 22930172.99 | AQ77: 22985396.07 | AR77: 23054535.03 | AS77: 23137958.02 | AT77: 23226482.09 | AU77: 23322557.01 | AV77: 23426416.01 | AW77: 23525905.02 | AX77: 23604402.98 | AY77: 23670392.04 | AZ77: 23739043.07 | BA77: 23810180.03 | BB77: 23879498.01 | BC77: 23947320.98 | BD77: 24001855.98
A78: male | B78: 62 | C78: 329845 | D78: 342188.001 | E78: 352205 | F78: 358713.993 | G78: 365036.997 | H78: 368230.002 | I78: 365784.991 | J78: 367586.003 | K78: 363022.993 | L78: 363002.999 | M78: 354253.995 | N78: 362425 | O78: 350634.993 | P78: 338338 | Q78: 325652.992 | R78: 322182.006 | S78: 316370 | T78: 310295.994 | U78: 316198.995 | V78: 338573.002 | W78: 352423.006 | X78: 350884.995 | Y78: 349060.99 | Z78: 351144.005 | AA78: 352661 | AB78: 365748.996 | AD78: 62 | AE78: 22483121 | AF78: 22804595.01 | AG78: 23035781.98 | AH78: 23088121.96 | AI78: 23094086.99 | AJ78: 23091958.01 | AK78: 23101099.96 | AL78: 23129776.99 | AM78: 23163412.01 | AN78: 23202479.98 | AO78: 23242568.05 | AP78: 23292597.99 | AQ78: 23336031.06 | AR78: 23392873.03 | AS78: 23463611.01 | AT78: 23548664.09 | AU78: 23638927.01 | AV78: 23736712 | AW78: 23842104.01 | AX78: 23942975.98 | AY78: 24022815.05 | AZ78: 24089928.07 | BA78: 24159241.02 | BB78: 24230642.02 | BC78: 24299981.98 | BD78: 24367604.98
A79: male | B79: 63 | C79: 319448 | D79: 326941.993 | E79: 339102.997 | F79: 348711.004 | G79: 355094.005 | H79: 361371.001 | I79: 364585.001 | J79: 362219.004 | K79: 364035.993 | L79: 359538.001 | M79: 359544.991 | N79: 350910.998 | O79: 359039.004 | P79: 347389.003 | Q79: 335250.002 | R79: 322727.996 | S79: 319334.996 | T79: 313618.996 | U79: 307641 | V79: 313530.003 | W79: 335738.998 | X79: 349491.003 | Y79: 347992.005 | Z79: 346214.995 | AA79: 348312 | AB79: 349844.991 | AD79: 63 | AE79: 22802569 | AF79: 23131537 | AG79: 23374884.98 | AH79: 23436832.96 | AI79: 23449180.99 | AJ79: 23453329.01 | AK79: 23465684.96 | AL79: 23491996 | AM79: 23527448 | AN79: 23562017.98 | AO79: 23602113.04 | AP79: 23643508.99 | AQ79: 23695070.06 | AR79: 23740262.03 | AS79: 23798861.01 | AT79: 23871392.09 | AU79: 23958262.01 | AV79: 24050331 | AW79: 24149745.01 | AX79: 24256505.99 | AY79: 24358554.05 | AZ79: 24439419.07 | BA79: 24507233.02 | BB79: 24576857.01 | BC79: 24648293.98 | BD79: 24717449.97
A80: male | B80: 64 | C80: 309720 | D80: 316323.001 | E80: 323703.003 | F80: 335460.006 | G80: 344914.996 | H80: 351252.998 | I80: 357518 | J80: 360751.003 | K80: 358441.002 | L80: 360260.003 | M80: 355833.005 | N80: 355869.998 | O80: 347357.999 | P80: 355440.995 | Q80: 343941.002 | R80: 331967.007 | S80: 319615.003 | T80: 316303.001 | U80: 310685.998 | V80: 304806.995 | W80: 310679.995 | X80: 332713.011 | Y80: 346360.002 | Z80: 344902.998 | AA80: 343178.009 | AB80: 345287.989 | AD80: 64 | AE80: 23112289 | AF80: 23447860 | AG80: 23698587.98 | AH80: 23772292.97 | AI80: 23794095.99 | AJ80: 23804582.01 | AK80: 23823202.96 | AL80: 23852747 | AM80: 23885889.01 | AN80: 23922277.98 | AO80: 23957946.05 | AP80: 23999378.99 | AQ80: 24042428.06 | AR80: 24095703.02 | AS80: 24142802.01 | AT80: 24203359.1 | AU80: 24277877.01 | AV80: 24366634 | AW80: 24460431.01 | AX80: 24561312.98 | AY80: 24669234.04 | AZ80: 24772132.08 | BA80: 24853593.03 | BB80: 24921760.01 | BC80: 24991471.99 | BD80: 25062737.96
A81: male | B81: 65 | C81: 294558 | D81: 306310.999 | E81: 312845.007 | F81: 319920.999 | G81: 331513.989 | H81: 340890.004 | I81: 347209.997 | J81: 353456.005 | K81: 356680.003 | L81: 354415.988 | M81: 356239.991 | N81: 351889.006 | O81: 351957.99 | P81: 343577.004 | Q81: 351610.996 | R81: 340271.003 | S81: 328469.998 | T81: 316298.002 | U81: 313068.005 | V81: 307554.002 | W81: 301778.005 | X81: 307629.988 | Y81: 329475.999 | Z81: 343014 | AA81: 341602.006 | AB81: 339930.004 | AD81: 65 | AE81: =AE80+C81 -> 23406847 | AF81: =AF80+D81 -> 23754171 | AG81: =AG80+E81 -> 24011432.99 | AH81: =AH80+F81 -> 24092213.97 | AI81: =AI80+G81 -> 24125609.98 | AJ81: =AJ80+H81 -> 24145472.01 | AK81: =AK80+I81 -> 24170412.96 | AL81: =AL80+J81 -> 24206203 | AM81: =AM80+K81 -> 24242569.01 | AN81: =AN80+L81 -> 24276693.97 | AO81: =AO80+M81 -> 24314186.04 | AP81: =AP80+N81 -> 24351267.99 | AQ81: =AQ80+O81 -> 24394386.05 | AR81: =AR80+P81 -> 24439280.03 | AS81: =AS80+Q81 -> 24494413.01 | AT81: =AT80+R81 -> 24543630.1 | AU81: =AU80+S81 -> 24606347.01 | AV81: =AV80+T81 -> 24682932 | AW81: =AW80+U81 -> 24773499.02 | AX81: =AX80+V81 -> 24868866.98 | AY81: =AY80+W81 -> 24971012.05 | AZ81: =AZ80+X81 -> 25079762.07 | BA81: =BA80+Y81 -> 25183069.03 | BB81: =BB80+Z81 -> 25264774.01 | BC81: =BC80+AA81 -> 25333073.99 | BD81: =BD80+AB81 -> 25402667.96
A82: male | B82: 66 | C82: 282292 | D82: 290908.005 | E82: 302556.998 | F82: 308843.001 | G82: 315825.002 | H82: 327312.993 | I82: 336628.999 | J82: 342922.007 | K82: 349123.995 | L82: 352328 | M82: 350114.995 | N82: 351944.997 | O82: 347676.992 | P82: 347782.002 | Q82: 339538.001 | R82: 347522 | S82: 336350.999 | T82: 324733 | U82: 312748.995 | V82: 309604.009 | W82: 304196.006 | X82: 298526.007 | Y82: 304355.992 | Z82: 326003.004 | AA82: 339424.999 | AB82: 338060 | AD82: 66 | AE82: 23689139 | AF82: 24045079.01 | AG82: 24313989.98 | AH82: 24401056.97 | AI82: 24441434.98 | AJ82: 24472785 | AK82: 24507041.96 | AL82: 24549125.01 | AM82: 24591693 | AN82: 24629021.97 | AO82: 24664301.03 | AP82: 24703212.99 | AQ82: 24742063.04 | AR82: 24787062.03 | AS82: 24833951.01 | AT82: 24891152.1 | AU82: 24942698.01 | AV82: 25007665 | AW82: 25086248.01 | AX82: 25178470.99 | AY82: 25275208.05 | AZ82: 25378288.08 | BA82: 25487425.02 | BB82: 25590777.01 | BC82: 25672498.99 | BD82: 25740727.96
A83: male | B83: 67 | C83: 268525 | D83: 278440.996 | E83: 287005 | F83: 298351.008 | G83: 304557.004 | H83: 311494.011 | I83: 322894.008 | J83: 332139.995 | K83: 338385.995 | L83: 344534.004 | M83: 347719.005 | N83: 345562.997 | O83: 347402.005 | P83: 343222.993 | Q83: 343365 | R83: 335267.998 | S83: 343197.998 | T83: 332206.999 | U83: 320781.008 | V83: 308994.005 | W83: 305934.992 | X83: 300636.999 | Y83: 295076.997 | Z83: 300880.996 | AA83: 322317.002 | AB83: 335617.001 | AD83: 67 | AE83: 23957664 | AF83: 24323520 | AG83: 24600994.98 | AH83: 24699407.98 | AI83: 24745991.98 | AJ83: 24784279.01 | AK83: 24829935.97 | AL83: 24881265.01 | AM83: 24930079 | AN83: 24973555.97 | AO83: 25012020.04 | AP83: 25048775.99 | AQ83: 25089465.05 | AR83: 25130285.02 | AS83: 25177316.01 | AT83: 25226420.1 | AU83: 25285896.01 | AV83: 25339872 | AW83: 25407029.02 | AX83: 25487465 | AY83: 25581143.05 | AZ83: 25678925.08 | BA83: 25782502.01 | BB83: 25891658.01 | BC83: 25994815.99 | BD83: 26076344.96
A84: male | B84: 68 | C84: 266443 | D84: 264503.01 | E84: 274358.995 | F84: 282676.994 | G84: 293874.999 | H84: 300049.998 | I84: 306959.009 | J84: 318258.005 | K84: 327414 | L84: 333602.996 | M84: 339695.001 | N84: 342863.999 | O84: 340769.993 | P84: 342617.995 | Q84: 338535.999 | R84: 338717.995 | S84: 330775.995 | T84: 338648.997 | U84: 327848.996 | V84: 316623.997 | W84: 305040.995 | X84: 302070.003 | Y84: 296887.001 | Z84: 291440.998 | AA84: 297216.999 | AB84: 318427.992 | AD84: 68 | AE84: 24224107 | AF84: 24588023.01 | AG84: 24875353.98 | AH84: 24982084.97 | AI84: 25039866.98 | AJ84: 25084329.01 | AK84: 25136894.98 | AL84: 25199523.01 | AM84: 25257493 | AN84: 25307158.97 | AO84: 25351715.04 | AP84: 25391639.99 | AQ84: 25430235.04 | AR84: 25472903.02 | AS84: 25515852.01 | AT84: 25565138.09 | AU84: 25616672 | AV84: 25678521 | AW84: 25734878.02 | AX84: 25804089 | AY84: 25886184.04 | AZ84: 25980995.08 | BA84: 26079389.02 | BB84: 26183099.01 | BC84: 26292032.99 | BD84: 26394772.95
A85: male | B85: 69 | C85: 260409 | D85: 262011.997 | E85: 260226 | F85: 269838.991 | G85: 278060.997 | H85: 289150.004 | I85: 295307.999 | J85: 302177.999 | K85: 313352.994 | L85: 322403.992 | M85: 328534.99 | N85: 334569.996 | O85: 337725.008 | P85: 335698.003 | Q85: 337558.994 | R85: 333578.006 | S85: 333805.006 | T85: 326028.006 | U85: 333838.997 | V85: 323242.006 | W85: 312226.008 | X85: 300855.996 | Y85: 297976.996 | Z85: 292911.999 | AA85: 287585.005 | AB85: 293327.993 | AD85: 69 | AE85: 24484516 | AF85: 24850035.01 | AG85: 25135579.98 | AH85: 25251923.96 | AI85: 25317927.98 | AJ85: 25373479.02 | AK85: 25432202.98 | AL85: 25501701.01 | AM85: 25570845.99 | AN85: 25629562.96 | AO85: 25680250.03 | AP85: 25726209.98 | AQ85: 25767960.05 | AR85: 25808601.02 | AS85: 25853411 | AT85: 25898716.1 | AU85: 25950477.01 | AV85: 26004549.01 | AW85: 26068717.01 | AX85: 26127331 | AY85: 26198410.05 | AZ85: 26281851.08 | BA85: 26377366.01 | BB85: 26476011.01 | BC85: 26579618 | BD85: 26688100.95
A86: male | B86: 70 | C86: 249450 | D86: 255612.999 | E86: 257312.999 | F86: 255503.005 | G86: 264999.001 | H86: 273158.998 | I86: 284145.993 | J86: 290276.004 | K86: 297089.009 | L86: 308122.005 | M86: 317064.009 | N86: 323134.991 | O86: 329111.997 | P86: 332252.994 | Q86: 330299.003 | R86: 332175.997 | S86: 328303.995 | T86: 328579 | U86: 320976.997 | V86: 328721.996 | W86: 318337.988 | X86: 307545.004 | Y86: 296397.995 | Z86: 293613.999 | AA86: 288673.005 | AB86: 283470.014 | AD86: 70 | AE86: 24733966 | AF86: 25105648.01 | AG86: 25392892.98 | AH86: 25507426.97 | AI86: 25582926.98 | AJ86: 25646638.01 | AK86: 25716348.97 | AL86: 25791977.02 | AM86: 25867935 | AN86: 25937684.96 | AO86: 25997314.04 | AP86: 26049344.97 | AQ86: 26097072.05 | AR86: 26140854.02 | AS86: 26183710.01 | AT86: 26230892.1 | AU86: 26278781 | AV86: 26333128.01 | AW86: 26389694.01 | AX86: 26456053 | AY86: 26516748.04 | AZ86: 26589396.08 | BA86: 26673764.01 | BB86: 26769625.01 | BC86: 26868291 | BD86: 26971570.96
A87: male | B87: 71 | C87: 249080 | D87: 244422.997 | E87: 250574.996 | F87: 252181.002 | G87: 250465.006 | H87: 259871.995 | I87: 267975.993 | J87: 278841.996 | K87: 284927.004 | L87: 291669.998 | M87: 302552.996 | N87: 311380.997 | O87: 317389.001 | P87: 323303.008 | Q87: 326431.997 | R87: 324558.994 | S87: 326453.996 | T87: 322699.996 | U87: 323025.001 | V87: 315608.012 | W87: 323283 | X87: 313125.998 | Y87: 302568.007 | Z87: 291657.997 | AA87: 288971.994 | AB87: 284160.006 | AD87: 71 | AE87: 24983046 | AF87: 25350071.01 | AG87: 25643467.97 | AH87: 25759607.97 | AI87: 25833391.98 | AJ87: 25906510.01 | AK87: 25984324.96 | AL87: 26070819.01 | AM87: 26152862.01 | AN87: 26229354.96 | AO87: 26299867.03 | AP87: 26360725.97 | AQ87: 26414461.05 | AR87: 26464157.02 | AS87: 26510142 | AT87: 26555451.09 | AU87: 26605235 | AV87: 26655828 | AW87: 26712719.01 | AX87: 26771661.01 | AY87: 26840031.04 | AZ87: 26902522.08 | BA87: 26976332.01 | BB87: 27061283 | BC87: 27157263 | BD87: 27255730.97
A88: male | B88: 72 | C88: 249065 | D88: 243614.995 | E88: 239174.997 | F88: 245117.005 | G88: 246739 | H88: 245155.999 | I88: 254471.003 | J88: 262503.995 | K88: 273225.998 | L88: 279253.011 | M88: 285922.005 | N88: 296646.998 | O88: 305352.002 | P88: 311293.997 | Q88: 317145.001 | R88: 320263.007 | S88: 318477.992 | T88: 320391.004 | U88: 316765.008 | V88: 317142.009 | W88: 309923.001 | X88: 317521.993 | Y88: 307606 | Z88: 297296.004 | AA88: 286634.999 | AB88: 284052 | AD88: 72 | AE88: 25232111 | AF88: 25593686 | AG88: 25882642.97 | AH88: 26004724.98 | AI88: 26080130.98 | AJ88: 26151666.01 | AK88: 26238795.96 | AL88: 26333323.01 | AM88: 26426088 | AN88: 26508607.97 | AO88: 26585789.04 | AP88: 26657372.97 | AQ88: 26719813.05 | AR88: 26775451.02 | AS88: 26827287 | AT88: 26875714.1 | AU88: 26923712.99 | AV88: 26976219.01 | AW88: 27029484.02 | AX88: 27088803.02 | AY88: 27149954.04 | AZ88: 27220044.07 | BA88: 27283938.01 | BB88: 27358579.01 | BC88: 27443898 | BD88: 27539782.97
A89: male | B89: 73 | C89: 252979 | D89: 243099.997 | E89: 237902.998 | F89: 233486.998 | G89: 239320.002 | H89: 240987.99 | I89: 239547.001 | J89: 248753.99 | K89: 256695.005 | L89: 267254.006 | M89: 273217.001 | N89: 279806.006 | O89: 290360.997 | P89: 298938.002 | Q89: 304811.001 | R89: 310594.007 | S89: 313702 | T89: 312011.998 | U89: 313946.007 | V89: 310455.002 | W89: 310889.993 | X89: 303878.996 | Y89: 311396.005 | Z89: 301737 | AA89: 291687.989 | AB89: 281290 | AD89: 73 | AE89: 25485090 | AF89: 25836786 | AG89: 26120545.97 | AH89: 26238211.97 | AI89: 26319450.99 | AJ89: 26392654 | AK89: 26478342.97 | AL89: 26582077 | AM89: 26682783.01 | AN89: 26775861.98 | AO89: 26859006.04 | AP89: 26937178.98 | AQ89: 27010174.05 | AR89: 27074389.02 | AS89: 27132098.01 | AT89: 27186308.1 | AU89: 27237414.99 | AV89: 27288231 | AW89: 27343430.03 | AX89: 27399258.02 | AY89: 27460844.03 | AZ89: 27523923.07 | BA89: 27595334.02 | BB89: 27660316.01 | BC89: 27735585.98 | BD89: 27821072.97
A90: male | B90: 74 | C90: 263625 | D90: 246351.007 | E90: 236873.002 | F90: 231730.005 | G90: 227443.997 | H90: 233191.004 | I90: 234909.002 | J90: 233605.01 | K90: 242680.006 | L90: 250509.999 | M90: 260894.001 | N90: 266788.005 | O90: 273287.999 | P90: 283661.003 | Q90: 292102 | R90: 297902.989 | S90: 303614.997 | T90: 306715.008 | U90: 305125.998 | V90: 307082.997 | W90: 303736.991 | X90: 304233 | Y90: 297441.002 | Z90: 304870 | AA90: 295482 | AB90: 285710.989 | AD90: 74 | AE90: 25748715 | AF90: 26083137.01 | AG90: 26357418.97 | AH90: 26469941.98 | AI90: 26546894.98 | AJ90: 26625845 | AK90: 26713251.97 | AL90: 26815682.01 | AM90: 26925463.01 | AN90: 27026371.98 | AO90: 27119900.04 | AP90: 27203966.98 | AQ90: 27283462.05 | AR90: 27358050.03 | AS90: 27424200.01 | AT90: 27484211.09 | AU90: 27541029.99 | AV90: 27594946.01 | AW90: 27648556.02 | AX90: 27706341.02 | AY90: 27764581.02 | AZ90: 27828156.07 | BA90: 27892775.02 | BB90: 27965186.01 | BC90: 28031067.98 | BD90: 28106783.96
A91: male | B91: 75 | C91: 283089 | D91: 256044.003 | E91: 239464.001 | F91: 230186.001 | G91: 225191.996 | H91: 221070.994 | I91: 226727.001 | J91: 228482.999 | K91: 227309.003 | L91: 236229.994 | M91: 243940.992 | N91: 254133.005 | O91: 259950.999 | P91: 266355.998 | Q91: 276531.998 | R91: 284829.993 | S91: 290552.001 | T91: 296191.006 | U91: 299283.001 | V91: 297802.001 | W91: 299786 | X91: 296593.003 | Y91: 297152.005 | Z91: 290593.005 | AA91: 297927.002 | AB91: 288827 | AD91: 75 | AE91: 26031804 | AF91: 26339181.01 | AG91: 26596882.97 | AH91: 26700127.98 | AI91: 26772086.98 | AJ91: 26846916 | AK91: 26939978.97 | AL91: 27044165.01 | AM91: 27152772.02 | AN91: 27262601.97 | AO91: 27363841.03 | AP91: 27458099.99 | AQ91: 27543413.04 | AR91: 27624406.02 | AS91: 27700732 | AT91: 27769041.09 | AU91: 27831581.99 | AV91: 27891137.02 | AW91: 27947839.03 | AX91: 28004143.02 | AY91: 28064367.02 | AZ91: 28124749.07 | BA91: 28189927.02 | BB91: 28255779.01 | BC91: 28328994.99 | BD91: 28395610.96
A92: male | B92: 76 | C92: 211580 | D92: 274089 | E92: 248193.005 | F92: 232093.001 | G92: 223107.002 | H92: 218296.01 | I92: 214350.003 | J92: 219895.007 | K92: 221678.001 | L92: 220632.001 | M92: 229385.002 | N92: 236961 | O92: 246947.001 | P92: 252681.009 | Q92: 258979.995 | R92: 268947.999 | S92: 277089.993 | T92: 282730.002 | U92: 288291.002 | V92: 291375.007 | W92: 290010.991 | X92: 292021.002 | Y92: 288991.996 | Z92: 289616.009 | AA92: 283304.992 | AB92: 290536.007 | AD92: 76 | AE92: 26243384 | AF92: 26613270.01 | AG92: 26845075.98 | AH92: 26932220.98 | AI92: 26995193.98 | AJ92: 27065212.01 | AK92: 27154328.97 | AL92: 27264060.01 | AM92: 27374450.02 | AN92: 27483233.97 | AO92: 27593226.03 | AP92: 27695060.99 | AQ92: 27790360.05 | AR92: 27877087.03 | AS92: 27959712 | AT92: 28037989.09 | AU92: 28108671.98 | AV92: 28173867.02 | AW92: 28236130.03 | AX92: 28295518.03 | AY92: 28354378.01 | AZ92: 28416770.07 | BA92: 28478919.02 | BB92: 28545395.02 | BC92: 28612299.98 | BD92: 28686146.96
A93: male | B93: 77 | C93: 200400 | D93: 204124.004 | E93: 264803.005 | F93: 239823.001 | G93: 224299 | H93: 215642.997 | I93: 211023 | J93: 207246.987 | K93: 212667 | L93: 214473.001 | M93: 213554 | N93: 222121.002 | O93: 229550.004 | P93: 239310.993 | Q93: 244948.005 | R93: 251135.013 | S93: 260879.002 | T93: 268856.004 | U93: 274407 | V93: 279883.004 | W93: 282960.998 | X93: 281720.005 | Y93: 283759.007 | Z93: 280901.998 | AA93: 281595.007 | AB93: 275545.003 | AD93: 77 | AE93: 26443784 | AF93: 26817394.01 | AG93: 27109878.98 | AH93: 27172043.98 | AI93: 27219492.98 | AJ93: 27280855 | AK93: 27365351.97 | AL93: 27471307 | AM93: 27587117.02 | AN93: 27697706.97 | AO93: 27806780.03 | AP93: 27917181.99 | AQ93: 28019910.05 | AR93: 28116398.03 | AS93: 28204660 | AT93: 28289124.1 | AU93: 28369550.98 | AV93: 28442723.02 | AW93: 28510537.03 | AX93: 28575401.03 | AY93: 28637339.01 | AZ93: 28698490.08 | BA93: 28762678.03 | BB93: 28826297.02 | BC93: 28893894.99 | BD93: 28961691.97
A94: male | B94: 78 | C94: 195034 | D94: 192450.999 | E94: 196421.998 | F94: 254915.003 | G94: 230959.008 | H94: 216057.999 | I94: 207746 | J94: 203319.991 | K94: 199719.003 | L94: 205002.995 | M94: 206825.991 | N94: 206034.004 | O94: 214397.994 | P94: 221662.005 | Q94: 231177.994 | R94: 236711.006 | S94: 242775.007 | T94: 252278.999 | U94: 260077.008 | V94: 265533.004 | W94: 270921 | X94: 273991.993 | Y94: 272882.005 | Z94: 274948 | AA94: 272272.999 | AB94: 273038 | AD94: 78 | AE94: 26638818 | AF94: 27009845.01 | AG94: 27306300.98 | AH94: 27426958.98 | AI94: 27450451.99 | AJ94: 27496913 | AK94: 27573097.97 | AL94: 27674626.99 | AM94: 27786836.02 | AN94: 27902709.97 | AO94: 28013606.02 | AP94: 28123215.99 | AQ94: 28234308.04 | AR94: 28338060.03 | AS94: 28435838 | AT94: 28525835.1 | AU94: 28612325.99 | AV94: 28695002.02 | AW94: 28770614.04 | AX94: 28840934.03 | AY94: 28908260.01 | AZ94: 28972482.07 | BA94: 29035560.03 | BB94: 29101245.02 | BC94: 29166167.98 | BD94: 29234729.97
A95: male | B95: 79 | C95: 174091 | D95: 186278.995 | E95: 184256.002 | F95: 188214 | G95: 244442 | H95: 221572.002 | I95: 207323.998 | J95: 199368 | K95: 195144.991 | L95: 191727.003 | M95: 196863.998 | N95: 198698 | O95: 198034.001 | P95: 206173.002 | Q95: 213256 | R95: 222506.998 | S95: 227925.005 | T95: 233853 | U95: 243098.004 | V95: 250705.996 | W95: 256060.994 | X95: 261352.001 | Y95: 264411.996 | Z95: 263440.995 | AA95: 265536.003 | AB95: 263052.005 | AD95: 79 | AE95: 26812909 | AF95: 27196124.01 | AG95: 27490556.98 | AH95: 27615172.98 | AI95: 27694893.99 | AJ95: 27718485 | AK95: 27780421.97 | AL95: 27873994.99 | AM95: 27981981.01 | AN95: 28094436.97 | AO95: 28210470.02 | AP95: 28321913.99 | AQ95: 28432342.04 | AR95: 28544233.03 | AS95: 28649094 | AT95: 28748342.1 | AU95: 28840251 | AV95: 28928855.02 | AW95: 29013712.04 | AX95: 29091640.03 | AY95: 29164321.01 | AZ95: 29233834.07 | BA95: 29299972.03 | BB95: 29364686.01 | BC95: 29431703.99 | BD95: 29497781.97
A96: male | B96: 80 | C96: 149571 | D96: 165264.008 | E96: 177301.999 | F96: 175567.997 | G96: 179539.994 | H96: 233371.994 | I96: 211641.001 | J96: 198070.003 | K96: 190488.999 | L96: 186477.995 | M96: 183256 | N96: 188232.003 | O96: 190074.009 | P96: 189536.994 | Q96: 197427.995 | R96: 204312.015 | S96: 213275.003 | T96: 218564.996 | U96: 224347.003 | V96: 233313.993 | W96: 240717 | X96: 245959 | Y96: 251145.993 | Z96: 254195.006 | AA96: 253367.001 | AB96: 255489.996 | AD96: 80 | AE96: 26962480 | AF96: 27361388.01 | AG96: 27667858.98 | AH96: 27790740.98 | AI96: 27874433.98 | AJ96: 27951857 | AK96: 27992062.97 | AL96: 28072064.99 | AM96: 28172470.01 | AN96: 28280914.97 | AO96: 28393726.02 | AP96: 28510145.99 | AQ96: 28622416.05 | AR96: 28733770.03 | AS96: 28846521.99 | AT96: 28952654.12 | AU96: 29053526 | AV96: 29147420.02 | AW96: 29238059.04 | AX96: 29324954.02 | AY96: 29405038.01 | AZ96: 29479793.07 | BA96: 29551118.02 | BB96: 29618881.02 | BC96: 29685070.99 | BD96: 29753271.97
A97: male | B97: 81 | C97: 127662 | D97: 141025.003 | E97: 156255.004 | F97: 167837.004 | G97: 166426.001 | H97: 170403 | I97: 221689.999 | J97: 201137.997 | K97: 188278.992 | L97: 181092.988 | M97: 177311.001 | N97: 174294.002 | O97: 179098.001 | P97: 180941.005 | Q97: 180531.005 | R97: 188152.989 | S97: 194820 | T97: 203470.002 | U97: 208620 | V97: 214242 | W97: 222910.002 | X97: 230091.998 | Y97: 235212.994 | Z97: 240287.009 | AA97: 243317.003 | AB97: 242641.008 | AD97: 81 | AE97: 27090142 | AF97: 27502413.02 | AG97: 27824113.99 | AH97: 27958577.99 | AI97: 28040859.98 | AJ97: 28122260 | AK97: 28213752.97 | AL97: 28273202.99 | AM97: 28360749 | AN97: 28462007.96 | AO97: 28571037.02 | AP97: 28684440 | AQ97: 28801514.05 | AR97: 28914711.03 | AS97: 29027053 | AT97: 29140807.11 | AU97: 29248346 | AV97: 29350890.02 | AW97: 29446679.04 | AX97: 29539196.02 | AY97: 29627948.01 | AZ97: 29709885.07 | BA97: 29786331.02 | BB97: 29859168.03 | BC97: 29928387.99 | BD97: 29995912.97
A98: male | B98: 82 | C98: 127182 | D98: 119473.001 | E98: 132352.99 | F98: 146811.004 | G98: 157931.009 | H98: 156844.001 | I98: 160799.003 | J98: 209364.997 | K98: 190045.007 | L98: 177935.001 | M98: 171170.999 | N98: 167631.991 | O98: 164833 | P98: 169451.999 | Q98: 171289.005 | R98: 171004.998 | S98: 178334.004 | T98: 184763.001 | U98: 193074.005 | V98: 198071.009 | W98: 203519.001 | X98: 211866.001 | Y98: 218807.999 | Z98: 223796.007 | AA98: 228745 | AB98: 231753.991 | AD98: 82 | AE98: 27217324 | AF98: 27621886.02 | AG98: 27956466.98 | AH98: 28105388.99 | AI98: 28198790.99 | AJ98: 28279104 | AK98: 28374551.97 | AL98: 28482567.99 | AM98: 28550794.01 | AN98: 28639942.96 | AO98: 28742208.02 | AP98: 28852071.99 | AQ98: 28966347.05 | AR98: 29084163.03 | AS98: 29198342 | AT98: 29311812.1 | AU98: 29426680 | AV98: 29535653.02 | AW98: 29639753.05 | AX98: 29737267.03 | AY98: 29831467.01 | AZ98: 29921751.07 | BA98: 30005139.01 | BB98: 30082964.04 | BC98: 30157132.99 | BD98: 30227666.97
A99: male | B99: 83 | C99: 120059 | D99: 118029.999 | E99: 111205.001 | F99: 123307.993 | G99: 136981.004 | H99: 147605 | I99: 146818.001 | J99: 150708.994 | K99: 196391.001 | L99: 178358.994 | M99: 167037.996 | N99: 160722.005 | O99: 157441 | P99: 154873.011 | Q99: 159290.994 | R99: 161117.005 | S99: 160956.999 | T99: 167966.997 | U99: 174136.005 | V99: 182084.007 | W99: 186911.996 | X99: 192169.003 | Y99: 200171.003 | Z99: 206855.004 | AA99: 211697.998 | AB99: 216509.002 | AD99: 83 | AE99: 27337383 | AF99: 27739916.02 | AG99: 28067671.98 | AH99: 28228696.98 | AI99: 28335772 | AJ99: 28426709 | AK99: 28521369.97 | AL99: 28633276.98 | AM99: 28747185.01 | AN99: 28818301.95 | AO99: 28909246.02 | AP99: 29012793.99 | AQ99: 29123788.05 | AR99: 29239036.04 | AS99: 29357633 | AT99: 29472929.11 | AU99: 29587637 | AV99: 29703620.02 | AW99: 29813889.05 | AX99: 29919351.04 | AY99: 30018379 | AZ99: 30113920.07 | BA99: 30205310.02 | BB99: 30289819.04 | BC99: 30368830.99 | BD99: 30444175.97
